Workbook

Sheet Title
C17: =region_selection&" Service Report" -> Aberdeen Service Report
D23: =reporting_month -> 2014-05-01

Sheet Dashboard
B2: Select Region: | D2: Aberdeen | G2: Select Sector: | I2: All | L2: Select Usage Data: | O2: 90th Percentile | R2: Show SLA Failures:
N4: ="Summary Statistics for "&region_selection -> Summary Statistics for Aberdeen
B6: Service Reliability | E6: The SLA sets a target minimum of 99.7% availability for each service averaged over a 12 month rolling period
B27: NB: Periods of scheduled and emergency maintenance are not included in reliability performance statistics
B29: Connection Usage | E29: =usage_explanation -> Traffic usage is expressed as the sum, in megabits per second, of 90th percentile readings taken during the month, in whichever direction is the greater, for all links being charted
E30: =usage_graph1_title -> All Traffic - Aberdeen | P30: Usage by Connection - % of Available Bandwidth at 90th Percentile
E42: =usage_graph2_title -> Aberdeen Traffic Against Janet Traffic

Sheet Service Availability
D1: Service Availability
D2: The SLA target sets a minimum of 99.7% availability for each customer, averaged over a 12 month rolling period
D3: Periods of scheduled and emergency maintenance are discounted when calculating availability of services
A4: Column Header | B4: Service in selected region this month? | D4: Where an organisation retains connectivity during an outage period by means of a second connection, the outage is not counted against its availability figures
A5: Column Number | B5: =SUBSTITUTE(ADDRESS(1,MATCH(B4,'CA Availability data'!$1:$1,0),4),"1","") -> W | D5: Monthly and annual availabilities falling below 99.7% are highlighted
B6: Row Index
A7: Adjusted Range | B7: 0 | C7: CA_ID | D7: Service | E7: =DATE(YEAR(F7),MONTH(F7)-1, DAY(F7)) -> 2013-06-01 | F7: 2013-07-01 | G7: 2013-08-01 | H7: 2013-09-01 | I7: 2013-10-01 | J7: 2013-11-01 | K7: 2013-12-01 | L7: 2014-01-01 | M7: 2014-02-01 | N7: 2014-03-01 | O7: =DATE(YEAR(P7),MONTH(P7)-1, DAY(P7)) -> 2014-04-01 | P7: =reporting_month -> 2014-05-01 | Q7: 12 Month Rolling Availability
A8: =IF(B7="","","'CA availability data'!"&$B$5&B7+1&":"&$B$5&"30000") -> 'CA availability data'!W1:W30000 | B8: =IF(ISERROR(MATCH("yes",INDIRECT(A8),0)),"",MATCH("yes",INDIRECT(A8),0)+B7) -> 2 | C8: =IF($B8="","",(INDEX(INDIRECT(availability_caid_col),$B8,1))) -> CA00101 | D8: =IF($B8="","",(INDEX('CA Availability data'!V:V,$B8,1))) -> Aberdeen College | E8: =IF($B8="","",(SUMIFS(INDIRECT(availability_col),INDIRECT(availability_caid_col),$C8,INDIRECT(availability_month_col),E$7))) -> 1 | F8: 1 | G8: 1 | H8: 1 | I8: 1 | J8: 1 | K8: 1 | L8: 1 | M8: 1 | N8: 1 | O8: 1 | P8: 1 | Q8: =IF($B8="","",IF(COUNTIF(E8:P8,"<>"&0)<12,"<12 Months",AVERAGE(E8:P8))) -> 1
A9: =IF(B8="","","'CA availability data'!"&$B$5&B8+1&":"&$B$5&"30000") -> 'CA availability data'!W3:W30000 | B9: =IF(ISERROR(MATCH("yes",INDIRECT(A9),0)),"",MATCH("yes",INDIRECT(A9),0)+B8) -> 584 | C9: CA00102 | D9: =IF($B9="","",(INDEX('CA Availability data'!V:V,$B9,1))) -> Banff and Buchan College of Further Education | E9: 1 | F9: 1 | G9: 1 | H9: 1 | I9: 1 | J9: 1 | K9: 1 | L9: 1 | M9: 1 | N9: 1 | O9: 1 | P9: 1 | Q9: =IF($B9="","",IF(COUNTIF(E9:P9,"<>"&0)<12,"<12 Months",AVERAGE(E9:P9))) -> 1
A10: 'CA availability data'!W585:W30000 | B10: 16525 | C10: CA01100 | D10: =IF($B10="","",(INDEX('CA Availability data'!V:V,$B10,1))) -> SRUC, Aberdeen Campus | E10: 1 | F10: 1 | G10: 1 | H10: 1 | I10: 1 | J10: 1 | K10: 1 | L10: 1 | M10: 1 | N10: 1 | O10: 1 | P10: 1 | Q10: 1
A11: 'CA availability data'!W16526:W30000 | B11: 18167 | C11: CA01220 | D11: =IF($B11="","",(INDEX('CA Availability data'!V:V,$B11,1))) -> The James Hutton Institute | E11: 0 | F11: 0 | G11: 0 | H11: 0 | I11: 1 | J11: 1 | K11: 1 | L11: 1 | M11: 1 | N11: 1 | O11: 1 | P11: 1 | Q11: <12 Months
A12: 'CA availability data'!W18168:W30000 | B12: 18462 | C12: CA00103 | D12: =IF($B12="","",(INDEX('CA Availability data'!V:V,$B12,1))) -> The Robert Gordon University | E12: 1 | F12: 1 | G12: 1 | H12: 1 | I12: 1 | J12: 1 | K12: 1 | L12: 1 | M12: 1 | N12: 1 | O12: 1 | P12: 1 | Q12: 1
A13: 'CA availability data'!W18463:W30000 | B13: 19536 | C13: CA01088 | D13: =IF($B13="","",(INDEX('CA Availability data'!V:V,$B13,1))) -> University of Aberdeen, Halls of Residence | E13: 1 | F13: 1 | G13: 1 | H13: 1 | I13: 1 | J13: 1 | K13: 1 | L13: 1 | M13: 1 | N13: 1 | O13: 1 | P13: 1 | Q13: 1
A14: 'CA availability data'!W19537:W30000 | B14: 19548 | C14: CA00100 | D14: =IF($B14="","",(INDEX('CA Availability data'!V:V,$B14,1))) -> University of Aberdeen | E14: 1 | F14: 1 | G14: 1 | H14: 1 | I14: 1 | J14: 1 | K14: 1 | L14: 1 | M14: 1 | N14: 1 | O14: 1 | P14: 1 | Q14: 1
A15: 'CA availability data'!W19549:W30000 | D15: =IF($B15="","",(INDEX('CA Availability data'!V:V,$B15,1))) -> 
D16: =IF($B16="","",(INDEX('CA Availability data'!V:V,$B16,1))) -> 
D17: =IF($B17="","",(INDEX('CA Availability data'!V:V,$B17,1))) -> 
D18: =IF($B18="","",(INDEX('CA Availability data'!V:V,$B18,1))) -> 
D19: =IF($B19="","",(INDEX('CA Availability data'!V:V,$B19,1))) -> 
D20: =IF($B20="","",(INDEX('CA Availability data'!V:V,$B20,1))) -> 
D21: =IF($B21="","",(INDEX('CA Availability data'!V:V,$B21,1))) ->  | H21: =IF($B21="","",(SUMIFS(INDIRECT(availability_col),INDIRECT(availability_caid_col),$C21,INDIRECT(availability_month_col),H$7))) -> 
D22: =IF($B22="","",(INDEX('CA Availability data'!V:V,$B22,1))) -> 
D23: =IF($B23="","",(INDEX('CA Availability data'!V:V,$B23,1))) -> 
D24: =IF($B24="","",(INDEX('CA Availability data'!V:V,$B24,1))) -> 
D25: =IF($B25="","",(INDEX('CA Availability data'!V:V,$B25,1))) -> 
D26: =IF($B26="","",(INDEX('CA Availability data'!V:V,$B26,1))) -> 
D27: =IF($B27="","",(INDEX('CA Availability data'!V:V,$B27,1))) -> 
D28: =IF($B28="","",(INDEX('CA Availability data'!V:V,$B28,1))) -> 
D29: =IF($B29="","",(INDEX('CA Availability data'!V:V,$B29,1))) -> 
D30: =IF($B30="","",(INDEX('CA Availability data'!V:V,$B30,1))) -> 
D31: =IF($B31="","",(INDEX('CA Availability data'!V:V,$B31,1))) -> 
D32: =IF($B32="","",(INDEX('CA Availability data'!V:V,$B32,1))) -> 
D33: =IF($B33="","",(INDEX('CA Availability data'!V:V,$B33,1))) -> 
D34: =IF($B34="","",(INDEX('CA Availability data'!V:V,$B34,1))) -> 
D35: =IF($B35="","",(INDEX('CA Availability data'!V:V,$B35,1))) -> 
D36: =IF($B36="","",(INDEX('CA Availability data'!V:V,$B36,1))) -> 
D37: =IF($B37="","",(INDEX('CA Availability data'!V:V,$B37,1))) -> 
D38: =IF($B38="","",(INDEX('CA Availability data'!V:V,$B38,1))) -> 
D39: =IF($B39="","",(INDEX('CA Availability data'!V:V,$B39,1))) -> 
D40: =IF($B40="","",(INDEX('CA Availability data'!V:V,$B40,1))) -> 
D41: =IF($B41="","",(INDEX('CA Availability data'!V:V,$B41,1))) -> 
D42: =IF($B42="","",(INDEX('CA Availability data'!V:V,$B42,1))) ->  | K42: =IF($B42="","",(SUMIFS(INDIRECT(availability_col),INDIRECT(availability_caid_col),$C42,INDIRECT(availability_month_col),K$7))) -> 
D43: =IF($B43="","",(INDEX('CA Availability data'!V:V,$B43,1))) -> 
D44: =IF($B44="","",(INDEX('CA Availability data'!V:V,$B44,1))) -> 
D45: =IF($B45="","",(INDEX('CA Availability data'!V:V,$B45,1))) -> 
D46: =IF($B46="","",(INDEX('CA Availability data'!V:V,$B46,1))) -> 
D47: =IF($B47="","",(INDEX('CA Availability data'!V:V,$B47,1))) -> 
D48: =IF($B48="","",(INDEX('CA Availability data'!V:V,$B48,1))) -> 
D49: =IF($B49="","",(INDEX('CA Availability data'!V:V,$B49,1))) -> 
D50: =IF($B50="","",(INDEX('CA Availability data'!V:V,$B50,1))) -> 
D51: =IF($B51="","",(INDEX('CA Availability data'!V:V,$B51,1))) -> 
D52: =IF($B52="","",(INDEX('CA Availability data'!V:V,$B52,1))) -> 
D53: =IF($B53="","",(INDEX('CA Availability data'!V:V,$B53,1))) -> 
D54: =IF($B54="","",(INDEX('CA Availability data'!V:V,$B54,1))) -> 
D55: =IF($B55="","",(INDEX('CA Availability data'!V:V,$B55,1))) -> 
D56: =IF($B56="","",(INDEX('CA Availability data'!V:V,$B56,1))) -> 
D57: =IF($B57="","",(INDEX('CA Availability data'!V:V,$B57,1))) -> 
D58: =IF($B58="","",(INDEX('CA Availability data'!V:V,$B58,1))) -> 
D59: =IF($B59="","",(INDEX('CA Availability data'!V:V,$B59,1))) -> 
D60: =IF($B60="","",(INDEX('CA Availability data'!V:V,$B60,1))) -> 
D61: =IF($B61="","",(INDEX('CA Availability data'!V:V,$B61,1))) -> 
D62: =IF($B62="","",(INDEX('CA Availability data'!V:V,$B62,1))) -> 
D63: =IF($B63="","",(INDEX('CA Availability data'!V:V,$B63,1))) ->  | N63: =IF($B63="","",(SUMIFS(INDIRECT(availability_col),INDIRECT(availability_caid_col),$C63,INDIRECT(availability_month_col),N$7))) -> 
D64: =IF($B64="","",(INDEX('CA Availability data'!V:V,$B64,1))) -> 
D65: =IF($B65="","",(INDEX('CA Availability data'!V:V,$B65,1))) -> 
D66: =IF($B66="","",(INDEX('CA Availability data'!V:V,$B66,1))) -> 
D67: =IF($B67="","",(INDEX('CA Availability data'!V:V,$B67,1))) -> 
D68: =IF($B68="","",(INDEX('CA Availability data'!V:V,$B68,1))) -> 
D69: =IF($B69="","",(INDEX('CA Availability data'!V:V,$B69,1))) -> 
D70: =IF($B70="","",(INDEX('CA Availability data'!V:V,$B70,1))) -> 
D71: =IF($B71="","",(INDEX('CA Availability data'!V:V,$B71,1))) -> 
C72: =IF($B72="","",(INDEX(INDIRECT(availability_caid_col),$B72,1))) ->  | D72: =IF($B72="","",(INDEX('CA Availability data'!V:V,$B72,1))) -> 
A73: =IF(B72="","","'CA availability data'!"&$B$5&B72+1&":"&$B$5&"30000") ->  | B73: =IF(ISERROR(MATCH("yes",INDIRECT(A73),0)),"",MATCH("yes",INDIRECT(A73),0)+B72) ->  | D73: =IF($B73="","",(INDEX('CA Availability data'!V:V,$B73,1))) ->  | Q73: =IF($B73="","",IF(COUNTIF(E73:P73,"<>"&0)<12,"<12 Months",AVERAGE(E73:P73))) -> 
D74: =IF($B74="","",(INDEX('CA Availability data'!V:V,$B74,1))) -> 
D75: =IF($B75="","",(INDEX('CA Availability data'!V:V,$B75,1))) -> 
D76: =IF($B76="","",(INDEX('CA Availability data'!V:V,$B76,1))) -> 
D77: =IF($B77="","",(INDEX('CA Availability data'!V:V,$B77,1))) -> 
D78: =IF($B78="","",(INDEX('CA Availability data'!V:V,$B78,1))) -> 
D79: =IF($B79="","",(INDEX('CA Availability data'!V:V,$B79,1))) -> 
D80: =IF($B80="","",(INDEX('CA Availability data'!V:V,$B80,1))) -> 
D81: =IF($B81="","",(INDEX('CA Availability data'!V:V,$B81,1))) -> 
D82: =IF($B82="","",(INDEX('CA Availability data'!V:V,$B82,1))) -> 
D83: =IF($B83="","",(INDEX('CA Availability data'!V:V,$B83,1))) -> 
D84: =IF($B84="","",(INDEX('CA Availability data'!V:V,$B84,1))) -> 
D85: =IF($B85="","",(INDEX('CA Availability data'!V:V,$B85,1))) ->  | E85: =IF($B85="","",(SUMIFS(INDIRECT(availability_col),INDIRECT(availability_caid_col),$C85,INDIRECT(availability_month_col),E$7))) -> 
D86: =IF($B86="","",(INDEX('CA Availability data'!V:V,$B86,1))) -> 
D87: =IF($B87="","",(INDEX('CA Availability data'!V:V,$B87,1))) -> 
D88: =IF($B88="","",(INDEX('CA Availability data'!V:V,$B88,1))) -> 
D89: =IF($B89="","",(INDEX('CA Availability data'!V:V,$B89,1))) -> 
D90: =IF($B90="","",(INDEX('CA Availability data'!V:V,$B90,1))) -> 
D91: =IF($B91="","",(INDEX('CA Availability data'!V:V,$B91,1))) -> 
D92: =IF($B92="","",(INDEX('CA Availability data'!V:V,$B92,1))) -> 
D93: =IF($B93="","",(INDEX('CA Availability data'!V:V,$B93,1))) -> 
D94: =IF($B94="","",(INDEX('CA Availability data'!V:V,$B94,1))) -> 
D95: =IF($B95="","",(INDEX('CA Availability data'!V:V,$B95,1))) -> 
D96: =IF($B96="","",(INDEX('CA Availability data'!V:V,$B96,1))) -> 
D97: =IF($B97="","",(INDEX('CA Availability data'!V:V,$B97,1))) -> 
D98: =IF($B98="","",(INDEX('CA Availability data'!V:V,$B98,1))) -> 
D99: =IF($B99="","",(INDEX('CA Availability data'!V:V,$B99,1))) -> 
D100: =IF($B100="","",(INDEX('CA Availability data'!V:V,$B100,1))) -> 
D101: =IF($B101="","",(INDEX('CA Availability data'!V:V,$B101,1))) -> 
D102: =IF($B102="","",(INDEX('CA Availability data'!V:V,$B102,1))) -> 
D103: =IF($B103="","",(INDEX('CA Availability data'!V:V,$B103,1))) -> 
D104: =IF($B104="","",(INDEX('CA Availability data'!V:V,$B104,1))) -> 
D105: =IF($B105="","",(INDEX('CA Availability data'!V:V,$B105,1))) -> 
D106: =IF($B106="","",(INDEX('CA Availability data'!V:V,$B106,1))) ->  | H106: =IF($B106="","",(SUMIFS(INDIRECT(availability_col),INDIRECT(availability_caid_col),$C106,INDIRECT(availability_month_col),H$7))) -> 
D107: =IF($B107="","",(INDEX('CA Availability data'!V:V,$B107,1))) -> 
D108: =IF($B108="","",(INDEX('CA Availability data'!V:V,$B108,1))) -> 
D109: =IF($B109="","",(INDEX('CA Availability data'!V:V,$B109,1))) -> 
D110: =IF($B110="","",(INDEX('CA Availability data'!V:V,$B110,1))) -> 
D111: =IF($B111="","",(INDEX('CA Availability data'!V:V,$B111,1))) -> 
D112: =IF($B112="","",(INDEX('CA Availability data'!V:V,$B112,1))) -> 
D113: =IF($B113="","",(INDEX('CA Availability data'!V:V,$B113,1))) -> 
D114: =IF($B114="","",(INDEX('CA Availability data'!V:V,$B114,1))) -> 
D115: =IF($B115="","",(INDEX('CA Availability data'!V:V,$B115,1))) -> 
D116: =IF($B116="","",(INDEX('CA Availability data'!V:V,$B116,1))) -> 
D117: =IF($B117="","",(INDEX('CA Availability data'!V:V,$B117,1))) -> 
D118: =IF($B118="","",(INDEX('CA Availability data'!V:V,$B118,1))) -> 
D119: =IF($B119="","",(INDEX('CA Availability data'!V:V,$B119,1))) -> 
D120: =IF($B120="","",(INDEX('CA Availability data'!V:V,$B120,1))) -> 
D121: =IF($B121="","",(INDEX('CA Availability data'!V:V,$B121,1))) -> 
D122: =IF($B122="","",(INDEX('CA Availability data'!V:V,$B122,1))) -> 
D123: =IF($B123="","",(INDEX('CA Availability data'!V:V,$B123,1))) -> 
D124: =IF($B124="","",(INDEX('CA Availability data'!V:V,$B124,1))) -> 
D125: =IF($B125="","",(INDEX('CA Availability data'!V:V,$B125,1))) -> 
D126: =IF($B126="","",(INDEX('CA Availability data'!V:V,$B126,1))) -> 
D127: =IF($B127="","",(INDEX('CA Availability data'!V:V,$B127,1))) ->  | K127: =IF($B127="","",(SUMIFS(INDIRECT(availability_col),INDIRECT(availability_caid_col),$C127,INDIRECT(availability_month_col),K$7))) -> 
D128: =IF($B128="","",(INDEX('CA Availability data'!V:V,$B128,1))) -> 
D129: =IF($B129="","",(INDEX('CA Availability data'!V:V,$B129,1))) -> 
D130: =IF($B130="","",(INDEX('CA Availability data'!V:V,$B130,1))) -> 
D131: =IF($B131="","",(INDEX('CA Availability data'!V:V,$B131,1))) -> 
D132: =IF($B132="","",(INDEX('CA Availability data'!V:V,$B132,1))) -> 
D133: =IF($B133="","",(INDEX('CA Availability data'!V:V,$B133,1))) -> 
D134: =IF($B134="","",(INDEX('CA Availability data'!V:V,$B134,1))) -> 
D135: =IF($B135="","",(INDEX('CA Availability data'!V:V,$B135,1))) -> 
C136: =IF($B136="","",(INDEX(INDIRECT(availability_caid_col),$B136,1))) ->  | D136: =IF($B136="","",(INDEX('CA Availability data'!V:V,$B136,1))) -> 
A137: =IF(B136="","","'CA availability data'!"&$B$5&B136+1&":"&$B$5&"30000") ->  | B137: =IF(ISERROR(MATCH("yes",INDIRECT(A137),0)),"",MATCH("yes",INDIRECT(A137),0)+B136) ->  | D137: =IF($B137="","",(INDEX('CA Availability data'!V:V,$B137,1))) ->  | Q137: =IF($B137="","",IF(COUNTIF(E137:P137,"<>"&0)<12,"<12 Months",AVERAGE(E137:P137))) -> 
D138: =IF($B138="","",(INDEX('CA Availability data'!V:V,$B138,1))) -> 
D139: =IF($B139="","",(INDEX('CA Availability data'!V:V,$B139,1))) -> 
D140: =IF($B140="","",(INDEX('CA Availability data'!V:V,$B140,1))) -> 
D141: =IF($B141="","",(INDEX('CA Availability data'!V:V,$B141,1))) -> 
D142: =IF($B142="","",(INDEX('CA Availability data'!V:V,$B142,1))) -> 
D143: =IF($B143="","",(INDEX('CA Availability data'!V:V,$B143,1))) -> 
D144: =IF($B144="","",(INDEX('CA Availability data'!V:V,$B144,1))) -> 
D145: =IF($B145="","",(INDEX('CA Availability data'!V:V,$B145,1))) -> 
D146: =IF($B146="","",(INDEX('CA Availability data'!V:V,$B146,1))) -> 
D147: =IF($B147="","",(INDEX('CA Availability data'!V:V,$B147,1))) -> 
D148: =IF($B148="","",(INDEX('CA Availability data'!V:V,$B148,1))) ->  | N148: =IF($B148="","",(SUMIFS(INDIRECT(availability_col),INDIRECT(availability_caid_col),$C148,INDIRECT(availability_month_col),N$7))) -> 
D149: =IF($B149="","",(INDEX('CA Availability data'!V:V,$B149,1))) -> 
D150: =IF($B150="","",(INDEX('CA Availability data'!V:V,$B150,1))) -> 
D151: =IF($B151="","",(INDEX('CA Availability data'!V:V,$B151,1))) -> 
D152: =IF($B152="","",(INDEX('CA Availability data'!V:V,$B152,1))) -> 
D153: =IF($B153="","",(INDEX('CA Availability data'!V:V,$B153,1))) -> 
D154: =IF($B154="","",(INDEX('CA Availability data'!V:V,$B154,1))) -> 
D155: =IF($B155="","",(INDEX('CA Availability data'!V:V,$B155,1))) -> 
D156: =IF($B156="","",(INDEX('CA Availability data'!V:V,$B156,1))) -> 
D157: =IF($B157="","",(INDEX('CA Availability data'!V:V,$B157,1))) -> 
D158: =IF($B158="","",(INDEX('CA Availability data'!V:V,$B158,1))) -> 
D159: =IF($B159="","",(INDEX('CA Availability data'!V:V,$B159,1))) -> 
D160: =IF($B160="","",(INDEX('CA Availability data'!V:V,$B160,1))) -> 
D161: =IF($B161="","",(INDEX('CA Availability data'!V:V,$B161,1))) -> 
D162: =IF($B162="","",(INDEX('CA Availability data'!V:V,$B162,1))) -> 
D163: =IF($B163="","",(INDEX('CA Availability data'!V:V,$B163,1))) -> 
D164: =IF($B164="","",(INDEX('CA Availability data'!V:V,$B164,1))) -> 
D165: =IF($B165="","",(INDEX('CA Availability data'!V:V,$B165,1))) -> 
D166: =IF($B166="","",(INDEX('CA Availability data'!V:V,$B166,1))) -> 
D167: =IF($B167="","",(INDEX('CA Availability data'!V:V,$B167,1))) -> 
D168: =IF($B168="","",(INDEX('CA Availability data'!V:V,$B168,1))) -> 
D169: =IF($B169="","",(INDEX('CA Availability data'!V:V,$B169,1))) -> 
D170: =IF($B170="","",(INDEX('CA Availability data'!V:V,$B170,1))) ->  | E170: =IF($B170="","",(SUMIFS(INDIRECT(availability_col),INDIRECT(availability_caid_col),$C170,INDIRECT(availability_month_col),E$7))) -> 
D171: =IF($B171="","",(INDEX('CA Availability data'!V:V,$B171,1))) -> 
D172: =IF($B172="","",(INDEX('CA Availability data'!V:V,$B172,1))) -> 
D173: =IF($B173="","",(INDEX('CA Availability data'!V:V,$B173,1))) -> 
D174: =IF($B174="","",(INDEX('CA Availability data'!V:V,$B174,1))) -> 
D175: =IF($B175="","",(INDEX('CA Availability data'!V:V,$B175,1))) -> 
D176: =IF($B176="","",(INDEX('CA Availability data'!V:V,$B176,1))) -> 
D177: =IF($B177="","",(INDEX('CA Availability data'!V:V,$B177,1))) -> 
D178: =IF($B178="","",(INDEX('CA Availability data'!V:V,$B178,1))) -> 
D179: =IF($B179="","",(INDEX('CA Availability data'!V:V,$B179,1))) -> 
D180: =IF($B180="","",(INDEX('CA Availability data'!V:V,$B180,1))) -> 
D181: =IF($B181="","",(INDEX('CA Availability data'!V:V,$B181,1))) -> 
D182: =IF($B182="","",(INDEX('CA Availability data'!V:V,$B182,1))) -> 
D183: =IF($B183="","",(INDEX('CA Availability data'!V:V,$B183,1))) -> 
D184: =IF($B184="","",(INDEX('CA Availability data'!V:V,$B184,1))) -> 
D185: =IF($B185="","",(INDEX('CA Availability data'!V:V,$B185,1))) -> 
D186: =IF($B186="","",(INDEX('CA Availability data'!V:V,$B186,1))) -> 
D187: =IF($B187="","",(INDEX('CA Availability data'!V:V,$B187,1))) -> 
D188: =IF($B188="","",(INDEX('CA Availability data'!V:V,$B188,1))) -> 
D189: =IF($B189="","",(INDEX('CA Availability data'!V:V,$B189,1))) -> 
D190: =IF($B190="","",(INDEX('CA Availability data'!V:V,$B190,1))) -> 
D191: =IF($B191="","",(INDEX('CA Availability data'!V:V,$B191,1))) ->  | H191: =IF($B191="","",(SUMIFS(INDIRECT(availability_col),INDIRECT(availability_caid_col),$C191,INDIRECT(availability_month_col),H$7))) -> 
D192: =IF($B192="","",(INDEX('CA Availability data'!V:V,$B192,1))) -> 
D193: =IF($B193="","",(INDEX('CA Availability data'!V:V,$B193,1))) -> 
D194: =IF($B194="","",(INDEX('CA Availability data'!V:V,$B194,1))) -> 
D195: =IF($B195="","",(INDEX('CA Availability data'!V:V,$B195,1))) -> 
D196: =IF($B196="","",(INDEX('CA Availability data'!V:V,$B196,1))) -> 
D197: =IF($B197="","",(INDEX('CA Availability data'!V:V,$B197,1))) -> 
D198: =IF($B198="","",(INDEX('CA Availability data'!V:V,$B198,1))) -> 
D199: =IF($B199="","",(INDEX('CA Availability data'!V:V,$B199,1))) -> 
C200: =IF($B200="","",(INDEX(INDIRECT(availability_caid_col),$B200,1))) ->  | D200: =IF($B200="","",(INDEX('CA Availability data'!V:V,$B200,1))) -> 
... 103 more rows

Sheet Outages
A1: Column Header | B1: Outage in selected region this month? | D1: Connection outages this month
A2: Column Number | B2: =SUBSTITUTE(ADDRESS(1,MATCH(B1,'AD Outage data'!$1:$1,0),4),"1","") -> AH | D2: Maintenance outages are included in this table - only unscheduled maintenance is counted against availability.
B3: Row Index
A4: Adjusted Range | B4: 0 | C4: AD_ID | D4: Connection | E4: Start Date and Time | F4: End Date and Time | G4: Parking hh:mm | H4: Duration hh:mm | I4: Fault Type | J4: Description
A5: =IF(B4="","","'AD Outage data'!"&$B$2&B4+1&":"&$B$2&"30000") -> 'AD Outage data'!AH1:AH30000 | B5: =IF(ISERROR(MATCH("yes",INDIRECT(A5),0)),"",MATCH("yes",INDIRECT(A5),0)+B4) -> 6055 | C5: =IF($B5="","",(INDEX(INDIRECT(outage_adid_col),$B5,1))) -> AD01009 | D5: =IF($B5="","No outages",(INDEX('AD Outage data'!D:D,$B5,1))) -> The Robert Gordon University, Garthdee Campus | E5: =IF($B5="","",(INDEX('AD Outage data'!G:G,$B5,1))) -> 2014-05-05T13:02:00 | F5: =IF($B5="","",(INDEX('AD Outage data'!H:H,$B5,1))) -> 2014-05-07T11:30:00 | G5: =IF($B5="","",((INDEX('AD Outage data'!I:I,$B5,1))/(24*60))) -> 00:00:00 | H5: =IF($B5="","",((INDEX('AD Outage data'!J:J,$B5,1))/(24*60))) -> 1900-01-01T22:28:00 | I5: =IF($B5="","",(INDEX('AD Outage data'!AI:AI,$B5,1))) -> Customer Line | J5: =IF($B5="","",(INDEX('AD Outage data'!M:M,$B5,1))) -> Faulty patch fibre at The Robert Gordon University
A6: =IF(B5="","","'AD Outage data'!"&$B$2&B5+1&":"&$B$2&"30000") -> 'AD Outage data'!AH6056:AH30000 | B6: =IF(ISERROR(MATCH("yes",INDIRECT(A6),0)),"",MATCH("yes",INDIRECT(A6),0)+B5) -> 6171 | C6: AD01009 | D6: =IF($B6="","",(INDEX('AD Outage data'!D:D,$B6,1))) -> The Robert Gordon University, Garthdee Campus | E6: =IF($B6="","",(INDEX('AD Outage data'!G:G,$B6,1))) -> 2014-05-19T17:04:00 | F6: =IF($B6="","",(INDEX('AD Outage data'!H:H,$B6,1))) -> 2014-05-19T17:47:00 | G6: =IF($B6="","",((INDEX('AD Outage data'!I:I,$B6,1))/(24*60))) -> 00:00:00 | H6: =IF($B6="","",((INDEX('AD Outage data'!J:J,$B6,1))/(24*60))) -> 00:43:00 | I6: =IF($B6="","",(INDEX('AD Outage data'!AI:AI,$B6,1))) -> Customer Scheduled Maintenance | J6: =IF($B6="","",(INDEX('AD Outage data'!M:M,$B6,1))) -> Customer scheduled maintenance
A7: 'AD Outage data'!AH6172:AH30000 | B7: 6249 | C7: AD01009 | D7: =IF($B7="","",(INDEX('AD Outage data'!D:D,$B7,1))) -> The Robert Gordon University, Garthdee Campus | E7: =IF($B7="","",(INDEX('AD Outage data'!G:G,$B7,1))) -> 2014-05-27T18:36:00 | F7: =IF($B7="","",(INDEX('AD Outage data'!H:H,$B7,1))) -> 2014-05-27T19:01:00 | G7: =IF($B7="","",((INDEX('AD Outage data'!I:I,$B7,1))/(24*60))) -> 00:00:00 | H7: =IF($B7="","",((INDEX('AD Outage data'!J:J,$B7,1))/(24*60))) -> 00:25:00 | I7: =IF($B7="","",(INDEX('AD Outage data'!AI:AI,$B7,1))) -> Customer Configuration | J7: =IF($B7="","",(INDEX('AD Outage data'!M:M,$B7,1))) -> Configuration error
A8: 'AD Outage data'!AH6250:AH30000 | B8: 6253 | C8: AD01178 | D8: =IF($B8="","",(INDEX('AD Outage data'!D:D,$B8,1))) -> SRUC, Aberdeen Campus | E8: =IF($B8="","",(INDEX('AD Outage data'!G:G,$B8,1))) -> 2014-05-28T08:17:00 | F8: =IF($B8="","",(INDEX('AD Outage data'!H:H,$B8,1))) -> 2014-05-28T09:32:00 | G8: =IF($B8="","",((INDEX('AD Outage data'!I:I,$B8,1))/(24*60))) -> 00:00:00 | H8: =IF($B8="","",((INDEX('AD Outage data'!J:J,$B8,1))/(24*60))) -> 01:15:00 | I8: =IF($B8="","",(INDEX('AD Outage data'!AI:AI,$B8,1))) -> Customer Environment | J8: =IF($B8="","",(INDEX('AD Outage data'!M:M,$B8,1))) -> Power issues
A9: 'AD Outage data'!AH6254:AH30000 | D9: =IF($B9="","",(INDEX('AD Outage data'!D:D,$B9,1))) ->  | E9: =IF($B9="","",(INDEX('AD Outage data'!G:G,$B9,1))) ->  | F9: =IF($B9="","",(INDEX('AD Outage data'!H:H,$B9,1))) ->  | G9: =IF($B9="","",((INDEX('AD Outage data'!I:I,$B9,1))/(24*60))) ->  | H9: =IF($B9="","",((INDEX('AD Outage data'!J:J,$B9,1))/(24*60))) ->  | I9: =IF($B9="","",(INDEX('AD Outage data'!AI:AI,$B9,1))) ->  | J9: =IF($B9="","",(INDEX('AD Outage data'!M:M,$B9,1))) -> 
D10: =IF($B10="","",(INDEX('AD Outage data'!D:D,$B10,1))) ->  | E10: =IF($B10="","",(INDEX('AD Outage data'!G:G,$B10,1))) ->  | F10: =IF($B10="","",(INDEX('AD Outage data'!H:H,$B10,1))) ->  | G10: =IF($B10="","",((INDEX('AD Outage data'!I:I,$B10,1))/(24*60))) ->  | H10: =IF($B10="","",((INDEX('AD Outage data'!J:J,$B10,1))/(24*60))) ->  | I10: =IF($B10="","",(INDEX('AD Outage data'!AI:AI,$B10,1))) ->  | J10: =IF($B10="","",(INDEX('AD Outage data'!M:M,$B10,1))) -> 
D11: =IF($B11="","",(INDEX('AD Outage data'!D:D,$B11,1))) ->  | E11: =IF($B11="","",(INDEX('AD Outage data'!G:G,$B11,1))) ->  | F11: =IF($B11="","",(INDEX('AD Outage data'!H:H,$B11,1))) ->  | G11: =IF($B11="","",((INDEX('AD Outage data'!I:I,$B11,1))/(24*60))) ->  | H11: =IF($B11="","",((INDEX('AD Outage data'!J:J,$B11,1))/(24*60))) ->  | I11: =IF($B11="","",(INDEX('AD Outage data'!AI:AI,$B11,1))) ->  | J11: =IF($B11="","",(INDEX('AD Outage data'!M:M,$B11,1))) -> 
D12: =IF($B12="","",(INDEX('AD Outage data'!D:D,$B12,1))) ->  | E12: =IF($B12="","",(INDEX('AD Outage data'!G:G,$B12,1))) ->  | F12: =IF($B12="","",(INDEX('AD Outage data'!H:H,$B12,1))) ->  | G12: =IF($B12="","",((INDEX('AD Outage data'!I:I,$B12,1))/(24*60))) ->  | H12: =IF($B12="","",((INDEX('AD Outage data'!J:J,$B12,1))/(24*60))) ->  | I12: =IF($B12="","",(INDEX('AD Outage data'!AI:AI,$B12,1))) ->  | J12: =IF($B12="","",(INDEX('AD Outage data'!M:M,$B12,1))) -> 
D13: =IF($B13="","",(INDEX('AD Outage data'!D:D,$B13,1))) ->  | E13: =IF($B13="","",(INDEX('AD Outage data'!G:G,$B13,1))) ->  | F13: =IF($B13="","",(INDEX('AD Outage data'!H:H,$B13,1))) ->  | G13: =IF($B13="","",((INDEX('AD Outage data'!I:I,$B13,1))/(24*60))) ->  | H13: =IF($B13="","",((INDEX('AD Outage data'!J:J,$B13,1))/(24*60))) ->  | I13: =IF($B13="","",(INDEX('AD Outage data'!AI:AI,$B13,1))) ->  | J13: =IF($B13="","",(INDEX('AD Outage data'!M:M,$B13,1))) -> 
D14: =IF($B14="","",(INDEX('AD Outage data'!D:D,$B14,1))) ->  | E14: =IF($B14="","",(INDEX('AD Outage data'!G:G,$B14,1))) ->  | F14: =IF($B14="","",(INDEX('AD Outage data'!H:H,$B14,1))) ->  | G14: =IF($B14="","",((INDEX('AD Outage data'!I:I,$B14,1))/(24*60))) ->  | H14: =IF($B14="","",((INDEX('AD Outage data'!J:J,$B14,1))/(24*60))) ->  | I14: =IF($B14="","",(INDEX('AD Outage data'!AI:AI,$B14,1))) ->  | J14: =IF($B14="","",(INDEX('AD Outage data'!M:M,$B14,1))) -> 
D15: =IF($B15="","",(INDEX('AD Outage data'!D:D,$B15,1))) ->  | E15: =IF($B15="","",(INDEX('AD Outage data'!G:G,$B15,1))) ->  | F15: =IF($B15="","",(INDEX('AD Outage data'!H:H,$B15,1))) ->  | G15: =IF($B15="","",((INDEX('AD Outage data'!I:I,$B15,1))/(24*60))) ->  | H15: =IF($B15="","",((INDEX('AD Outage data'!J:J,$B15,1))/(24*60))) ->  | I15: =IF($B15="","",(INDEX('AD Outage data'!AI:AI,$B15,1))) ->  | J15: =IF($B15="","",(INDEX('AD Outage data'!M:M,$B15,1))) -> 
D16: =IF($B16="","",(INDEX('AD Outage data'!D:D,$B16,1))) ->  | E16: =IF($B16="","",(INDEX('AD Outage data'!G:G,$B16,1))) ->  | F16: =IF($B16="","",(INDEX('AD Outage data'!H:H,$B16,1))) ->  | G16: =IF($B16="","",((INDEX('AD Outage data'!I:I,$B16,1))/(24*60))) ->  | H16: =IF($B16="","",((INDEX('AD Outage data'!J:J,$B16,1))/(24*60))) ->  | I16: =IF($B16="","",(INDEX('AD Outage data'!AI:AI,$B16,1))) ->  | J16: =IF($B16="","",(INDEX('AD Outage data'!M:M,$B16,1))) -> 
D17: =IF($B17="","",(INDEX('AD Outage data'!D:D,$B17,1))) ->  | E17: =IF($B17="","",(INDEX('AD Outage data'!G:G,$B17,1))) ->  | F17: =IF($B17="","",(INDEX('AD Outage data'!H:H,$B17,1))) ->  | G17: =IF($B17="","",((INDEX('AD Outage data'!I:I,$B17,1))/(24*60))) ->  | H17: =IF($B17="","",((INDEX('AD Outage data'!J:J,$B17,1))/(24*60))) ->  | I17: =IF($B17="","",(INDEX('AD Outage data'!AI:AI,$B17,1))) ->  | J17: =IF($B17="","",(INDEX('AD Outage data'!M:M,$B17,1))) -> 
D18: =IF($B18="","",(INDEX('AD Outage data'!D:D,$B18,1))) ->  | E18: =IF($B18="","",(INDEX('AD Outage data'!G:G,$B18,1))) ->  | F18: =IF($B18="","",(INDEX('AD Outage data'!H:H,$B18,1))) ->  | G18: =IF($B18="","",((INDEX('AD Outage data'!I:I,$B18,1))/(24*60))) ->  | H18: =IF($B18="","",((INDEX('AD Outage data'!J:J,$B18,1))/(24*60))) ->  | I18: =IF($B18="","",(INDEX('AD Outage data'!AI:AI,$B18,1))) ->  | J18: =IF($B18="","",(INDEX('AD Outage data'!M:M,$B18,1))) -> 
D19: =IF($B19="","",(INDEX('AD Outage data'!D:D,$B19,1))) ->  | E19: =IF($B19="","",(INDEX('AD Outage data'!G:G,$B19,1))) ->  | F19: =IF($B19="","",(INDEX('AD Outage data'!H:H,$B19,1))) ->  | G19: =IF($B19="","",((INDEX('AD Outage data'!I:I,$B19,1))/(24*60))) ->  | H19: =IF($B19="","",((INDEX('AD Outage data'!J:J,$B19,1))/(24*60))) ->  | I19: =IF($B19="","",(INDEX('AD Outage data'!AI:AI,$B19,1))) ->  | J19: =IF($B19="","",(INDEX('AD Outage data'!M:M,$B19,1))) -> 
D20: =IF($B20="","",(INDEX('AD Outage data'!D:D,$B20,1))) ->  | E20: =IF($B20="","",(INDEX('AD Outage data'!G:G,$B20,1))) ->  | F20: =IF($B20="","",(INDEX('AD Outage data'!H:H,$B20,1))) ->  | G20: =IF($B20="","",((INDEX('AD Outage data'!I:I,$B20,1))/(24*60))) ->  | H20: =IF($B20="","",((INDEX('AD Outage data'!J:J,$B20,1))/(24*60))) ->  | I20: =IF($B20="","",(INDEX('AD Outage data'!AI:AI,$B20,1))) ->  | J20: =IF($B20="","",(INDEX('AD Outage data'!M:M,$B20,1))) -> 
D21: =IF($B21="","",(INDEX('AD Outage data'!D:D,$B21,1))) ->  | E21: =IF($B21="","",(INDEX('AD Outage data'!G:G,$B21,1))) ->  | F21: =IF($B21="","",(INDEX('AD Outage data'!H:H,$B21,1))) ->  | G21: =IF($B21="","",((INDEX('AD Outage data'!I:I,$B21,1))/(24*60))) ->  | H21: =IF($B21="","",((INDEX('AD Outage data'!J:J,$B21,1))/(24*60))) ->  | I21: =IF($B21="","",(INDEX('AD Outage data'!AI:AI,$B21,1))) ->  | J21: =IF($B21="","",(INDEX('AD Outage data'!M:M,$B21,1))) -> 
D22: =IF($B22="","",(INDEX('AD Outage data'!D:D,$B22,1))) ->  | E22: =IF($B22="","",(INDEX('AD Outage data'!G:G,$B22,1))) ->  | F22: =IF($B22="","",(INDEX('AD Outage data'!H:H,$B22,1))) ->  | G22: =IF($B22="","",((INDEX('AD Outage data'!I:I,$B22,1))/(24*60))) ->  | H22: =IF($B22="","",((INDEX('AD Outage data'!J:J,$B22,1))/(24*60))) ->  | I22: =IF($B22="","",(INDEX('AD Outage data'!AI:AI,$B22,1))) ->  | J22: =IF($B22="","",(INDEX('AD Outage data'!M:M,$B22,1))) -> 
D23: =IF($B23="","",(INDEX('AD Outage data'!D:D,$B23,1))) ->  | E23: =IF($B23="","",(INDEX('AD Outage data'!G:G,$B23,1))) ->  | F23: =IF($B23="","",(INDEX('AD Outage data'!H:H,$B23,1))) ->  | G23: =IF($B23="","",((INDEX('AD Outage data'!I:I,$B23,1))/(24*60))) ->  | H23: =IF($B23="","",((INDEX('AD Outage data'!J:J,$B23,1))/(24*60))) ->  | I23: =IF($B23="","",(INDEX('AD Outage data'!AI:AI,$B23,1))) ->  | J23: =IF($B23="","",(INDEX('AD Outage data'!M:M,$B23,1))) -> 
D24: =IF($B24="","",(INDEX('AD Outage data'!D:D,$B24,1))) ->  | E24: =IF($B24="","",(INDEX('AD Outage data'!G:G,$B24,1))) ->  | F24: =IF($B24="","",(INDEX('AD Outage data'!H:H,$B24,1))) ->  | G24: =IF($B24="","",((INDEX('AD Outage data'!I:I,$B24,1))/(24*60))) ->  | H24: =IF($B24="","",((INDEX('AD Outage data'!J:J,$B24,1))/(24*60))) ->  | I24: =IF($B24="","",(INDEX('AD Outage data'!AI:AI,$B24,1))) ->  | J24: =IF($B24="","",(INDEX('AD Outage data'!M:M,$B24,1))) -> 
D25: =IF($B25="","",(INDEX('AD Outage data'!D:D,$B25,1))) ->  | E25: =IF($B25="","",(INDEX('AD Outage data'!G:G,$B25,1))) ->  | F25: =IF($B25="","",(INDEX('AD Outage data'!H:H,$B25,1))) ->  | G25: =IF($B25="","",((INDEX('AD Outage data'!I:I,$B25,1))/(24*60))) ->  | H25: =IF($B25="","",((INDEX('AD Outage data'!J:J,$B25,1))/(24*60))) ->  | I25: =IF($B25="","",(INDEX('AD Outage data'!AI:AI,$B25,1))) ->  | J25: =IF($B25="","",(INDEX('AD Outage data'!M:M,$B25,1))) -> 
D26: =IF($B26="","",(INDEX('AD Outage data'!D:D,$B26,1))) ->  | E26: =IF($B26="","",(INDEX('AD Outage data'!G:G,$B26,1))) ->  | F26: =IF($B26="","",(INDEX('AD Outage data'!H:H,$B26,1))) ->  | G26: =IF($B26="","",((INDEX('AD Outage data'!I:I,$B26,1))/(24*60))) ->  | H26: =IF($B26="","",((INDEX('AD Outage data'!J:J,$B26,1))/(24*60))) ->  | I26: =IF($B26="","",(INDEX('AD Outage data'!AI:AI,$B26,1))) ->  | J26: =IF($B26="","",(INDEX('AD Outage data'!M:M,$B26,1))) -> 
D27: =IF($B27="","",(INDEX('AD Outage data'!D:D,$B27,1))) ->  | E27: =IF($B27="","",(INDEX('AD Outage data'!G:G,$B27,1))) ->  | F27: =IF($B27="","",(INDEX('AD Outage data'!H:H,$B27,1))) ->  | G27: =IF($B27="","",((INDEX('AD Outage data'!I:I,$B27,1))/(24*60))) ->  | H27: =IF($B27="","",((INDEX('AD Outage data'!J:J,$B27,1))/(24*60))) ->  | I27: =IF($B27="","",(INDEX('AD Outage data'!AI:AI,$B27,1))) ->  | J27: =IF($B27="","",(INDEX('AD Outage data'!M:M,$B27,1))) -> 
D28: =IF($B28="","",(INDEX('AD Outage data'!D:D,$B28,1))) ->  | E28: =IF($B28="","",(INDEX('AD Outage data'!G:G,$B28,1))) ->  | F28: =IF($B28="","",(INDEX('AD Outage data'!H:H,$B28,1))) ->  | G28: =IF($B28="","",((INDEX('AD Outage data'!I:I,$B28,1))/(24*60))) ->  | H28: =IF($B28="","",((INDEX('AD Outage data'!J:J,$B28,1))/(24*60))) ->  | I28: =IF($B28="","",(INDEX('AD Outage data'!AI:AI,$B28,1))) ->  | J28: =IF($B28="","",(INDEX('AD Outage data'!M:M,$B28,1))) -> 
D29: =IF($B29="","",(INDEX('AD Outage data'!D:D,$B29,1))) ->  | E29: =IF($B29="","",(INDEX('AD Outage data'!G:G,$B29,1))) ->  | F29: =IF($B29="","",(INDEX('AD Outage data'!H:H,$B29,1))) ->  | G29: =IF($B29="","",((INDEX('AD Outage data'!I:I,$B29,1))/(24*60))) ->  | H29: =IF($B29="","",((INDEX('AD Outage data'!J:J,$B29,1))/(24*60))) ->  | I29: =IF($B29="","",(INDEX('AD Outage data'!AI:AI,$B29,1))) ->  | J29: =IF($B29="","",(INDEX('AD Outage data'!M:M,$B29,1))) -> 
D30: =IF($B30="","",(INDEX('AD Outage data'!D:D,$B30,1))) ->  | E30: =IF($B30="","",(INDEX('AD Outage data'!G:G,$B30,1))) ->  | F30: =IF($B30="","",(INDEX('AD Outage data'!H:H,$B30,1))) ->  | G30: =IF($B30="","",((INDEX('AD Outage data'!I:I,$B30,1))/(24*60))) ->  | H30: =IF($B30="","",((INDEX('AD Outage data'!J:J,$B30,1))/(24*60))) ->  | I30: =IF($B30="","",(INDEX('AD Outage data'!AI:AI,$B30,1))) ->  | J30: =IF($B30="","",(INDEX('AD Outage data'!M:M,$B30,1))) -> 
D31: =IF($B31="","",(INDEX('AD Outage data'!D:D,$B31,1))) ->  | E31: =IF($B31="","",(INDEX('AD Outage data'!G:G,$B31,1))) ->  | F31: =IF($B31="","",(INDEX('AD Outage data'!H:H,$B31,1))) ->  | G31: =IF($B31="","",((INDEX('AD Outage data'!I:I,$B31,1))/(24*60))) ->  | H31: =IF($B31="","",((INDEX('AD Outage data'!J:J,$B31,1))/(24*60))) ->  | I31: =IF($B31="","",(INDEX('AD Outage data'!AI:AI,$B31,1))) ->  | J31: =IF($B31="","",(INDEX('AD Outage data'!M:M,$B31,1))) -> 
D32: =IF($B32="","",(INDEX('AD Outage data'!D:D,$B32,1))) ->  | E32: =IF($B32="","",(INDEX('AD Outage data'!G:G,$B32,1))) ->  | F32: =IF($B32="","",(INDEX('AD Outage data'!H:H,$B32,1))) ->  | G32: =IF($B32="","",((INDEX('AD Outage data'!I:I,$B32,1))/(24*60))) ->  | H32: =IF($B32="","",((INDEX('AD Outage data'!J:J,$B32,1))/(24*60))) ->  | I32: =IF($B32="","",(INDEX('AD Outage data'!AI:AI,$B32,1))) ->  | J32: =IF($B32="","",(INDEX('AD Outage data'!M:M,$B32,1))) -> 
D33: =IF($B33="","",(INDEX('AD Outage data'!D:D,$B33,1))) ->  | E33: =IF($B33="","",(INDEX('AD Outage data'!G:G,$B33,1))) ->  | F33: =IF($B33="","",(INDEX('AD Outage data'!H:H,$B33,1))) ->  | G33: =IF($B33="","",((INDEX('AD Outage data'!I:I,$B33,1))/(24*60))) ->  | H33: =IF($B33="","",((INDEX('AD Outage data'!J:J,$B33,1))/(24*60))) ->  | I33: =IF($B33="","",(INDEX('AD Outage data'!AI:AI,$B33,1))) ->  | J33: =IF($B33="","",(INDEX('AD Outage data'!M:M,$B33,1))) -> 
D34: =IF($B34="","",(INDEX('AD Outage data'!D:D,$B34,1))) ->  | E34: =IF($B34="","",(INDEX('AD Outage data'!G:G,$B34,1))) ->  | F34: =IF($B34="","",(INDEX('AD Outage data'!H:H,$B34,1))) ->  | G34: =IF($B34="","",((INDEX('AD Outage data'!I:I,$B34,1))/(24*60))) ->  | H34: =IF($B34="","",((INDEX('AD Outage data'!J:J,$B34,1))/(24*60))) ->  | I34: =IF($B34="","",(INDEX('AD Outage data'!AI:AI,$B34,1))) ->  | J34: =IF($B34="","",(INDEX('AD Outage data'!M:M,$B34,1))) -> 
D35: =IF($B35="","",(INDEX('AD Outage data'!D:D,$B35,1))) ->  | E35: =IF($B35="","",(INDEX('AD Outage data'!G:G,$B35,1))) ->  | F35: =IF($B35="","",(INDEX('AD Outage data'!H:H,$B35,1))) ->  | G35: =IF($B35="","",((INDEX('AD Outage data'!I:I,$B35,1))/(24*60))) ->  | H35: =IF($B35="","",((INDEX('AD Outage data'!J:J,$B35,1))/(24*60))) ->  | I35: =IF($B35="","",(INDEX('AD Outage data'!AI:AI,$B35,1))) ->  | J35: =IF($B35="","",(INDEX('AD Outage data'!M:M,$B35,1))) -> 
D36: =IF($B36="","",(INDEX('AD Outage data'!D:D,$B36,1))) ->  | E36: =IF($B36="","",(INDEX('AD Outage data'!G:G,$B36,1))) ->  | F36: =IF($B36="","",(INDEX('AD Outage data'!H:H,$B36,1))) ->  | G36: =IF($B36="","",((INDEX('AD Outage data'!I:I,$B36,1))/(24*60))) ->  | H36: =IF($B36="","",((INDEX('AD Outage data'!J:J,$B36,1))/(24*60))) ->  | I36: =IF($B36="","",(INDEX('AD Outage data'!AI:AI,$B36,1))) ->  | J36: =IF($B36="","",(INDEX('AD Outage data'!M:M,$B36,1))) -> 
D37: =IF($B37="","",(INDEX('AD Outage data'!D:D,$B37,1))) ->  | E37: =IF($B37="","",(INDEX('AD Outage data'!G:G,$B37,1))) ->  | F37: =IF($B37="","",(INDEX('AD Outage data'!H:H,$B37,1))) ->  | G37: =IF($B37="","",((INDEX('AD Outage data'!I:I,$B37,1))/(24*60))) ->  | H37: =IF($B37="","",((INDEX('AD Outage data'!J:J,$B37,1))/(24*60))) ->  | I37: =IF($B37="","",(INDEX('AD Outage data'!AI:AI,$B37,1))) ->  | J37: =IF($B37="","",(INDEX('AD Outage data'!M:M,$B37,1))) -> 
D38: =IF($B38="","",(INDEX('AD Outage data'!D:D,$B38,1))) ->  | E38: =IF($B38="","",(INDEX('AD Outage data'!G:G,$B38,1))) ->  | F38: =IF($B38="","",(INDEX('AD Outage data'!H:H,$B38,1))) ->  | G38: =IF($B38="","",((INDEX('AD Outage data'!I:I,$B38,1))/(24*60))) ->  | H38: =IF($B38="","",((INDEX('AD Outage data'!J:J,$B38,1))/(24*60))) ->  | I38: =IF($B38="","",(INDEX('AD Outage data'!AI:AI,$B38,1))) ->  | J38: =IF($B38="","",(INDEX('AD Outage data'!M:M,$B38,1))) -> 
D39: =IF($B39="","",(INDEX('AD Outage data'!D:D,$B39,1))) ->  | E39: =IF($B39="","",(INDEX('AD Outage data'!G:G,$B39,1))) ->  | F39: =IF($B39="","",(INDEX('AD Outage data'!H:H,$B39,1))) ->  | G39: =IF($B39="","",((INDEX('AD Outage data'!I:I,$B39,1))/(24*60))) ->  | H39: =IF($B39="","",((INDEX('AD Outage data'!J:J,$B39,1))/(24*60))) ->  | I39: =IF($B39="","",(INDEX('AD Outage data'!AI:AI,$B39,1))) ->  | J39: =IF($B39="","",(INDEX('AD Outage data'!M:M,$B39,1))) -> 
D40: =IF($B40="","",(INDEX('AD Outage data'!D:D,$B40,1))) ->  | E40: =IF($B40="","",(INDEX('AD Outage data'!G:G,$B40,1))) ->  | F40: =IF($B40="","",(INDEX('AD Outage data'!H:H,$B40,1))) ->  | G40: =IF($B40="","",((INDEX('AD Outage data'!I:I,$B40,1))/(24*60))) ->  | H40: =IF($B40="","",((INDEX('AD Outage data'!J:J,$B40,1))/(24*60))) ->  | I40: =IF($B40="","",(INDEX('AD Outage data'!AI:AI,$B40,1))) ->  | J40: =IF($B40="","",(INDEX('AD Outage data'!M:M,$B40,1))) -> 
D41: =IF($B41="","",(INDEX('AD Outage data'!D:D,$B41,1))) ->  | E41: =IF($B41="","",(INDEX('AD Outage data'!G:G,$B41,1))) ->  | F41: =IF($B41="","",(INDEX('AD Outage data'!H:H,$B41,1))) ->  | G41: =IF($B41="","",((INDEX('AD Outage data'!I:I,$B41,1))/(24*60))) ->  | H41: =IF($B41="","",((INDEX('AD Outage data'!J:J,$B41,1))/(24*60))) ->  | I41: =IF($B41="","",(INDEX('AD Outage data'!AI:AI,$B41,1))) ->  | J41: =IF($B41="","",(INDEX('AD Outage data'!M:M,$B41,1))) -> 
D42: =IF($B42="","",(INDEX('AD Outage data'!D:D,$B42,1))) ->  | E42: =IF($B42="","",(INDEX('AD Outage data'!G:G,$B42,1))) ->  | F42: =IF($B42="","",(INDEX('AD Outage data'!H:H,$B42,1))) ->  | G42: =IF($B42="","",((INDEX('AD Outage data'!I:I,$B42,1))/(24*60))) ->  | H42: =IF($B42="","",((INDEX('AD Outage data'!J:J,$B42,1))/(24*60))) ->  | I42: =IF($B42="","",(INDEX('AD Outage data'!AI:AI,$B42,1))) ->  | J42: =IF($B42="","",(INDEX('AD Outage data'!M:M,$B42,1))) -> 
D43: =IF($B43="","",(INDEX('AD Outage data'!D:D,$B43,1))) ->  | E43: =IF($B43="","",(INDEX('AD Outage data'!G:G,$B43,1))) ->  | F43: =IF($B43="","",(INDEX('AD Outage data'!H:H,$B43,1))) ->  | G43: =IF($B43="","",((INDEX('AD Outage data'!I:I,$B43,1))/(24*60))) ->  | H43: =IF($B43="","",((INDEX('AD Outage data'!J:J,$B43,1))/(24*60))) ->  | I43: =IF($B43="","",(INDEX('AD Outage data'!AI:AI,$B43,1))) ->  | J43: =IF($B43="","",(INDEX('AD Outage data'!M:M,$B43,1))) -> 
D44: =IF($B44="","",(INDEX('AD Outage data'!D:D,$B44,1))) ->  | E44: =IF($B44="","",(INDEX('AD Outage data'!G:G,$B44,1))) ->  | F44: =IF($B44="","",(INDEX('AD Outage data'!H:H,$B44,1))) ->  | G44: =IF($B44="","",((INDEX('AD Outage data'!I:I,$B44,1))/(24*60))) ->  | H44: =IF($B44="","",((INDEX('AD Outage data'!J:J,$B44,1))/(24*60))) ->  | I44: =IF($B44="","",(INDEX('AD Outage data'!AI:AI,$B44,1))) ->  | J44: =IF($B44="","",(INDEX('AD Outage data'!M:M,$B44,1))) -> 
D45: =IF($B45="","",(INDEX('AD Outage data'!D:D,$B45,1))) ->  | E45: =IF($B45="","",(INDEX('AD Outage data'!G:G,$B45,1))) ->  | F45: =IF($B45="","",(INDEX('AD Outage data'!H:H,$B45,1))) ->  | G45: =IF($B45="","",((INDEX('AD Outage data'!I:I,$B45,1))/(24*60))) ->  | H45: =IF($B45="","",((INDEX('AD Outage data'!J:J,$B45,1))/(24*60))) ->  | I45: =IF($B45="","",(INDEX('AD Outage data'!AI:AI,$B45,1))) ->  | J45: =IF($B45="","",(INDEX('AD Outage data'!M:M,$B45,1))) -> 
D46: =IF($B46="","",(INDEX('AD Outage data'!D:D,$B46,1))) ->  | E46: =IF($B46="","",(INDEX('AD Outage data'!G:G,$B46,1))) ->  | F46: =IF($B46="","",(INDEX('AD Outage data'!H:H,$B46,1))) ->  | G46: =IF($B46="","",((INDEX('AD Outage data'!I:I,$B46,1))/(24*60))) ->  | H46: =IF($B46="","",((INDEX('AD Outage data'!J:J,$B46,1))/(24*60))) ->  | I46: =IF($B46="","",(INDEX('AD Outage data'!AI:AI,$B46,1))) ->  | J46: =IF($B46="","",(INDEX('AD Outage data'!M:M,$B46,1))) -> 
D47: =IF($B47="","",(INDEX('AD Outage data'!D:D,$B47,1))) ->  | E47: =IF($B47="","",(INDEX('AD Outage data'!G:G,$B47,1))) ->  | F47: =IF($B47="","",(INDEX('AD Outage data'!H:H,$B47,1))) ->  | G47: =IF($B47="","",((INDEX('AD Outage data'!I:I,$B47,1))/(24*60))) ->  | H47: =IF($B47="","",((INDEX('AD Outage data'!J:J,$B47,1))/(24*60))) ->  | I47: =IF($B47="","",(INDEX('AD Outage data'!AI:AI,$B47,1))) ->  | J47: =IF($B47="","",(INDEX('AD Outage data'!M:M,$B47,1))) -> 
D48: =IF($B48="","",(INDEX('AD Outage data'!D:D,$B48,1))) ->  | E48: =IF($B48="","",(INDEX('AD Outage data'!G:G,$B48,1))) ->  | F48: =IF($B48="","",(INDEX('AD Outage data'!H:H,$B48,1))) ->  | G48: =IF($B48="","",((INDEX('AD Outage data'!I:I,$B48,1))/(24*60))) ->  | H48: =IF($B48="","",((INDEX('AD Outage data'!J:J,$B48,1))/(24*60))) ->  | I48: =IF($B48="","",(INDEX('AD Outage data'!AI:AI,$B48,1))) ->  | J48: =IF($B48="","",(INDEX('AD Outage data'!M:M,$B48,1))) -> 
D49: =IF($B49="","",(INDEX('AD Outage data'!D:D,$B49,1))) ->  | E49: =IF($B49="","",(INDEX('AD Outage data'!G:G,$B49,1))) ->  | F49: =IF($B49="","",(INDEX('AD Outage data'!H:H,$B49,1))) ->  | G49: =IF($B49="","",((INDEX('AD Outage data'!I:I,$B49,1))/(24*60))) ->  | H49: =IF($B49="","",((INDEX('AD Outage data'!J:J,$B49,1))/(24*60))) ->  | I49: =IF($B49="","",(INDEX('AD Outage data'!AI:AI,$B49,1))) ->  | J49: =IF($B49="","",(INDEX('AD Outage data'!M:M,$B49,1))) -> 
D50: =IF($B50="","",(INDEX('AD Outage data'!D:D,$B50,1))) ->  | E50: =IF($B50="","",(INDEX('AD Outage data'!G:G,$B50,1))) ->  | F50: =IF($B50="","",(INDEX('AD Outage data'!H:H,$B50,1))) ->  | G50: =IF($B50="","",((INDEX('AD Outage data'!I:I,$B50,1))/(24*60))) ->  | H50: =IF($B50="","",((INDEX('AD Outage data'!J:J,$B50,1))/(24*60))) ->  | I50: =IF($B50="","",(INDEX('AD Outage data'!AI:AI,$B50,1))) ->  | J50: =IF($B50="","",(INDEX('AD Outage data'!M:M,$B50,1))) -> 
D51: =IF($B51="","",(INDEX('AD Outage data'!D:D,$B51,1))) ->  | E51: =IF($B51="","",(INDEX('AD Outage data'!G:G,$B51,1))) ->  | F51: =IF($B51="","",(INDEX('AD Outage data'!H:H,$B51,1))) ->  | G51: =IF($B51="","",((INDEX('AD Outage data'!I:I,$B51,1))/(24*60))) ->  | H51: =IF($B51="","",((INDEX('AD Outage data'!J:J,$B51,1))/(24*60))) ->  | I51: =IF($B51="","",(INDEX('AD Outage data'!AI:AI,$B51,1))) ->  | J51: =IF($B51="","",(INDEX('AD Outage data'!M:M,$B51,1))) -> 
D52: =IF($B52="","",(INDEX('AD Outage data'!D:D,$B52,1))) ->  | E52: =IF($B52="","",(INDEX('AD Outage data'!G:G,$B52,1))) ->  | F52: =IF($B52="","",(INDEX('AD Outage data'!H:H,$B52,1))) ->  | G52: =IF($B52="","",((INDEX('AD Outage data'!I:I,$B52,1))/(24*60))) ->  | H52: =IF($B52="","",((INDEX('AD Outage data'!J:J,$B52,1))/(24*60))) ->  | I52: =IF($B52="","",(INDEX('AD Outage data'!AI:AI,$B52,1))) ->  | J52: =IF($B52="","",(INDEX('AD Outage data'!M:M,$B52,1))) -> 
D53: =IF($B53="","",(INDEX('AD Outage data'!D:D,$B53,1))) ->  | E53: =IF($B53="","",(INDEX('AD Outage data'!G:G,$B53,1))) ->  | F53: =IF($B53="","",(INDEX('AD Outage data'!H:H,$B53,1))) ->  | G53: =IF($B53="","",((INDEX('AD Outage data'!I:I,$B53,1))/(24*60))) ->  | H53: =IF($B53="","",((INDEX('AD Outage data'!J:J,$B53,1))/(24*60))) ->  | I53: =IF($B53="","",(INDEX('AD Outage data'!AI:AI,$B53,1))) ->  | J53: =IF($B53="","",(INDEX('AD Outage data'!M:M,$B53,1))) -> 
D54: =IF($B54="","",(INDEX('AD Outage data'!D:D,$B54,1))) ->  | E54: =IF($B54="","",(INDEX('AD Outage data'!G:G,$B54,1))) ->  | F54: =IF($B54="","",(INDEX('AD Outage data'!H:H,$B54,1))) ->  | G54: =IF($B54="","",((INDEX('AD Outage data'!I:I,$B54,1))/(24*60))) ->  | H54: =IF($B54="","",((INDEX('AD Outage data'!J:J,$B54,1))/(24*60))) ->  | I54: =IF($B54="","",(INDEX('AD Outage data'!AI:AI,$B54,1))) ->  | J54: =IF($B54="","",(INDEX('AD Outage data'!M:M,$B54,1))) -> 
D55: =IF($B55="","",(INDEX('AD Outage data'!D:D,$B55,1))) ->  | E55: =IF($B55="","",(INDEX('AD Outage data'!G:G,$B55,1))) ->  | F55: =IF($B55="","",(INDEX('AD Outage data'!H:H,$B55,1))) ->  | G55: =IF($B55="","",((INDEX('AD Outage data'!I:I,$B55,1))/(24*60))) ->  | H55: =IF($B55="","",((INDEX('AD Outage data'!J:J,$B55,1))/(24*60))) ->  | I55: =IF($B55="","",(INDEX('AD Outage data'!AI:AI,$B55,1))) ->  | J55: =IF($B55="","",(INDEX('AD Outage data'!M:M,$B55,1))) -> 
D56: =IF($B56="","",(INDEX('AD Outage data'!D:D,$B56,1))) ->  | E56: =IF($B56="","",(INDEX('AD Outage data'!G:G,$B56,1))) ->  | F56: =IF($B56="","",(INDEX('AD Outage data'!H:H,$B56,1))) ->  | G56: =IF($B56="","",((INDEX('AD Outage data'!I:I,$B56,1))/(24*60))) ->  | H56: =IF($B56="","",((INDEX('AD Outage data'!J:J,$B56,1))/(24*60))) ->  | I56: =IF($B56="","",(INDEX('AD Outage data'!AI:AI,$B56,1))) ->  | J56: =IF($B56="","",(INDEX('AD Outage data'!M:M,$B56,1))) -> 
D57: =IF($B57="","",(INDEX('AD Outage data'!D:D,$B57,1))) ->  | E57: =IF($B57="","",(INDEX('AD Outage data'!G:G,$B57,1))) ->  | F57: =IF($B57="","",(INDEX('AD Outage data'!H:H,$B57,1))) ->  | G57: =IF($B57="","",((INDEX('AD Outage data'!I:I,$B57,1))/(24*60))) ->  | H57: =IF($B57="","",((INDEX('AD Outage data'!J:J,$B57,1))/(24*60))) ->  | I57: =IF($B57="","",(INDEX('AD Outage data'!AI:AI,$B57,1))) ->  | J57: =IF($B57="","",(INDEX('AD Outage data'!M:M,$B57,1))) -> 
D58: =IF($B58="","",(INDEX('AD Outage data'!D:D,$B58,1))) ->  | E58: =IF($B58="","",(INDEX('AD Outage data'!G:G,$B58,1))) ->  | F58: =IF($B58="","",(INDEX('AD Outage data'!H:H,$B58,1))) ->  | G58: =IF($B58="","",((INDEX('AD Outage data'!I:I,$B58,1))/(24*60))) ->  | H58: =IF($B58="","",((INDEX('AD Outage data'!J:J,$B58,1))/(24*60))) ->  | I58: =IF($B58="","",(INDEX('AD Outage data'!AI:AI,$B58,1))) ->  | J58: =IF($B58="","",(INDEX('AD Outage data'!M:M,$B58,1))) -> 
D59: =IF($B59="","",(INDEX('AD Outage data'!D:D,$B59,1))) ->  | E59: =IF($B59="","",(INDEX('AD Outage data'!G:G,$B59,1))) ->  | F59: =IF($B59="","",(INDEX('AD Outage data'!H:H,$B59,1))) ->  | G59: =IF($B59="","",((INDEX('AD Outage data'!I:I,$B59,1))/(24*60))) ->  | H59: =IF($B59="","",((INDEX('AD Outage data'!J:J,$B59,1))/(24*60))) ->  | I59: =IF($B59="","",(INDEX('AD Outage data'!AI:AI,$B59,1))) ->  | J59: =IF($B59="","",(INDEX('AD Outage data'!M:M,$B59,1))) -> 
D60: =IF($B60="","",(INDEX('AD Outage data'!D:D,$B60,1))) ->  | E60: =IF($B60="","",(INDEX('AD Outage data'!G:G,$B60,1))) ->  | F60: =IF($B60="","",(INDEX('AD Outage data'!H:H,$B60,1))) ->  | G60: =IF($B60="","",((INDEX('AD Outage data'!I:I,$B60,1))/(24*60))) ->  | H60: =IF($B60="","",((INDEX('AD Outage data'!J:J,$B60,1))/(24*60))) ->  | I60: =IF($B60="","",(INDEX('AD Outage data'!AI:AI,$B60,1))) ->  | J60: =IF($B60="","",(INDEX('AD Outage data'!M:M,$B60,1))) -> 
D61: =IF($B61="","",(INDEX('AD Outage data'!D:D,$B61,1))) ->  | E61: =IF($B61="","",(INDEX('AD Outage data'!G:G,$B61,1))) ->  | F61: =IF($B61="","",(INDEX('AD Outage data'!H:H,$B61,1))) ->  | G61: =IF($B61="","",((INDEX('AD Outage data'!I:I,$B61,1))/(24*60))) ->  | H61: =IF($B61="","",((INDEX('AD Outage data'!J:J,$B61,1))/(24*60))) ->  | I61: =IF($B61="","",(INDEX('AD Outage data'!AI:AI,$B61,1))) ->  | J61: =IF($B61="","",(INDEX('AD Outage data'!M:M,$B61,1))) -> 
D62: =IF($B62="","",(INDEX('AD Outage data'!D:D,$B62,1))) ->  | E62: =IF($B62="","",(INDEX('AD Outage data'!G:G,$B62,1))) ->  | F62: =IF($B62="","",(INDEX('AD Outage data'!H:H,$B62,1))) ->  | G62: =IF($B62="","",((INDEX('AD Outage data'!I:I,$B62,1))/(24*60))) ->  | H62: =IF($B62="","",((INDEX('AD Outage data'!J:J,$B62,1))/(24*60))) ->  | I62: =IF($B62="","",(INDEX('AD Outage data'!AI:AI,$B62,1))) ->  | J62: =IF($B62="","",(INDEX('AD Outage data'!M:M,$B62,1))) -> 
D63: =IF($B63="","",(INDEX('AD Outage data'!D:D,$B63,1))) ->  | E63: =IF($B63="","",(INDEX('AD Outage data'!G:G,$B63,1))) ->  | F63: =IF($B63="","",(INDEX('AD Outage data'!H:H,$B63,1))) ->  | G63: =IF($B63="","",((INDEX('AD Outage data'!I:I,$B63,1))/(24*60))) ->  | H63: =IF($B63="","",((INDEX('AD Outage data'!J:J,$B63,1))/(24*60))) ->  | I63: =IF($B63="","",(INDEX('AD Outage data'!AI:AI,$B63,1))) ->  | J63: =IF($B63="","",(INDEX('AD Outage data'!M:M,$B63,1))) -> 
D64: =IF($B64="","",(INDEX('AD Outage data'!D:D,$B64,1))) ->  | E64: =IF($B64="","",(INDEX('AD Outage data'!G:G,$B64,1))) ->  | F64: =IF($B64="","",(INDEX('AD Outage data'!H:H,$B64,1))) ->  | G64: =IF($B64="","",((INDEX('AD Outage data'!I:I,$B64,1))/(24*60))) ->  | H64: =IF($B64="","",((INDEX('AD Outage data'!J:J,$B64,1))/(24*60))) ->  | I64: =IF($B64="","",(INDEX('AD Outage data'!AI:AI,$B64,1))) ->  | J64: =IF($B64="","",(INDEX('AD Outage data'!M:M,$B64,1))) -> 
D65: =IF($B65="","",(INDEX('AD Outage data'!D:D,$B65,1))) ->  | E65: =IF($B65="","",(INDEX('AD Outage data'!G:G,$B65,1))) ->  | F65: =IF($B65="","",(INDEX('AD Outage data'!H:H,$B65,1))) ->  | G65: =IF($B65="","",((INDEX('AD Outage data'!I:I,$B65,1))/(24*60))) ->  | H65: =IF($B65="","",((INDEX('AD Outage data'!J:J,$B65,1))/(24*60))) ->  | I65: =IF($B65="","",(INDEX('AD Outage data'!AI:AI,$B65,1))) ->  | J65: =IF($B65="","",(INDEX('AD Outage data'!M:M,$B65,1))) -> 
D66: =IF($B66="","",(INDEX('AD Outage data'!D:D,$B66,1))) ->  | E66: =IF($B66="","",(INDEX('AD Outage data'!G:G,$B66,1))) ->  | F66: =IF($B66="","",(INDEX('AD Outage data'!H:H,$B66,1))) ->  | G66: =IF($B66="","",((INDEX('AD Outage data'!I:I,$B66,1))/(24*60))) ->  | H66: =IF($B66="","",((INDEX('AD Outage data'!J:J,$B66,1))/(24*60))) ->  | I66: =IF($B66="","",(INDEX('AD Outage data'!AI:AI,$B66,1))) ->  | J66: =IF($B66="","",(INDEX('AD Outage data'!M:M,$B66,1))) -> 
D67: =IF($B67="","",(INDEX('AD Outage data'!D:D,$B67,1))) ->  | E67: =IF($B67="","",(INDEX('AD Outage data'!G:G,$B67,1))) ->  | F67: =IF($B67="","",(INDEX('AD Outage data'!H:H,$B67,1))) ->  | G67: =IF($B67="","",((INDEX('AD Outage data'!I:I,$B67,1))/(24*60))) ->  | H67: =IF($B67="","",((INDEX('AD Outage data'!J:J,$B67,1))/(24*60))) ->  | I67: =IF($B67="","",(INDEX('AD Outage data'!AI:AI,$B67,1))) ->  | J67: =IF($B67="","",(INDEX('AD Outage data'!M:M,$B67,1))) -> 
D68: =IF($B68="","",(INDEX('AD Outage data'!D:D,$B68,1))) ->  | E68: =IF($B68="","",(INDEX('AD Outage data'!G:G,$B68,1))) ->  | F68: =IF($B68="","",(INDEX('AD Outage data'!H:H,$B68,1))) ->  | G68: =IF($B68="","",((INDEX('AD Outage data'!I:I,$B68,1))/(24*60))) ->  | H68: =IF($B68="","",((INDEX('AD Outage data'!J:J,$B68,1))/(24*60))) ->  | I68: =IF($B68="","",(INDEX('AD Outage data'!AI:AI,$B68,1))) ->  | J68: =IF($B68="","",(INDEX('AD Outage data'!M:M,$B68,1))) -> 
C69: =IF($B69="","",(INDEX(INDIRECT(outage_adid_col),$B69,1))) ->  | D69: =IF($B69="","",(INDEX('AD Outage data'!D:D,$B69,1))) ->  | E69: =IF($B69="","",(INDEX('AD Outage data'!G:G,$B69,1))) ->  | F69: =IF($B69="","",(INDEX('AD Outage data'!H:H,$B69,1))) ->  | G69: =IF($B69="","",((INDEX('AD Outage data'!I:I,$B69,1))/(24*60))) ->  | H69: =IF($B69="","",((INDEX('AD Outage data'!J:J,$B69,1))/(24*60))) ->  | I69: =IF($B69="","",(INDEX('AD Outage data'!AI:AI,$B69,1))) ->  | J69: =IF($B69="","",(INDEX('AD Outage data'!M:M,$B69,1))) -> 
A70: =IF(B69="","","'AD Outage data'!"&$B$2&B69+1&":"&$B$2&"30000") ->  | B70: =IF(ISERROR(MATCH("yes",INDIRECT(A70),0)),"",MATCH("yes",INDIRECT(A70),0)+B69) ->  | D70: =IF($B70="","",(INDEX('AD Outage data'!D:D,$B70,1))) ->  | E70: =IF($B70="","",(INDEX('AD Outage data'!G:G,$B70,1))) ->  | F70: =IF($B70="","",(INDEX('AD Outage data'!H:H,$B70,1))) ->  | G70: =IF($B70="","",((INDEX('AD Outage data'!I:I,$B70,1))/(24*60))) ->  | H70: =IF($B70="","",((INDEX('AD Outage data'!J:J,$B70,1))/(24*60))) ->  | I70: =IF($B70="","",(INDEX('AD Outage data'!AI:AI,$B70,1))) ->  | J70: =IF($B70="","",(INDEX('AD Outage data'!M:M,$B70,1))) -> 
D71: =IF($B71="","",(INDEX('AD Outage data'!D:D,$B71,1))) ->  | E71: =IF($B71="","",(INDEX('AD Outage data'!G:G,$B71,1))) ->  | F71: =IF($B71="","",(INDEX('AD Outage data'!H:H,$B71,1))) ->  | G71: =IF($B71="","",((INDEX('AD Outage data'!I:I,$B71,1))/(24*60))) ->  | H71: =IF($B71="","",((INDEX('AD Outage data'!J:J,$B71,1))/(24*60))) ->  | I71: =IF($B71="","",(INDEX('AD Outage data'!AI:AI,$B71,1))) ->  | J71: =IF($B71="","",(INDEX('AD Outage data'!M:M,$B71,1))) -> 
D72: =IF($B72="","",(INDEX('AD Outage data'!D:D,$B72,1))) ->  | E72: =IF($B72="","",(INDEX('AD Outage data'!G:G,$B72,1))) ->  | F72: =IF($B72="","",(INDEX('AD Outage data'!H:H,$B72,1))) ->  | G72: =IF($B72="","",((INDEX('AD Outage data'!I:I,$B72,1))/(24*60))) ->  | H72: =IF($B72="","",((INDEX('AD Outage data'!J:J,$B72,1))/(24*60))) ->  | I72: =IF($B72="","",(INDEX('AD Outage data'!AI:AI,$B72,1))) ->  | J72: =IF($B72="","",(INDEX('AD Outage data'!M:M,$B72,1))) -> 
D73: =IF($B73="","",(INDEX('AD Outage data'!D:D,$B73,1))) ->  | E73: =IF($B73="","",(INDEX('AD Outage data'!G:G,$B73,1))) ->  | F73: =IF($B73="","",(INDEX('AD Outage data'!H:H,$B73,1))) ->  | G73: =IF($B73="","",((INDEX('AD Outage data'!I:I,$B73,1))/(24*60))) ->  | H73: =IF($B73="","",((INDEX('AD Outage data'!J:J,$B73,1))/(24*60))) ->  | I73: =IF($B73="","",(INDEX('AD Outage data'!AI:AI,$B73,1))) ->  | J73: =IF($B73="","",(INDEX('AD Outage data'!M:M,$B73,1))) -> 
D74: =IF($B74="","",(INDEX('AD Outage data'!D:D,$B74,1))) ->  | E74: =IF($B74="","",(INDEX('AD Outage data'!G:G,$B74,1))) ->  | F74: =IF($B74="","",(INDEX('AD Outage data'!H:H,$B74,1))) ->  | G74: =IF($B74="","",((INDEX('AD Outage data'!I:I,$B74,1))/(24*60))) ->  | H74: =IF($B74="","",((INDEX('AD Outage data'!J:J,$B74,1))/(24*60))) ->  | I74: =IF($B74="","",(INDEX('AD Outage data'!AI:AI,$B74,1))) ->  | J74: =IF($B74="","",(INDEX('AD Outage data'!M:M,$B74,1))) -> 
D75: =IF($B75="","",(INDEX('AD Outage data'!D:D,$B75,1))) ->  | E75: =IF($B75="","",(INDEX('AD Outage data'!G:G,$B75,1))) ->  | F75: =IF($B75="","",(INDEX('AD Outage data'!H:H,$B75,1))) ->  | G75: =IF($B75="","",((INDEX('AD Outage data'!I:I,$B75,1))/(24*60))) ->  | H75: =IF($B75="","",((INDEX('AD Outage data'!J:J,$B75,1))/(24*60))) ->  | I75: =IF($B75="","",(INDEX('AD Outage data'!AI:AI,$B75,1))) ->  | J75: =IF($B75="","",(INDEX('AD Outage data'!M:M,$B75,1))) -> 
D76: =IF($B76="","",(INDEX('AD Outage data'!D:D,$B76,1))) ->  | E76: =IF($B76="","",(INDEX('AD Outage data'!G:G,$B76,1))) ->  | F76: =IF($B76="","",(INDEX('AD Outage data'!H:H,$B76,1))) ->  | G76: =IF($B76="","",((INDEX('AD Outage data'!I:I,$B76,1))/(24*60))) ->  | H76: =IF($B76="","",((INDEX('AD Outage data'!J:J,$B76,1))/(24*60))) ->  | I76: =IF($B76="","",(INDEX('AD Outage data'!AI:AI,$B76,1))) ->  | J76: =IF($B76="","",(INDEX('AD Outage data'!M:M,$B76,1))) -> 
D77: =IF($B77="","",(INDEX('AD Outage data'!D:D,$B77,1))) ->  | E77: =IF($B77="","",(INDEX('AD Outage data'!G:G,$B77,1))) ->  | F77: =IF($B77="","",(INDEX('AD Outage data'!H:H,$B77,1))) ->  | G77: =IF($B77="","",((INDEX('AD Outage data'!I:I,$B77,1))/(24*60))) ->  | H77: =IF($B77="","",((INDEX('AD Outage data'!J:J,$B77,1))/(24*60))) ->  | I77: =IF($B77="","",(INDEX('AD Outage data'!AI:AI,$B77,1))) ->  | J77: =IF($B77="","",(INDEX('AD Outage data'!M:M,$B77,1))) -> 
D78: =IF($B78="","",(INDEX('AD Outage data'!D:D,$B78,1))) ->  | E78: =IF($B78="","",(INDEX('AD Outage data'!G:G,$B78,1))) ->  | F78: =IF($B78="","",(INDEX('AD Outage data'!H:H,$B78,1))) ->  | G78: =IF($B78="","",((INDEX('AD Outage data'!I:I,$B78,1))/(24*60))) ->  | H78: =IF($B78="","",((INDEX('AD Outage data'!J:J,$B78,1))/(24*60))) ->  | I78: =IF($B78="","",(INDEX('AD Outage data'!AI:AI,$B78,1))) ->  | J78: =IF($B78="","",(INDEX('AD Outage data'!M:M,$B78,1))) -> 
D79: =IF($B79="","",(INDEX('AD Outage data'!D:D,$B79,1))) ->  | E79: =IF($B79="","",(INDEX('AD Outage data'!G:G,$B79,1))) ->  | F79: =IF($B79="","",(INDEX('AD Outage data'!H:H,$B79,1))) ->  | G79: =IF($B79="","",((INDEX('AD Outage data'!I:I,$B79,1))/(24*60))) ->  | H79: =IF($B79="","",((INDEX('AD Outage data'!J:J,$B79,1))/(24*60))) ->  | I79: =IF($B79="","",(INDEX('AD Outage data'!AI:AI,$B79,1))) ->  | J79: =IF($B79="","",(INDEX('AD Outage data'!M:M,$B79,1))) -> 
D80: =IF($B80="","",(INDEX('AD Outage data'!D:D,$B80,1))) ->  | E80: =IF($B80="","",(INDEX('AD Outage data'!G:G,$B80,1))) ->  | F80: =IF($B80="","",(INDEX('AD Outage data'!H:H,$B80,1))) ->  | G80: =IF($B80="","",((INDEX('AD Outage data'!I:I,$B80,1))/(24*60))) ->  | H80: =IF($B80="","",((INDEX('AD Outage data'!J:J,$B80,1))/(24*60))) ->  | I80: =IF($B80="","",(INDEX('AD Outage data'!AI:AI,$B80,1))) ->  | J80: =IF($B80="","",(INDEX('AD Outage data'!M:M,$B80,1))) -> 
D81: =IF($B81="","",(INDEX('AD Outage data'!D:D,$B81,1))) ->  | E81: =IF($B81="","",(INDEX('AD Outage data'!G:G,$B81,1))) ->  | F81: =IF($B81="","",(INDEX('AD Outage data'!H:H,$B81,1))) ->  | G81: =IF($B81="","",((INDEX('AD Outage data'!I:I,$B81,1))/(24*60))) ->  | H81: =IF($B81="","",((INDEX('AD Outage data'!J:J,$B81,1))/(24*60))) ->  | I81: =IF($B81="","",(INDEX('AD Outage data'!AI:AI,$B81,1))) ->  | J81: =IF($B81="","",(INDEX('AD Outage data'!M:M,$B81,1))) -> 
D82: =IF($B82="","",(INDEX('AD Outage data'!D:D,$B82,1))) ->  | E82: =IF($B82="","",(INDEX('AD Outage data'!G:G,$B82,1))) ->  | F82: =IF($B82="","",(INDEX('AD Outage data'!H:H,$B82,1))) ->  | G82: =IF($B82="","",((INDEX('AD Outage data'!I:I,$B82,1))/(24*60))) ->  | H82: =IF($B82="","",((INDEX('AD Outage data'!J:J,$B82,1))/(24*60))) ->  | I82: =IF($B82="","",(INDEX('AD Outage data'!AI:AI,$B82,1))) ->  | J82: =IF($B82="","",(INDEX('AD Outage data'!M:M,$B82,1))) -> 
D83: =IF($B83="","",(INDEX('AD Outage data'!D:D,$B83,1))) ->  | E83: =IF($B83="","",(INDEX('AD Outage data'!G:G,$B83,1))) ->  | F83: =IF($B83="","",(INDEX('AD Outage data'!H:H,$B83,1))) ->  | G83: =IF($B83="","",((INDEX('AD Outage data'!I:I,$B83,1))/(24*60))) ->  | H83: =IF($B83="","",((INDEX('AD Outage data'!J:J,$B83,1))/(24*60))) ->  | I83: =IF($B83="","",(INDEX('AD Outage data'!AI:AI,$B83,1))) ->  | J83: =IF($B83="","",(INDEX('AD Outage data'!M:M,$B83,1))) -> 
D84: =IF($B84="","",(INDEX('AD Outage data'!D:D,$B84,1))) ->  | E84: =IF($B84="","",(INDEX('AD Outage data'!G:G,$B84,1))) ->  | F84: =IF($B84="","",(INDEX('AD Outage data'!H:H,$B84,1))) ->  | G84: =IF($B84="","",((INDEX('AD Outage data'!I:I,$B84,1))/(24*60))) ->  | H84: =IF($B84="","",((INDEX('AD Outage data'!J:J,$B84,1))/(24*60))) ->  | I84: =IF($B84="","",(INDEX('AD Outage data'!AI:AI,$B84,1))) ->  | J84: =IF($B84="","",(INDEX('AD Outage data'!M:M,$B84,1))) -> 
D85: =IF($B85="","",(INDEX('AD Outage data'!D:D,$B85,1))) ->  | E85: =IF($B85="","",(INDEX('AD Outage data'!G:G,$B85,1))) ->  | F85: =IF($B85="","",(INDEX('AD Outage data'!H:H,$B85,1))) ->  | G85: =IF($B85="","",((INDEX('AD Outage data'!I:I,$B85,1))/(24*60))) ->  | H85: =IF($B85="","",((INDEX('AD Outage data'!J:J,$B85,1))/(24*60))) ->  | I85: =IF($B85="","",(INDEX('AD Outage data'!AI:AI,$B85,1))) ->  | J85: =IF($B85="","",(INDEX('AD Outage data'!M:M,$B85,1))) -> 
D86: =IF($B86="","",(INDEX('AD Outage data'!D:D,$B86,1))) ->  | E86: =IF($B86="","",(INDEX('AD Outage data'!G:G,$B86,1))) ->  | F86: =IF($B86="","",(INDEX('AD Outage data'!H:H,$B86,1))) ->  | G86: =IF($B86="","",((INDEX('AD Outage data'!I:I,$B86,1))/(24*60))) ->  | H86: =IF($B86="","",((INDEX('AD Outage data'!J:J,$B86,1))/(24*60))) ->  | I86: =IF($B86="","",(INDEX('AD Outage data'!AI:AI,$B86,1))) ->  | J86: =IF($B86="","",(INDEX('AD Outage data'!M:M,$B86,1))) -> 
D87: =IF($B87="","",(INDEX('AD Outage data'!D:D,$B87,1))) ->  | E87: =IF($B87="","",(INDEX('AD Outage data'!G:G,$B87,1))) ->  | F87: =IF($B87="","",(INDEX('AD Outage data'!H:H,$B87,1))) ->  | G87: =IF($B87="","",((INDEX('AD Outage data'!I:I,$B87,1))/(24*60))) ->  | H87: =IF($B87="","",((INDEX('AD Outage data'!J:J,$B87,1))/(24*60))) ->  | I87: =IF($B87="","",(INDEX('AD Outage data'!AI:AI,$B87,1))) ->  | J87: =IF($B87="","",(INDEX('AD Outage data'!M:M,$B87,1))) -> 
D88: =IF($B88="","",(INDEX('AD Outage data'!D:D,$B88,1))) ->  | E88: =IF($B88="","",(INDEX('AD Outage data'!G:G,$B88,1))) ->  | F88: =IF($B88="","",(INDEX('AD Outage data'!H:H,$B88,1))) ->  | G88: =IF($B88="","",((INDEX('AD Outage data'!I:I,$B88,1))/(24*60))) ->  | H88: =IF($B88="","",((INDEX('AD Outage data'!J:J,$B88,1))/(24*60))) ->  | I88: =IF($B88="","",(INDEX('AD Outage data'!AI:AI,$B88,1))) ->  | J88: =IF($B88="","",(INDEX('AD Outage data'!M:M,$B88,1))) -> 
D89: =IF($B89="","",(INDEX('AD Outage data'!D:D,$B89,1))) ->  | E89: =IF($B89="","",(INDEX('AD Outage data'!G:G,$B89,1))) ->  | F89: =IF($B89="","",(INDEX('AD Outage data'!H:H,$B89,1))) ->  | G89: =IF($B89="","",((INDEX('AD Outage data'!I:I,$B89,1))/(24*60))) ->  | H89: =IF($B89="","",((INDEX('AD Outage data'!J:J,$B89,1))/(24*60))) ->  | I89: =IF($B89="","",(INDEX('AD Outage data'!AI:AI,$B89,1))) ->  | J89: =IF($B89="","",(INDEX('AD Outage data'!M:M,$B89,1))) -> 
D90: =IF($B90="","",(INDEX('AD Outage data'!D:D,$B90,1))) ->  | E90: =IF($B90="","",(INDEX('AD Outage data'!G:G,$B90,1))) ->  | F90: =IF($B90="","",(INDEX('AD Outage data'!H:H,$B90,1))) ->  | G90: =IF($B90="","",((INDEX('AD Outage data'!I:I,$B90,1))/(24*60))) ->  | H90: =IF($B90="","",((INDEX('AD Outage data'!J:J,$B90,1))/(24*60))) ->  | I90: =IF($B90="","",(INDEX('AD Outage data'!AI:AI,$B90,1))) ->  | J90: =IF($B90="","",(INDEX('AD Outage data'!M:M,$B90,1))) -> 
D91: =IF($B91="","",(INDEX('AD Outage data'!D:D,$B91,1))) ->  | E91: =IF($B91="","",(INDEX('AD Outage data'!G:G,$B91,1))) ->  | F91: =IF($B91="","",(INDEX('AD Outage data'!H:H,$B91,1))) ->  | G91: =IF($B91="","",((INDEX('AD Outage data'!I:I,$B91,1))/(24*60))) ->  | H91: =IF($B91="","",((INDEX('AD Outage data'!J:J,$B91,1))/(24*60))) ->  | I91: =IF($B91="","",(INDEX('AD Outage data'!AI:AI,$B91,1))) ->  | J91: =IF($B91="","",(INDEX('AD Outage data'!M:M,$B91,1))) -> 
D92: =IF($B92="","",(INDEX('AD Outage data'!D:D,$B92,1))) ->  | E92: =IF($B92="","",(INDEX('AD Outage data'!G:G,$B92,1))) ->  | F92: =IF($B92="","",(INDEX('AD Outage data'!H:H,$B92,1))) ->  | G92: =IF($B92="","",((INDEX('AD Outage data'!I:I,$B92,1))/(24*60))) ->  | H92: =IF($B92="","",((INDEX('AD Outage data'!J:J,$B92,1))/(24*60))) ->  | I92: =IF($B92="","",(INDEX('AD Outage data'!AI:AI,$B92,1))) ->  | J92: =IF($B92="","",(INDEX('AD Outage data'!M:M,$B92,1))) -> 
D93: =IF($B93="","",(INDEX('AD Outage data'!D:D,$B93,1))) ->  | E93: =IF($B93="","",(INDEX('AD Outage data'!G:G,$B93,1))) ->  | F93: =IF($B93="","",(INDEX('AD Outage data'!H:H,$B93,1))) ->  | G93: =IF($B93="","",((INDEX('AD Outage data'!I:I,$B93,1))/(24*60))) ->  | H93: =IF($B93="","",((INDEX('AD Outage data'!J:J,$B93,1))/(24*60))) ->  | I93: =IF($B93="","",(INDEX('AD Outage data'!AI:AI,$B93,1))) ->  | J93: =IF($B93="","",(INDEX('AD Outage data'!M:M,$B93,1))) -> 
D94: =IF($B94="","",(INDEX('AD Outage data'!D:D,$B94,1))) ->  | E94: =IF($B94="","",(INDEX('AD Outage data'!G:G,$B94,1))) ->  | F94: =IF($B94="","",(INDEX('AD Outage data'!H:H,$B94,1))) ->  | G94: =IF($B94="","",((INDEX('AD Outage data'!I:I,$B94,1))/(24*60))) ->  | H94: =IF($B94="","",((INDEX('AD Outage data'!J:J,$B94,1))/(24*60))) ->  | I94: =IF($B94="","",(INDEX('AD Outage data'!AI:AI,$B94,1))) ->  | J94: =IF($B94="","",(INDEX('AD Outage data'!M:M,$B94,1))) -> 
D95: =IF($B95="","",(INDEX('AD Outage data'!D:D,$B95,1))) ->  | E95: =IF($B95="","",(INDEX('AD Outage data'!G:G,$B95,1))) ->  | F95: =IF($B95="","",(INDEX('AD Outage data'!H:H,$B95,1))) ->  | G95: =IF($B95="","",((INDEX('AD Outage data'!I:I,$B95,1))/(24*60))) ->  | H95: =IF($B95="","",((INDEX('AD Outage data'!J:J,$B95,1))/(24*60))) ->  | I95: =IF($B95="","",(INDEX('AD Outage data'!AI:AI,$B95,1))) ->  | J95: =IF($B95="","",(INDEX('AD Outage data'!M:M,$B95,1))) -> 
D96: =IF($B96="","",(INDEX('AD Outage data'!D:D,$B96,1))) ->  | E96: =IF($B96="","",(INDEX('AD Outage data'!G:G,$B96,1))) ->  | F96: =IF($B96="","",(INDEX('AD Outage data'!H:H,$B96,1))) ->  | G96: =IF($B96="","",((INDEX('AD Outage data'!I:I,$B96,1))/(24*60))) ->  | H96: =IF($B96="","",((INDEX('AD Outage data'!J:J,$B96,1))/(24*60))) ->  | I96: =IF($B96="","",(INDEX('AD Outage data'!AI:AI,$B96,1))) ->  | J96: =IF($B96="","",(INDEX('AD Outage data'!M:M,$B96,1))) -> 
D97: =IF($B97="","",(INDEX('AD Outage data'!D:D,$B97,1))) ->  | E97: =IF($B97="","",(INDEX('AD Outage data'!G:G,$B97,1))) ->  | F97: =IF($B97="","",(INDEX('AD Outage data'!H:H,$B97,1))) ->  | G97: =IF($B97="","",((INDEX('AD Outage data'!I:I,$B97,1))/(24*60))) ->  | H97: =IF($B97="","",((INDEX('AD Outage data'!J:J,$B97,1))/(24*60))) ->  | I97: =IF($B97="","",(INDEX('AD Outage data'!AI:AI,$B97,1))) ->  | J97: =IF($B97="","",(INDEX('AD Outage data'!M:M,$B97,1))) -> 
D98: =IF($B98="","",(INDEX('AD Outage data'!D:D,$B98,1))) ->  | E98: =IF($B98="","",(INDEX('AD Outage data'!G:G,$B98,1))) ->  | F98: =IF($B98="","",(INDEX('AD Outage data'!H:H,$B98,1))) ->  | G98: =IF($B98="","",((INDEX('AD Outage data'!I:I,$B98,1))/(24*60))) ->  | H98: =IF($B98="","",((INDEX('AD Outage data'!J:J,$B98,1))/(24*60))) ->  | I98: =IF($B98="","",(INDEX('AD Outage data'!AI:AI,$B98,1))) ->  | J98: =IF($B98="","",(INDEX('AD Outage data'!M:M,$B98,1))) -> 
D99: =IF($B99="","",(INDEX('AD Outage data'!D:D,$B99,1))) ->  | E99: =IF($B99="","",(INDEX('AD Outage data'!G:G,$B99,1))) ->  | F99: =IF($B99="","",(INDEX('AD Outage data'!H:H,$B99,1))) ->  | G99: =IF($B99="","",((INDEX('AD Outage data'!I:I,$B99,1))/(24*60))) ->  | H99: =IF($B99="","",((INDEX('AD Outage data'!J:J,$B99,1))/(24*60))) ->  | I99: =IF($B99="","",(INDEX('AD Outage data'!AI:AI,$B99,1))) ->  | J99: =IF($B99="","",(INDEX('AD Outage data'!M:M,$B99,1))) -> 
D100: =IF($B100="","",(INDEX('AD Outage data'!D:D,$B100,1))) ->  | E100: =IF($B100="","",(INDEX('AD Outage data'!G:G,$B100,1))) ->  | F100: =IF($B100="","",(INDEX('AD Outage data'!H:H,$B100,1))) ->  | G100: =IF($B100="","",((INDEX('AD Outage data'!I:I,$B100,1))/(24*60))) ->  | H100: =IF($B100="","",((INDEX('AD Outage data'!J:J,$B100,1))/(24*60))) ->  | I100: =IF($B100="","",(INDEX('AD Outage data'!AI:AI,$B100,1))) ->  | J100: =IF($B100="","",(INDEX('AD Outage data'!M:M,$B100,1))) -> 
D101: =IF($B101="","",(INDEX('AD Outage data'!D:D,$B101,1))) ->  | E101: =IF($B101="","",(INDEX('AD Outage data'!G:G,$B101,1))) ->  | F101: =IF($B101="","",(INDEX('AD Outage data'!H:H,$B101,1))) ->  | G101: =IF($B101="","",((INDEX('AD Outage data'!I:I,$B101,1))/(24*60))) ->  | H101: =IF($B101="","",((INDEX('AD Outage data'!J:J,$B101,1))/(24*60))) ->  | I101: =IF($B101="","",(INDEX('AD Outage data'!AI:AI,$B101,1))) ->  | J101: =IF($B101="","",(INDEX('AD Outage data'!M:M,$B101,1))) -> 
D102: =IF($B102="","",(INDEX('AD Outage data'!D:D,$B102,1))) ->  | E102: =IF($B102="","",(INDEX('AD Outage data'!G:G,$B102,1))) ->  | F102: =IF($B102="","",(INDEX('AD Outage data'!H:H,$B102,1))) ->  | G102: =IF($B102="","",((INDEX('AD Outage data'!I:I,$B102,1))/(24*60))) ->  | H102: =IF($B102="","",((INDEX('AD Outage data'!J:J,$B102,1))/(24*60))) ->  | I102: =IF($B102="","",(INDEX('AD Outage data'!AI:AI,$B102,1))) ->  | J102: =IF($B102="","",(INDEX('AD Outage data'!M:M,$B102,1))) -> 
D103: =IF($B103="","",(INDEX('AD Outage data'!D:D,$B103,1))) ->  | E103: =IF($B103="","",(INDEX('AD Outage data'!G:G,$B103,1))) ->  | F103: =IF($B103="","",(INDEX('AD Outage data'!H:H,$B103,1))) ->  | G103: =IF($B103="","",((INDEX('AD Outage data'!I:I,$B103,1))/(24*60))) ->  | H103: =IF($B103="","",((INDEX('AD Outage data'!J:J,$B103,1))/(24*60))) ->  | I103: =IF($B103="","",(INDEX('AD Outage data'!AI:AI,$B103,1))) ->  | J103: =IF($B103="","",(INDEX('AD Outage data'!M:M,$B103,1))) -> 
D104: =IF($B104="","",(INDEX('AD Outage data'!D:D,$B104,1))) ->  | E104: =IF($B104="","",(INDEX('AD Outage data'!G:G,$B104,1))) ->  | F104: =IF($B104="","",(INDEX('AD Outage data'!H:H,$B104,1))) ->  | G104: =IF($B104="","",((INDEX('AD Outage data'!I:I,$B104,1))/(24*60))) ->  | H104: =IF($B104="","",((INDEX('AD Outage data'!J:J,$B104,1))/(24*60))) ->  | I104: =IF($B104="","",(INDEX('AD Outage data'!AI:AI,$B104,1))) ->  | J104: =IF($B104="","",(INDEX('AD Outage data'!M:M,$B104,1))) -> 
D105: =IF($B105="","",(INDEX('AD Outage data'!D:D,$B105,1))) ->  | E105: =IF($B105="","",(INDEX('AD Outage data'!G:G,$B105,1))) ->  | F105: =IF($B105="","",(INDEX('AD Outage data'!H:H,$B105,1))) ->  | G105: =IF($B105="","",((INDEX('AD Outage data'!I:I,$B105,1))/(24*60))) ->  | H105: =IF($B105="","",((INDEX('AD Outage data'!J:J,$B105,1))/(24*60))) ->  | I105: =IF($B105="","",(INDEX('AD Outage data'!AI:AI,$B105,1))) ->  | J105: =IF($B105="","",(INDEX('AD Outage data'!M:M,$B105,1))) -> 
D106: =IF($B106="","",(INDEX('AD Outage data'!D:D,$B106,1))) ->  | E106: =IF($B106="","",(INDEX('AD Outage data'!G:G,$B106,1))) ->  | F106: =IF($B106="","",(INDEX('AD Outage data'!H:H,$B106,1))) ->  | G106: =IF($B106="","",((INDEX('AD Outage data'!I:I,$B106,1))/(24*60))) ->  | H106: =IF($B106="","",((INDEX('AD Outage data'!J:J,$B106,1))/(24*60))) ->  | I106: =IF($B106="","",(INDEX('AD Outage data'!AI:AI,$B106,1))) ->  | J106: =IF($B106="","",(INDEX('AD Outage data'!M:M,$B106,1))) -> 
D107: =IF($B107="","",(INDEX('AD Outage data'!D:D,$B107,1))) ->  | E107: =IF($B107="","",(INDEX('AD Outage data'!G:G,$B107,1))) ->  | F107: =IF($B107="","",(INDEX('AD Outage data'!H:H,$B107,1))) ->  | G107: =IF($B107="","",((INDEX('AD Outage data'!I:I,$B107,1))/(24*60))) ->  | H107: =IF($B107="","",((INDEX('AD Outage data'!J:J,$B107,1))/(24*60))) ->  | I107: =IF($B107="","",(INDEX('AD Outage data'!AI:AI,$B107,1))) ->  | J107: =IF($B107="","",(INDEX('AD Outage data'!M:M,$B107,1))) -> 
D108: =IF($B108="","",(INDEX('AD Outage data'!D:D,$B108,1))) ->  | E108: =IF($B108="","",(INDEX('AD Outage data'!G:G,$B108,1))) ->  | F108: =IF($B108="","",(INDEX('AD Outage data'!H:H,$B108,1))) ->  | G108: =IF($B108="","",((INDEX('AD Outage data'!I:I,$B108,1))/(24*60))) ->  | H108: =IF($B108="","",((INDEX('AD Outage data'!J:J,$B108,1))/(24*60))) ->  | I108: =IF($B108="","",(INDEX('AD Outage data'!AI:AI,$B108,1))) ->  | J108: =IF($B108="","",(INDEX('AD Outage data'!M:M,$B108,1))) -> 
D109: =IF($B109="","",(INDEX('AD Outage data'!D:D,$B109,1))) ->  | E109: =IF($B109="","",(INDEX('AD Outage data'!G:G,$B109,1))) ->  | F109: =IF($B109="","",(INDEX('AD Outage data'!H:H,$B109,1))) ->  | G109: =IF($B109="","",((INDEX('AD Outage data'!I:I,$B109,1))/(24*60))) ->  | H109: =IF($B109="","",((INDEX('AD Outage data'!J:J,$B109,1))/(24*60))) ->  | I109: =IF($B109="","",(INDEX('AD Outage data'!AI:AI,$B109,1))) ->  | J109: =IF($B109="","",(INDEX('AD Outage data'!M:M,$B109,1))) -> 
D110: =IF($B110="","",(INDEX('AD Outage data'!D:D,$B110,1))) ->  | E110: =IF($B110="","",(INDEX('AD Outage data'!G:G,$B110,1))) ->  | F110: =IF($B110="","",(INDEX('AD Outage data'!H:H,$B110,1))) ->  | G110: =IF($B110="","",((INDEX('AD Outage data'!I:I,$B110,1))/(24*60))) ->  | H110: =IF($B110="","",((INDEX('AD Outage data'!J:J,$B110,1))/(24*60))) ->  | I110: =IF($B110="","",(INDEX('AD Outage data'!AI:AI,$B110,1))) ->  | J110: =IF($B110="","",(INDEX('AD Outage data'!M:M,$B110,1))) -> 
D111: =IF($B111="","",(INDEX('AD Outage data'!D:D,$B111,1))) ->  | E111: =IF($B111="","",(INDEX('AD Outage data'!G:G,$B111,1))) ->  | F111: =IF($B111="","",(INDEX('AD Outage data'!H:H,$B111,1))) ->  | G111: =IF($B111="","",((INDEX('AD Outage data'!I:I,$B111,1))/(24*60))) ->  | H111: =IF($B111="","",((INDEX('AD Outage data'!J:J,$B111,1))/(24*60))) ->  | I111: =IF($B111="","",(INDEX('AD Outage data'!AI:AI,$B111,1))) ->  | J111: =IF($B111="","",(INDEX('AD Outage data'!M:M,$B111,1))) -> 
D112: =IF($B112="","",(INDEX('AD Outage data'!D:D,$B112,1))) ->  | E112: =IF($B112="","",(INDEX('AD Outage data'!G:G,$B112,1))) ->  | F112: =IF($B112="","",(INDEX('AD Outage data'!H:H,$B112,1))) ->  | G112: =IF($B112="","",((INDEX('AD Outage data'!I:I,$B112,1))/(24*60))) ->  | H112: =IF($B112="","",((INDEX('AD Outage data'!J:J,$B112,1))/(24*60))) ->  | I112: =IF($B112="","",(INDEX('AD Outage data'!AI:AI,$B112,1))) ->  | J112: =IF($B112="","",(INDEX('AD Outage data'!M:M,$B112,1))) -> 
D113: =IF($B113="","",(INDEX('AD Outage data'!D:D,$B113,1))) ->  | E113: =IF($B113="","",(INDEX('AD Outage data'!G:G,$B113,1))) ->  | F113: =IF($B113="","",(INDEX('AD Outage data'!H:H,$B113,1))) ->  | G113: =IF($B113="","",((INDEX('AD Outage data'!I:I,$B113,1))/(24*60))) ->  | H113: =IF($B113="","",((INDEX('AD Outage data'!J:J,$B113,1))/(24*60))) ->  | I113: =IF($B113="","",(INDEX('AD Outage data'!AI:AI,$B113,1))) ->  | J113: =IF($B113="","",(INDEX('AD Outage data'!M:M,$B113,1))) -> 
D114: =IF($B114="","",(INDEX('AD Outage data'!D:D,$B114,1))) ->  | E114: =IF($B114="","",(INDEX('AD Outage data'!G:G,$B114,1))) ->  | F114: =IF($B114="","",(INDEX('AD Outage data'!H:H,$B114,1))) ->  | G114: =IF($B114="","",((INDEX('AD Outage data'!I:I,$B114,1))/(24*60))) ->  | H114: =IF($B114="","",((INDEX('AD Outage data'!J:J,$B114,1))/(24*60))) ->  | I114: =IF($B114="","",(INDEX('AD Outage data'!AI:AI,$B114,1))) ->  | J114: =IF($B114="","",(INDEX('AD Outage data'!M:M,$B114,1))) -> 
D115: =IF($B115="","",(INDEX('AD Outage data'!D:D,$B115,1))) ->  | E115: =IF($B115="","",(INDEX('AD Outage data'!G:G,$B115,1))) ->  | F115: =IF($B115="","",(INDEX('AD Outage data'!H:H,$B115,1))) ->  | G115: =IF($B115="","",((INDEX('AD Outage data'!I:I,$B115,1))/(24*60))) ->  | H115: =IF($B115="","",((INDEX('AD Outage data'!J:J,$B115,1))/(24*60))) ->  | I115: =IF($B115="","",(INDEX('AD Outage data'!AI:AI,$B115,1))) ->  | J115: =IF($B115="","",(INDEX('AD Outage data'!M:M,$B115,1))) -> 
D116: =IF($B116="","",(INDEX('AD Outage data'!D:D,$B116,1))) ->  | E116: =IF($B116="","",(INDEX('AD Outage data'!G:G,$B116,1))) ->  | F116: =IF($B116="","",(INDEX('AD Outage data'!H:H,$B116,1))) ->  | G116: =IF($B116="","",((INDEX('AD Outage data'!I:I,$B116,1))/(24*60))) ->  | H116: =IF($B116="","",((INDEX('AD Outage data'!J:J,$B116,1))/(24*60))) ->  | I116: =IF($B116="","",(INDEX('AD Outage data'!AI:AI,$B116,1))) ->  | J116: =IF($B116="","",(INDEX('AD Outage data'!M:M,$B116,1))) -> 
D117: =IF($B117="","",(INDEX('AD Outage data'!D:D,$B117,1))) ->  | E117: =IF($B117="","",(INDEX('AD Outage data'!G:G,$B117,1))) ->  | F117: =IF($B117="","",(INDEX('AD Outage data'!H:H,$B117,1))) ->  | G117: =IF($B117="","",((INDEX('AD Outage data'!I:I,$B117,1))/(24*60))) ->  | H117: =IF($B117="","",((INDEX('AD Outage data'!J:J,$B117,1))/(24*60))) ->  | I117: =IF($B117="","",(INDEX('AD Outage data'!AI:AI,$B117,1))) ->  | J117: =IF($B117="","",(INDEX('AD Outage data'!M:M,$B117,1))) -> 
D118: =IF($B118="","",(INDEX('AD Outage data'!D:D,$B118,1))) ->  | E118: =IF($B118="","",(INDEX('AD Outage data'!G:G,$B118,1))) ->  | F118: =IF($B118="","",(INDEX('AD Outage data'!H:H,$B118,1))) ->  | G118: =IF($B118="","",((INDEX('AD Outage data'!I:I,$B118,1))/(24*60))) ->  | H118: =IF($B118="","",((INDEX('AD Outage data'!J:J,$B118,1))/(24*60))) ->  | I118: =IF($B118="","",(INDEX('AD Outage data'!AI:AI,$B118,1))) ->  | J118: =IF($B118="","",(INDEX('AD Outage data'!M:M,$B118,1))) -> 
D119: =IF($B119="","",(INDEX('AD Outage data'!D:D,$B119,1))) ->  | E119: =IF($B119="","",(INDEX('AD Outage data'!G:G,$B119,1))) ->  | F119: =IF($B119="","",(INDEX('AD Outage data'!H:H,$B119,1))) ->  | G119: =IF($B119="","",((INDEX('AD Outage data'!I:I,$B119,1))/(24*60))) ->  | H119: =IF($B119="","",((INDEX('AD Outage data'!J:J,$B119,1))/(24*60))) ->  | I119: =IF($B119="","",(INDEX('AD Outage data'!AI:AI,$B119,1))) ->  | J119: =IF($B119="","",(INDEX('AD Outage data'!M:M,$B119,1))) -> 
D120: =IF($B120="","",(INDEX('AD Outage data'!D:D,$B120,1))) ->  | E120: =IF($B120="","",(INDEX('AD Outage data'!G:G,$B120,1))) ->  | F120: =IF($B120="","",(INDEX('AD Outage data'!H:H,$B120,1))) ->  | G120: =IF($B120="","",((INDEX('AD Outage data'!I:I,$B120,1))/(24*60))) ->  | H120: =IF($B120="","",((INDEX('AD Outage data'!J:J,$B120,1))/(24*60))) ->  | I120: =IF($B120="","",(INDEX('AD Outage data'!AI:AI,$B120,1))) ->  | J120: =IF($B120="","",(INDEX('AD Outage data'!M:M,$B120,1))) -> 
D121: =IF($B121="","",(INDEX('AD Outage data'!D:D,$B121,1))) ->  | E121: =IF($B121="","",(INDEX('AD Outage data'!G:G,$B121,1))) ->  | F121: =IF($B121="","",(INDEX('AD Outage data'!H:H,$B121,1))) ->  | G121: =IF($B121="","",((INDEX('AD Outage data'!I:I,$B121,1))/(24*60))) ->  | H121: =IF($B121="","",((INDEX('AD Outage data'!J:J,$B121,1))/(24*60))) ->  | I121: =IF($B121="","",(INDEX('AD Outage data'!AI:AI,$B121,1))) ->  | J121: =IF($B121="","",(INDEX('AD Outage data'!M:M,$B121,1))) -> 
D122: =IF($B122="","",(INDEX('AD Outage data'!D:D,$B122,1))) ->  | E122: =IF($B122="","",(INDEX('AD Outage data'!G:G,$B122,1))) ->  | F122: =IF($B122="","",(INDEX('AD Outage data'!H:H,$B122,1))) ->  | G122: =IF($B122="","",((INDEX('AD Outage data'!I:I,$B122,1))/(24*60))) ->  | H122: =IF($B122="","",((INDEX('AD Outage data'!J:J,$B122,1))/(24*60))) ->  | I122: =IF($B122="","",(INDEX('AD Outage data'!AI:AI,$B122,1))) ->  | J122: =IF($B122="","",(INDEX('AD Outage data'!M:M,$B122,1))) -> 
D123: =IF($B123="","",(INDEX('AD Outage data'!D:D,$B123,1))) ->  | E123: =IF($B123="","",(INDEX('AD Outage data'!G:G,$B123,1))) ->  | F123: =IF($B123="","",(INDEX('AD Outage data'!H:H,$B123,1))) ->  | G123: =IF($B123="","",((INDEX('AD Outage data'!I:I,$B123,1))/(24*60))) ->  | H123: =IF($B123="","",((INDEX('AD Outage data'!J:J,$B123,1))/(24*60))) ->  | I123: =IF($B123="","",(INDEX('AD Outage data'!AI:AI,$B123,1))) ->  | J123: =IF($B123="","",(INDEX('AD Outage data'!M:M,$B123,1))) -> 
D124: =IF($B124="","",(INDEX('AD Outage data'!D:D,$B124,1))) ->  | E124: =IF($B124="","",(INDEX('AD Outage data'!G:G,$B124,1))) ->  | F124: =IF($B124="","",(INDEX('AD Outage data'!H:H,$B124,1))) ->  | G124: =IF($B124="","",((INDEX('AD Outage data'!I:I,$B124,1))/(24*60))) ->  | H124: =IF($B124="","",((INDEX('AD Outage data'!J:J,$B124,1))/(24*60))) ->  | I124: =IF($B124="","",(INDEX('AD Outage data'!AI:AI,$B124,1))) ->  | J124: =IF($B124="","",(INDEX('AD Outage data'!M:M,$B124,1))) -> 
D125: =IF($B125="","",(INDEX('AD Outage data'!D:D,$B125,1))) ->  | E125: =IF($B125="","",(INDEX('AD Outage data'!G:G,$B125,1))) ->  | F125: =IF($B125="","",(INDEX('AD Outage data'!H:H,$B125,1))) ->  | G125: =IF($B125="","",((INDEX('AD Outage data'!I:I,$B125,1))/(24*60))) ->  | H125: =IF($B125="","",((INDEX('AD Outage data'!J:J,$B125,1))/(24*60))) ->  | I125: =IF($B125="","",(INDEX('AD Outage data'!AI:AI,$B125,1))) ->  | J125: =IF($B125="","",(INDEX('AD Outage data'!M:M,$B125,1))) -> 
D126: =IF($B126="","",(INDEX('AD Outage data'!D:D,$B126,1))) ->  | E126: =IF($B126="","",(INDEX('AD Outage data'!G:G,$B126,1))) ->  | F126: =IF($B126="","",(INDEX('AD Outage data'!H:H,$B126,1))) ->  | G126: =IF($B126="","",((INDEX('AD Outage data'!I:I,$B126,1))/(24*60))) ->  | H126: =IF($B126="","",((INDEX('AD Outage data'!J:J,$B126,1))/(24*60))) ->  | I126: =IF($B126="","",(INDEX('AD Outage data'!AI:AI,$B126,1))) ->  | J126: =IF($B126="","",(INDEX('AD Outage data'!M:M,$B126,1))) -> 
D127: =IF($B127="","",(INDEX('AD Outage data'!D:D,$B127,1))) ->  | E127: =IF($B127="","",(INDEX('AD Outage data'!G:G,$B127,1))) ->  | F127: =IF($B127="","",(INDEX('AD Outage data'!H:H,$B127,1))) ->  | G127: =IF($B127="","",((INDEX('AD Outage data'!I:I,$B127,1))/(24*60))) ->  | H127: =IF($B127="","",((INDEX('AD Outage data'!J:J,$B127,1))/(24*60))) ->  | I127: =IF($B127="","",(INDEX('AD Outage data'!AI:AI,$B127,1))) ->  | J127: =IF($B127="","",(INDEX('AD Outage data'!M:M,$B127,1))) -> 
D128: =IF($B128="","",(INDEX('AD Outage data'!D:D,$B128,1))) ->  | E128: =IF($B128="","",(INDEX('AD Outage data'!G:G,$B128,1))) ->  | F128: =IF($B128="","",(INDEX('AD Outage data'!H:H,$B128,1))) ->  | G128: =IF($B128="","",((INDEX('AD Outage data'!I:I,$B128,1))/(24*60))) ->  | H128: =IF($B128="","",((INDEX('AD Outage data'!J:J,$B128,1))/(24*60))) ->  | I128: =IF($B128="","",(INDEX('AD Outage data'!AI:AI,$B128,1))) ->  | J128: =IF($B128="","",(INDEX('AD Outage data'!M:M,$B128,1))) -> 
D129: =IF($B129="","",(INDEX('AD Outage data'!D:D,$B129,1))) ->  | E129: =IF($B129="","",(INDEX('AD Outage data'!G:G,$B129,1))) ->  | F129: =IF($B129="","",(INDEX('AD Outage data'!H:H,$B129,1))) ->  | G129: =IF($B129="","",((INDEX('AD Outage data'!I:I,$B129,1))/(24*60))) ->  | H129: =IF($B129="","",((INDEX('AD Outage data'!J:J,$B129,1))/(24*60))) ->  | I129: =IF($B129="","",(INDEX('AD Outage data'!AI:AI,$B129,1))) ->  | J129: =IF($B129="","",(INDEX('AD Outage data'!M:M,$B129,1))) -> 
D130: =IF($B130="","",(INDEX('AD Outage data'!D:D,$B130,1))) ->  | E130: =IF($B130="","",(INDEX('AD Outage data'!G:G,$B130,1))) ->  | F130: =IF($B130="","",(INDEX('AD Outage data'!H:H,$B130,1))) ->  | G130: =IF($B130="","",((INDEX('AD Outage data'!I:I,$B130,1))/(24*60))) ->  | H130: =IF($B130="","",((INDEX('AD Outage data'!J:J,$B130,1))/(24*60))) ->  | I130: =IF($B130="","",(INDEX('AD Outage data'!AI:AI,$B130,1))) ->  | J130: =IF($B130="","",(INDEX('AD Outage data'!M:M,$B130,1))) -> 
D131: =IF($B131="","",(INDEX('AD Outage data'!D:D,$B131,1))) ->  | E131: =IF($B131="","",(INDEX('AD Outage data'!G:G,$B131,1))) ->  | F131: =IF($B131="","",(INDEX('AD Outage data'!H:H,$B131,1))) ->  | G131: =IF($B131="","",((INDEX('AD Outage data'!I:I,$B131,1))/(24*60))) ->  | H131: =IF($B131="","",((INDEX('AD Outage data'!J:J,$B131,1))/(24*60))) ->  | I131: =IF($B131="","",(INDEX('AD Outage data'!AI:AI,$B131,1))) ->  | J131: =IF($B131="","",(INDEX('AD Outage data'!M:M,$B131,1))) -> 
D132: =IF($B132="","",(INDEX('AD Outage data'!D:D,$B132,1))) ->  | E132: =IF($B132="","",(INDEX('AD Outage data'!G:G,$B132,1))) ->  | F132: =IF($B132="","",(INDEX('AD Outage data'!H:H,$B132,1))) ->  | G132: =IF($B132="","",((INDEX('AD Outage data'!I:I,$B132,1))/(24*60))) ->  | H132: =IF($B132="","",((INDEX('AD Outage data'!J:J,$B132,1))/(24*60))) ->  | I132: =IF($B132="","",(INDEX('AD Outage data'!AI:AI,$B132,1))) ->  | J132: =IF($B132="","",(INDEX('AD Outage data'!M:M,$B132,1))) -> 
C133: =IF($B133="","",(INDEX(INDIRECT(outage_adid_col),$B133,1))) ->  | D133: =IF($B133="","",(INDEX('AD Outage data'!D:D,$B133,1))) ->  | E133: =IF($B133="","",(INDEX('AD Outage data'!G:G,$B133,1))) ->  | F133: =IF($B133="","",(INDEX('AD Outage data'!H:H,$B133,1))) ->  | G133: =IF($B133="","",((INDEX('AD Outage data'!I:I,$B133,1))/(24*60))) ->  | H133: =IF($B133="","",((INDEX('AD Outage data'!J:J,$B133,1))/(24*60))) ->  | I133: =IF($B133="","",(INDEX('AD Outage data'!AI:AI,$B133,1))) ->  | J133: =IF($B133="","",(INDEX('AD Outage data'!M:M,$B133,1))) -> 
A134: =IF(B133="","","'AD Outage data'!"&$B$2&B133+1&":"&$B$2&"30000") ->  | B134: =IF(ISERROR(MATCH("yes",INDIRECT(A134),0)),"",MATCH("yes",INDIRECT(A134),0)+B133) ->  | D134: =IF($B134="","",(INDEX('AD Outage data'!D:D,$B134,1))) ->  | E134: =IF($B134="","",(INDEX('AD Outage data'!G:G,$B134,1))) ->  | F134: =IF($B134="","",(INDEX('AD Outage data'!H:H,$B134,1))) ->  | G134: =IF($B134="","",((INDEX('AD Outage data'!I:I,$B134,1))/(24*60))) ->  | H134: =IF($B134="","",((INDEX('AD Outage data'!J:J,$B134,1))/(24*60))) ->  | I134: =IF($B134="","",(INDEX('AD Outage data'!AI:AI,$B134,1))) ->  | J134: =IF($B134="","",(INDEX('AD Outage data'!M:M,$B134,1))) -> 
D135: =IF($B135="","",(INDEX('AD Outage data'!D:D,$B135,1))) ->  | E135: =IF($B135="","",(INDEX('AD Outage data'!G:G,$B135,1))) ->  | F135: =IF($B135="","",(INDEX('AD Outage data'!H:H,$B135,1))) ->  | G135: =IF($B135="","",((INDEX('AD Outage data'!I:I,$B135,1))/(24*60))) ->  | H135: =IF($B135="","",((INDEX('AD Outage data'!J:J,$B135,1))/(24*60))) ->  | I135: =IF($B135="","",(INDEX('AD Outage data'!AI:AI,$B135,1))) ->  | J135: =IF($B135="","",(INDEX('AD Outage data'!M:M,$B135,1))) -> 
D136: =IF($B136="","",(INDEX('AD Outage data'!D:D,$B136,1))) ->  | E136: =IF($B136="","",(INDEX('AD Outage data'!G:G,$B136,1))) ->  | F136: =IF($B136="","",(INDEX('AD Outage data'!H:H,$B136,1))) ->  | G136: =IF($B136="","",((INDEX('AD Outage data'!I:I,$B136,1))/(24*60))) ->  | H136: =IF($B136="","",((INDEX('AD Outage data'!J:J,$B136,1))/(24*60))) ->  | I136: =IF($B136="","",(INDEX('AD Outage data'!AI:AI,$B136,1))) ->  | J136: =IF($B136="","",(INDEX('AD Outage data'!M:M,$B136,1))) -> 
D137: =IF($B137="","",(INDEX('AD Outage data'!D:D,$B137,1))) ->  | E137: =IF($B137="","",(INDEX('AD Outage data'!G:G,$B137,1))) ->  | F137: =IF($B137="","",(INDEX('AD Outage data'!H:H,$B137,1))) ->  | G137: =IF($B137="","",((INDEX('AD Outage data'!I:I,$B137,1))/(24*60))) ->  | H137: =IF($B137="","",((INDEX('AD Outage data'!J:J,$B137,1))/(24*60))) ->  | I137: =IF($B137="","",(INDEX('AD Outage data'!AI:AI,$B137,1))) ->  | J137: =IF($B137="","",(INDEX('AD Outage data'!M:M,$B137,1))) -> 
D138: =IF($B138="","",(INDEX('AD Outage data'!D:D,$B138,1))) ->  | E138: =IF($B138="","",(INDEX('AD Outage data'!G:G,$B138,1))) ->  | F138: =IF($B138="","",(INDEX('AD Outage data'!H:H,$B138,1))) ->  | G138: =IF($B138="","",((INDEX('AD Outage data'!I:I,$B138,1))/(24*60))) ->  | H138: =IF($B138="","",((INDEX('AD Outage data'!J:J,$B138,1))/(24*60))) ->  | I138: =IF($B138="","",(INDEX('AD Outage data'!AI:AI,$B138,1))) ->  | J138: =IF($B138="","",(INDEX('AD Outage data'!M:M,$B138,1))) -> 
D139: =IF($B139="","",(INDEX('AD Outage data'!D:D,$B139,1))) ->  | E139: =IF($B139="","",(INDEX('AD Outage data'!G:G,$B139,1))) ->  | F139: =IF($B139="","",(INDEX('AD Outage data'!H:H,$B139,1))) ->  | G139: =IF($B139="","",((INDEX('AD Outage data'!I:I,$B139,1))/(24*60))) ->  | H139: =IF($B139="","",((INDEX('AD Outage data'!J:J,$B139,1))/(24*60))) ->  | I139: =IF($B139="","",(INDEX('AD Outage data'!AI:AI,$B139,1))) ->  | J139: =IF($B139="","",(INDEX('AD Outage data'!M:M,$B139,1))) -> 
D140: =IF($B140="","",(INDEX('AD Outage data'!D:D,$B140,1))) ->  | E140: =IF($B140="","",(INDEX('AD Outage data'!G:G,$B140,1))) ->  | F140: =IF($B140="","",(INDEX('AD Outage data'!H:H,$B140,1))) ->  | G140: =IF($B140="","",((INDEX('AD Outage data'!I:I,$B140,1))/(24*60))) ->  | H140: =IF($B140="","",((INDEX('AD Outage data'!J:J,$B140,1))/(24*60))) ->  | I140: =IF($B140="","",(INDEX('AD Outage data'!AI:AI,$B140,1))) ->  | J140: =IF($B140="","",(INDEX('AD Outage data'!M:M,$B140,1))) -> 
D141: =IF($B141="","",(INDEX('AD Outage data'!D:D,$B141,1))) ->  | E141: =IF($B141="","",(INDEX('AD Outage data'!G:G,$B141,1))) ->  | F141: =IF($B141="","",(INDEX('AD Outage data'!H:H,$B141,1))) ->  | G141: =IF($B141="","",((INDEX('AD Outage data'!I:I,$B141,1))/(24*60))) ->  | H141: =IF($B141="","",((INDEX('AD Outage data'!J:J,$B141,1))/(24*60))) ->  | I141: =IF($B141="","",(INDEX('AD Outage data'!AI:AI,$B141,1))) ->  | J141: =IF($B141="","",(INDEX('AD Outage data'!M:M,$B141,1))) -> 
D142: =IF($B142="","",(INDEX('AD Outage data'!D:D,$B142,1))) ->  | E142: =IF($B142="","",(INDEX('AD Outage data'!G:G,$B142,1))) ->  | F142: =IF($B142="","",(INDEX('AD Outage data'!H:H,$B142,1))) ->  | G142: =IF($B142="","",((INDEX('AD Outage data'!I:I,$B142,1))/(24*60))) ->  | H142: =IF($B142="","",((INDEX('AD Outage data'!J:J,$B142,1))/(24*60))) ->  | I142: =IF($B142="","",(INDEX('AD Outage data'!AI:AI,$B142,1))) ->  | J142: =IF($B142="","",(INDEX('AD Outage data'!M:M,$B142,1))) -> 
D143: =IF($B143="","",(INDEX('AD Outage data'!D:D,$B143,1))) ->  | E143: =IF($B143="","",(INDEX('AD Outage data'!G:G,$B143,1))) ->  | F143: =IF($B143="","",(INDEX('AD Outage data'!H:H,$B143,1))) ->  | G143: =IF($B143="","",((INDEX('AD Outage data'!I:I,$B143,1))/(24*60))) ->  | H143: =IF($B143="","",((INDEX('AD Outage data'!J:J,$B143,1))/(24*60))) ->  | I143: =IF($B143="","",(INDEX('AD Outage data'!AI:AI,$B143,1))) ->  | J143: =IF($B143="","",(INDEX('AD Outage data'!M:M,$B143,1))) -> 
D144: =IF($B144="","",(INDEX('AD Outage data'!D:D,$B144,1))) ->  | E144: =IF($B144="","",(INDEX('AD Outage data'!G:G,$B144,1))) ->  | F144: =IF($B144="","",(INDEX('AD Outage data'!H:H,$B144,1))) ->  | G144: =IF($B144="","",((INDEX('AD Outage data'!I:I,$B144,1))/(24*60))) ->  | H144: =IF($B144="","",((INDEX('AD Outage data'!J:J,$B144,1))/(24*60))) ->  | I144: =IF($B144="","",(INDEX('AD Outage data'!AI:AI,$B144,1))) ->  | J144: =IF($B144="","",(INDEX('AD Outage data'!M:M,$B144,1))) -> 
D145: =IF($B145="","",(INDEX('AD Outage data'!D:D,$B145,1))) ->  | E145: =IF($B145="","",(INDEX('AD Outage data'!G:G,$B145,1))) ->  | F145: =IF($B145="","",(INDEX('AD Outage data'!H:H,$B145,1))) ->  | G145: =IF($B145="","",((INDEX('AD Outage data'!I:I,$B145,1))/(24*60))) ->  | H145: =IF($B145="","",((INDEX('AD Outage data'!J:J,$B145,1))/(24*60))) ->  | I145: =IF($B145="","",(INDEX('AD Outage data'!AI:AI,$B145,1))) ->  | J145: =IF($B145="","",(INDEX('AD Outage data'!M:M,$B145,1))) -> 
D146: =IF($B146="","",(INDEX('AD Outage data'!D:D,$B146,1))) ->  | E146: =IF($B146="","",(INDEX('AD Outage data'!G:G,$B146,1))) ->  | F146: =IF($B146="","",(INDEX('AD Outage data'!H:H,$B146,1))) ->  | G146: =IF($B146="","",((INDEX('AD Outage data'!I:I,$B146,1))/(24*60))) ->  | H146: =IF($B146="","",((INDEX('AD Outage data'!J:J,$B146,1))/(24*60))) ->  | I146: =IF($B146="","",(INDEX('AD Outage data'!AI:AI,$B146,1))) ->  | J146: =IF($B146="","",(INDEX('AD Outage data'!M:M,$B146,1))) -> 
D147: =IF($B147="","",(INDEX('AD Outage data'!D:D,$B147,1))) ->  | E147: =IF($B147="","",(INDEX('AD Outage data'!G:G,$B147,1))) ->  | F147: =IF($B147="","",(INDEX('AD Outage data'!H:H,$B147,1))) ->  | G147: =IF($B147="","",((INDEX('AD Outage data'!I:I,$B147,1))/(24*60))) ->  | H147: =IF($B147="","",((INDEX('AD Outage data'!J:J,$B147,1))/(24*60))) ->  | I147: =IF($B147="","",(INDEX('AD Outage data'!AI:AI,$B147,1))) ->  | J147: =IF($B147="","",(INDEX('AD Outage data'!M:M,$B147,1))) -> 
D148: =IF($B148="","",(INDEX('AD Outage data'!D:D,$B148,1))) ->  | E148: =IF($B148="","",(INDEX('AD Outage data'!G:G,$B148,1))) ->  | F148: =IF($B148="","",(INDEX('AD Outage data'!H:H,$B148,1))) ->  | G148: =IF($B148="","",((INDEX('AD Outage data'!I:I,$B148,1))/(24*60))) ->  | H148: =IF($B148="","",((INDEX('AD Outage data'!J:J,$B148,1))/(24*60))) ->  | I148: =IF($B148="","",(INDEX('AD Outage data'!AI:AI,$B148,1))) ->  | J148: =IF($B148="","",(INDEX('AD Outage data'!M:M,$B148,1))) -> 
D149: =IF($B149="","",(INDEX('AD Outage data'!D:D,$B149,1))) ->  | E149: =IF($B149="","",(INDEX('AD Outage data'!G:G,$B149,1))) ->  | F149: =IF($B149="","",(INDEX('AD Outage data'!H:H,$B149,1))) ->  | G149: =IF($B149="","",((INDEX('AD Outage data'!I:I,$B149,1))/(24*60))) ->  | H149: =IF($B149="","",((INDEX('AD Outage data'!J:J,$B149,1))/(24*60))) ->  | I149: =IF($B149="","",(INDEX('AD Outage data'!AI:AI,$B149,1))) ->  | J149: =IF($B149="","",(INDEX('AD Outage data'!M:M,$B149,1))) -> 
D150: =IF($B150="","",(INDEX('AD Outage data'!D:D,$B150,1))) ->  | E150: =IF($B150="","",(INDEX('AD Outage data'!G:G,$B150,1))) ->  | F150: =IF($B150="","",(INDEX('AD Outage data'!H:H,$B150,1))) ->  | G150: =IF($B150="","",((INDEX('AD Outage data'!I:I,$B150,1))/(24*60))) ->  | H150: =IF($B150="","",((INDEX('AD Outage data'!J:J,$B150,1))/(24*60))) ->  | I150: =IF($B150="","",(INDEX('AD Outage data'!AI:AI,$B150,1))) ->  | J150: =IF($B150="","",(INDEX('AD Outage data'!M:M,$B150,1))) -> 
D151: =IF($B151="","",(INDEX('AD Outage data'!D:D,$B151,1))) ->  | E151: =IF($B151="","",(INDEX('AD Outage data'!G:G,$B151,1))) ->  | F151: =IF($B151="","",(INDEX('AD Outage data'!H:H,$B151,1))) ->  | G151: =IF($B151="","",((INDEX('AD Outage data'!I:I,$B151,1))/(24*60))) ->  | H151: =IF($B151="","",((INDEX('AD Outage data'!J:J,$B151,1))/(24*60))) ->  | I151: =IF($B151="","",(INDEX('AD Outage data'!AI:AI,$B151,1))) ->  | J151: =IF($B151="","",(INDEX('AD Outage data'!M:M,$B151,1))) -> 
D152: =IF($B152="","",(INDEX('AD Outage data'!D:D,$B152,1))) ->  | E152: =IF($B152="","",(INDEX('AD Outage data'!G:G,$B152,1))) ->  | F152: =IF($B152="","",(INDEX('AD Outage data'!H:H,$B152,1))) ->  | G152: =IF($B152="","",((INDEX('AD Outage data'!I:I,$B152,1))/(24*60))) ->  | H152: =IF($B152="","",((INDEX('AD Outage data'!J:J,$B152,1))/(24*60))) ->  | I152: =IF($B152="","",(INDEX('AD Outage data'!AI:AI,$B152,1))) ->  | J152: =IF($B152="","",(INDEX('AD Outage data'!M:M,$B152,1))) -> 
D153: =IF($B153="","",(INDEX('AD Outage data'!D:D,$B153,1))) ->  | E153: =IF($B153="","",(INDEX('AD Outage data'!G:G,$B153,1))) ->  | F153: =IF($B153="","",(INDEX('AD Outage data'!H:H,$B153,1))) ->  | G153: =IF($B153="","",((INDEX('AD Outage data'!I:I,$B153,1))/(24*60))) ->  | H153: =IF($B153="","",((INDEX('AD Outage data'!J:J,$B153,1))/(24*60))) ->  | I153: =IF($B153="","",(INDEX('AD Outage data'!AI:AI,$B153,1))) ->  | J153: =IF($B153="","",(INDEX('AD Outage data'!M:M,$B153,1))) -> 
D154: =IF($B154="","",(INDEX('AD Outage data'!D:D,$B154,1))) ->  | E154: =IF($B154="","",(INDEX('AD Outage data'!G:G,$B154,1))) ->  | F154: =IF($B154="","",(INDEX('AD Outage data'!H:H,$B154,1))) ->  | G154: =IF($B154="","",((INDEX('AD Outage data'!I:I,$B154,1))/(24*60))) ->  | H154: =IF($B154="","",((INDEX('AD Outage data'!J:J,$B154,1))/(24*60))) ->  | I154: =IF($B154="","",(INDEX('AD Outage data'!AI:AI,$B154,1))) ->  | J154: =IF($B154="","",(INDEX('AD Outage data'!M:M,$B154,1))) -> 
D155: =IF($B155="","",(INDEX('AD Outage data'!D:D,$B155,1))) ->  | E155: =IF($B155="","",(INDEX('AD Outage data'!G:G,$B155,1))) ->  | F155: =IF($B155="","",(INDEX('AD Outage data'!H:H,$B155,1))) ->  | G155: =IF($B155="","",((INDEX('AD Outage data'!I:I,$B155,1))/(24*60))) ->  | H155: =IF($B155="","",((INDEX('AD Outage data'!J:J,$B155,1))/(24*60))) ->  | I155: =IF($B155="","",(INDEX('AD Outage data'!AI:AI,$B155,1))) ->  | J155: =IF($B155="","",(INDEX('AD Outage data'!M:M,$B155,1))) -> 
D156: =IF($B156="","",(INDEX('AD Outage data'!D:D,$B156,1))) ->  | E156: =IF($B156="","",(INDEX('AD Outage data'!G:G,$B156,1))) ->  | F156: =IF($B156="","",(INDEX('AD Outage data'!H:H,$B156,1))) ->  | G156: =IF($B156="","",((INDEX('AD Outage data'!I:I,$B156,1))/(24*60))) ->  | H156: =IF($B156="","",((INDEX('AD Outage data'!J:J,$B156,1))/(24*60))) ->  | I156: =IF($B156="","",(INDEX('AD Outage data'!AI:AI,$B156,1))) ->  | J156: =IF($B156="","",(INDEX('AD Outage data'!M:M,$B156,1))) -> 
D157: =IF($B157="","",(INDEX('AD Outage data'!D:D,$B157,1))) ->  | E157: =IF($B157="","",(INDEX('AD Outage data'!G:G,$B157,1))) ->  | F157: =IF($B157="","",(INDEX('AD Outage data'!H:H,$B157,1))) ->  | G157: =IF($B157="","",((INDEX('AD Outage data'!I:I,$B157,1))/(24*60))) ->  | H157: =IF($B157="","",((INDEX('AD Outage data'!J:J,$B157,1))/(24*60))) ->  | I157: =IF($B157="","",(INDEX('AD Outage data'!AI:AI,$B157,1))) ->  | J157: =IF($B157="","",(INDEX('AD Outage data'!M:M,$B157,1))) -> 
D158: =IF($B158="","",(INDEX('AD Outage data'!D:D,$B158,1))) ->  | E158: =IF($B158="","",(INDEX('AD Outage data'!G:G,$B158,1))) ->  | F158: =IF($B158="","",(INDEX('AD Outage data'!H:H,$B158,1))) ->  | G158: =IF($B158="","",((INDEX('AD Outage data'!I:I,$B158,1))/(24*60))) ->  | H158: =IF($B158="","",((INDEX('AD Outage data'!J:J,$B158,1))/(24*60))) ->  | I158: =IF($B158="","",(INDEX('AD Outage data'!AI:AI,$B158,1))) ->  | J158: =IF($B158="","",(INDEX('AD Outage data'!M:M,$B158,1))) -> 
D159: =IF($B159="","",(INDEX('AD Outage data'!D:D,$B159,1))) ->  | E159: =IF($B159="","",(INDEX('AD Outage data'!G:G,$B159,1))) ->  | F159: =IF($B159="","",(INDEX('AD Outage data'!H:H,$B159,1))) ->  | G159: =IF($B159="","",((INDEX('AD Outage data'!I:I,$B159,1))/(24*60))) ->  | H159: =IF($B159="","",((INDEX('AD Outage data'!J:J,$B159,1))/(24*60))) ->  | I159: =IF($B159="","",(INDEX('AD Outage data'!AI:AI,$B159,1))) ->  | J159: =IF($B159="","",(INDEX('AD Outage data'!M:M,$B159,1))) -> 
D160: =IF($B160="","",(INDEX('AD Outage data'!D:D,$B160,1))) ->  | E160: =IF($B160="","",(INDEX('AD Outage data'!G:G,$B160,1))) ->  | F160: =IF($B160="","",(INDEX('AD Outage data'!H:H,$B160,1))) ->  | G160: =IF($B160="","",((INDEX('AD Outage data'!I:I,$B160,1))/(24*60))) ->  | H160: =IF($B160="","",((INDEX('AD Outage data'!J:J,$B160,1))/(24*60))) ->  | I160: =IF($B160="","",(INDEX('AD Outage data'!AI:AI,$B160,1))) ->  | J160: =IF($B160="","",(INDEX('AD Outage data'!M:M,$B160,1))) -> 
D161: =IF($B161="","",(INDEX('AD Outage data'!D:D,$B161,1))) ->  | E161: =IF($B161="","",(INDEX('AD Outage data'!G:G,$B161,1))) ->  | F161: =IF($B161="","",(INDEX('AD Outage data'!H:H,$B161,1))) ->  | G161: =IF($B161="","",((INDEX('AD Outage data'!I:I,$B161,1))/(24*60))) ->  | H161: =IF($B161="","",((INDEX('AD Outage data'!J:J,$B161,1))/(24*60))) ->  | I161: =IF($B161="","",(INDEX('AD Outage data'!AI:AI,$B161,1))) ->  | J161: =IF($B161="","",(INDEX('AD Outage data'!M:M,$B161,1))) -> 
D162: =IF($B162="","",(INDEX('AD Outage data'!D:D,$B162,1))) ->  | E162: =IF($B162="","",(INDEX('AD Outage data'!G:G,$B162,1))) ->  | F162: =IF($B162="","",(INDEX('AD Outage data'!H:H,$B162,1))) ->  | G162: =IF($B162="","",((INDEX('AD Outage data'!I:I,$B162,1))/(24*60))) ->  | H162: =IF($B162="","",((INDEX('AD Outage data'!J:J,$B162,1))/(24*60))) ->  | I162: =IF($B162="","",(INDEX('AD Outage data'!AI:AI,$B162,1))) ->  | J162: =IF($B162="","",(INDEX('AD Outage data'!M:M,$B162,1))) -> 
D163: =IF($B163="","",(INDEX('AD Outage data'!D:D,$B163,1))) ->  | E163: =IF($B163="","",(INDEX('AD Outage data'!G:G,$B163,1))) ->  | F163: =IF($B163="","",(INDEX('AD Outage data'!H:H,$B163,1))) ->  | G163: =IF($B163="","",((INDEX('AD Outage data'!I:I,$B163,1))/(24*60))) ->  | H163: =IF($B163="","",((INDEX('AD Outage data'!J:J,$B163,1))/(24*60))) ->  | I163: =IF($B163="","",(INDEX('AD Outage data'!AI:AI,$B163,1))) ->  | J163: =IF($B163="","",(INDEX('AD Outage data'!M:M,$B163,1))) -> 
D164: =IF($B164="","",(INDEX('AD Outage data'!D:D,$B164,1))) ->  | E164: =IF($B164="","",(INDEX('AD Outage data'!G:G,$B164,1))) ->  | F164: =IF($B164="","",(INDEX('AD Outage data'!H:H,$B164,1))) ->  | G164: =IF($B164="","",((INDEX('AD Outage data'!I:I,$B164,1))/(24*60))) ->  | H164: =IF($B164="","",((INDEX('AD Outage data'!J:J,$B164,1))/(24*60))) ->  | I164: =IF($B164="","",(INDEX('AD Outage data'!AI:AI,$B164,1))) ->  | J164: =IF($B164="","",(INDEX('AD Outage data'!M:M,$B164,1))) -> 
D165: =IF($B165="","",(INDEX('AD Outage data'!D:D,$B165,1))) ->  | E165: =IF($B165="","",(INDEX('AD Outage data'!G:G,$B165,1))) ->  | F165: =IF($B165="","",(INDEX('AD Outage data'!H:H,$B165,1))) ->  | G165: =IF($B165="","",((INDEX('AD Outage data'!I:I,$B165,1))/(24*60))) ->  | H165: =IF($B165="","",((INDEX('AD Outage data'!J:J,$B165,1))/(24*60))) ->  | I165: =IF($B165="","",(INDEX('AD Outage data'!AI:AI,$B165,1))) ->  | J165: =IF($B165="","",(INDEX('AD Outage data'!M:M,$B165,1))) -> 
D166: =IF($B166="","",(INDEX('AD Outage data'!D:D,$B166,1))) ->  | E166: =IF($B166="","",(INDEX('AD Outage data'!G:G,$B166,1))) ->  | F166: =IF($B166="","",(INDEX('AD Outage data'!H:H,$B166,1))) ->  | G166: =IF($B166="","",((INDEX('AD Outage data'!I:I,$B166,1))/(24*60))) ->  | H166: =IF($B166="","",((INDEX('AD Outage data'!J:J,$B166,1))/(24*60))) ->  | I166: =IF($B166="","",(INDEX('AD Outage data'!AI:AI,$B166,1))) ->  | J166: =IF($B166="","",(INDEX('AD Outage data'!M:M,$B166,1))) -> 
D167: =IF($B167="","",(INDEX('AD Outage data'!D:D,$B167,1))) ->  | E167: =IF($B167="","",(INDEX('AD Outage data'!G:G,$B167,1))) ->  | F167: =IF($B167="","",(INDEX('AD Outage data'!H:H,$B167,1))) ->  | G167: =IF($B167="","",((INDEX('AD Outage data'!I:I,$B167,1))/(24*60))) ->  | H167: =IF($B167="","",((INDEX('AD Outage data'!J:J,$B167,1))/(24*60))) ->  | I167: =IF($B167="","",(INDEX('AD Outage data'!AI:AI,$B167,1))) ->  | J167: =IF($B167="","",(INDEX('AD Outage data'!M:M,$B167,1))) -> 
D168: =IF($B168="","",(INDEX('AD Outage data'!D:D,$B168,1))) ->  | E168: =IF($B168="","",(INDEX('AD Outage data'!G:G,$B168,1))) ->  | F168: =IF($B168="","",(INDEX('AD Outage data'!H:H,$B168,1))) ->  | G168: =IF($B168="","",((INDEX('AD Outage data'!I:I,$B168,1))/(24*60))) ->  | H168: =IF($B168="","",((INDEX('AD Outage data'!J:J,$B168,1))/(24*60))) ->  | I168: =IF($B168="","",(INDEX('AD Outage data'!AI:AI,$B168,1))) ->  | J168: =IF($B168="","",(INDEX('AD Outage data'!M:M,$B168,1))) -> 
D169: =IF($B169="","",(INDEX('AD Outage data'!D:D,$B169,1))) ->  | E169: =IF($B169="","",(INDEX('AD Outage data'!G:G,$B169,1))) ->  | F169: =IF($B169="","",(INDEX('AD Outage data'!H:H,$B169,1))) ->  | G169: =IF($B169="","",((INDEX('AD Outage data'!I:I,$B169,1))/(24*60))) ->  | H169: =IF($B169="","",((INDEX('AD Outage data'!J:J,$B169,1))/(24*60))) ->  | I169: =IF($B169="","",(INDEX('AD Outage data'!AI:AI,$B169,1))) ->  | J169: =IF($B169="","",(INDEX('AD Outage data'!M:M,$B169,1))) -> 
D170: =IF($B170="","",(INDEX('AD Outage data'!D:D,$B170,1))) ->  | E170: =IF($B170="","",(INDEX('AD Outage data'!G:G,$B170,1))) ->  | F170: =IF($B170="","",(INDEX('AD Outage data'!H:H,$B170,1))) ->  | G170: =IF($B170="","",((INDEX('AD Outage data'!I:I,$B170,1))/(24*60))) ->  | H170: =IF($B170="","",((INDEX('AD Outage data'!J:J,$B170,1))/(24*60))) ->  | I170: =IF($B170="","",(INDEX('AD Outage data'!AI:AI,$B170,1))) ->  | J170: =IF($B170="","",(INDEX('AD Outage data'!M:M,$B170,1))) -> 
D171: =IF($B171="","",(INDEX('AD Outage data'!D:D,$B171,1))) ->  | E171: =IF($B171="","",(INDEX('AD Outage data'!G:G,$B171,1))) ->  | F171: =IF($B171="","",(INDEX('AD Outage data'!H:H,$B171,1))) ->  | G171: =IF($B171="","",((INDEX('AD Outage data'!I:I,$B171,1))/(24*60))) ->  | H171: =IF($B171="","",((INDEX('AD Outage data'!J:J,$B171,1))/(24*60))) ->  | I171: =IF($B171="","",(INDEX('AD Outage data'!AI:AI,$B171,1))) ->  | J171: =IF($B171="","",(INDEX('AD Outage data'!M:M,$B171,1))) -> 
D172: =IF($B172="","",(INDEX('AD Outage data'!D:D,$B172,1))) ->  | E172: =IF($B172="","",(INDEX('AD Outage data'!G:G,$B172,1))) ->  | F172: =IF($B172="","",(INDEX('AD Outage data'!H:H,$B172,1))) ->  | G172: =IF($B172="","",((INDEX('AD Outage data'!I:I,$B172,1))/(24*60))) ->  | H172: =IF($B172="","",((INDEX('AD Outage data'!J:J,$B172,1))/(24*60))) ->  | I172: =IF($B172="","",(INDEX('AD Outage data'!AI:AI,$B172,1))) ->  | J172: =IF($B172="","",(INDEX('AD Outage data'!M:M,$B172,1))) -> 
D173: =IF($B173="","",(INDEX('AD Outage data'!D:D,$B173,1))) ->  | E173: =IF($B173="","",(INDEX('AD Outage data'!G:G,$B173,1))) ->  | F173: =IF($B173="","",(INDEX('AD Outage data'!H:H,$B173,1))) ->  | G173: =IF($B173="","",((INDEX('AD Outage data'!I:I,$B173,1))/(24*60))) ->  | H173: =IF($B173="","",((INDEX('AD Outage data'!J:J,$B173,1))/(24*60))) ->  | I173: =IF($B173="","",(INDEX('AD Outage data'!AI:AI,$B173,1))) ->  | J173: =IF($B173="","",(INDEX('AD Outage data'!M:M,$B173,1))) -> 
D174: =IF($B174="","",(INDEX('AD Outage data'!D:D,$B174,1))) ->  | E174: =IF($B174="","",(INDEX('AD Outage data'!G:G,$B174,1))) ->  | F174: =IF($B174="","",(INDEX('AD Outage data'!H:H,$B174,1))) ->  | G174: =IF($B174="","",((INDEX('AD Outage data'!I:I,$B174,1))/(24*60))) ->  | H174: =IF($B174="","",((INDEX('AD Outage data'!J:J,$B174,1))/(24*60))) ->  | I174: =IF($B174="","",(INDEX('AD Outage data'!AI:AI,$B174,1))) ->  | J174: =IF($B174="","",(INDEX('AD Outage data'!M:M,$B174,1))) -> 
D175: =IF($B175="","",(INDEX('AD Outage data'!D:D,$B175,1))) ->  | E175: =IF($B175="","",(INDEX('AD Outage data'!G:G,$B175,1))) ->  | F175: =IF($B175="","",(INDEX('AD Outage data'!H:H,$B175,1))) ->  | G175: =IF($B175="","",((INDEX('AD Outage data'!I:I,$B175,1))/(24*60))) ->  | H175: =IF($B175="","",((INDEX('AD Outage data'!J:J,$B175,1))/(24*60))) ->  | I175: =IF($B175="","",(INDEX('AD Outage data'!AI:AI,$B175,1))) ->  | J175: =IF($B175="","",(INDEX('AD Outage data'!M:M,$B175,1))) -> 
D176: =IF($B176="","",(INDEX('AD Outage data'!D:D,$B176,1))) ->  | E176: =IF($B176="","",(INDEX('AD Outage data'!G:G,$B176,1))) ->  | F176: =IF($B176="","",(INDEX('AD Outage data'!H:H,$B176,1))) ->  | G176: =IF($B176="","",((INDEX('AD Outage data'!I:I,$B176,1))/(24*60))) ->  | H176: =IF($B176="","",((INDEX('AD Outage data'!J:J,$B176,1))/(24*60))) ->  | I176: =IF($B176="","",(INDEX('AD Outage data'!AI:AI,$B176,1))) ->  | J176: =IF($B176="","",(INDEX('AD Outage data'!M:M,$B176,1))) -> 
D177: =IF($B177="","",(INDEX('AD Outage data'!D:D,$B177,1))) ->  | E177: =IF($B177="","",(INDEX('AD Outage data'!G:G,$B177,1))) ->  | F177: =IF($B177="","",(INDEX('AD Outage data'!H:H,$B177,1))) ->  | G177: =IF($B177="","",((INDEX('AD Outage data'!I:I,$B177,1))/(24*60))) ->  | H177: =IF($B177="","",((INDEX('AD Outage data'!J:J,$B177,1))/(24*60))) ->  | I177: =IF($B177="","",(INDEX('AD Outage data'!AI:AI,$B177,1))) ->  | J177: =IF($B177="","",(INDEX('AD Outage data'!M:M,$B177,1))) -> 
D178: =IF($B178="","",(INDEX('AD Outage data'!D:D,$B178,1))) ->  | E178: =IF($B178="","",(INDEX('AD Outage data'!G:G,$B178,1))) ->  | F178: =IF($B178="","",(INDEX('AD Outage data'!H:H,$B178,1))) ->  | G178: =IF($B178="","",((INDEX('AD Outage data'!I:I,$B178,1))/(24*60))) ->  | H178: =IF($B178="","",((INDEX('AD Outage data'!J:J,$B178,1))/(24*60))) ->  | I178: =IF($B178="","",(INDEX('AD Outage data'!AI:AI,$B178,1))) ->  | J178: =IF($B178="","",(INDEX('AD Outage data'!M:M,$B178,1))) -> 
D179: =IF($B179="","",(INDEX('AD Outage data'!D:D,$B179,1))) ->  | E179: =IF($B179="","",(INDEX('AD Outage data'!G:G,$B179,1))) ->  | F179: =IF($B179="","",(INDEX('AD Outage data'!H:H,$B179,1))) ->  | G179: =IF($B179="","",((INDEX('AD Outage data'!I:I,$B179,1))/(24*60))) ->  | H179: =IF($B179="","",((INDEX('AD Outage data'!J:J,$B179,1))/(24*60))) ->  | I179: =IF($B179="","",(INDEX('AD Outage data'!AI:AI,$B179,1))) ->  | J179: =IF($B179="","",(INDEX('AD Outage data'!M:M,$B179,1))) -> 
D180: =IF($B180="","",(INDEX('AD Outage data'!D:D,$B180,1))) ->  | E180: =IF($B180="","",(INDEX('AD Outage data'!G:G,$B180,1))) ->  | F180: =IF($B180="","",(INDEX('AD Outage data'!H:H,$B180,1))) ->  | G180: =IF($B180="","",((INDEX('AD Outage data'!I:I,$B180,1))/(24*60))) ->  | H180: =IF($B180="","",((INDEX('AD Outage data'!J:J,$B180,1))/(24*60))) ->  | I180: =IF($B180="","",(INDEX('AD Outage data'!AI:AI,$B180,1))) ->  | J180: =IF($B180="","",(INDEX('AD Outage data'!M:M,$B180,1))) -> 
D181: =IF($B181="","",(INDEX('AD Outage data'!D:D,$B181,1))) ->  | E181: =IF($B181="","",(INDEX('AD Outage data'!G:G,$B181,1))) ->  | F181: =IF($B181="","",(INDEX('AD Outage data'!H:H,$B181,1))) ->  | G181: =IF($B181="","",((INDEX('AD Outage data'!I:I,$B181,1))/(24*60))) ->  | H181: =IF($B181="","",((INDEX('AD Outage data'!J:J,$B181,1))/(24*60))) ->  | I181: =IF($B181="","",(INDEX('AD Outage data'!AI:AI,$B181,1))) ->  | J181: =IF($B181="","",(INDEX('AD Outage data'!M:M,$B181,1))) -> 
D182: =IF($B182="","",(INDEX('AD Outage data'!D:D,$B182,1))) ->  | E182: =IF($B182="","",(INDEX('AD Outage data'!G:G,$B182,1))) ->  | F182: =IF($B182="","",(INDEX('AD Outage data'!H:H,$B182,1))) ->  | G182: =IF($B182="","",((INDEX('AD Outage data'!I:I,$B182,1))/(24*60))) ->  | H182: =IF($B182="","",((INDEX('AD Outage data'!J:J,$B182,1))/(24*60))) ->  | I182: =IF($B182="","",(INDEX('AD Outage data'!AI:AI,$B182,1))) ->  | J182: =IF($B182="","",(INDEX('AD Outage data'!M:M,$B182,1))) -> 
D183: =IF($B183="","",(INDEX('AD Outage data'!D:D,$B183,1))) ->  | E183: =IF($B183="","",(INDEX('AD Outage data'!G:G,$B183,1))) ->  | F183: =IF($B183="","",(INDEX('AD Outage data'!H:H,$B183,1))) ->  | G183: =IF($B183="","",((INDEX('AD Outage data'!I:I,$B183,1))/(24*60))) ->  | H183: =IF($B183="","",((INDEX('AD Outage data'!J:J,$B183,1))/(24*60))) ->  | I183: =IF($B183="","",(INDEX('AD Outage data'!AI:AI,$B183,1))) ->  | J183: =IF($B183="","",(INDEX('AD Outage data'!M:M,$B183,1))) -> 
D184: =IF($B184="","",(INDEX('AD Outage data'!D:D,$B184,1))) ->  | E184: =IF($B184="","",(INDEX('AD Outage data'!G:G,$B184,1))) ->  | F184: =IF($B184="","",(INDEX('AD Outage data'!H:H,$B184,1))) ->  | G184: =IF($B184="","",((INDEX('AD Outage data'!I:I,$B184,1))/(24*60))) ->  | H184: =IF($B184="","",((INDEX('AD Outage data'!J:J,$B184,1))/(24*60))) ->  | I184: =IF($B184="","",(INDEX('AD Outage data'!AI:AI,$B184,1))) ->  | J184: =IF($B184="","",(INDEX('AD Outage data'!M:M,$B184,1))) -> 
D185: =IF($B185="","",(INDEX('AD Outage data'!D:D,$B185,1))) ->  | E185: =IF($B185="","",(INDEX('AD Outage data'!G:G,$B185,1))) ->  | F185: =IF($B185="","",(INDEX('AD Outage data'!H:H,$B185,1))) ->  | G185: =IF($B185="","",((INDEX('AD Outage data'!I:I,$B185,1))/(24*60))) ->  | H185: =IF($B185="","",((INDEX('AD Outage data'!J:J,$B185,1))/(24*60))) ->  | I185: =IF($B185="","",(INDEX('AD Outage data'!AI:AI,$B185,1))) ->  | J185: =IF($B185="","",(INDEX('AD Outage data'!M:M,$B185,1))) -> 
D186: =IF($B186="","",(INDEX('AD Outage data'!D:D,$B186,1))) ->  | E186: =IF($B186="","",(INDEX('AD Outage data'!G:G,$B186,1))) ->  | F186: =IF($B186="","",(INDEX('AD Outage data'!H:H,$B186,1))) ->  | G186: =IF($B186="","",((INDEX('AD Outage data'!I:I,$B186,1))/(24*60))) ->  | H186: =IF($B186="","",((INDEX('AD Outage data'!J:J,$B186,1))/(24*60))) ->  | I186: =IF($B186="","",(INDEX('AD Outage data'!AI:AI,$B186,1))) ->  | J186: =IF($B186="","",(INDEX('AD Outage data'!M:M,$B186,1))) -> 
D187: =IF($B187="","",(INDEX('AD Outage data'!D:D,$B187,1))) ->  | E187: =IF($B187="","",(INDEX('AD Outage data'!G:G,$B187,1))) ->  | F187: =IF($B187="","",(INDEX('AD Outage data'!H:H,$B187,1))) ->  | G187: =IF($B187="","",((INDEX('AD Outage data'!I:I,$B187,1))/(24*60))) ->  | H187: =IF($B187="","",((INDEX('AD Outage data'!J:J,$B187,1))/(24*60))) ->  | I187: =IF($B187="","",(INDEX('AD Outage data'!AI:AI,$B187,1))) ->  | J187: =IF($B187="","",(INDEX('AD Outage data'!M:M,$B187,1))) -> 
D188: =IF($B188="","",(INDEX('AD Outage data'!D:D,$B188,1))) ->  | E188: =IF($B188="","",(INDEX('AD Outage data'!G:G,$B188,1))) ->  | F188: =IF($B188="","",(INDEX('AD Outage data'!H:H,$B188,1))) ->  | G188: =IF($B188="","",((INDEX('AD Outage data'!I:I,$B188,1))/(24*60))) ->  | H188: =IF($B188="","",((INDEX('AD Outage data'!J:J,$B188,1))/(24*60))) ->  | I188: =IF($B188="","",(INDEX('AD Outage data'!AI:AI,$B188,1))) ->  | J188: =IF($B188="","",(INDEX('AD Outage data'!M:M,$B188,1))) -> 
D189: =IF($B189="","",(INDEX('AD Outage data'!D:D,$B189,1))) ->  | E189: =IF($B189="","",(INDEX('AD Outage data'!G:G,$B189,1))) ->  | F189: =IF($B189="","",(INDEX('AD Outage data'!H:H,$B189,1))) ->  | G189: =IF($B189="","",((INDEX('AD Outage data'!I:I,$B189,1))/(24*60))) ->  | H189: =IF($B189="","",((INDEX('AD Outage data'!J:J,$B189,1))/(24*60))) ->  | I189: =IF($B189="","",(INDEX('AD Outage data'!AI:AI,$B189,1))) ->  | J189: =IF($B189="","",(INDEX('AD Outage data'!M:M,$B189,1))) -> 
D190: =IF($B190="","",(INDEX('AD Outage data'!D:D,$B190,1))) ->  | E190: =IF($B190="","",(INDEX('AD Outage data'!G:G,$B190,1))) ->  | F190: =IF($B190="","",(INDEX('AD Outage data'!H:H,$B190,1))) ->  | G190: =IF($B190="","",((INDEX('AD Outage data'!I:I,$B190,1))/(24*60))) ->  | H190: =IF($B190="","",((INDEX('AD Outage data'!J:J,$B190,1))/(24*60))) ->  | I190: =IF($B190="","",(INDEX('AD Outage data'!AI:AI,$B190,1))) ->  | J190: =IF($B190="","",(INDEX('AD Outage data'!M:M,$B190,1))) -> 
D191: =IF($B191="","",(INDEX('AD Outage data'!D:D,$B191,1))) ->  | E191: =IF($B191="","",(INDEX('AD Outage data'!G:G,$B191,1))) ->  | F191: =IF($B191="","",(INDEX('AD Outage data'!H:H,$B191,1))) ->  | G191: =IF($B191="","",((INDEX('AD Outage data'!I:I,$B191,1))/(24*60))) ->  | H191: =IF($B191="","",((INDEX('AD Outage data'!J:J,$B191,1))/(24*60))) ->  | I191: =IF($B191="","",(INDEX('AD Outage data'!AI:AI,$B191,1))) ->  | J191: =IF($B191="","",(INDEX('AD Outage data'!M:M,$B191,1))) -> 
D192: =IF($B192="","",(INDEX('AD Outage data'!D:D,$B192,1))) ->  | E192: =IF($B192="","",(INDEX('AD Outage data'!G:G,$B192,1))) ->  | F192: =IF($B192="","",(INDEX('AD Outage data'!H:H,$B192,1))) ->  | G192: =IF($B192="","",((INDEX('AD Outage data'!I:I,$B192,1))/(24*60))) ->  | H192: =IF($B192="","",((INDEX('AD Outage data'!J:J,$B192,1))/(24*60))) ->  | I192: =IF($B192="","",(INDEX('AD Outage data'!AI:AI,$B192,1))) ->  | J192: =IF($B192="","",(INDEX('AD Outage data'!M:M,$B192,1))) -> 
D193: =IF($B193="","",(INDEX('AD Outage data'!D:D,$B193,1))) ->  | E193: =IF($B193="","",(INDEX('AD Outage data'!G:G,$B193,1))) ->  | F193: =IF($B193="","",(INDEX('AD Outage data'!H:H,$B193,1))) ->  | G193: =IF($B193="","",((INDEX('AD Outage data'!I:I,$B193,1))/(24*60))) ->  | H193: =IF($B193="","",((INDEX('AD Outage data'!J:J,$B193,1))/(24*60))) ->  | I193: =IF($B193="","",(INDEX('AD Outage data'!AI:AI,$B193,1))) ->  | J193: =IF($B193="","",(INDEX('AD Outage data'!M:M,$B193,1))) -> 
D194: =IF($B194="","",(INDEX('AD Outage data'!D:D,$B194,1))) ->  | E194: =IF($B194="","",(INDEX('AD Outage data'!G:G,$B194,1))) ->  | F194: =IF($B194="","",(INDEX('AD Outage data'!H:H,$B194,1))) ->  | G194: =IF($B194="","",((INDEX('AD Outage data'!I:I,$B194,1))/(24*60))) ->  | H194: =IF($B194="","",((INDEX('AD Outage data'!J:J,$B194,1))/(24*60))) ->  | I194: =IF($B194="","",(INDEX('AD Outage data'!AI:AI,$B194,1))) ->  | J194: =IF($B194="","",(INDEX('AD Outage data'!M:M,$B194,1))) -> 
D195: =IF($B195="","",(INDEX('AD Outage data'!D:D,$B195,1))) ->  | E195: =IF($B195="","",(INDEX('AD Outage data'!G:G,$B195,1))) ->  | F195: =IF($B195="","",(INDEX('AD Outage data'!H:H,$B195,1))) ->  | G195: =IF($B195="","",((INDEX('AD Outage data'!I:I,$B195,1))/(24*60))) ->  | H195: =IF($B195="","",((INDEX('AD Outage data'!J:J,$B195,1))/(24*60))) ->  | I195: =IF($B195="","",(INDEX('AD Outage data'!AI:AI,$B195,1))) ->  | J195: =IF($B195="","",(INDEX('AD Outage data'!M:M,$B195,1))) -> 
D196: =IF($B196="","",(INDEX('AD Outage data'!D:D,$B196,1))) ->  | E196: =IF($B196="","",(INDEX('AD Outage data'!G:G,$B196,1))) ->  | F196: =IF($B196="","",(INDEX('AD Outage data'!H:H,$B196,1))) ->  | G196: =IF($B196="","",((INDEX('AD Outage data'!I:I,$B196,1))/(24*60))) ->  | H196: =IF($B196="","",((INDEX('AD Outage data'!J:J,$B196,1))/(24*60))) ->  | I196: =IF($B196="","",(INDEX('AD Outage data'!AI:AI,$B196,1))) ->  | J196: =IF($B196="","",(INDEX('AD Outage data'!M:M,$B196,1))) -> 
C197: =IF($B197="","",(INDEX(INDIRECT(outage_adid_col),$B197,1))) ->  | D197: =IF($B197="","",(INDEX('AD Outage data'!D:D,$B197,1))) ->  | E197: =IF($B197="","",(INDEX('AD Outage data'!G:G,$B197,1))) ->  | F197: =IF($B197="","",(INDEX('AD Outage data'!H:H,$B197,1))) ->  | G197: =IF($B197="","",((INDEX('AD Outage data'!I:I,$B197,1))/(24*60))) ->  | H197: =IF($B197="","",((INDEX('AD Outage data'!J:J,$B197,1))/(24*60))) ->  | I197: =IF($B197="","",(INDEX('AD Outage data'!AI:AI,$B197,1))) ->  | J197: =IF($B197="","",(INDEX('AD Outage data'!M:M,$B197,1))) -> 
A198: =IF(B197="","","'AD Outage data'!"&$B$2&B197+1&":"&$B$2&"30000") ->  | B198: =IF(ISERROR(MATCH("yes",INDIRECT(A198),0)),"",MATCH("yes",INDIRECT(A198),0)+B197) ->  | D198: =IF($B198="","",(INDEX('AD Outage data'!D:D,$B198,1))) ->  | E198: =IF($B198="","",(INDEX('AD Outage data'!G:G,$B198,1))) ->  | F198: =IF($B198="","",(INDEX('AD Outage data'!H:H,$B198,1))) ->  | G198: =IF($B198="","",((INDEX('AD Outage data'!I:I,$B198,1))/(24*60))) ->  | H198: =IF($B198="","",((INDEX('AD Outage data'!J:J,$B198,1))/(24*60))) ->  | I198: =IF($B198="","",(INDEX('AD Outage data'!AI:AI,$B198,1))) ->  | J198: =IF($B198="","",(INDEX('AD Outage data'!M:M,$B198,1))) -> 
D199: =IF($B199="","",(INDEX('AD Outage data'!D:D,$B199,1))) ->  | E199: =IF($B199="","",(INDEX('AD Outage data'!G:G,$B199,1))) ->  | F199: =IF($B199="","",(INDEX('AD Outage data'!H:H,$B199,1))) ->  | G199: =IF($B199="","",((INDEX('AD Outage data'!I:I,$B199,1))/(24*60))) ->  | H199: =IF($B199="","",((INDEX('AD Outage data'!J:J,$B199,1))/(24*60))) ->  | I199: =IF($B199="","",(INDEX('AD Outage data'!AI:AI,$B199,1))) ->  | J199: =IF($B199="","",(INDEX('AD Outage data'!M:M,$B199,1))) -> 
D200: =IF($B200="","",(INDEX('AD Outage data'!D:D,$B200,1))) ->  | E200: =IF($B200="","",(INDEX('AD Outage data'!G:G,$B200,1))) ->  | F200: =IF($B200="","",(INDEX('AD Outage data'!H:H,$B200,1))) ->  | G200: =IF($B200="","",((INDEX('AD Outage data'!I:I,$B200,1))/(24*60))) ->  | H200: =IF($B200="","",((INDEX('AD Outage data'!J:J,$B200,1))/(24*60))) ->  | I200: =IF($B200="","",(INDEX('AD Outage data'!AI:AI,$B200,1))) ->  | J200: =IF($B200="","",(INDEX('AD Outage data'!M:M,$B200,1))) -> 
... 100 more rows

Sheet Connection Usage
A1: Column Header | B1: Connection in selected region this month? | G1: Link Utilisation
A2: Column Number | B2: =SUBSTITUTE(ADDRESS(1,MATCH(B1,'90th Percentile'!$1:$1,0),4),"1","") -> Y | G2: The table shows utilisation at the 90th percentile, i.e. for 90% of the samples within the period the traffic was at or below the level shown and for 10% of the samples traffic was above the level shown. The figure therefore gives a reasonable indication of the loading of the connection during the busiest periods. The measurements are shown as a percentage of the available raw bandwidth, and only the highest of the to/from readings for the month is used.
B3: Row Index | C3: Bandwidth | D3: AD_ID | E3: CA_ID | F3: Zebra Striper
A4: Adjusted Range | B4: 0 | F4: TRUE | G4: Connection | H4: Current Bandwidth | I4: =DATE(YEAR(J4),MONTH(J4)-1, DAY(J4)) -> 2013-06-01 | J4: =DATE(YEAR(K4),MONTH(K4)-1, DAY(K4)) -> 2013-07-01 | K4: 2013-08-01 | L4: 2013-09-01 | M4: 2013-10-01 | N4: 2013-11-01 | O4: 2013-12-01 | P4: 2014-01-01 | Q4: 2014-02-01 | R4: 2014-03-01 | S4: =DATE(YEAR(T4),MONTH(T4)-1, DAY(T4)) -> 2014-04-01 | T4: =reporting_month -> 2014-05-01
A5: =IF(B4="","","'90th Percentile'!"&$B$2&B4+1&":"&$B$2&"30000") -> '90th Percentile'!Y1:Y30000 | B5: =IF(ISERROR(MATCH("yes",INDIRECT(A5),0)),"",MATCH("yes",INDIRECT(A5),0)+B4) -> 25 | C5: =IF($B5="","",(INDEX(INDIRECT(dashboard_bandwidth_col),$B5,1))) -> 1000 | D5: =IF($B5="","",(INDEX(INDIRECT(percentile_adid_col),$B5,1))) -> AD00101 | E5: =IF($B5="","",(INDEX(INDIRECT(percentile_caid_col),$B5,1))) -> CA00101 | F5: =IF(E5="","",IF(E5=E4,F4,NOT(F4))) -> FALSE | G5: =IF($B5="","",(INDEX('90th Percentile'!A:A,$B5,1))) -> Aberdeen College, Aberdeen City Campus | H5: =IF($B5="","",(INDEX(INDIRECT(converted_bandwidth_col),$B5,1))) -> 1Gbit/s | I5: =IF($B5="","",IF($H5="Dark Fibre","~",SUMIFS(INDIRECT(percentile_util_col),INDIRECT(percentile_adid_col),$D5,INDIRECT(percentile_month_col),I$4))) -> 0.115 | J5: 0.0653 | K5: 0.031 | L5: 0.097 | M5: 0.12 | N5: 0.142 | O5: 0.129 | P5: 0.14 | Q5: 0.135 | R5: 0.137 | S5: 0.113 | T5: 0.132
A6: =IF(B5="","","'90th Percentile'!"&$B$2&B5+1&":"&$B$2&"30000") -> '90th Percentile'!Y26:Y30000 | B6: =IF(ISERROR(MATCH("yes",INDIRECT(A6),0)),"",MATCH("yes",INDIRECT(A6),0)+B5) -> 49 | D6: AD01013 | E6: CA00101 | F6: =IF(E6="","",IF(E6=E5,F5,NOT(F5))) -> FALSE | G6: =IF($B6="","",(INDEX('90th Percentile'!A:A,$B6,1))) -> Aberdeen College, Altens Centre | H6: Dark Fibre | I6: ~ | J6: ~ | K6: ~ | L6: ~ | M6: ~ | N6: ~ | O6: ~ | P6: ~ | Q6: ~ | R6: ~ | S6: ~ | T6: ~
A7: '90th Percentile'!Y50:Y30000 | B7: 664 | C7: 100 | D7: AD00102 | E7: CA00102 | F7: TRUE | G7: =IF($B7="","",(INDEX('90th Percentile'!A:A,$B7,1))) -> Banff and Buchan College of Further Education | H7: 100Mbit/s | I7: 0.043 | J7: 0.0139 | K7: 0.0249 | L7: 0.127 | M7: 0.0962 | N7: 0.151 | O7: 0.115 | P7: 0.136 | Q7: 0.127 | R7: 0.144 | S7: 0.125 | T7: 0.147
A8: '90th Percentile'!Y665:Y30000 | B8: 18750 | C8: 1000 | D8: AD01178 | E8: CA01100 | F8: FALSE | G8: =IF($B8="","",(INDEX('90th Percentile'!A:A,$B8,1))) -> SRUC, Aberdeen Campus | H8: 1Gbit/s | I8: 0.00641 | J8: 0.00561 | K8: 0.00478 | L8: 0.00844 | M8: 0.0114 | N8: 0.013 | O8: 0.00912 | P8: 0.0139 | Q8: 0.0157 | R8: 0.0143 | S8: 0.0124 | T8: 0.0163
A9: '90th Percentile'!Y18751:Y30000 | B9: 20580 | C9: 100 | D9: AD01420 | E9: CA01220 | F9: TRUE | G9: =IF($B9="","",(INDEX('90th Percentile'!A:A,$B9,1))) -> The James Hutton Institute, via Edward Wright | H9: 100Mbit/s | I9: 0 | J9: 0 | K9: 0 | L9: 0 | M9: 0.516 | N9: 0.308 | O9: 0.286 | P9: 0.285 | Q9: 0.427 | R9: 0.521 | S9: 0.521 | T9: 0.533
A10: '90th Percentile'!Y20581:Y30000 | B10: 20588 | C10: 100 | D10: AD01419 | E10: CA01220 | F10: TRUE | G10: =IF($B10="","",(INDEX('90th Percentile'!A:A,$B10,1))) -> The James Hutton Institute, via Foresterhill | H10: 100Mbit/s | I10: 0 | J10: 0 | K10: 0 | L10: 0 | M10: 4.16e-06 | N10: 4.16e-06 | O10: 4.16e-06 | P10: 4.16e-06 | Q10: 4.16e-06 | R10: 4.16e-06 | S10: 4.16e-06 | T10: 4.16e-06
A11: '90th Percentile'!Y20589:Y30000 | B11: 20911 | C11: 1000 | D11: AD00103 | E11: CA00103 | F11: FALSE | G11: =IF($B11="","",(INDEX('90th Percentile'!A:A,$B11,1))) -> The Robert Gordon University, City Centre Campus | H11: 1Gbit/s | I11: 0.0558 | J11: 0.0497 | K11: 0.0493 | L11: 0.0546 | M11: 0.106 | N11: 0.112 | O11: 0.111 | P11: 0.0851 | Q11: 0.145 | R11: 0.154 | S11: 0.166 | T11: 0.122
A12: '90th Percentile'!Y20912:Y30000 | B12: 20935 | D12: AD01009 | E12: CA00103 | F12: FALSE | G12: =IF($B12="","",(INDEX('90th Percentile'!A:A,$B12,1))) -> The Robert Gordon University, Garthdee Campus | H12: Dark Fibre | I12: ~ | J12: ~ | K12: ~ | L12: ~ | M12: ~ | N12: ~ | O12: ~ | P12: ~ | Q12: ~ | R12: ~ | S12: ~ | T12: ~
A13: '90th Percentile'!Y20936:Y30000 | B13: 22288 | C13: 1000 | D13: AD01012 | E13: CA00100 | F13: TRUE | G13: =IF($B13="","",(INDEX('90th Percentile'!A:A,$B13,1))) -> University of Aberdeen, Foresterhill Campus | H13: 1Gbit/s | I13: 0.369 | J13: 0.299 | K13: 0.303 | L13: 0.23 | M13: 0.264 | N13: 0.273 | O13: 0.246 | P13: 0.243 | Q13: 0.306 | R13: 0.289 | S13: 0.263 | T13: 0.287
A14: '90th Percentile'!Y22289:Y30000 | B14: 22312 | C14: 2000 | D14: AD01155 | E14: CA01088 | F14: FALSE | G14: =IF($B14="","",(INDEX('90th Percentile'!A:A,$B14,1))) -> University of Aberdeen, Halls of Residence, Foresterhill Campus | H14: 2Gbit/s | I14: 0.201 | J14: 0.0954 | K14: 0.104 | L14: 0.33 | M14: 0.595 | N14: 0.325 | O14: 0.313 | P14: 0.327 | Q14: 0.3485 | R14: 0.356 | S14: 0.3145 | T14: 0.3655
A15: '90th Percentile'!Y22313:Y30000 | B15: 22336 | C15: 2000 | D15: AD01157 | E15: CA01088 | F15: FALSE | G15: =IF($B15="","",(INDEX('90th Percentile'!A:A,$B15,1))) -> University of Aberdeen, Halls of Residence, Old Aberdeen Campus | H15: 2Gbit/s | I15: =IF($B15="","",IF($H15="Dark Fibre","~",SUMIFS(INDIRECT(percentile_util_col),INDIRECT(percentile_adid_col),$D15,INDIRECT(percentile_month_col),I$4))) -> 1.68e-07 | J15: 1.68e-07 | K15: 1.68e-07 | L15: 1.44e-07 | M15: 1.28e-07 | N15: 3.51e-06 | O15: 4.44e-06 | P15: 4.5e-06 | Q15: 4.875e-06 | R15: 5e-06 | S15: 3.725e-06 | T15: 4.345e-06
A16: '90th Percentile'!Y22337:Y30000 | B16: 22360 | C16: 1000 | D16: AD00100 | E16: CA00100 | F16: TRUE | G16: =IF($B16="","",(INDEX('90th Percentile'!A:A,$B16,1))) -> University of Aberdeen, Old Aberdeen Campus | H16: 1Gbit/s | I16: 7.43e-06 | J16: 7.92e-06 | K16: 7.79e-06 | L16: 8.3e-06 | M16: 1e-05 | N16: 1.08e-05 | O16: 9e-06 | P16: 9.11e-06 | Q16: 9.87e-06 | R16: 1.02e-05 | S16: 7.56e-06 | T16: 8.8e-06
A17: '90th Percentile'!Y22361:Y30000 | G17: =IF($B17="","",(INDEX('90th Percentile'!A:A,$B17,1))) -> 
G18: =IF($B18="","",(INDEX('90th Percentile'!A:A,$B18,1))) -> 
G19: =IF($B19="","",(INDEX('90th Percentile'!A:A,$B19,1))) -> 
G20: =IF($B20="","",(INDEX('90th Percentile'!A:A,$B20,1))) -> 
G21: =IF($B21="","",(INDEX('90th Percentile'!A:A,$B21,1))) -> 
G22: =IF($B22="","",(INDEX('90th Percentile'!A:A,$B22,1))) -> 
G23: =IF($B23="","",(INDEX('90th Percentile'!A:A,$B23,1))) -> 
G24: =IF($B24="","",(INDEX('90th Percentile'!A:A,$B24,1))) -> 
G25: =IF($B25="","",(INDEX('90th Percentile'!A:A,$B25,1))) ->  | I25: =IF($B25="","",IF($H25="Dark Fibre","~",SUMIFS(INDIRECT(percentile_util_col),INDIRECT(percentile_adid_col),$D25,INDIRECT(percentile_month_col),I$4))) -> 
G26: =IF($B26="","",(INDEX('90th Percentile'!A:A,$B26,1))) -> 
G27: =IF($B27="","",(INDEX('90th Percentile'!A:A,$B27,1))) -> 
G28: =IF($B28="","",(INDEX('90th Percentile'!A:A,$B28,1))) -> 
G29: =IF($B29="","",(INDEX('90th Percentile'!A:A,$B29,1))) -> 
G30: =IF($B30="","",(INDEX('90th Percentile'!A:A,$B30,1))) -> 
G31: =IF($B31="","",(INDEX('90th Percentile'!A:A,$B31,1))) -> 
G32: =IF($B32="","",(INDEX('90th Percentile'!A:A,$B32,1))) -> 
G33: =IF($B33="","",(INDEX('90th Percentile'!A:A,$B33,1))) -> 
G34: =IF($B34="","",(INDEX('90th Percentile'!A:A,$B34,1))) -> 
G35: =IF($B35="","",(INDEX('90th Percentile'!A:A,$B35,1))) ->  | I35: =IF($B35="","",IF($H35="Dark Fibre","~",SUMIFS(INDIRECT(percentile_util_col),INDIRECT(percentile_adid_col),$D35,INDIRECT(percentile_month_col),I$4))) -> 
G36: =IF($B36="","",(INDEX('90th Percentile'!A:A,$B36,1))) -> 
G37: =IF($B37="","",(INDEX('90th Percentile'!A:A,$B37,1))) -> 
G38: =IF($B38="","",(INDEX('90th Percentile'!A:A,$B38,1))) -> 
G39: =IF($B39="","",(INDEX('90th Percentile'!A:A,$B39,1))) -> 
G40: =IF($B40="","",(INDEX('90th Percentile'!A:A,$B40,1))) -> 
G41: =IF($B41="","",(INDEX('90th Percentile'!A:A,$B41,1))) -> 
G42: =IF($B42="","",(INDEX('90th Percentile'!A:A,$B42,1))) -> 
G43: =IF($B43="","",(INDEX('90th Percentile'!A:A,$B43,1))) -> 
G44: =IF($B44="","",(INDEX('90th Percentile'!A:A,$B44,1))) -> 
G45: =IF($B45="","",(INDEX('90th Percentile'!A:A,$B45,1))) ->  | I45: =IF($B45="","",IF($H45="Dark Fibre","~",SUMIFS(INDIRECT(percentile_util_col),INDIRECT(percentile_adid_col),$D45,INDIRECT(percentile_month_col),I$4))) -> 
G46: =IF($B46="","",(INDEX('90th Percentile'!A:A,$B46,1))) -> 
G47: =IF($B47="","",(INDEX('90th Percentile'!A:A,$B47,1))) -> 
G48: =IF($B48="","",(INDEX('90th Percentile'!A:A,$B48,1))) -> 
G49: =IF($B49="","",(INDEX('90th Percentile'!A:A,$B49,1))) -> 
G50: =IF($B50="","",(INDEX('90th Percentile'!A:A,$B50,1))) -> 
G51: =IF($B51="","",(INDEX('90th Percentile'!A:A,$B51,1))) -> 
G52: =IF($B52="","",(INDEX('90th Percentile'!A:A,$B52,1))) -> 
G53: =IF($B53="","",(INDEX('90th Percentile'!A:A,$B53,1))) -> 
G54: =IF($B54="","",(INDEX('90th Percentile'!A:A,$B54,1))) -> 
G55: =IF($B55="","",(INDEX('90th Percentile'!A:A,$B55,1))) ->  | I55: =IF($B55="","",IF($H55="Dark Fibre","~",SUMIFS(INDIRECT(percentile_util_col),INDIRECT(percentile_adid_col),$D55,INDIRECT(percentile_month_col),I$4))) -> 
G56: =IF($B56="","",(INDEX('90th Percentile'!A:A,$B56,1))) -> 
G57: =IF($B57="","",(INDEX('90th Percentile'!A:A,$B57,1))) -> 
G58: =IF($B58="","",(INDEX('90th Percentile'!A:A,$B58,1))) -> 
G59: =IF($B59="","",(INDEX('90th Percentile'!A:A,$B59,1))) -> 
G60: =IF($B60="","",(INDEX('90th Percentile'!A:A,$B60,1))) -> 
G61: =IF($B61="","",(INDEX('90th Percentile'!A:A,$B61,1))) -> 
G62: =IF($B62="","",(INDEX('90th Percentile'!A:A,$B62,1))) -> 
G63: =IF($B63="","",(INDEX('90th Percentile'!A:A,$B63,1))) -> 
G64: =IF($B64="","",(INDEX('90th Percentile'!A:A,$B64,1))) -> 
G65: =IF($B65="","",(INDEX('90th Percentile'!A:A,$B65,1))) ->  | I65: =IF($B65="","",IF($H65="Dark Fibre","~",SUMIFS(INDIRECT(percentile_util_col),INDIRECT(percentile_adid_col),$D65,INDIRECT(percentile_month_col),I$4))) -> 
G66: =IF($B66="","",(INDEX('90th Percentile'!A:A,$B66,1))) -> 
G67: =IF($B67="","",(INDEX('90th Percentile'!A:A,$B67,1))) -> 
G68: =IF($B68="","",(INDEX('90th Percentile'!A:A,$B68,1))) -> 
C69: =IF($B69="","",(INDEX(INDIRECT(dashboard_bandwidth_col),$B69,1))) ->  | D69: =IF($B69="","",(INDEX(INDIRECT(percentile_adid_col),$B69,1))) ->  | E69: =IF($B69="","",(INDEX(INDIRECT(percentile_caid_col),$B69,1))) ->  | G69: =IF($B69="","",(INDEX('90th Percentile'!A:A,$B69,1))) ->  | H69: =IF($B69="","",(INDEX(INDIRECT(converted_bandwidth_col),$B69,1))) -> 
A70: =IF(B69="","","'90th Percentile'!"&$B$2&B69+1&":"&$B$2&"30000") ->  | B70: =IF(ISERROR(MATCH("yes",INDIRECT(A70),0)),"",MATCH("yes",INDIRECT(A70),0)+B69) ->  | F70: =IF(E70="","",IF(E70=E69,F69,NOT(F69))) ->  | G70: =IF($B70="","",(INDEX('90th Percentile'!A:A,$B70,1))) -> 
G71: =IF($B71="","",(INDEX('90th Percentile'!A:A,$B71,1))) -> 
G72: =IF($B72="","",(INDEX('90th Percentile'!A:A,$B72,1))) -> 
G73: =IF($B73="","",(INDEX('90th Percentile'!A:A,$B73,1))) -> 
G74: =IF($B74="","",(INDEX('90th Percentile'!A:A,$B74,1))) -> 
G75: =IF($B75="","",(INDEX('90th Percentile'!A:A,$B75,1))) ->  | I75: =IF($B75="","",IF($H75="Dark Fibre","~",SUMIFS(INDIRECT(percentile_util_col),INDIRECT(percentile_adid_col),$D75,INDIRECT(percentile_month_col),I$4))) -> 
G76: =IF($B76="","",(INDEX('90th Percentile'!A:A,$B76,1))) -> 
G77: =IF($B77="","",(INDEX('90th Percentile'!A:A,$B77,1))) -> 
G78: =IF($B78="","",(INDEX('90th Percentile'!A:A,$B78,1))) -> 
G79: =IF($B79="","",(INDEX('90th Percentile'!A:A,$B79,1))) -> 
G80: =IF($B80="","",(INDEX('90th Percentile'!A:A,$B80,1))) -> 
G81: =IF($B81="","",(INDEX('90th Percentile'!A:A,$B81,1))) -> 
G82: =IF($B82="","",(INDEX('90th Percentile'!A:A,$B82,1))) -> 
G83: =IF($B83="","",(INDEX('90th Percentile'!A:A,$B83,1))) -> 
G84: =IF($B84="","",(INDEX('90th Percentile'!A:A,$B84,1))) -> 
G85: =IF($B85="","",(INDEX('90th Percentile'!A:A,$B85,1))) ->  | I85: =IF($B85="","",IF($H85="Dark Fibre","~",SUMIFS(INDIRECT(percentile_util_col),INDIRECT(percentile_adid_col),$D85,INDIRECT(percentile_month_col),I$4))) -> 
G86: =IF($B86="","",(INDEX('90th Percentile'!A:A,$B86,1))) -> 
G87: =IF($B87="","",(INDEX('90th Percentile'!A:A,$B87,1))) -> 
G88: =IF($B88="","",(INDEX('90th Percentile'!A:A,$B88,1))) -> 
G89: =IF($B89="","",(INDEX('90th Percentile'!A:A,$B89,1))) -> 
G90: =IF($B90="","",(INDEX('90th Percentile'!A:A,$B90,1))) -> 
G91: =IF($B91="","",(INDEX('90th Percentile'!A:A,$B91,1))) -> 
G92: =IF($B92="","",(INDEX('90th Percentile'!A:A,$B92,1))) -> 
G93: =IF($B93="","",(INDEX('90th Percentile'!A:A,$B93,1))) -> 
G94: =IF($B94="","",(INDEX('90th Percentile'!A:A,$B94,1))) -> 
G95: =IF($B95="","",(INDEX('90th Percentile'!A:A,$B95,1))) ->  | I95: =IF($B95="","",IF($H95="Dark Fibre","~",SUMIFS(INDIRECT(percentile_util_col),INDIRECT(percentile_adid_col),$D95,INDIRECT(percentile_month_col),I$4))) -> 
G96: =IF($B96="","",(INDEX('90th Percentile'!A:A,$B96,1))) -> 
G97: =IF($B97="","",(INDEX('90th Percentile'!A:A,$B97,1))) -> 
G98: =IF($B98="","",(INDEX('90th Percentile'!A:A,$B98,1))) -> 
G99: =IF($B99="","",(INDEX('90th Percentile'!A:A,$B99,1))) -> 
G100: =IF($B100="","",(INDEX('90th Percentile'!A:A,$B100,1))) -> 
G101: =IF($B101="","",(INDEX('90th Percentile'!A:A,$B101,1))) -> 
G102: =IF($B102="","",(INDEX('90th Percentile'!A:A,$B102,1))) -> 
G103: =IF($B103="","",(INDEX('90th Percentile'!A:A,$B103,1))) -> 
G104: =IF($B104="","",(INDEX('90th Percentile'!A:A,$B104,1))) -> 
G105: =IF($B105="","",(INDEX('90th Percentile'!A:A,$B105,1))) ->  | I105: =IF($B105="","",IF($H105="Dark Fibre","~",SUMIFS(INDIRECT(percentile_util_col),INDIRECT(percentile_adid_col),$D105,INDIRECT(percentile_month_col),I$4))) -> 
G106: =IF($B106="","",(INDEX('90th Percentile'!A:A,$B106,1))) -> 
G107: =IF($B107="","",(INDEX('90th Percentile'!A:A,$B107,1))) -> 
G108: =IF($B108="","",(INDEX('90th Percentile'!A:A,$B108,1))) -> 
G109: =IF($B109="","",(INDEX('90th Percentile'!A:A,$B109,1))) -> 
G110: =IF($B110="","",(INDEX('90th Percentile'!A:A,$B110,1))) -> 
G111: =IF($B111="","",(INDEX('90th Percentile'!A:A,$B111,1))) -> 
G112: =IF($B112="","",(INDEX('90th Percentile'!A:A,$B112,1))) -> 
G113: =IF($B113="","",(INDEX('90th Percentile'!A:A,$B113,1))) -> 
G114: =IF($B114="","",(INDEX('90th Percentile'!A:A,$B114,1))) -> 
G115: =IF($B115="","",(INDEX('90th Percentile'!A:A,$B115,1))) ->  | I115: =IF($B115="","",IF($H115="Dark Fibre","~",SUMIFS(INDIRECT(percentile_util_col),INDIRECT(percentile_adid_col),$D115,INDIRECT(percentile_month_col),I$4))) -> 
G116: =IF($B116="","",(INDEX('90th Percentile'!A:A,$B116,1))) -> 
G117: =IF($B117="","",(INDEX('90th Percentile'!A:A,$B117,1))) -> 
G118: =IF($B118="","",(INDEX('90th Percentile'!A:A,$B118,1))) -> 
G119: =IF($B119="","",(INDEX('90th Percentile'!A:A,$B119,1))) -> 
G120: =IF($B120="","",(INDEX('90th Percentile'!A:A,$B120,1))) -> 
G121: =IF($B121="","",(INDEX('90th Percentile'!A:A,$B121,1))) -> 
G122: =IF($B122="","",(INDEX('90th Percentile'!A:A,$B122,1))) -> 
G123: =IF($B123="","",(INDEX('90th Percentile'!A:A,$B123,1))) -> 
G124: =IF($B124="","",(INDEX('90th Percentile'!A:A,$B124,1))) -> 
G125: =IF($B125="","",(INDEX('90th Percentile'!A:A,$B125,1))) ->  | I125: =IF($B125="","",IF($H125="Dark Fibre","~",SUMIFS(INDIRECT(percentile_util_col),INDIRECT(percentile_adid_col),$D125,INDIRECT(percentile_month_col),I$4))) -> 
G126: =IF($B126="","",(INDEX('90th Percentile'!A:A,$B126,1))) -> 
G127: =IF($B127="","",(INDEX('90th Percentile'!A:A,$B127,1))) -> 
G128: =IF($B128="","",(INDEX('90th Percentile'!A:A,$B128,1))) -> 
G129: =IF($B129="","",(INDEX('90th Percentile'!A:A,$B129,1))) -> 
G130: =IF($B130="","",(INDEX('90th Percentile'!A:A,$B130,1))) -> 
G131: =IF($B131="","",(INDEX('90th Percentile'!A:A,$B131,1))) -> 
G132: =IF($B132="","",(INDEX('90th Percentile'!A:A,$B132,1))) -> 
C133: =IF($B133="","",(INDEX(INDIRECT(dashboard_bandwidth_col),$B133,1))) ->  | D133: =IF($B133="","",(INDEX(INDIRECT(percentile_adid_col),$B133,1))) ->  | E133: =IF($B133="","",(INDEX(INDIRECT(percentile_caid_col),$B133,1))) ->  | G133: =IF($B133="","",(INDEX('90th Percentile'!A:A,$B133,1))) ->  | H133: =IF($B133="","",(INDEX(INDIRECT(converted_bandwidth_col),$B133,1))) -> 
A134: =IF(B133="","","'90th Percentile'!"&$B$2&B133+1&":"&$B$2&"30000") ->  | B134: =IF(ISERROR(MATCH("yes",INDIRECT(A134),0)),"",MATCH("yes",INDIRECT(A134),0)+B133) ->  | F134: =IF(E134="","",IF(E134=E133,F133,NOT(F133))) ->  | G134: =IF($B134="","",(INDEX('90th Percentile'!A:A,$B134,1))) -> 
G135: =IF($B135="","",(INDEX('90th Percentile'!A:A,$B135,1))) ->  | I135: =IF($B135="","",IF($H135="Dark Fibre","~",SUMIFS(INDIRECT(percentile_util_col),INDIRECT(percentile_adid_col),$D135,INDIRECT(percentile_month_col),I$4))) -> 
G136: =IF($B136="","",(INDEX('90th Percentile'!A:A,$B136,1))) -> 
G137: =IF($B137="","",(INDEX('90th Percentile'!A:A,$B137,1))) -> 
G138: =IF($B138="","",(INDEX('90th Percentile'!A:A,$B138,1))) -> 
G139: =IF($B139="","",(INDEX('90th Percentile'!A:A,$B139,1))) -> 
G140: =IF($B140="","",(INDEX('90th Percentile'!A:A,$B140,1))) -> 
G141: =IF($B141="","",(INDEX('90th Percentile'!A:A,$B141,1))) -> 
G142: =IF($B142="","",(INDEX('90th Percentile'!A:A,$B142,1))) -> 
G143: =IF($B143="","",(INDEX('90th Percentile'!A:A,$B143,1))) -> 
G144: =IF($B144="","",(INDEX('90th Percentile'!A:A,$B144,1))) -> 
G145: =IF($B145="","",(INDEX('90th Percentile'!A:A,$B145,1))) ->  | I145: =IF($B145="","",IF($H145="Dark Fibre","~",SUMIFS(INDIRECT(percentile_util_col),INDIRECT(percentile_adid_col),$D145,INDIRECT(percentile_month_col),I$4))) -> 
G146: =IF($B146="","",(INDEX('90th Percentile'!A:A,$B146,1))) -> 
G147: =IF($B147="","",(INDEX('90th Percentile'!A:A,$B147,1))) -> 
G148: =IF($B148="","",(INDEX('90th Percentile'!A:A,$B148,1))) -> 
G149: =IF($B149="","",(INDEX('90th Percentile'!A:A,$B149,1))) -> 
G150: =IF($B150="","",(INDEX('90th Percentile'!A:A,$B150,1))) -> 
G151: =IF($B151="","",(INDEX('90th Percentile'!A:A,$B151,1))) -> 
G152: =IF($B152="","",(INDEX('90th Percentile'!A:A,$B152,1))) -> 
G153: =IF($B153="","",(INDEX('90th Percentile'!A:A,$B153,1))) -> 
G154: =IF($B154="","",(INDEX('90th Percentile'!A:A,$B154,1))) -> 
G155: =IF($B155="","",(INDEX('90th Percentile'!A:A,$B155,1))) ->  | I155: =IF($B155="","",IF($H155="Dark Fibre","~",SUMIFS(INDIRECT(percentile_util_col),INDIRECT(percentile_adid_col),$D155,INDIRECT(percentile_month_col),I$4))) -> 
G156: =IF($B156="","",(INDEX('90th Percentile'!A:A,$B156,1))) -> 
G157: =IF($B157="","",(INDEX('90th Percentile'!A:A,$B157,1))) -> 
G158: =IF($B158="","",(INDEX('90th Percentile'!A:A,$B158,1))) -> 
G159: =IF($B159="","",(INDEX('90th Percentile'!A:A,$B159,1))) -> 
G160: =IF($B160="","",(INDEX('90th Percentile'!A:A,$B160,1))) -> 
G161: =IF($B161="","",(INDEX('90th Percentile'!A:A,$B161,1))) -> 
G162: =IF($B162="","",(INDEX('90th Percentile'!A:A,$B162,1))) -> 
G163: =IF($B163="","",(INDEX('90th Percentile'!A:A,$B163,1))) -> 
G164: =IF($B164="","",(INDEX('90th Percentile'!A:A,$B164,1))) -> 
G165: =IF($B165="","",(INDEX('90th Percentile'!A:A,$B165,1))) ->  | I165: =IF($B165="","",IF($H165="Dark Fibre","~",SUMIFS(INDIRECT(percentile_util_col),INDIRECT(percentile_adid_col),$D165,INDIRECT(percentile_month_col),I$4))) -> 
G166: =IF($B166="","",(INDEX('90th Percentile'!A:A,$B166,1))) -> 
G167: =IF($B167="","",(INDEX('90th Percentile'!A:A,$B167,1))) -> 
G168: =IF($B168="","",(INDEX('90th Percentile'!A:A,$B168,1))) -> 
G169: =IF($B169="","",(INDEX('90th Percentile'!A:A,$B169,1))) -> 
G170: =IF($B170="","",(INDEX('90th Percentile'!A:A,$B170,1))) -> 
G171: =IF($B171="","",(INDEX('90th Percentile'!A:A,$B171,1))) -> 
G172: =IF($B172="","",(INDEX('90th Percentile'!A:A,$B172,1))) -> 
G173: =IF($B173="","",(INDEX('90th Percentile'!A:A,$B173,1))) -> 
G174: =IF($B174="","",(INDEX('90th Percentile'!A:A,$B174,1))) -> 
G175: =IF($B175="","",(INDEX('90th Percentile'!A:A,$B175,1))) ->  | I175: =IF($B175="","",IF($H175="Dark Fibre","~",SUMIFS(INDIRECT(percentile_util_col),INDIRECT(percentile_adid_col),$D175,INDIRECT(percentile_month_col),I$4))) -> 
G176: =IF($B176="","",(INDEX('90th Percentile'!A:A,$B176,1))) -> 
G177: =IF($B177="","",(INDEX('90th Percentile'!A:A,$B177,1))) -> 
G178: =IF($B178="","",(INDEX('90th Percentile'!A:A,$B178,1))) -> 
G179: =IF($B179="","",(INDEX('90th Percentile'!A:A,$B179,1))) -> 
G180: =IF($B180="","",(INDEX('90th Percentile'!A:A,$B180,1))) -> 
G181: =IF($B181="","",(INDEX('90th Percentile'!A:A,$B181,1))) -> 
G182: =IF($B182="","",(INDEX('90th Percentile'!A:A,$B182,1))) -> 
G183: =IF($B183="","",(INDEX('90th Percentile'!A:A,$B183,1))) -> 
G184: =IF($B184="","",(INDEX('90th Percentile'!A:A,$B184,1))) -> 
G185: =IF($B185="","",(INDEX('90th Percentile'!A:A,$B185,1))) ->  | I185: =IF($B185="","",IF($H185="Dark Fibre","~",SUMIFS(INDIRECT(percentile_util_col),INDIRECT(percentile_adid_col),$D185,INDIRECT(percentile_month_col),I$4))) -> 
G186: =IF($B186="","",(INDEX('90th Percentile'!A:A,$B186,1))) -> 
G187: =IF($B187="","",(INDEX('90th Percentile'!A:A,$B187,1))) -> 
G188: =IF($B188="","",(INDEX('90th Percentile'!A:A,$B188,1))) -> 
G189: =IF($B189="","",(INDEX('90th Percentile'!A:A,$B189,1))) -> 
G190: =IF($B190="","",(INDEX('90th Percentile'!A:A,$B190,1))) -> 
G191: =IF($B191="","",(INDEX('90th Percentile'!A:A,$B191,1))) -> 
G192: =IF($B192="","",(INDEX('90th Percentile'!A:A,$B192,1))) -> 
G193: =IF($B193="","",(INDEX('90th Percentile'!A:A,$B193,1))) -> 
G194: =IF($B194="","",(INDEX('90th Percentile'!A:A,$B194,1))) -> 
G195: =IF($B195="","",(INDEX('90th Percentile'!A:A,$B195,1))) ->  | I195: =IF($B195="","",IF($H195="Dark Fibre","~",SUMIFS(INDIRECT(percentile_util_col),INDIRECT(percentile_adid_col),$D195,INDIRECT(percentile_month_col),I$4))) -> 
G196: =IF($B196="","",(INDEX('90th Percentile'!A:A,$B196,1))) -> 
C197: =IF($B197="","",(INDEX(INDIRECT(dashboard_bandwidth_col),$B197,1))) ->  | D197: =IF($B197="","",(INDEX(INDIRECT(percentile_adid_col),$B197,1))) ->  | E197: =IF($B197="","",(INDEX(INDIRECT(percentile_caid_col),$B197,1))) ->  | G197: =IF($B197="","",(INDEX('90th Percentile'!A:A,$B197,1))) ->  | H197: =IF($B197="","",(INDEX(INDIRECT(converted_bandwidth_col),$B197,1))) -> 
A198: =IF(B197="","","'90th Percentile'!"&$B$2&B197+1&":"&$B$2&"30000") ->  | B198: =IF(ISERROR(MATCH("yes",INDIRECT(A198),0)),"",MATCH("yes",INDIRECT(A198),0)+B197) ->  | F198: =IF(E198="","",IF(E198=E197,F197,NOT(F197))) ->  | G198: =IF($B198="","",(INDEX('90th Percentile'!A:A,$B198,1))) -> 
G199: =IF($B199="","",(INDEX('90th Percentile'!A:A,$B199,1))) -> 
G200: =IF($B200="","",(INDEX('90th Percentile'!A:A,$B200,1))) -> 
... 100 more rows

Sheet Summary Tables (hidden)
B2: Traffic Totals
B3: Last 12 months dates | C3: =DATE(YEAR(D3),MONTH(D3)-1, DAY(D3)) -> 2013-06-01 | D3: 2013-07-01 | E3: 2013-08-01 | F3: 2013-09-01 | G3: 2013-10-01 | H3: 2013-11-01 | I3: 2013-12-01 | J3: 2014-01-01 | K3: 2014-02-01 | L3: 2014-03-01 | M3: =DATE(YEAR(N3),MONTH(N3)-1, DAY(N3)) -> 2014-04-01 | N3: =reporting_month -> 2014-05-01
B4: Previous 12 months dates | C4: =DATE(YEAR(C3)-1,MONTH(C3), DAY(C3)) -> 2012-06-01 | D4: 2012-07-01 | E4: 2012-08-01 | F4: 2012-09-01 | G4: 2012-10-01 | H4: 2012-11-01 | I4: 2012-12-01 | J4: 2013-01-01 | K4: 2013-02-01 | L4: 2013-03-01 | M4: 2013-04-01 | N4: 2013-05-01
B5: Month | C5: =C3 -> 2013-06-01 | D5: =D3 -> 2013-07-01 | E5: 2013-08-01 | F5: 2013-09-01 | G5: 2013-10-01 | H5: 2013-11-01 | I5: 2013-12-01 | J5: 2014-01-01 | K5: 2014-02-01 | L5: 2014-03-01 | M5: 2014-04-01 | N5: 2014-05-01
B6: Last 12 months | C6: =SUMIFS(INDIRECT(usage_traffic_col),INDIRECT(usage_region_col),region_selection,INDIRECT(usage_month_col),C3,INDIRECT(usage_sector_col),sector_selection) -> 751.52565 | D6: 516.41663 | E6: 494.58641 | F6: 732.757506 | G6: 1157.641296 | H6: 1235.929788 | I6: 1161.248088 | J6: 1178.128428 | K6: 1354.130688 | L6: 1372.831568 | M6: 1248.023768 | N6: 1356.327478
B7: Previous 12 months | C7: =SUMIFS(INDIRECT(usage_traffic_col),INDIRECT(usage_region_col),region_selection,INDIRECT(usage_month_col),C4,INDIRECT(usage_sector_col),sector_selection) -> 653.569006 | D7: 692.569604 | E7: 501.359248 | F7: 847.818952 | G7: 1149.810262 | H7: 1261.640044 | I7: 1173.301044 | J7: 1316.650132 | K7: 1418.720122 | L7: 1438.057762 | M7: 1408.684842 | N7: 1499.015654
B8: =IF(sector_selection="All","Janet Traffic","Janet "&sector_selection&" Traffic") -> Janet Traffic | C8: =SUMIFS(INDIRECT(usage_traffic_col),INDIRECT(usage_region_col),"*",INDIRECT(usage_month_col),C3,INDIRECT(usage_sector_col),sector_selection) -> 126872.4701 | D8: 96948.81914 | E8: 75022.38756 | F8: 119889.2136 | G8: 155800.2246 | H8: 176450.6335 | I8: 155650.5844 | J8: 178709.0575 | K8: 201939.646 | L8: 199954.361 | M8: 167380.8033 | N8: 182201.0393
B9: =IF(sector_selection="All",region_selection&" Traffic",region_selection&" "&sector_selection&" Traffic") -> Aberdeen Traffic | C9: =C6 -> 751.52565 | D9: =D6 -> 516.41663 | E9: 494.58641 | F9: 732.757506 | G9: 1157.641296 | H9: 1235.929788 | I9: 1161.248088 | J9: 1178.128428 | K9: 1354.130688 | L9: 1372.831568 | M9: 1248.023768 | N9: 1356.327478
B10: =IF(sector_selection="All","% of Janet Traffic from "&region_selection,"% of Janet "&sector_selection&" Traffic from "&region_selection) -> % of Janet Traffic from Aberdeen | C10: =C9/C8 -> 0.005923472993 | D10: 0.005326693348 | E10: 0.006592517595 | F10: 0.006111955231 | G10: 0.007430292855 | H10: 0.007004394166 | I10: 0.007460608595 | J10: 0.00659243826 | K10: 0.006705620788 | L10: 0.006865724563 | M10: 0.007456194159 | N10: 0.007444125913 | Q10: This section is here to allow the user to switch between the graph showing service outages on the dashboard and the list of sites in the selected region failing the SLA target, as generated below left. Overlaid on the graph is an excel camera image, a live link to cells elsewhere in the workbook. The selection checkbox "Show SLA Failures" changes the # Columns to Offset Camera Image parameter (cell K15), which is used in the dynamic range reference for a range named Picture_source. This range therefore refers to either the list of failing sites, or is offset to the right to display he cells below, which contain a transparent shape, the same height and width as the table, which functions as a "window" to allow the graph underneath to be revealed when these cells are used as the reference for the camera image. The table currently shows 13 rows - a warning will display if there are any regions with more failures to be displayed. When adjusting the size of the table, be aware that if rows are added or removed, then the range definition of Picture_source will need to be edited to show the appropriate number of rows (maximum number of sites failing in a region plus one for the header row).If the image becomes distorted and needs to be refreshed (i.e. delete the old one and "take the picture" again), then once it is placed in the dashboard, you will need to re-establish the link with the dynamic range (click on the image, then enter "=Picture_source" in the formula bar).
B11: % Change from 12 Months Previously | C11: =(C6-C7)/C7 -> 0.1498795737 | D11: =(D6-D7)/D7 -> -0.2543469609 | E11: -0.01350895197 | F11: -0.1357146425 | G11: 0.00681071848 | H11: -0.02037844005 | I11: -0.01027268838 | J11: -0.1052076787 | K11: -0.04552655101 | L11: -0.0453571447 | M11: -0.114050403 | N11: -0.0951879159
B13: ="Connections in "&region_selection&" by Bandwidth" -> Connections in Aberdeen by Bandwidth
B14: Connections by Bandwidth | C14: Other | D14: Research | E14: Further Education | F14: Higher Education | H14: Services Failing SLA
B15: ≤10 Mbit/s | C15: =COUNTIFS(INDIRECT(percentile_bin_col),"="&$B15,INDIRECT(percentile_region_col),region_selection, INDIRECT(percentile_month_col),reporting_month,INDIRECT(percentile_sector_col),C$14) -> 0 | D15: 0 | E15: 0 | F15: 0 | H15: Check box cell link: | I15: FALSE | J15: # Columns to Offset Camera Image: | K15: =IF(I15=FALSE,8,1) -> 8
B16: ≤100 Mbit/s | C16: 0 | D16: 2 | E16: 1 | F16: 0 | I16: Row Index | J16: Organisation | K16: Rolling Availability
B17: ≤1 Gbit/s | C17: 0 | D17: 0 | E17: 1 | F17: 4 | H17: Adjusted Range | I17: 0 | L17: =IF(sector_selection="All","Services in "&region_selection&" Failing SLA Target",sector_selection&" Services in "&region_selection&" Failing SLA Target") -> Services in Aberdeen Failing SLA Target
B18: >1 Gbit/s | C18: 0 | D18: 0 | E18: 0 | F18: 2 | H18: =IF(I17="","","'CA availability data'!U"&I17+1&":U30000") -> 'CA availability data'!U1:U30000 | I18: =IF(ISERROR(MATCH("yes",INDIRECT(H18),0)),"",MATCH("yes",INDIRECT(H18),0)+I17) ->  | J18: =IF($I18="","",(INDEX((INDIRECT(availability_servicename_col)),$I18,1))) ->  | K18: =IF($I18="","",(INDEX(INDIRECT(rolling_availability_col),$I18,1))) ->  | L18: =IF($J18="","None",$J18) -> None | Q18: =IF($L18="","None",TEXT($K18,"#0.00%")) -> 
B19: Dark Fibre | C19: 0 | D19: 0 | E19: 1 | F19: 1 | H19: =IF(I18="","","'CA availability data'!U"&I18+1&":U30000") ->  | I19: =IF(ISERROR(MATCH("yes",INDIRECT(H19),0)),"",MATCH("yes",INDIRECT(H19),0)+I18) ->  | L19: =IF($J19=""," ",$J19) ->  | Q19: =IF($L19="","None",TEXT($K19,"#0.00%")) -> 
I20: =IF(ISERROR(MATCH("yes",INDIRECT(H20),0)),"",MATCH("yes",INDIRECT(H20),0)+I19) ->  | L20: =IF($J20=""," ",$J20) -> 
I21: =IF(ISERROR(MATCH("yes",INDIRECT(H21),0)),"",MATCH("yes",INDIRECT(H21),0)+I20) -> 
B22: Connections by % Utilisation | I22: =IF(ISERROR(MATCH("yes",INDIRECT(H22),0)),"",MATCH("yes",INDIRECT(H22),0)+I21) -> 
C23: Higher Education | D23: Further Education | E23: Research | F23: Other | I23: =IF(ISERROR(MATCH("yes",INDIRECT(H23),0)),"",MATCH("yes",INDIRECT(H23),0)+I22) -> 
B24: 0-25% | C24: =COUNTIFS(INDIRECT(percentile_region_col),region_selection,INDIRECT(percentile_month_col),reporting_month,INDIRECT(percentile_sector_col),C$23,INDIRECT(percentile_util_bin_col),"="&$B24) -> 4 | D24: 2 | E24: 1 | F24: 0
B25: 25-50% | C25: 2 | D25: 0 | E25: 0 | F25: 0
B26: 50-75% | C26: 0 | D26: 0 | E26: 1 | F26: 0
B27: >75% | C27: 0 | D27: 0 | E27: 0 | F27: 0
I28: =IF(ISERROR(MATCH("yes",INDIRECT(H28),0)),"",MATCH("yes",INDIRECT(H28),0)+I27) -> 
I30: =IF(ISERROR(MATCH("yes",INDIRECT(H30),0)),"",MATCH("yes",INDIRECT(H30),0)+I29) -> 
I31: =IF(ISERROR(MATCH("yes",INDIRECT(H31),0)),"",MATCH("yes",INDIRECT(H31),0)+I30) -> 
B33: Availability Breakdown | C33: This section appears in the dashboard using the camera tool - changes made to formatting here will translate to presentation
A34: Sector: | B34: =IF(sector_selection="Higher Education","HE",IF(sector_selection="Further Education","FE",sector_selection)) -> All | C34: ="Average Availability of "&B34&" Services in "&region_selection -> Average Availability of All Services in Aberdeen | G34: ="Average Availability of "&B34&" Services in Janet" -> Average Availability of All Services in Janet
A35: Count of services in this region and sector this month: | B35: =COUNTIFS(INDIRECT(availability_sector_col),sector_selection,INDIRECT(availability_region_col),region_selection,INDIRECT(availability_month_col),reporting_month) -> 7 | C35: =reporting_month -> 2014-05-01 | D35: Equivalent Unavailability in Minutes per Service | E35: 12 Months Rolling | F35: Equivalent Unavailability in Minutes per Service | G35: =reporting_month -> 2014-05-01 | H35: Equivalent Unavailability in Minutes per Service | I35: 12 Months Rolling | J35: Equivalent Unavailability in Minutes per Service
A36: Count of services in this sector on Janet this month: | B36: =COUNTIFS(INDIRECT(availability_sector_col),sector_selection,INDIRECT(availability_month_col),reporting_month) -> 982 | C36: =IF(B35=0,"~",(((AVERAGEIFS(INDIRECT(availability_col),INDIRECT(availability_month_col),reporting_month,INDIRECT(availability_region_col),region_selection,INDIRECT(availability_sector_col),sector_selection))))) -> 1 | D36: =IF(C36="~","~",mins_in_month-(mins_in_month*C36)) -> 0 | E36: =IF(B35=0,"~",(((AVERAGEIFS(INDIRECT(availability_col),INDIRECT(availability_month_col),">="&one_year_ago,INDIRECT(availability_region_col),region_selection,INDIRECT(availability_sector_col),sector_selection))))) -> 1 | F36: =IF(E36="~","~",(mins_in_year)-(mins_in_year*E36)) -> 0 | G36: =(((AVERAGEIFS(INDIRECT(availability_col),INDIRECT(availability_month_col),reporting_month,INDIRECT(availability_sector_col),sector_selection)))) -> 0.9994884854 | H36: =mins_in_month-(mins_in_month*G36) -> 22.83401222 | I36: =(((AVERAGEIFS(INDIRECT(availability_col),INDIRECT(availability_month_col),">="&one_year_ago,INDIRECT(availability_sector_col),sector_selection)))) -> 0.9996036171 | J36: =IF(I36="~","~",mins_in_year-(mins_in_year*I36)) -> 208.3388324
A37: Count of JANET outages in this sector in the last 24 months: | B37: =SUMIF(INDIRECT(availability_sector_col),sector_selection,INDIRECT(availability_breaks_col)) -> 1438 | C37: Mean Time to Repair | E37: Average Faults per Service per Year | G37: Mean Time to Repair | I37: Average Faults per Service per Year
A38: Count of outages in this region/sector in the last 24 months: | B38: =SUMIFS(INDIRECT(availability_breaks_col),INDIRECT(availability_region_col),region_selection,INDIRECT(availability_sector_col),sector_selection) -> 6 | C38: =IF(B35=0,"~",IF(B38=0,"No outages",(SUMIFS(INDIRECT(availability_duration_col),INDIRECT(availability_region_col),region_selection,INDIRECT(availability_sector_col),sector_selection)/SUMIFS(INDIRECT(availability_breaks_col),INDIRECT(availability_region_col),region_selection,INDIRECT(availability_sector_col),sector_selection))/(24*60))) -> 0.02430555556 | E38: =IF(B35=0,"~",IF(B38=0,"No outages",B38/B35/2)) -> 0.4285714286 | G38: =IF(B37=0,"No outages",(SUMIFS(INDIRECT(availability_duration_col),INDIRECT(availability_sector_col),sector_selection,INDIRECT(availability_month_col),">="&one_year_ago)/SUMIFS(INDIRECT(availability_breaks_col),INDIRECT(availability_sector_col),sector_selection,INDIRECT(availability_month_col),">="&one_year_ago))/(24*60)) -> 0.2702841757 | I38: =IF(B37=0,"No outages",(B37/B36/2)) -> 0.7321792261
C39: ="Based on "&B38&(IF(B38=1," fault"," faults"))&" over the last 24 months" -> Based on 6 faults over the last 24 months | G39: ="Based on "&B37&(IF(B37=1," fault"," faults"))&" over the last 24 months" -> Based on 1438 faults over the last 24 months
B41: =IF(sector_selection="All","Average Availability","Average Availability - "&sector_selection) -> Average Availability
B42: Last 12 months dates | C42: =DATE(YEAR(D42),MONTH(D42)-1, DAY(D42)) -> 2013-06-01 | D42: =DATE(YEAR(E42),MONTH(E42)-1, DAY(E42)) -> 2013-07-01 | E42: =DATE(YEAR(F42),MONTH(F42)-1, DAY(F42)) -> 2013-08-01 | F42: =DATE(YEAR(G42),MONTH(G42)-1, DAY(G42)) -> 2013-09-01 | G42: =DATE(YEAR(H42),MONTH(H42)-1, DAY(H42)) -> 2013-10-01 | H42: =DATE(YEAR(I42),MONTH(I42)-1, DAY(I42)) -> 2013-11-01 | I42: =DATE(YEAR(J42),MONTH(J42)-1, DAY(J42)) -> 2013-12-01 | J42: =DATE(YEAR(K42),MONTH(K42)-1, DAY(K42)) -> 2014-01-01 | K42: =DATE(YEAR(L42),MONTH(L42)-1, DAY(L42)) -> 2014-02-01 | L42: =DATE(YEAR(M42),MONTH(M42)-1, DAY(M42)) -> 2014-03-01 | M42: =DATE(YEAR(N42),MONTH(N42)-1, DAY(N42)) -> 2014-04-01 | N42: =reporting_month -> 2014-05-01
B43: =region_selection -> Aberdeen | C43: =IF(C46=0,#N/A,(((AVERAGEIFS(INDIRECT(availability_col),INDIRECT(availability_month_col),C$42,INDIRECT(availability_region_col),region_selection,INDIRECT(availability_sector_col),sector_selection))))) -> 1 | D43: 1 | E43: 1 | F43: 1 | G43: 1 | H43: 1 | I43: 1 | J43: 1 | K43: 1 | L43: 1 | M43: 1 | N43: 1
B44: JANET | C44: =(((AVERAGEIFS(INDIRECT(availability_col),INDIRECT(availability_month_col),C$42,INDIRECT(availability_region_col),"*",INDIRECT(availability_sector_col),sector_selection)))) -> 0.9998762953 | D44: 0.999520415 | E44: 0.9995241022 | F44: 0.9996815572 | G44: 0.9998805949 | H44: 0.9996437744 | I44: 0.9992025272 | J44: 0.9995340593 | K44: 0.9992688704 | L44: 0.9998615724 | M44: 0.9997687535 | N44: 0.9994884854
B45: For shading | C45: =SLA_target -> 0.997 | D45: 0.997 | E45: 0.997 | F45: 0.997 | G45: 0.997 | H45: 0.997 | I45: 0.997 | J45: 0.997 | K45: 0.997 | L45: 0.997 | M45: 0.997 | N45: 0.997
A46: Services in region/sector/month | B46: =sector_selection -> All | C46: =COUNTIFS(INDIRECT(availability_sector_col),$B46,INDIRECT(availability_region_col),region_selection,INDIRECT(availability_month_col),C$42) -> 6 | D46: 6 | E46: 6 | F46: 6 | G46: 7 | H46: 7 | I46: 7 | J46: 7 | K46: 7 | L46: 7 | M46: 7 | N46: 7
B50: =region_selection&" Service Outages - Last 12 Months" -> Aberdeen Service Outages - Last 12 Months
A51: Availability % | B51: 0.997 | C51: Other | D51: Research | E51: Further Education | F51: Higher Education
A52: 1 | B52: Services with no outage | C52: =COUNTIFS(INDIRECT(availability_region_col),region_selection,INDIRECT(availability_breakdown_sector_col),C$51,INDIRECT(rolling_availability_col),$A52) -> 0 | D52: =COUNTIFS(INDIRECT(availability_region_col),region_selection,INDIRECT(availability_breakdown_sector_col),D$51,INDIRECT(rolling_availability_col),$A52) -> 0 | E52: =COUNTIFS(INDIRECT(availability_region_col),region_selection,INDIRECT(availability_breakdown_sector_col),E$51,INDIRECT(rolling_availability_col),$A52) -> 2 | F52: =COUNTIFS(INDIRECT(availability_region_col),region_selection,INDIRECT(availability_breakdown_sector_col),F$51,INDIRECT(rolling_availability_col),$A52) -> 4
A53: 0.997 | B53: Services with outage | C53: =COUNTIFS(INDIRECT(availability_region_col),region_selection,INDIRECT(availability_breakdown_sector_col),C$51,INDIRECT(rolling_availability_col),"<"&$A52,INDIRECT(rolling_availability_col),">="&$A53) -> 0 | D53: =COUNTIFS(INDIRECT(availability_region_col),region_selection,INDIRECT(availability_breakdown_sector_col),D$51,INDIRECT(rolling_availability_col),"<"&$A52,INDIRECT(rolling_availability_col),">="&$A53) -> 0 | E53: =COUNTIFS(INDIRECT(availability_region_col),region_selection,INDIRECT(availability_breakdown_sector_col),E$51,INDIRECT(rolling_availability_col),"<"&$A52,INDIRECT(rolling_availability_col),">="&$A53) -> 0 | F53: =COUNTIFS(INDIRECT(availability_region_col),region_selection,INDIRECT(availability_breakdown_sector_col),F$51,INDIRECT(rolling_availability_col),"<"&$A52,INDIRECT(rolling_availability_col),">="&$A53) -> 0
A54: 0.997 | B54: Services failing SLA | C54: =COUNTIFS(INDIRECT(availability_region_col),region_selection,INDIRECT(availability_breakdown_sector_col),C$51,INDIRECT(rolling_availability_col),"<"&$A54) -> 0 | D54: =COUNTIFS(INDIRECT(availability_region_col),region_selection,INDIRECT(availability_breakdown_sector_col),D$51,INDIRECT(rolling_availability_col),"<"&$A54) -> 0 | E54: =COUNTIFS(INDIRECT(availability_region_col),region_selection,INDIRECT(availability_breakdown_sector_col),E$51,INDIRECT(rolling_availability_col),"<"&$A54) -> 0 | F54: =COUNTIFS(INDIRECT(availability_region_col),region_selection,INDIRECT(availability_breakdown_sector_col),F$51,INDIRECT(rolling_availability_col),"<"&$A54) -> 0
A58: Janet benchmarks for RNO, NOC Networks, PSBA and KPSN Reports
A59: 12 Monthly Rolling Availability | B59: =I36 -> 0.9996036171
A60: 12 Monthly Average Failure Rate | B60: =(SUM(INDIRECT(availability_breaks_col))/((COUNTIF(INDIRECT(availability_month_col),reporting_month)*days_in_year*24)))*1000 -> 0.1671642069
H66: Further Education | K66: Further Education
G67: 10 | H67: =COUNTIFS(INDIRECT(dashboard_bandwidth_col),"="&$G67,INDIRECT(percentile_month_col),reporting_month,INDIRECT(percentile_sector_col),H$66) -> 5 | J67: ≤10 Mbit/s | K67: =COUNTIFS(INDIRECT(percentile_bin_col),"="&$J67,INDIRECT(percentile_month_col),reporting_month,INDIRECT(percentile_sector_col),K$66) -> 5
G68: 45 | H68: 4 | J68: ≤100 Mbit/s | K68: =COUNTIFS(INDIRECT(percentile_bin_col),"="&$J68, INDIRECT(percentile_month_col),reporting_month,INDIRECT(percentile_sector_col),K$66) -> 330
G69: 100 | H69: 326 | J69: ≤1 Gbit/s | K69: =COUNTIFS(INDIRECT(percentile_bin_col),"="&$J69, INDIRECT(percentile_month_col),reporting_month,INDIRECT(percentile_sector_col),K$66) -> 180
G70: 155 | H70: 4 | J70: >1 Gbit/s | K70: =COUNTIFS(INDIRECT(percentile_bin_col),"="&$J70, INDIRECT(percentile_month_col),reporting_month,INDIRECT(percentile_sector_col),K$66) -> 0
G71: 500 | H71: 25 | J71: Dark Fibre | K71: =COUNTIFS(INDIRECT(percentile_bin_col),"="&$J71, INDIRECT(percentile_month_col),reporting_month,INDIRECT(percentile_sector_col),K$66) -> 1
G72: 1000 | H72: 122 | K72: Higher Education
J73: ≤10 Mbit/s | K73: =COUNTIFS(INDIRECT(percentile_bin_col),"="&$J73, INDIRECT(percentile_month_col),reporting_month,INDIRECT(percentile_sector_col),K$72) -> 2
J74: ≤100 Mbit/s | K74: =COUNTIFS(INDIRECT(percentile_bin_col),"="&$J74, INDIRECT(percentile_month_col),reporting_month,INDIRECT(percentile_sector_col),K$72) -> 44
J75: ≤1 Gbit/s | K75: =COUNTIFS(INDIRECT(percentile_bin_col),"="&$J75, INDIRECT(percentile_month_col),reporting_month,INDIRECT(percentile_sector_col),K$72) -> 197
J76: >1 Gbit/s | K76: =COUNTIFS(INDIRECT(percentile_bin_col),"="&$J76, INDIRECT(percentile_month_col),reporting_month,INDIRECT(percentile_sector_col),K$72) -> 87
J77: Dark Fibre | K77: =COUNTIFS(INDIRECT(percentile_bin_col),"="&$J77, INDIRECT(percentile_month_col),reporting_month,INDIRECT(percentile_sector_col),K$72) -> 9
K78: Research
J79: ≤10 Mbit/s | K79: =COUNTIFS(INDIRECT(percentile_bin_col),"="&$J79, INDIRECT(percentile_month_col),reporting_month,INDIRECT(percentile_sector_col),K$78) -> 7
J80: ≤100 Mbit/s | K80: =COUNTIFS(INDIRECT(percentile_bin_col),"="&$J80, INDIRECT(percentile_month_col),reporting_month,INDIRECT(percentile_sector_col),K$78) -> 24
J81: ≤1 Gbit/s | K81: =COUNTIFS(INDIRECT(percentile_bin_col),"="&$J81, INDIRECT(percentile_month_col),reporting_month,INDIRECT(percentile_sector_col),K$78) -> 21
J82: >1 Gbit/s | K82: =COUNTIFS(INDIRECT(percentile_bin_col),"="&$J82, INDIRECT(percentile_month_col),reporting_month,INDIRECT(percentile_sector_col),K$78) -> 2
J83: Dark Fibre | K83: =COUNTIFS(INDIRECT(percentile_bin_col),"="&$J83, INDIRECT(percentile_month_col),reporting_month,INDIRECT(percentile_sector_col),K$78) -> 0
K84: Other
J85: ≤10 Mbit/s | K85: =COUNTIFS(INDIRECT(percentile_bin_col),"="&$J85, INDIRECT(percentile_month_col),reporting_month,INDIRECT(percentile_sector_col),K$84) -> 60
J86: ≤100 Mbit/s | K86: =COUNTIFS(INDIRECT(percentile_bin_col),"="&$J86, INDIRECT(percentile_month_col),reporting_month,INDIRECT(percentile_sector_col),K$84) -> 91
J87: ≤1 Gbit/s | K87: =COUNTIFS(INDIRECT(percentile_bin_col),"="&$J87, INDIRECT(percentile_month_col),reporting_month,INDIRECT(percentile_sector_col),K$84) -> 83
J88: >1 Gbit/s | K88: =COUNTIFS(INDIRECT(percentile_bin_col),"="&$J88, INDIRECT(percentile_month_col),reporting_month,INDIRECT(percentile_sector_col),K$84) -> 20
J89: Dark Fibre | K89: =COUNTIFS(INDIRECT(percentile_bin_col),"="&$J89, INDIRECT(percentile_month_col),reporting_month,INDIRECT(percentile_sector_col),K$84) -> 0

Sheet Traffic Volume (hidden)
A1: Full Name | B1: Organisation Type | C1: Raw Bandwidth Mbit/s | D1: Contract Bandwidth Mbit/s | E1: Regional Network | F1: Managing Organisation | G1: To Traffic | H1: From Traffic | I1: Reporting Month | J1: Line Code | K1: CA ID | L1: AD ID | M1: Aggregate Link | N1: Dashboard Region | O1: Dashboard Sector | P1: Traffic for Dashboard
A2: Aberdeen College, Aberdeen City Campus | B2: Further Education College | D2: 1000 | E2: Aberdeen | F2: NOC | G2: 4600000 | H2: 984000 | I2: 2012-06-01 | J2: L02273 | K2: CA00101 | L2: AD00101 | M2: 0 | N2: =IF(E2="","",IF(region_selection="All","All",VLOOKUP(E2,region_lookup,2,FALSE))) -> Aberdeen | O2: =IF(B2="","",IF(sector_selection="All","All",VLOOKUP(B2,sector_lookup,2,FALSE))) -> All | P2: =IF(G2="","",SUM(G2:H2)/1024) -> 5453.125
A3: Aberdeen College, Aberdeen City Campus | B3: Further Education College | D3: 1000 | E3: Aberdeen | F3: NOC | G3: 5410000 | H3: 709000 | I3: 2012-07-01 | J3: L02273 | K3: CA00101 | L3: AD00101 | M3: 0 | N3: Aberdeen | O3: All | P3: 5975.585938
A4: Aberdeen College, Aberdeen City Campus | B4: Further Education College | D4: 1000 | E4: Aberdeen | F4: NOC | G4: 7230000 | H4: 894000 | I4: 2012-08-01 | J4: L02273 | K4: CA00101 | L4: AD00101 | M4: 0 | N4: Aberdeen | O4: All | P4: 7933.59375
A5: Aberdeen College, Aberdeen City Campus | B5: Further Education College | D5: 1000 | E5: Aberdeen | F5: NOC | G5: 9470000 | H5: 1080000 | I5: 2012-09-01 | J5: L02273 | K5: CA00101 | L5: AD00101 | M5: 0 | N5: Aberdeen | O5: All | P5: 10302.73438
A6: Aberdeen College, Aberdeen City Campus | B6: Further Education College | D6: 1000 | E6: Aberdeen | F6: NOC | G6: 12100000 | H6: 1140000 | I6: 2012-10-01 | J6: L02273 | K6: CA00101 | L6: AD00101 | M6: 0 | N6: Aberdeen | O6: All | P6: 12929.6875
A7: Aberdeen College, Aberdeen City Campus | B7: Further Education College | D7: 1000 | E7: Aberdeen | F7: NOC | G7: 12800000 | H7: 1370000 | I7: 2012-11-01 | J7: L02273 | K7: CA00101 | L7: AD00101 | M7: 0 | N7: Aberdeen | O7: All | P7: 13837.89062
A8: Aberdeen College, Aberdeen City Campus | B8: Further Education College | D8: 1000 | E8: Aberdeen | F8: NOC | G8: 11000000 | H8: 954000 | I8: 2012-12-01 | J8: L02273 | K8: CA00101 | L8: AD00101 | M8: 0 | N8: Aberdeen | O8: All | P8: 11673.82812
A9: Aberdeen College, Aberdeen City Campus | B9: Further Education College | D9: 1000 | E9: Aberdeen | F9: NOC | G9: 15500000 | H9: 1380000 | I9: 2013-01-01 | J9: L02273 | K9: CA00101 | L9: AD00101 | M9: 0 | N9: Aberdeen | O9: All | P9: 16484.375
A10: Aberdeen College, Aberdeen City Campus | B10: Further Education College | D10: 1000 | E10: Aberdeen | F10: NOC | G10: 13800000 | H10: 1870000 | I10: 2013-02-01 | J10: L02273 | K10: CA00101 | L10: AD00101 | M10: 0 | N10: Aberdeen | O10: All | P10: 15302.73438
A11: Aberdeen College, Aberdeen City Campus | B11: Further Education College | D11: 1000 | E11: Aberdeen | F11: NOC | G11: 20700000 | H11: 2760000 | I11: 2013-03-01 | J11: L02273 | K11: CA00101 | L11: AD00101 | M11: 0 | N11: Aberdeen | O11: All | P11: 22910.15625
A12: Aberdeen College, Aberdeen City Campus | B12: Further Education College | D12: 1000 | E12: Aberdeen | F12: NOC | G12: 18200000 | H12: 2200000 | I12: 2013-04-01 | J12: L02273 | K12: CA00101 | L12: AD00101 | M12: 0 | N12: Aberdeen | O12: All | P12: 19921.875
A13: Aberdeen College, Aberdeen City Campus | B13: Further Education College | D13: 1000 | E13: Aberdeen | F13: NOC | G13: 24400000 | H13: 2910000 | I13: 2013-05-01 | J13: L02273 | K13: CA00101 | L13: AD00101 | M13: 0 | N13: Aberdeen | O13: All | P13: 26669.92188
A14: Aberdeen College, Aberdeen City Campus | B14: Further Education College | D14: 1000 | E14: Aberdeen | F14: NOC | G14: 20200000 | H14: 2440000 | I14: 2013-06-01 | J14: L02273 | K14: CA00101 | L14: AD00101 | M14: 0 | N14: Aberdeen | O14: All | P14: 22109.375
A15: Aberdeen College, Aberdeen City Campus | B15: Further Education College | D15: 1000 | E15: Aberdeen | F15: NOC | G15: 7390000 | H15: 924000 | I15: 2013-07-01 | J15: L02273 | K15: CA00101 | L15: AD00101 | M15: 0 | N15: Aberdeen | O15: All | P15: 8119.140625
A16: Aberdeen College, Aberdeen City Campus | B16: Further Education College | D16: 1000 | E16: Aberdeen | F16: NOC | G16: 2970000 | H16: 646000 | I16: 2013-08-01 | J16: L02273 | K16: CA00101 | L16: AD00101 | M16: 0 | N16: Aberdeen | O16: All | P16: 3531.25
A17: Aberdeen College, Aberdeen City Campus | B17: Further Education College | D17: 1000 | E17: Aberdeen | F17: NOC | G17: 7910000 | H17: 1500000 | I17: 2013-09-01 | J17: L02273 | K17: CA00101 | L17: AD00101 | M17: 0 | N17: Aberdeen | O17: All | P17: 9189.453125
A18: Aberdeen College, Aberdeen City Campus | B18: Further Education College | D18: 1000 | E18: Aberdeen | F18: NOC | G18: 9290000 | H18: 1190000 | I18: 2013-10-01 | J18: L02273 | K18: CA00101 | L18: AD00101 | M18: 0 | N18: Aberdeen | O18: All | P18: 10234.375
A19: Aberdeen College, Aberdeen City Campus | B19: Further Education College | D19: 1000 | E19: Aberdeen | F19: NOC | G19: 11200000 | H19: 1530000 | I19: 2013-11-01 | J19: L02273 | K19: CA00101 | L19: AD00101 | M19: 0 | N19: Aberdeen | O19: All | P19: 12431.64062
A20: Aberdeen College, Aberdeen City Campus | B20: Further Education College | D20: 1000 | E20: Aberdeen | F20: NOC | G20: 8230000 | H20: 1430000 | I20: 2013-12-01 | J20: L02273 | K20: CA00101 | L20: AD00101 | M20: 0 | N20: Aberdeen | O20: All | P20: 9433.59375
A21: Aberdeen College, Aberdeen City Campus | B21: Further Education College | D21: 1000 | E21: Aberdeen | F21: NOC | G21: 10900000 | H21: 1670000 | I21: 2014-01-01 | J21: L02273 | K21: CA00101 | L21: AD00101 | M21: 0 | N21: Aberdeen | O21: All | P21: 12275.39062
A22: Aberdeen College, Aberdeen City Campus | B22: Further Education College | D22: 1000 | E22: Aberdeen | F22: NOC | G22: 9870000 | H22: 1570000 | I22: 2014-02-01 | J22: L02273 | K22: CA00101 | L22: AD00101 | M22: 0 | N22: Aberdeen | O22: All | P22: 11171.875
A23: Aberdeen College, Aberdeen City Campus | B23: Further Education College | D23: 1000 | E23: Aberdeen | F23: NOC | G23: 11000000 | H23: 1620000 | I23: 2014-03-01 | J23: L02273 | K23: CA00101 | L23: AD00101 | M23: 0 | N23: Aberdeen | O23: All | P23: 12324.21875
A24: Aberdeen College, Aberdeen City Campus | B24: Further Education College | D24: 1000 | E24: Aberdeen | F24: NOC | G24: 7880000 | H24: 1110000 | I24: 2014-04-01 | J24: L02273 | K24: CA00101 | L24: AD00101 | M24: 0 | N24: Aberdeen | O24: All | P24: 8779.296875
A25: Aberdeen College, Aberdeen City Campus | B25: Further Education College | D25: 1000 | E25: Aberdeen | F25: NOC | G25: 11300000 | H25: 1620000 | I25: 2014-05-01 | J25: L02273 | K25: CA00101 | L25: AD00101 | M25: 0 | N25: Aberdeen | O25: All | P25: 12617.1875
A26: Aberdeen College, Altens Centre | B26: Further Education College | E26: Aberdeen | F26: NOC | G26: 86 | H26: 64 | I26: 2012-06-01 | J26: L05338 | K26: CA00101 | L26: AD01013 | M26: 0 | N26: Aberdeen | O26: All | P26: 0.146484375
A27: Aberdeen College, Altens Centre | B27: Further Education College | E27: Aberdeen | F27: NOC | G27: 47 | H27: 58 | I27: 2012-07-01 | J27: L05338 | K27: CA00101 | L27: AD01013 | M27: 0 | N27: Aberdeen | O27: All | P27: 0.1025390625
A28: Aberdeen College, Altens Centre | B28: Further Education College | E28: Aberdeen | F28: NOC | G28: 44 | H28: 58 | I28: 2012-08-01 | J28: L05338 | K28: CA00101 | L28: AD01013 | M28: 0 | N28: Aberdeen | O28: All | P28: 0.099609375
A29: Aberdeen College, Altens Centre | B29: Further Education College | E29: Aberdeen | F29: NOC | G29: 43 | H29: 56 | I29: 2012-09-01 | J29: L05338 | K29: CA00101 | L29: AD01013 | M29: 0 | N29: Aberdeen | O29: All | P29: 0.0966796875
A30: Aberdeen College, Altens Centre | B30: Further Education College | E30: Aberdeen | F30: NOC | G30: 43 | H30: 57 | I30: 2012-10-01 | J30: L05338 | K30: CA00101 | L30: AD01013 | M30: 0 | N30: Aberdeen | O30: All | P30: 0.09765625
A31: Aberdeen College, Altens Centre | B31: Further Education College | E31: Aberdeen | F31: NOC | G31: 42 | H31: 55 | I31: 2012-11-01 | J31: L05338 | K31: CA00101 | L31: AD01013 | M31: 0 | N31: Aberdeen | O31: All | P31: 0.0947265625
A32: Aberdeen College, Altens Centre | B32: Further Education College | E32: Aberdeen | F32: NOC | G32: 37 | H32: 49 | I32: 2012-12-01 | J32: L05338 | K32: CA00101 | L32: AD01013 | M32: 0 | N32: Aberdeen | O32: All | P32: 0.083984375
A33: Aberdeen College, Altens Centre | B33: Further Education College | E33: Aberdeen | F33: NOC | G33: 42 | H33: 56 | I33: 2013-01-01 | J33: L05338 | K33: CA00101 | L33: AD01013 | M33: 0 | N33: Aberdeen | O33: All | P33: 0.095703125
A34: Aberdeen College, Altens Centre | B34: Further Education College | E34: Aberdeen | F34: NOC | G34: 39 | H34: 51 | I34: 2013-02-01 | J34: L05338 | K34: CA00101 | L34: AD01013 | M34: 0 | N34: Aberdeen | O34: All | P34: 0.087890625
A35: Aberdeen College, Altens Centre | B35: Further Education College | E35: Aberdeen | F35: NOC | G35: 43 | H35: 57 | I35: 2013-03-01 | J35: L05338 | K35: CA00101 | L35: AD01013 | M35: 0 | N35: Aberdeen | O35: All | P35: 0.09765625
A36: Aberdeen College, Altens Centre | B36: Further Education College | E36: Aberdeen | F36: NOC | G36: 41 | H36: 55 | I36: 2013-04-01 | J36: L05338 | K36: CA00101 | L36: AD01013 | M36: 0 | N36: Aberdeen | O36: All | P36: 0.09375
A37: Aberdeen College, Altens Centre | B37: Further Education College | E37: Aberdeen | F37: NOC | G37: 37 | H37: 49 | I37: 2013-05-01 | J37: L05338 | K37: CA00101 | L37: AD01013 | M37: 0 | N37: Aberdeen | O37: All | P37: 0.083984375
A38: Aberdeen College, Altens Centre | B38: Further Education College | E38: Aberdeen | F38: NOC | G38: 24 | H38: 78 | I38: 2013-06-01 | J38: L05338 | K38: CA00101 | L38: AD01013 | M38: 0 | N38: Aberdeen | O38: All | P38: 0.099609375
A39: Aberdeen College, Altens Centre | B39: Further Education College | E39: Aberdeen | F39: NOC | G39: 43 | H39: 181 | I39: 2013-07-01 | J39: L05338 | K39: CA00101 | L39: AD01013 | M39: 0 | N39: Aberdeen | O39: All | P39: 0.21875
A40: Aberdeen College, Altens Centre | B40: Further Education College | E40: Aberdeen | F40: NOC | G40: 43 | H40: 181 | I40: 2013-08-01 | J40: L05338 | K40: CA00101 | L40: AD01013 | M40: 0 | N40: Aberdeen | O40: All | P40: 0.21875
A41: Aberdeen College, Altens Centre | B41: Further Education College | E41: Aberdeen | F41: NOC | G41: 42 | H41: 175 | I41: 2013-09-01 | J41: L05338 | K41: CA00101 | L41: AD01013 | M41: 0 | N41: Aberdeen | O41: All | P41: 0.2119140625
A42: Aberdeen College, Altens Centre | B42: Further Education College | E42: Aberdeen | F42: NOC | G42: 43 | H42: 181 | I42: 2013-10-01 | J42: L05338 | K42: CA00101 | L42: AD01013 | M42: 0 | N42: Aberdeen | O42: All | P42: 0.21875
A43: Aberdeen College, Altens Centre | B43: Further Education College | E43: Aberdeen | F43: NOC | G43: 42 | H43: 175 | I43: 2013-11-01 | J43: L05338 | K43: CA00101 | L43: AD01013 | M43: 0 | N43: Aberdeen | O43: All | P43: 0.2119140625
A44: Aberdeen College, Altens Centre | B44: Further Education College | E44: Aberdeen | F44: NOC | G44: 43 | H44: 181 | I44: 2013-12-01 | J44: L05338 | K44: CA00101 | L44: AD01013 | M44: 0 | N44: Aberdeen | O44: All | P44: 0.21875
A45: Aberdeen College, Altens Centre | B45: Further Education College | E45: Aberdeen | F45: NOC | G45: 43 | H45: 181 | I45: 2014-01-01 | J45: L05338 | K45: CA00101 | L45: AD01013 | M45: 0 | N45: Aberdeen | O45: All | P45: 0.21875
A46: Aberdeen College, Altens Centre | B46: Further Education College | E46: Aberdeen | F46: NOC | G46: 39 | H46: 163 | I46: 2014-02-01 | J46: L05338 | K46: CA00101 | L46: AD01013 | M46: 0 | N46: Aberdeen | O46: All | P46: 0.197265625
A47: Aberdeen College, Altens Centre | B47: Further Education College | E47: Aberdeen | F47: NOC | G47: 43 | H47: 181 | I47: 2014-03-01 | J47: L05338 | K47: CA00101 | L47: AD01013 | M47: 0 | N47: Aberdeen | O47: All | P47: 0.21875
A48: Aberdeen College, Altens Centre | B48: Further Education College | E48: Aberdeen | F48: NOC | G48: 41 | H48: 175 | I48: 2014-04-01 | J48: L05338 | K48: CA00101 | L48: AD01013 | M48: 0 | N48: Aberdeen | O48: All | P48: 0.2109375
A49: Aberdeen College, Altens Centre | B49: Further Education College | E49: Aberdeen | F49: NOC | G49: 43 | H49: 181 | I49: 2014-05-01 | J49: L05338 | K49: CA00101 | L49: AD01013 | M49: 0 | N49: Aberdeen | O49: All | P49: 0.21875
A50: Aberystwyth University, Llandinam Building | B50: Higher Education | C50: 1000 | D50: 100 | E50: Wales | F50: PSBA | G50: 37900000 | H50: 5640000 | I50: 2012-06-01 | J50: L02717 | K50: CA00865 | L50: AD00891 | M50: 0 | N50: Wales | O50: All | P50: 42519.53125
A51: Aberystwyth University, Llandinam Building | B51: Higher Education | C51: 1000 | D51: 100 | E51: Wales | F51: PSBA | G51: 19800000 | H51: 5100000 | I51: 2012-07-01 | J51: L02717 | K51: CA00865 | L51: AD00891 | M51: 0 | N51: Wales | O51: All | P51: 24316.40625
A52: Aberystwyth University, Llandinam Building | B52: Higher Education | C52: 1000 | D52: 100 | E52: Wales | F52: PSBA | G52: 24400000 | H52: 4540000 | I52: 2012-08-01 | J52: L02717 | K52: CA00865 | L52: AD00891 | M52: 0 | N52: Wales | O52: All | P52: 28261.71875
A53: Aberystwyth University, Llandinam Building | B53: Higher Education | C53: 1000 | D53: 100 | E53: Wales | F53: PSBA | G53: 44400000 | H53: 6280000 | I53: 2012-09-01 | J53: L02717 | K53: CA00865 | L53: AD00891 | M53: 0 | N53: Wales | O53: All | P53: 49492.1875
A54: Aberystwyth University, Llandinam Building | B54: Higher Education | C54: 1000 | D54: 100 | E54: Wales | F54: PSBA | G54: 149000000 | H54: 13200000 | I54: 2012-10-01 | J54: L02717 | K54: CA00865 | L54: AD00891 | M54: 0 | N54: Wales | O54: All | P54: 158398.4375
A55: Aberystwyth University, Llandinam Building | B55: Higher Education | C55: 1000 | D55: 100 | E55: Wales | F55: PSBA | G55: 165000000 | H55: 15200000 | I55: 2012-11-01 | J55: L02717 | K55: CA00865 | L55: AD00891 | M55: 0 | N55: Wales | O55: All | P55: 175976.5625
A56: Aberystwyth University, Llandinam Building | B56: Higher Education | C56: 1000 | D56: 100 | E56: Wales | F56: PSBA | G56: 97100000 | H56: 9940000 | I56: 2012-12-01 | J56: L02717 | K56: CA00865 | L56: AD00891 | M56: 0 | N56: Wales | O56: All | P56: 104531.25
A57: Aberystwyth University, Llandinam Building | B57: Higher Education | C57: 1000 | D57: 100 | E57: Wales | F57: PSBA | G57: 145000000 | H57: 13200000 | I57: 2013-01-01 | J57: L02717 | K57: CA00865 | L57: AD00891 | M57: 0 | N57: Wales | O57: All | P57: 154492.1875
A58: Aberystwyth University, Llandinam Building | B58: Higher Education | C58: 1000 | D58: 100 | E58: Wales | F58: PSBA | G58: 170000000 | H58: 15200000 | I58: 2013-02-01 | J58: L02717 | K58: CA00865 | L58: AD00891 | M58: 0 | N58: Wales | O58: All | P58: 180859.375
A59: Aberystwyth University, Llandinam Building | B59: Higher Education | C59: 1000 | D59: 100 | E59: Wales | F59: PSBA | G59: 107000000 | H59: 10900000 | I59: 2013-03-01 | J59: L02717 | K59: CA00865 | L59: AD00891 | M59: 0 | N59: Wales | O59: All | P59: 115136.7188
A60: Aberystwyth University, Llandinam Building | B60: Higher Education | C60: 1000 | D60: 100 | E60: Wales | F60: PSBA | G60: 80300000 | H60: 11700000 | I60: 2013-04-01 | J60: L02717 | K60: CA00865 | L60: AD00891 | M60: 0 | N60: Wales | O60: All | P60: 89843.75
A61: Aberystwyth University, Llandinam Building | B61: Higher Education | C61: 1000 | D61: 100 | E61: Wales | F61: PSBA | G61: 103000000 | H61: 11400000 | I61: 2013-05-01 | J61: L02717 | K61: CA00865 | L61: AD00891 | M61: 0 | N61: Wales | O61: All | P61: 111718.75
A62: Aberystwyth University, Llandinam Building | B62: Higher Education | C62: 1000 | D62: 100 | E62: Wales | F62: PSBA | G62: 29000000 | H62: 8690000 | I62: 2013-06-01 | J62: L02717 | K62: CA00865 | L62: AD00891 | M62: 0 | N62: Wales | O62: All | P62: 36806.64062
A63: Aberystwyth University, Llandinam Building | B63: Higher Education | C63: 1000 | D63: 100 | E63: Wales | F63: PSBA | G63: 18000000 | H63: 8500000 | I63: 2013-07-01 | J63: L02717 | K63: CA00865 | L63: AD00891 | M63: 0 | N63: Wales | O63: All | P63: 25878.90625
A64: Aberystwyth University, Llandinam Building | B64: Higher Education | C64: 1000 | D64: 100 | E64: Wales | F64: PSBA | G64: 17900000 | H64: 6180000 | I64: 2013-08-01 | J64: L02717 | K64: CA00865 | L64: AD00891 | M64: 0 | N64: Wales | O64: All | P64: 23515.625
A65: Aberystwyth University, Llandinam Building | B65: Higher Education | C65: 1000 | D65: 100 | E65: Wales | F65: PSBA | G65: 43100000 | H65: 8000000 | I65: 2013-09-01 | J65: L02717 | K65: CA00865 | L65: AD00891 | M65: 0 | N65: Wales | O65: All | P65: 49902.34375
A66: Aberystwyth University, Llandinam Building | B66: Higher Education | C66: 1000 | D66: 100 | E66: Wales | F66: PSBA | G66: 134000000 | H66: 15300000 | I66: 2013-10-01 | J66: L02717 | K66: CA00865 | L66: AD00891 | M66: 0 | N66: =IF(E66="","",IF(region_selection="All","All",VLOOKUP(E66,region_lookup,2,FALSE))) -> Wales | O66: =IF(B66="","",IF(sector_selection="All","All",VLOOKUP(B66,sector_lookup,2,FALSE))) -> All | P66: =IF(G66="","",SUM(G66:H66)/1024) -> 145800.7812
A67: Aberystwyth University, Llandinam Building | B67: Higher Education | C67: 1000 | D67: 100 | E67: Wales | F67: PSBA | G67: 147000000 | H67: 17900000 | I67: 2013-11-01 | J67: L02717 | K67: CA00865 | L67: AD00891 | M67: 0 | N67: Wales | O67: All | P67: 161035.1562
A68: Aberystwyth University, Llandinam Building | B68: Higher Education | C68: 1000 | D68: 100 | E68: Wales | F68: PSBA | G68: 81600000 | H68: 12300000 | I68: 2013-12-01 | J68: L02717 | K68: CA00865 | L68: AD00891 | M68: 0 | N68: Wales | O68: All | P68: 91699.21875
A69: Aberystwyth University, Llandinam Building | B69: Higher Education | C69: 1000 | D69: 100 | E69: Wales | F69: PSBA | G69: 138000000 | H69: 16200000 | I69: 2014-01-01 | J69: L02717 | K69: CA00865 | L69: AD00891 | M69: 0 | N69: Wales | O69: All | P69: 150585.9375
A70: Aberystwyth University, Llandinam Building | B70: Higher Education | C70: 1000 | D70: 100 | E70: Wales | F70: PSBA | G70: 149000000 | H70: 17300000 | I70: 2014-02-01 | J70: L02717 | K70: CA00865 | L70: AD00891 | M70: 0 | N70: Wales | O70: All | P70: 162402.3438
A71: Aberystwyth University, Llandinam Building | B71: Higher Education | C71: 1000 | D71: 100 | E71: Wales | F71: PSBA | G71: 171000000 | H71: 21100000 | I71: 2014-03-01 | J71: L02717 | K71: CA00865 | L71: AD00891 | M71: 0 | N71: Wales | O71: All | P71: 187597.6562
A72: Aberystwyth University, Llandinam Building | B72: Higher Education | C72: 1000 | D72: 100 | E72: Wales | F72: PSBA | G72: 98400000 | H72: 15300000 | I72: 2014-04-01 | J72: L02717 | K72: CA00865 | L72: AD00891 | M72: 0 | N72: Wales | O72: All | P72: 111035.1562
A73: Aberystwyth University, Llandinam Building | B73: Higher Education | C73: 1000 | D73: 100 | E73: Wales | F73: PSBA | G73: 152000000 | H73: 18500000 | I73: 2014-05-01 | J73: L02717 | K73: CA00865 | L73: AD00891 | M73: 0 | N73: Wales | O73: All | P73: 166503.9062
A74: Aberystwyth University, Visualisation Centre | B74: Higher Education | C74: 1000 | D74: 1000 | E74: Wales | F74: PSBA | G74: 58600000 | H74: 3750000 | I74: 2013-04-01 | J74: L06505 | K74: CA01201 | L74: AD01393 | M74: 0 | N74: Wales | O74: All | P74: 60888.67188
A75: Aberystwyth University, Visualisation Centre | B75: Higher Education | C75: 1000 | D75: 1000 | E75: Wales | F75: PSBA | G75: 93700000 | H75: 5960000 | I75: 2013-05-01 | J75: L06505 | K75: CA01201 | L75: AD01393 | M75: 0 | N75: Wales | O75: All | P75: 97324.21875
A76: Aberystwyth University, Visualisation Centre | B76: Higher Education | C76: 1000 | D76: 1000 | E76: Wales | F76: PSBA | G76: 18700000 | H76: 1440000 | I76: 2013-06-01 | J76: L06505 | K76: CA01201 | L76: AD01393 | M76: 0 | N76: Wales | O76: All | P76: 19667.96875
A77: Aberystwyth University, Visualisation Centre | B77: Higher Education | C77: 1000 | D77: 1000 | E77: Wales | F77: PSBA | G77: 10700000 | H77: 1340000 | I77: 2013-07-01 | J77: L06505 | K77: CA01201 | L77: AD01393 | M77: 0 | N77: Wales | O77: All | P77: 11757.8125
A78: Aberystwyth University, Visualisation Centre | B78: Higher Education | C78: 1000 | D78: 1000 | E78: Wales | F78: PSBA | G78: 10000000 | H78: 1290000 | I78: 2013-08-01 | J78: L06505 | K78: CA01201 | L78: AD01393 | M78: 0 | N78: Wales | O78: All | P78: 11025.39062
A79: Aberystwyth University, Visualisation Centre | B79: Higher Education | C79: 1000 | D79: 1000 | E79: Wales | F79: PSBA | G79: 22800000 | H79: 2280000 | I79: 2013-09-01 | J79: L06505 | K79: CA01201 | L79: AD01393 | M79: 0 | N79: Wales | O79: All | P79: 24492.1875
A80: Aberystwyth University, Visualisation Centre | B80: Higher Education | C80: 1000 | D80: 1000 | E80: Wales | F80: PSBA | G80: 65200000 | H80: 4510000 | I80: 2013-10-01 | J80: L06505 | K80: CA01201 | L80: AD01393 | M80: 0 | N80: Wales | O80: All | P80: 68076.17188
A81: Aberystwyth University, Visualisation Centre | B81: Higher Education | C81: 1000 | D81: 1000 | E81: Wales | F81: PSBA | G81: 70100000 | H81: 4890000 | I81: 2013-11-01 | J81: L06505 | K81: CA01201 | L81: AD01393 | M81: 0 | N81: Wales | O81: All | P81: 73232.42188
A82: Aberystwyth University, Visualisation Centre | B82: Higher Education | C82: 1000 | D82: 1000 | E82: Wales | F82: PSBA | G82: 39100000 | H82: 2830000 | I82: 2013-12-01 | J82: L06505 | K82: CA01201 | L82: AD01393 | M82: 0 | N82: Wales | O82: All | P82: 40947.26562
A83: Aberystwyth University, Visualisation Centre | B83: Higher Education | C83: 1000 | D83: 1000 | E83: Wales | F83: PSBA | G83: 64900000 | H83: 4400000 | I83: 2014-01-01 | J83: L06505 | K83: CA01201 | L83: AD01393 | M83: 0 | N83: Wales | O83: All | P83: 67675.78125
A84: Aberystwyth University, Visualisation Centre | B84: Higher Education | C84: 1000 | D84: 1000 | E84: Wales | F84: PSBA | G84: 72300000 | H84: 5020000 | I84: 2014-02-01 | J84: L06505 | K84: CA01201 | L84: AD01393 | M84: 0 | N84: Wales | O84: All | P84: 75507.8125
A85: Aberystwyth University, Visualisation Centre | B85: Higher Education | C85: 1000 | D85: 1000 | E85: Wales | F85: PSBA | G85: 83300000 | H85: 5410000 | I85: 2014-03-01 | J85: L06505 | K85: CA01201 | L85: AD01393 | M85: 0 | N85: Wales | O85: All | P85: 86630.85938
A86: Aberystwyth University, Visualisation Centre | B86: Higher Education | C86: 1000 | D86: 1000 | E86: Wales | F86: PSBA | G86: 48800000 | H86: 3350000 | I86: 2014-04-01 | J86: L06505 | K86: CA01201 | L86: AD01393 | M86: 0 | N86: Wales | O86: All | P86: 50927.73438
A87: Aberystwyth University, Visualisation Centre | B87: Higher Education | C87: 1000 | D87: 1000 | E87: Wales | F87: PSBA | G87: 73400000 | H87: 4450000 | I87: 2014-05-01 | J87: L06505 | K87: CA01201 | L87: AD01393 | M87: 0 | N87: Wales | O87: All | P87: 76025.39062
A88: Abingdon and Witney College | B88: Further Education College | C88: 100 | D88: 100 | E88: TVN | F88: NOC | G88: 2030000 | H88: 209000 | I88: 2012-06-01 | J88: L04543 | K88: CA00470 | L88: AD00476 | M88: 0 | N88: TVN | O88: All | P88: 2186.523438
A89: Abingdon and Witney College | B89: Further Education College | C89: 100 | D89: 100 | E89: TVN | F89: NOC | G89: 817000 | H89: 85900 | I89: 2012-07-01 | J89: L04543 | K89: CA00470 | L89: AD00476 | M89: 0 | N89: TVN | O89: All | P89: 881.7382812
A90: Abingdon and Witney College | B90: Further Education College | C90: 100 | D90: 100 | E90: TVN | F90: NOC | G90: 539000 | H90: 71300 | I90: 2012-08-01 | J90: L04543 | K90: CA00470 | L90: AD00476 | M90: 0 | N90: TVN | O90: All | P90: 595.9960938
A91: Abingdon and Witney College | B91: Further Education College | C91: 100 | D91: 100 | E91: TVN | F91: NOC | G91: 1380000 | H91: 112000 | I91: 2012-09-01 | J91: L04543 | K91: CA00470 | L91: AD00476 | M91: 0 | N91: TVN | O91: All | P91: 1457.03125
A92: Abingdon and Witney College | B92: Further Education College | C92: 100 | D92: 100 | E92: TVN | F92: NOC | G92: 2300000 | H92: 176000 | I92: 2012-10-01 | J92: L04543 | K92: CA00470 | L92: AD00476 | M92: 0 | N92: TVN | O92: All | P92: 2417.96875
A93: Abingdon and Witney College | B93: Further Education College | C93: 100 | D93: 100 | E93: TVN | F93: NOC | G93: 2910000 | H93: 210000 | I93: 2012-11-01 | J93: L04543 | K93: CA00470 | L93: AD00476 | M93: 0 | N93: TVN | O93: All | P93: 3046.875
A94: Abingdon and Witney College | B94: Further Education College | C94: 100 | D94: 100 | E94: TVN | F94: NOC | G94: 2170000 | H94: 187000 | I94: 2012-12-01 | J94: L04543 | K94: CA00470 | L94: AD00476 | M94: 0 | N94: TVN | O94: All | P94: 2301.757812
A95: Abingdon and Witney College | B95: Further Education College | C95: 100 | D95: 100 | E95: TVN | F95: NOC | G95: 7520000 | H95: 227000 | I95: 2013-01-01 | J95: L04543 | K95: CA00470 | L95: AD00476 | M95: 0 | N95: TVN | O95: All | P95: 7565.429688
A96: Abingdon and Witney College | B96: Further Education College | C96: 100 | D96: 100 | E96: TVN | F96: NOC | G96: 3170000 | H96: 199000 | I96: 2013-02-01 | J96: L04543 | K96: CA00470 | L96: AD00476 | M96: 0 | N96: TVN | O96: All | P96: 3290.039062
A97: Abingdon and Witney College | B97: Further Education College | C97: 100 | D97: 100 | E97: TVN | F97: NOC | G97: 2780000 | H97: 217000 | I97: 2013-03-01 | J97: L04543 | K97: CA00470 | L97: AD00476 | M97: 0 | N97: TVN | O97: All | P97: 2926.757812
A98: Abingdon and Witney College | B98: Further Education College | C98: 100 | D98: 100 | E98: TVN | F98: NOC | G98: 2240000 | H98: 164000 | I98: 2013-04-01 | J98: L04543 | K98: CA00470 | L98: AD00476 | M98: 0 | N98: TVN | O98: All | P98: 2347.65625
A99: Abingdon and Witney College | B99: Further Education College | C99: 100 | D99: 100 | E99: TVN | F99: NOC | G99: 2750000 | H99: 223000 | I99: 2013-05-01 | J99: L04543 | K99: CA00470 | L99: AD00476 | M99: 0 | N99: TVN | O99: All | P99: 2903.320312
A100: Abingdon and Witney College | B100: Further Education College | C100: 100 | D100: 100 | E100: TVN | F100: NOC | G100: 2730000 | H100: 216000 | I100: 2013-06-01 | J100: L04543 | K100: CA00470 | L100: AD00476 | M100: 0 | N100: TVN | O100: All | P100: 2876.953125
A101: Abingdon and Witney College | B101: Further Education College | C101: 100 | D101: 100 | E101: TVN | F101: NOC | G101: 1020000 | H101: 100000 | I101: 2013-07-01 | J101: L04543 | K101: CA00470 | L101: AD00476 | M101: 0 | N101: TVN | O101: All | P101: 1093.75
A102: Abingdon and Witney College | B102: Further Education College | C102: 100 | D102: 100 | E102: TVN | F102: NOC | G102: 605000 | H102: 96900 | I102: 2013-08-01 | J102: L04543 | K102: CA00470 | L102: AD00476 | M102: 0 | N102: TVN | O102: All | P102: 685.4492188
A103: Abingdon and Witney College | B103: Further Education College | C103: 100 | D103: 100 | E103: TVN | F103: NOC | G103: 1480000 | H103: 155000 | I103: 2013-09-01 | J103: L04543 | K103: CA00470 | L103: AD00476 | M103: 0 | N103: TVN | O103: All | P103: 1596.679688
A104: Abingdon and Witney College | B104: Further Education College | C104: 100 | D104: 100 | E104: TVN | F104: NOC | G104: 2970000 | H104: 282000 | I104: 2013-10-01 | J104: L04543 | K104: CA00470 | L104: AD00476 | M104: 0 | N104: TVN | O104: All | P104: 3175.78125
A105: Abingdon and Witney College | B105: Further Education College | C105: 100 | D105: 100 | E105: TVN | F105: NOC | G105: 3830000 | H105: 296000 | I105: 2013-11-01 | J105: L04543 | K105: CA00470 | L105: AD00476 | M105: 0 | N105: TVN | O105: All | P105: 4029.296875
A106: Abingdon and Witney College | B106: Further Education College | C106: 100 | D106: 100 | E106: TVN | F106: NOC | G106: 2860000 | H106: 264000 | I106: 2013-12-01 | J106: L04543 | K106: CA00470 | L106: AD00476 | M106: 0 | N106: TVN | O106: All | P106: 3050.78125
A107: Abingdon and Witney College | B107: Further Education College | C107: 100 | D107: 100 | E107: TVN | F107: NOC | G107: 3930000 | H107: 328000 | I107: 2014-01-01 | J107: L04543 | K107: CA00470 | L107: AD00476 | M107: 0 | N107: TVN | O107: All | P107: 4158.203125
A108: Abingdon and Witney College | B108: Further Education College | C108: 100 | D108: 100 | E108: TVN | F108: NOC | G108: 3400000 | H108: 275000 | I108: 2014-02-01 | J108: L04543 | K108: CA00470 | L108: AD00476 | M108: 0 | N108: TVN | O108: All | P108: 3588.867188
A109: Abingdon and Witney College | B109: Further Education College | C109: 100 | D109: 100 | E109: TVN | F109: NOC | G109: 5160000 | H109: 393000 | I109: 2014-03-01 | J109: L04543 | K109: CA00470 | L109: AD00476 | M109: 0 | N109: TVN | O109: All | P109: 5422.851562
A110: Abingdon and Witney College | B110: Further Education College | C110: 100 | D110: 100 | E110: TVN | F110: NOC | G110: 3350000 | H110: 272000 | I110: 2014-04-01 | J110: L04543 | K110: CA00470 | L110: AD00476 | M110: 0 | N110: TVN | O110: All | P110: 3537.109375
A111: Abingdon and Witney College | B111: Further Education College | C111: 100 | D111: 100 | E111: TVN | F111: NOC | G111: 4720000 | H111: 422000 | I111: 2014-05-01 | J111: L04543 | K111: CA00470 | L111: AD00476 | M111: 0 | N111: TVN | O111: All | P111: 5021.484375
A112: Accrington and Rossendale College | B112: Further Education College | C112: 100 | D112: 100 | E112: NNW | F112: NNW | G112: 1770000 | H112: 1450000 | I112: 2012-06-01 | J112: L04488 | K112: CA00764 | L112: AD00789 | M112: 0 | N112: North West | O112: All | P112: 3144.53125
A113: Accrington and Rossendale College | B113: Further Education College | C113: 100 | D113: 100 | E113: NNW | F113: NNW | G113: 1320000 | H113: 1490000 | I113: 2012-07-01 | J113: L04488 | K113: CA00764 | L113: AD00789 | M113: 0 | N113: North West | O113: All | P113: 2744.140625
A114: Accrington and Rossendale College | B114: Further Education College | C114: 100 | D114: 100 | E114: NNW | F114: NNW | G114: 995000 | H114: 976000 | I114: 2012-08-01 | J114: L04488 | K114: CA00764 | L114: AD00789 | M114: 0 | N114: North West | O114: All | P114: 1924.804688
A115: Accrington and Rossendale College | B115: Further Education College | C115: 100 | D115: 100 | E115: NNW | F115: NNW | G115: 2240000 | H115: 1760000 | I115: 2012-09-01 | J115: L04488 | K115: CA00764 | L115: AD00789 | M115: 0 | N115: North West | O115: All | P115: 3906.25
A116: Accrington and Rossendale College | B116: Further Education College | C116: 100 | D116: 100 | E116: NNW | F116: NNW | G116: 2710000 | H116: 1350000 | I116: 2012-10-01 | J116: L04488 | K116: CA00764 | L116: AD00789 | M116: 0 | N116: North West | O116: All | P116: 3964.84375
A117: Accrington and Rossendale College | B117: Further Education College | C117: 100 | D117: 100 | E117: NNW | F117: NNW | G117: 2780000 | H117: 1430000 | I117: 2012-11-01 | J117: L04488 | K117: CA00764 | L117: AD00789 | M117: 0 | N117: North West | O117: All | P117: 4111.328125
A118: Accrington and Rossendale College | B118: Further Education College | C118: 100 | D118: 100 | E118: NNW | F118: NNW | G118: 2460000 | H118: 2750000 | I118: 2012-12-01 | J118: L04488 | K118: CA00764 | L118: AD00789 | M118: 0 | N118: North West | O118: All | P118: 5087.890625
A119: Accrington and Rossendale College | B119: Further Education College | C119: 100 | D119: 100 | E119: NNW | F119: NNW | G119: 2840000 | H119: 2710000 | I119: 2013-01-01 | J119: L04488 | K119: CA00764 | L119: AD00789 | M119: 0 | N119: North West | O119: All | P119: 5419.921875
A120: Accrington and Rossendale College | B120: Further Education College | C120: 100 | D120: 100 | E120: NNW | F120: NNW | G120: 2650000 | H120: 1530000 | I120: 2013-02-01 | J120: L04488 | K120: CA00764 | L120: AD00789 | M120: 0 | N120: North West | O120: All | P120: 4082.03125
A121: Accrington and Rossendale College | B121: Further Education College | C121: 100 | D121: 100 | E121: NNW | F121: NNW | G121: 3300000 | H121: 3180000 | I121: 2013-03-01 | J121: L04488 | K121: CA00764 | L121: AD00789 | M121: 0 | N121: North West | O121: All | P121: 6328.125
A122: Accrington and Rossendale College | B122: Further Education College | C122: 100 | D122: 100 | E122: NNW | F122: NNW | G122: 2700000 | H122: 1320000 | I122: 2013-04-01 | J122: L04488 | K122: CA00764 | L122: AD00789 | M122: 0 | N122: North West | O122: All | P122: 3925.78125
A123: Accrington and Rossendale College | B123: Further Education College | C123: 100 | D123: 100 | E123: NNW | F123: NNW | G123: 3750000 | H123: 1680000 | I123: 2013-05-01 | J123: L04488 | K123: CA00764 | L123: AD00789 | M123: 0 | N123: North West | O123: All | P123: 5302.734375
A124: Accrington and Rossendale College | B124: Further Education College | C124: 100 | D124: 100 | E124: NNW | F124: NNW | G124: 3020000 | H124: 1430000 | I124: 2013-06-01 | J124: L04488 | K124: CA00764 | L124: AD00789 | M124: 0 | N124: North West | O124: All | P124: 4345.703125
A125: Accrington and Rossendale College | B125: Further Education College | C125: 100 | D125: 100 | E125: NNW | F125: NNW | G125: 1950000 | H125: 1540000 | I125: 2013-07-01 | J125: L04488 | K125: CA00764 | L125: AD00789 | M125: 0 | N125: North West | O125: All | P125: 3408.203125
A126: Accrington and Rossendale College | B126: Further Education College | C126: 100 | D126: 100 | E126: North West | F126: NOC | G126: 62 | H126: 1830000 | I126: 2013-08-01 | J126: L04488 | K126: CA00764 | L126: AD00789 | M126: 0 | N126: North West | O126: All | P126: 1787.169922
A127: Accrington and Rossendale College | B127: Further Education College | C127: 100 | D127: 100 | E127: North West | F127: NOC | G127: 4230000 | H127: 1400000 | I127: 2013-09-01 | J127: L04488 | K127: CA00764 | L127: AD00789 | M127: 0 | N127: North West | O127: All | P127: 5498.046875
A128: Accrington and Rossendale College | B128: Further Education College | C128: 100 | D128: 100 | E128: North West | F128: NOC | G128: 3920000 | H128: 1940000 | I128: 2013-10-01 | J128: L04488 | K128: CA00764 | L128: AD00789 | M128: 0 | N128: North West | O128: All | P128: 5722.65625
A129: Accrington and Rossendale College | B129: Further Education College | C129: 100 | D129: 100 | E129: North West | F129: NOC | G129: 4050000 | H129: 1230000 | I129: 2013-11-01 | J129: L04488 | K129: CA00764 | L129: AD00789 | M129: 0 | N129: North West | O129: All | P129: 5156.25
A130: Accrington and Rossendale College | B130: Further Education College | C130: 100 | D130: 100 | E130: North West | F130: NOC | G130: 3230000 | H130: 1660000 | I130: 2013-12-01 | J130: L04488 | K130: CA00764 | L130: AD00789 | M130: 0 | N130: =IF(E130="","",IF(region_selection="All","All",VLOOKUP(E130,region_lookup,2,FALSE))) -> North West | O130: =IF(B130="","",IF(sector_selection="All","All",VLOOKUP(B130,sector_lookup,2,FALSE))) -> All | P130: =IF(G130="","",SUM(G130:H130)/1024) -> 4775.390625
A131: Accrington and Rossendale College | B131: Further Education College | C131: 100 | D131: 100 | E131: North West | F131: NOC | G131: 4280000 | H131: 2010000 | I131: 2014-01-01 | J131: L04488 | K131: CA00764 | L131: AD00789 | M131: 0 | N131: North West | O131: All | P131: 6142.578125
A132: Accrington and Rossendale College | B132: Further Education College | C132: 100 | D132: 100 | E132: North West | F132: NOC | G132: 3770000 | H132: 1650000 | I132: 2014-02-01 | J132: L04488 | K132: CA00764 | L132: AD00789 | M132: 0 | N132: North West | O132: All | P132: 5292.96875
A133: Accrington and Rossendale College | B133: Further Education College | C133: 100 | D133: 100 | E133: North West | F133: NOC | G133: 4690000 | H133: 1460000 | I133: 2014-03-01 | J133: L04488 | K133: CA00764 | L133: AD00789 | M133: 0 | N133: North West | O133: All | P133: 6005.859375
A134: Accrington and Rossendale College | B134: Further Education College | C134: 100 | D134: 100 | E134: North West | F134: NOC | G134: 4350000 | H134: 2280000 | I134: 2014-04-01 | J134: L04488 | K134: CA00764 | L134: AD00789 | M134: 0 | N134: North West | O134: All | P134: 6474.609375
A135: Accrington and Rossendale College | B135: Further Education College | C135: 100 | D135: 100 | E135: North West | F135: NOC | G135: 4580000 | H135: 1930000 | I135: 2014-05-01 | J135: L04488 | K135: CA00764 | L135: AD00789 | M135: 0 | N135: North West | O135: All | P135: 6357.421875
A136: Activate Learning, Oxford Campus | B136: Further Education College | C136: 1000 | D136: 1000 | E136: TVN | F136: NOC | G136: 2870000 | H136: 420000 | I136: 2012-06-01 | J136: L05919 | K136: CA00481 | L136: AD00489 | M136: 0 | N136: TVN | O136: All | P136: 3212.890625
A137: Activate Learning, Oxford Campus | B137: Further Education College | C137: 1000 | D137: 1000 | E137: TVN | F137: NOC | G137: 1480000 | H137: 349000 | I137: 2012-07-01 | J137: L05919 | K137: CA00481 | L137: AD00489 | M137: 0 | N137: TVN | O137: All | P137: 1786.132812
A138: Activate Learning, Oxford Campus | B138: Further Education College | C138: 1000 | D138: 1000 | E138: TVN | F138: NOC | G138: 1510000 | H138: 271000 | I138: 2012-08-01 | J138: L05919 | K138: CA00481 | L138: AD00489 | M138: 0 | N138: TVN | O138: All | P138: 1739.257812
A139: Activate Learning, Oxford Campus | B139: Further Education College | C139: 1000 | D139: 1000 | E139: TVN | F139: NOC | G139: 2980000 | H139: 405000 | I139: 2012-09-01 | J139: L05919 | K139: CA00481 | L139: AD00489 | M139: 0 | N139: TVN | O139: All | P139: 3305.664062
A140: Activate Learning, Oxford Campus | B140: Further Education College | C140: 1000 | D140: 1000 | E140: TVN | F140: NOC | G140: 5440000 | H140: 555000 | I140: 2012-10-01 | J140: L05919 | K140: CA00481 | L140: AD00489 | M140: 0 | N140: TVN | O140: All | P140: 5854.492188
A141: Activate Learning, Oxford Campus | B141: Further Education College | C141: 1000 | D141: 1000 | E141: TVN | F141: NOC | G141: 5420000 | H141: 624000 | I141: 2012-11-01 | J141: L05919 | K141: CA00481 | L141: AD00489 | M141: 0 | N141: TVN | O141: All | P141: 5902.34375
A142: Activate Learning, Oxford Campus | B142: Further Education College | C142: 1000 | D142: 1000 | E142: TVN | F142: NOC | G142: 3340000 | H142: 428000 | I142: 2012-12-01 | J142: L05919 | K142: CA00481 | L142: AD00489 | M142: 0 | N142: TVN | O142: All | P142: 3679.6875
A143: Activate Learning, Oxford Campus | B143: Further Education College | C143: 1000 | D143: 1000 | E143: TVN | F143: NOC | G143: 5630000 | H143: 654000 | I143: 2013-01-01 | J143: L05919 | K143: CA00481 | L143: AD00489 | M143: 0 | N143: TVN | O143: All | P143: 6136.71875
A144: Activate Learning, Oxford Campus | B144: Further Education College | C144: 1000 | D144: 1000 | E144: TVN | F144: NOC | G144: 5100000 | H144: 522000 | I144: 2013-02-01 | J144: L05919 | K144: CA00481 | L144: AD00489 | M144: 0 | N144: TVN | O144: All | P144: 5490.234375
A145: Activate Learning, Oxford Campus | B145: Further Education College | C145: 1000 | D145: 1000 | E145: TVN | F145: NOC | G145: 6230000 | H145: 686000 | I145: 2013-03-01 | J145: L05919 | K145: CA00481 | L145: AD00489 | M145: 0 | N145: TVN | O145: All | P145: 6753.90625
A146: Activate Learning, Oxford Campus | B146: Further Education College | C146: 1000 | D146: 1000 | E146: TVN | F146: NOC | G146: 4790000 | H146: 510000 | I146: 2013-04-01 | J146: L05919 | K146: CA00481 | L146: AD00489 | M146: 0 | N146: TVN | O146: All | P146: 5175.78125
A147: Activate Learning, Oxford Campus | B147: Further Education College | C147: 1000 | D147: 1000 | E147: TVN | F147: NOC | G147: 6080000 | H147: 653000 | I147: 2013-05-01 | J147: L05919 | K147: CA00481 | L147: AD00489 | M147: 0 | N147: TVN | O147: All | P147: 6575.195312
A148: Activate Learning, Oxford Campus | B148: Further Education College | C148: 1000 | D148: 1000 | E148: TVN | F148: NOC | G148: 5760000 | H148: 615000 | I148: 2013-06-01 | J148: L05919 | K148: CA00481 | L148: AD00489 | M148: 0 | N148: TVN | O148: All | P148: 6225.585938
A149: Activate Learning, Oxford Campus | B149: Further Education College | C149: 1000 | D149: 1000 | E149: TVN | F149: NOC | G149: 2370000 | H149: 512000 | I149: 2013-07-01 | J149: L05919 | K149: CA00481 | L149: AD00489 | M149: 0 | N149: TVN | O149: All | P149: 2814.453125
A150: Activate Learning, Oxford Campus | B150: Further Education College | C150: 1000 | D150: 1000 | E150: TVN | F150: NOC | G150: 1200000 | H150: 337000 | I150: 2013-08-01 | J150: L05919 | K150: CA00481 | L150: AD00489 | M150: 0 | N150: TVN | O150: All | P150: 1500.976562
A151: Activate Learning, Oxford Campus | B151: Further Education College | C151: 1000 | D151: 1000 | E151: TVN | F151: NOC | G151: 4580000 | H151: 568000 | I151: 2013-09-01 | J151: L05919 | K151: CA00481 | L151: AD00489 | M151: 0 | N151: TVN | O151: All | P151: 5027.34375
A152: Activate Learning, Oxford Campus | B152: Further Education College | C152: 1000 | D152: 1000 | E152: TVN | F152: NOC | G152: 6280000 | H152: 701000 | I152: 2013-10-01 | J152: L05919 | K152: CA00481 | L152: AD00489 | M152: 0 | N152: TVN | O152: All | P152: 6817.382812
A153: Activate Learning, Oxford Campus | B153: Further Education College | C153: 1000 | D153: 1000 | E153: TVN | F153: NOC | G153: 7190000 | H153: 779000 | I153: 2013-11-01 | J153: L05919 | K153: CA00481 | L153: AD00489 | M153: 0 | N153: TVN | O153: All | P153: 7782.226562
A154: Activate Learning, Oxford Campus | B154: Further Education College | C154: 1000 | D154: 1000 | E154: TVN | F154: NOC | G154: 6230000 | H154: 640000 | I154: 2013-12-01 | J154: L05919 | K154: CA00481 | L154: AD00489 | M154: 0 | N154: TVN | O154: All | P154: 6708.984375
A155: Activate Learning, Oxford Campus | B155: Further Education College | C155: 1000 | D155: 1000 | E155: TVN | F155: NOC | G155: 8250000 | H155: 734000 | I155: 2014-01-01 | J155: L05919 | K155: CA00481 | L155: AD00489 | M155: 0 | N155: TVN | O155: All | P155: 8773.4375
A156: Activate Learning, Oxford Campus | B156: Further Education College | C156: 1000 | D156: 1000 | E156: TVN | F156: NOC | G156: 8030000 | H156: 697000 | I156: 2014-02-01 | J156: L05919 | K156: CA00481 | L156: AD00489 | M156: 0 | N156: TVN | O156: All | P156: 8522.460938
A157: Activate Learning, Oxford Campus | B157: Further Education College | C157: 1000 | D157: 1000 | E157: TVN | F157: NOC | G157: 10500000 | H157: 987000 | I157: 2014-03-01 | J157: L05919 | K157: CA00481 | L157: AD00489 | M157: 0 | N157: TVN | O157: All | P157: 11217.77344
A158: Activate Learning, Oxford Campus | B158: Further Education College | C158: 1000 | D158: 1000 | E158: TVN | F158: NOC | G158: 6090000 | H158: 627000 | I158: 2014-04-01 | J158: L05919 | K158: CA00481 | L158: AD00489 | M158: 0 | N158: TVN | O158: All | P158: 6559.570312
A159: Activate Learning, Oxford Campus | B159: Further Education College | C159: 1000 | D159: 1000 | E159: TVN | F159: NOC | G159: 8280000 | H159: 984000 | I159: 2014-05-01 | J159: L05919 | K159: CA00481 | L159: AD00489 | M159: 0 | N159: TVN | O159: All | P159: 9046.875
A160: Activate Learning, Reading College Campus | B160: Further Education College | C160: 100 | D160: 100 | E160: TVN | F160: NOC | G160: 1690000 | H160: 1510000 | I160: 2012-06-01 | J160: L05634 | K160: CA01138 | L160: AD01254 | M160: 0 | N160: TVN | O160: All | P160: 3125
A161: Activate Learning, Reading College Campus | B161: Further Education College | C161: 100 | D161: 100 | E161: TVN | F161: NOC | G161: 650000 | H161: 127000 | I161: 2012-07-01 | J161: L05634 | K161: CA01138 | L161: AD01254 | M161: 0 | N161: TVN | O161: All | P161: 758.7890625
A162: Activate Learning, Reading College Campus | B162: Further Education College | C162: 100 | D162: 100 | E162: TVN | F162: NOC | G162: 847000 | H162: 100000 | I162: 2012-08-01 | J162: L05634 | K162: CA01138 | L162: AD01254 | M162: 0 | N162: TVN | O162: All | P162: 924.8046875
A163: Activate Learning, Reading College Campus | B163: Further Education College | C163: 100 | D163: 100 | E163: TVN | F163: NOC | G163: 1220000 | H163: 258000 | I163: 2012-09-01 | J163: L05634 | K163: CA01138 | L163: AD01254 | M163: 0 | N163: TVN | O163: All | P163: 1443.359375
A164: Activate Learning, Reading College Campus | B164: Further Education College | C164: 100 | D164: 100 | E164: TVN | F164: NOC | G164: 2180000 | H164: 252000 | I164: 2012-10-01 | J164: L05634 | K164: CA01138 | L164: AD01254 | M164: 0 | N164: TVN | O164: All | P164: 2375
A165: Activate Learning, Reading College Campus | B165: Further Education College | C165: 100 | D165: 100 | E165: TVN | F165: NOC | G165: 2370000 | H165: 249000 | I165: 2012-11-01 | J165: L05634 | K165: CA01138 | L165: AD01254 | M165: 0 | N165: TVN | O165: All | P165: 2557.617188
A166: Activate Learning, Reading College Campus | B166: Further Education College | C166: 100 | D166: 100 | E166: TVN | F166: NOC | G166: 1940000 | H166: 214000 | I166: 2012-12-01 | J166: L05634 | K166: CA01138 | L166: AD01254 | M166: 0 | N166: TVN | O166: All | P166: 2103.515625
A167: Activate Learning, Reading College Campus | B167: Further Education College | C167: 100 | D167: 100 | E167: TVN | F167: NOC | G167: 2330000 | H167: 266000 | I167: 2013-01-01 | J167: L05634 | K167: CA01138 | L167: AD01254 | M167: 0 | N167: TVN | O167: All | P167: 2535.15625
A168: Activate Learning, Reading College Campus | B168: Further Education College | C168: 100 | D168: 100 | E168: TVN | F168: NOC | G168: 2570000 | H168: 261000 | I168: 2013-02-01 | J168: L05634 | K168: CA01138 | L168: AD01254 | M168: 0 | N168: TVN | O168: All | P168: 2764.648438
A169: Activate Learning, Reading College Campus | B169: Further Education College | C169: 100 | D169: 100 | E169: TVN | F169: NOC | G169: 2890000 | H169: 377000 | I169: 2013-03-01 | J169: L05634 | K169: CA01138 | L169: AD01254 | M169: 0 | N169: TVN | O169: All | P169: 3190.429688
A170: Activate Learning, Reading College Campus | B170: Further Education College | C170: 100 | D170: 100 | E170: TVN | F170: NOC | G170: 2250000 | H170: 290000 | I170: 2013-04-01 | J170: L05634 | K170: CA01138 | L170: AD01254 | M170: 0 | N170: TVN | O170: All | P170: 2480.46875
A171: Activate Learning, Reading College Campus | B171: Further Education College | C171: 100 | D171: 100 | E171: TVN | F171: NOC | G171: 2790000 | H171: 331000 | I171: 2013-05-01 | J171: L05634 | K171: CA01138 | L171: AD01254 | M171: 0 | N171: TVN | O171: All | P171: 3047.851562
A172: Activate Learning, Reading College Campus | B172: Further Education College | C172: 100 | D172: 100 | E172: TVN | F172: NOC | G172: 3170000 | H172: 486000 | I172: 2013-06-01 | J172: L05634 | K172: CA01138 | L172: AD01254 | M172: 0 | N172: TVN | O172: All | P172: 3570.3125
A173: Activate Learning, Reading College Campus | B173: Further Education College | C173: 100 | D173: 100 | E173: TVN | F173: NOC | G173: 1270000 | H173: 245000 | I173: 2013-07-01 | J173: L05634 | K173: CA01138 | L173: AD01254 | M173: 0 | N173: TVN | O173: All | P173: 1479.492188
A174: Activate Learning, Reading College Campus | B174: Further Education College | C174: 100 | D174: 100 | E174: TVN | F174: NOC | G174: 633000 | H174: 162000 | I174: 2013-08-01 | J174: L05634 | K174: CA01138 | L174: AD01254 | M174: 0 | N174: TVN | O174: All | P174: 776.3671875
A175: Activate Learning, Reading College Campus | B175: Further Education College | C175: 100 | D175: 100 | E175: TVN | F175: NOC | G175: 1960000 | H175: 272000 | I175: 2013-09-01 | J175: L05634 | K175: CA01138 | L175: AD01254 | M175: 0 | N175: TVN | O175: All | P175: 2179.6875
A176: Activate Learning, Reading College Campus | B176: Further Education College | C176: 100 | D176: 100 | E176: TVN | F176: NOC | G176: 3230000 | H176: 416000 | I176: 2013-10-01 | J176: L05634 | K176: CA01138 | L176: AD01254 | M176: 0 | N176: TVN | O176: All | P176: 3560.546875
A177: Activate Learning, Reading College Campus | B177: Further Education College | C177: 100 | D177: 100 | E177: TVN | F177: NOC | G177: 3750000 | H177: 436000 | I177: 2013-11-01 | J177: L05634 | K177: CA01138 | L177: AD01254 | M177: 0 | N177: TVN | O177: All | P177: 4087.890625
A178: Activate Learning, Reading College Campus | B178: Further Education College | C178: 100 | D178: 100 | E178: TVN | F178: NOC | G178: 2930000 | H178: 415000 | I178: 2013-12-01 | J178: L05634 | K178: CA01138 | L178: AD01254 | M178: 0 | N178: TVN | O178: All | P178: 3266.601562
A179: Activate Learning, Reading College Campus | B179: Further Education College | C179: 100 | D179: 100 | E179: TVN | F179: NOC | G179: 3840000 | H179: 458000 | I179: 2014-01-01 | J179: L05634 | K179: CA01138 | L179: AD01254 | M179: 0 | N179: TVN | O179: All | P179: 4197.265625
A180: Activate Learning, Reading College Campus | B180: Further Education College | C180: 100 | D180: 100 | E180: TVN | F180: NOC | G180: 3620000 | H180: 378000 | I180: 2014-02-01 | J180: L05634 | K180: CA01138 | L180: AD01254 | M180: 0 | N180: TVN | O180: All | P180: 3904.296875
A181: Activate Learning, Reading College Campus | B181: Further Education College | C181: 100 | D181: 1000 | E181: TVN | F181: NOC | G181: 4580000 | H181: 453000 | I181: 2014-03-01 | J181: L05634 | K181: CA01138 | L181: AD01254 | M181: 0 | N181: TVN | O181: All | P181: 4915.039062
A182: Activate Learning, Reading College Campus | B182: Further Education College | C182: 100 | D182: 1000 | E182: TVN | F182: NOC | G182: 3010000 | H182: 349000 | I182: 2014-04-01 | J182: L05634 | K182: CA01138 | L182: AD01254 | M182: 0 | N182: TVN | O182: All | P182: 3280.273438
A183: Activate Learning, Reading College Campus | B183: Further Education College | C183: 100 | D183: 1000 | E183: TVN | F183: NOC | G183: 4030000 | H183: 408000 | I183: 2014-05-01 | J183: L05634 | K183: CA01138 | L183: AD01254 | M183: 0 | N183: TVN | O183: All | P183: 4333.984375
A184: Alton College | B184: Sixth Form College | C184: 100 | D184: 100 | E184: LeNSE | F184: LeNSE | G184: 1370000 | H184: 168000 | I184: 2012-06-01 | J184: L04449 | K184: CA00289 | L184: AD00291 | M184: 0 | N184: South | O184: All | P184: 1501.953125
A185: Alton College | B185: Sixth Form College | C185: 100 | D185: 100 | E185: LeNSE | F185: LeNSE | G185: 657000 | H185: 97900 | I185: 2012-07-01 | J185: L04449 | K185: CA00289 | L185: AD00291 | M185: 0 | N185: South | O185: All | P185: 737.2070312
A186: Alton College | B186: Sixth Form College | C186: 100 | D186: 100 | E186: LeNSE | F186: LeNSE | G186: 205000 | H186: 91800 | I186: 2012-08-01 | J186: L04449 | K186: CA00289 | L186: AD00291 | M186: 0 | N186: South | O186: All | P186: 289.84375
A187: Alton College | B187: Sixth Form College | C187: 100 | D187: 100 | E187: LeNSE | F187: LeNSE | G187: 1200000 | H187: 227000 | I187: 2012-09-01 | J187: L04449 | K187: CA00289 | L187: AD00291 | M187: 0 | N187: South | O187: All | P187: 1393.554688
A188: Alton College | B188: Sixth Form College | C188: 100 | D188: 100 | E188: Janet South | F188: NOC | G188: 1810000 | H188: 255000 | I188: 2012-10-01 | J188: L04449 | K188: CA00289 | L188: AD00291 | M188: 0 | N188: South | O188: All | P188: 2016.601562
A189: Alton College | B189: Sixth Form College | C189: 100 | D189: 100 | E189: Janet South | F189: NOC | G189: 2090000 | H189: 272000 | I189: 2012-11-01 | J189: L04449 | K189: CA00289 | L189: AD00291 | M189: 0 | N189: South | O189: All | P189: 2306.640625
A190: Alton College | B190: Sixth Form College | C190: 100 | D190: 100 | E190: Janet South | F190: NOC | G190: 1850000 | H190: 218000 | I190: 2012-12-01 | J190: L04449 | K190: CA00289 | L190: AD00291 | M190: 0 | N190: South | O190: All | P190: 2019.53125
A191: Alton College | B191: Sixth Form College | C191: 100 | D191: 100 | E191: Janet South | F191: NOC | G191: 2070000 | H191: 304000 | I191: 2013-01-01 | J191: L04449 | K191: CA00289 | L191: AD00291 | M191: 0 | N191: South | O191: All | P191: 2318.359375
A192: Alton College | B192: Sixth Form College | C192: 100 | D192: 100 | E192: Janet South | F192: NOC | G192: 1940000 | H192: 255000 | I192: 2013-02-01 | J192: L04449 | K192: CA00289 | L192: AD00291 | M192: 0 | N192: South | O192: All | P192: 2143.554688
A193: Alton College | B193: Sixth Form College | C193: 100 | D193: 100 | E193: Janet South | F193: NOC | G193: 2690000 | H193: 373000 | I193: 2013-03-01 | J193: L04449 | K193: CA00289 | L193: AD00291 | M193: 0 | N193: South | O193: All | P193: 2991.210938
A194: Alton College | B194: Sixth Form College | C194: 100 | D194: 100 | E194: Janet South | F194: NOC | G194: 1710000 | H194: 241000 | I194: 2013-04-01 | J194: L04449 | K194: CA00289 | L194: AD00291 | M194: 0 | N194: =IF(E194="","",IF(region_selection="All","All",VLOOKUP(E194,region_lookup,2,FALSE))) -> South | O194: =IF(B194="","",IF(sector_selection="All","All",VLOOKUP(B194,sector_lookup,2,FALSE))) -> All | P194: =IF(G194="","",SUM(G194:H194)/1024) -> 1905.273438
A195: Alton College | B195: Sixth Form College | C195: 100 | D195: 100 | E195: Janet South | F195: NOC | G195: 1940000 | H195: 331000 | I195: 2013-05-01 | J195: L04449 | K195: CA00289 | L195: AD00291 | M195: 0 | N195: South | O195: All | P195: 2217.773438
A196: Alton College | B196: Sixth Form College | C196: 100 | D196: 100 | E196: Janet South | F196: NOC | G196: 2050000 | H196: 271000 | I196: 2013-06-01 | J196: L04449 | K196: CA00289 | L196: AD00291 | M196: 0 | N196: South | O196: All | P196: 2266.601562
A197: Alton College | B197: Sixth Form College | C197: 100 | D197: 100 | E197: South | F197: NOC | G197: 830000 | H197: 153000 | I197: 2013-07-01 | J197: L04449 | K197: CA00289 | L197: AD00291 | M197: 0 | N197: South | O197: All | P197: 959.9609375
A198: Alton College | B198: Sixth Form College | C198: 100 | D198: 100 | E198: South | F198: NOC | G198: 198000 | H198: 114000 | I198: 2013-08-01 | J198: L04449 | K198: CA00289 | L198: AD00291 | M198: 0 | N198: South | O198: All | P198: 304.6875
A199: Alton College | B199: Sixth Form College | C199: 100 | D199: 100 | E199: South | F199: NOC | G199: 1860000 | H199: 302000 | I199: 2013-09-01 | J199: L04449 | K199: CA00289 | L199: AD00291 | M199: 0 | N199: South | O199: All | P199: 2111.328125
A200: Alton College | B200: Sixth Form College | C200: 100 | D200: 100 | E200: South | F200: NOC | G200: 2600000 | H200: 365000 | I200: 2013-10-01 | J200: L04449 | K200: CA00289 | L200: AD00291 | M200: 0 | N200: South | O200: All | P200: 2895.507812
... 4300 more rows

Sheet CA Availability data (hidden)
A1: AD ID | B1: CA ID | C1: Organisation Name | D1: Customer Access Name | E1: Delivery Area | F1: Managing Organisation | G1: Organisation Type | H1: Line Code | I1: Reporting Month | J1: Inaccessibility Count | K1: Inaccessibility Mins | L1: Availability Count | M1: Availability Mins | N1: Availability Pcent | O1: Resilience Count | P1: Availability Region | Q1: Availability Sector | R1: Availability Breakdown Sector | S1: Months in service (up to 12) | T1: 12 Month Rolling Availability | U1: SLA Failure for Selected Region and Sector? | V1: Organisation/Service Name | W1: Service in selected region this month?
A2: AD00101 | B2: CA00101 | C2: Aberdeen College | E2: Aberdeen | F2: NOC | G2: Further Education College | H2: L02273 | I2: 41760 | J2: 0 | K2: 0 | L2: 0 | M2: 0 | N2: 1 | O2: 2 | P2: =IF(E2="","",VLOOKUP(E2,region_lookup,2,FALSE)) -> Aberdeen | Q2: =IF(G2="","",IF(sector_selection="All","All",VLOOKUP(G2,sector_lookup,2,FALSE))) -> All | R2: =IF(G2="","",VLOOKUP(G2,sector_lookup,2,FALSE)) -> Further Education | S2: =IF(I2<>reporting_month,"",COUNTIFS(CA_Availability[CA ID],B2,CA_Availability[Reporting Month],">="&one_year_ago)) -> 12 | T2: 1 | U2: =IF(T2="","",IF(AND(T2<=0.997,P2=region_selection,Q2=sector_selection),"Yes","")) ->  | V2: =IF(C2="","",IF(D2="",C2,C2&", "&D2)) -> Aberdeen College | W2: =IF(AND(I2=reporting_month,P2=region_selection),"yes","") -> yes
A3: AD00101 | B3: CA00101 | C3: Aberdeen College | E3: Aberdeen | F3: NOC | G3: Further Education College | H3: L02273 | I3: 41214 | J3: 0 | K3: 0 | L3: 0 | M3: 0 | N3: 1 | O3: 2 | P3: Aberdeen | Q3: All | R3: Further Education | S3: =IF(I3<>reporting_month,"",COUNTIFS(CA_Availability[CA ID],B3,CA_Availability[Reporting Month],">="&one_year_ago)) ->  | V3: Aberdeen College
A4: AD00101 | B4: CA00101 | C4: Aberdeen College | E4: Aberdeen | F4: NOC | G4: Further Education College | H4: L02273 | I4: 41183 | J4: 0 | K4: 0 | L4: 0 | M4: 0 | N4: 1 | O4: 2 | P4: Aberdeen | Q4: All | R4: Further Education | S4: =IF(I4<>reporting_month,"",COUNTIFS(CA_Availability[CA ID],B4,CA_Availability[Reporting Month],">="&one_year_ago)) ->  | V4: Aberdeen College
A5: AD00101 | B5: CA00101 | C5: Aberdeen College | E5: Aberdeen | F5: NOC | G5: Further Education College | H5: L02273 | I5: 41091 | J5: 1 | K5: 680 | L5: 0 | M5: 0 | N5: 1 | O5: 2 | P5: Aberdeen | Q5: All | R5: Further Education | S5: =IF(I5<>reporting_month,"",COUNTIFS(CA_Availability[CA ID],B5,CA_Availability[Reporting Month],">="&one_year_ago)) ->  | V5: Aberdeen College
A6: AD00101 | B6: CA00101 | C6: Aberdeen College | E6: Aberdeen | F6: NOC | G6: Further Education College | H6: L02273 | I6: 41122 | J6: 0 | K6: 0 | L6: 0 | M6: 0 | N6: 1 | O6: 2 | P6: Aberdeen | Q6: All | R6: Further Education | S6: =IF(I6<>reporting_month,"",COUNTIFS(CA_Availability[CA ID],B6,CA_Availability[Reporting Month],">="&one_year_ago)) ->  | V6: Aberdeen College
A7: AD00101 | B7: CA00101 | C7: Aberdeen College | E7: Aberdeen | F7: NOC | G7: Further Education College | H7: L02273 | I7: 41153 | J7: 1 | K7: 35 | L7: 1 | M7: 35 | N7: 0.99918981 | O7: 2 | P7: Aberdeen | Q7: All | R7: Further Education | S7: =IF(I7<>reporting_month,"",COUNTIFS(CA_Availability[CA ID],B7,CA_Availability[Reporting Month],">="&one_year_ago)) ->  | V7: Aberdeen College
A8: AD00101 | B8: CA00101 | C8: Aberdeen College | E8: Aberdeen | F8: NOC | G8: Further Education College | H8: L02273 | I8: 41244 | J8: 0 | K8: 0 | L8: 0 | M8: 0 | N8: 1 | O8: 2 | P8: Aberdeen | Q8: All | R8: Further Education | S8: =IF(I8<>reporting_month,"",COUNTIFS(CA_Availability[CA ID],B8,CA_Availability[Reporting Month],">="&one_year_ago)) ->  | V8: Aberdeen College
A9: AD00101 | B9: CA00101 | C9: Aberdeen College | E9: Aberdeen | F9: NOC | G9: Further Education College | H9: L02273 | I9: 41306 | J9: 0 | K9: 0 | L9: 0 | M9: 0 | N9: 1 | O9: 2 | P9: Aberdeen | Q9: All | R9: Further Education | S9: =IF(I9<>reporting_month,"",COUNTIFS(CA_Availability[CA ID],B9,CA_Availability[Reporting Month],">="&one_year_ago)) ->  | V9: Aberdeen College
A10: AD00101 | B10: CA00101 | C10: Aberdeen College | E10: Aberdeen | F10: NOC | G10: Further Education College | H10: L02273 | I10: 41334 | J10: 0 | K10: 0 | L10: 0 | M10: 0 | N10: 1 | O10: 2 | P10: Aberdeen | Q10: All | R10: Further Education | S10: =IF(I10<>reporting_month,"",COUNTIFS(CA_Availability[CA ID],B10,CA_Availability[Reporting Month],">="&one_year_ago)) ->  | V10: Aberdeen College
A11: AD00101 | B11: CA00101 | C11: Aberdeen College | E11: Aberdeen | F11: NOC | G11: Further Education College | H11: L02273 | I11: 41061 | J11: 0 | K11: 0 | L11: 0 | M11: 0 | N11: 1 | O11: 2 | P11: Aberdeen | Q11: All | R11: Further Education | S11: =IF(I11<>reporting_month,"",COUNTIFS(CA_Availability[CA ID],B11,CA_Availability[Reporting Month],">="&one_year_ago)) ->  | V11: Aberdeen College
A12: AD00101 | B12: CA00101 | C12: Aberdeen College | E12: Aberdeen | F12: NOC | G12: Further Education College | H12: L02273 | I12: 41275 | J12: 0 | K12: 0 | L12: 0 | M12: 0 | N12: 1 | O12: 2 | P12: Aberdeen | Q12: All | R12: Further Education | S12: =IF(I12<>reporting_month,"",COUNTIFS(CA_Availability[CA ID],B12,CA_Availability[Reporting Month],">="&one_year_ago)) ->  | V12: Aberdeen College
A13: AD00101 | B13: CA00101 | C13: Aberdeen College | E13: Aberdeen | F13: NOC | G13: Further Education College | H13: L02273 | I13: 41395 | J13: 0 | K13: 0 | L13: 0 | M13: 0 | N13: 1 | O13: 2 | P13: Aberdeen | Q13: All | R13: Further Education | S13: =IF(I13<>reporting_month,"",COUNTIFS(CA_Availability[CA ID],B13,CA_Availability[Reporting Month],">="&one_year_ago)) ->  | V13: Aberdeen College
A14: AD00101 | B14: CA00101 | C14: Aberdeen College | E14: Aberdeen | F14: NOC | G14: Further Education College | H14: L02273 | I14: 41426 | J14: 0 | K14: 0 | L14: 0 | M14: 0 | N14: 1 | O14: 2 | P14: Aberdeen | Q14: All | R14: Further Education | S14: =IF(I14<>reporting_month,"",COUNTIFS(CA_Availability[CA ID],B14,CA_Availability[Reporting Month],">="&one_year_ago)) ->  | V14: Aberdeen College
A15: AD00101 | B15: CA00101 | C15: Aberdeen College | E15: Aberdeen | F15: NOC | G15: Further Education College | H15: L02273 | I15: 41365 | J15: 0 | K15: 0 | L15: 0 | M15: 0 | N15: 1 | O15: 2 | P15: Aberdeen | Q15: All | R15: Further Education | S15: =IF(I15<>reporting_month,"",COUNTIFS(CA_Availability[CA ID],B15,CA_Availability[Reporting Month],">="&one_year_ago)) ->  | V15: Aberdeen College
A16: AD00101 | B16: CA00101 | C16: Aberdeen College | E16: Aberdeen | F16: NOC | G16: Further Education College | H16: L02273 | I16: 41579 | J16: 0 | K16: 0 | L16: 0 | M16: 0 | N16: 1 | O16: 2 | P16: Aberdeen | Q16: All | R16: Further Education | S16: =IF(I16<>reporting_month,"",COUNTIFS(CA_Availability[CA ID],B16,CA_Availability[Reporting Month],">="&one_year_ago)) ->  | V16: Aberdeen College
A17: AD00101 | B17: CA00101 | C17: Aberdeen College | E17: Aberdeen | F17: NOC | G17: Further Education College | H17: L02273 | I17: 41730 | J17: 0 | K17: 0 | L17: 0 | M17: 0 | N17: 1 | O17: 2 | P17: Aberdeen | Q17: All | R17: Further Education | S17: =IF(I17<>reporting_month,"",COUNTIFS(CA_Availability[CA ID],B17,CA_Availability[Reporting Month],">="&one_year_ago)) ->  | V17: Aberdeen College
A18: AD00101 | B18: CA00101 | C18: Aberdeen College | E18: Aberdeen | F18: NOC | G18: Further Education College | H18: L02273 | I18: 41699 | J18: 0 | K18: 0 | L18: 0 | M18: 0 | N18: 1 | O18: 2 | P18: Aberdeen | Q18: All | R18: Further Education | S18: =IF(I18<>reporting_month,"",COUNTIFS(CA_Availability[CA ID],B18,CA_Availability[Reporting Month],">="&one_year_ago)) ->  | V18: Aberdeen College
A19: AD00101 | B19: CA00101 | C19: Aberdeen College | E19: Aberdeen | F19: NOC | G19: Further Education College | H19: L02273 | I19: 41609 | J19: 0 | K19: 0 | L19: 0 | M19: 0 | N19: 1 | O19: 2 | P19: Aberdeen | Q19: All | R19: Further Education | S19: =IF(I19<>reporting_month,"",COUNTIFS(CA_Availability[CA ID],B19,CA_Availability[Reporting Month],">="&one_year_ago)) ->  | V19: Aberdeen College
A20: AD00101 | B20: CA00101 | C20: Aberdeen College | E20: Aberdeen | F20: NOC | G20: Further Education College | H20: L02273 | I20: 41671 | J20: 0 | K20: 0 | L20: 0 | M20: 0 | N20: 1 | O20: 2 | P20: Aberdeen | Q20: All | R20: Further Education | S20: =IF(I20<>reporting_month,"",COUNTIFS(CA_Availability[CA ID],B20,CA_Availability[Reporting Month],">="&one_year_ago)) ->  | V20: Aberdeen College
A21: AD00101 | B21: CA00101 | C21: Aberdeen College | E21: Aberdeen | F21: NOC | G21: Further Education College | H21: L02273 | I21: 41640 | J21: 0 | K21: 0 | L21: 0 | M21: 0 | N21: 1 | O21: 2 | P21: Aberdeen | Q21: All | R21: Further Education | S21: =IF(I21<>reporting_month,"",COUNTIFS(CA_Availability[CA ID],B21,CA_Availability[Reporting Month],">="&one_year_ago)) ->  | V21: Aberdeen College
A22: AD00101 | B22: CA00101 | C22: Aberdeen College | E22: Aberdeen | F22: NOC | G22: Further Education College | H22: L02273 | I22: 41456 | J22: 0 | K22: 0 | L22: 0 | M22: 0 | N22: 1 | O22: 2 | P22: Aberdeen | Q22: All | R22: Further Education | S22: =IF(I22<>reporting_month,"",COUNTIFS(CA_Availability[CA ID],B22,CA_Availability[Reporting Month],">="&one_year_ago)) ->  | V22: Aberdeen College
A23: AD00101 | B23: CA00101 | C23: Aberdeen College | E23: Aberdeen | F23: NOC | G23: Further Education College | H23: L02273 | I23: 41518 | J23: 0 | K23: 0 | L23: 0 | M23: 0 | N23: 1 | O23: 2 | P23: Aberdeen | Q23: All | R23: Further Education | S23: =IF(I23<>reporting_month,"",COUNTIFS(CA_Availability[CA ID],B23,CA_Availability[Reporting Month],">="&one_year_ago)) ->  | V23: Aberdeen College
A24: AD00101 | B24: CA00101 | C24: Aberdeen College | E24: Aberdeen | F24: NOC | G24: Further Education College | H24: L02273 | I24: 41487 | J24: 0 | K24: 0 | L24: 0 | M24: 0 | N24: 1 | O24: 2 | P24: Aberdeen | Q24: All | R24: Further Education | S24: =IF(I24<>reporting_month,"",COUNTIFS(CA_Availability[CA ID],B24,CA_Availability[Reporting Month],">="&one_year_ago)) ->  | V24: Aberdeen College
A25: AD00101 | B25: CA00101 | C25: Aberdeen College | E25: Aberdeen | F25: NOC | G25: Further Education College | H25: L02273 | I25: 41548 | J25: 0 | K25: 0 | L25: 0 | M25: 0 | N25: 1 | O25: 2 | P25: Aberdeen | Q25: All | R25: Further Education | S25: =IF(I25<>reporting_month,"",COUNTIFS(CA_Availability[CA ID],B25,CA_Availability[Reporting Month],">="&one_year_ago)) ->  | V25: Aberdeen College
A26: AD01393 | B26: CA01201 | C26: Aberystwyth University | D26: Visualisation Centre | E26: Wales | F26: PSBA | G26: Higher Education | H26: L06505 | I26: 41760 | J26: 0 | K26: 0 | L26: 0 | M26: 0 | N26: 1 | O26: 1 | P26: Wales | Q26: All | R26: Higher Education | S26: =IF(I26<>reporting_month,"",COUNTIFS(CA_Availability[CA ID],B26,CA_Availability[Reporting Month],">="&one_year_ago)) -> 12 | T26: 1 | V26: Aberystwyth University, Visualisation Centre
A27: AD00891 | B27: CA00865 | C27: Aberystwyth University | D27: Llandinam Building | E27: Wales | F27: PSBA | G27: Higher Education | H27: L02717 | I27: 41579 | J27: 0 | K27: 0 | L27: 0 | M27: 0 | N27: 1 | O27: 1 | P27: Wales | Q27: All | R27: Higher Education | S27: =IF(I27<>reporting_month,"",COUNTIFS(CA_Availability[CA ID],B27,CA_Availability[Reporting Month],">="&one_year_ago)) ->  | V27: Aberystwyth University, Llandinam Building
A28: AD00891 | B28: CA00865 | C28: Aberystwyth University | D28: Llandinam Building | E28: Wales | F28: PSBA | G28: Higher Education | H28: L02717 | I28: 41548 | J28: 0 | K28: 0 | L28: 0 | M28: 0 | N28: 1 | O28: 1 | P28: Wales | Q28: All | R28: Higher Education | S28: =IF(I28<>reporting_month,"",COUNTIFS(CA_Availability[CA ID],B28,CA_Availability[Reporting Month],">="&one_year_ago)) ->  | V28: Aberystwyth University, Llandinam Building
A29: AD00891 | B29: CA00865 | C29: Aberystwyth University | D29: Llandinam Building | E29: Wales | F29: PSBA | G29: Higher Education | H29: L02717 | I29: 41671 | J29: 0 | K29: 0 | L29: 0 | M29: 0 | N29: 1 | O29: 1 | P29: Wales | Q29: All | R29: Higher Education | S29: =IF(I29<>reporting_month,"",COUNTIFS(CA_Availability[CA ID],B29,CA_Availability[Reporting Month],">="&one_year_ago)) ->  | V29: Aberystwyth University, Llandinam Building
A30: AD00891 | B30: CA00865 | C30: Aberystwyth University | D30: Llandinam Building | E30: Wales | F30: PSBA | G30: Higher Education | H30: L02717 | I30: 41699 | J30: 0 | K30: 0 | L30: 0 | M30: 0 | N30: 1 | O30: 1 | P30: Wales | Q30: All | R30: Higher Education | S30: =IF(I30<>reporting_month,"",COUNTIFS(CA_Availability[CA ID],B30,CA_Availability[Reporting Month],">="&one_year_ago)) ->  | V30: Aberystwyth University, Llandinam Building
A31: AD00891 | B31: CA00865 | C31: Aberystwyth University | D31: Llandinam Building | E31: Wales | F31: PSBA | G31: Higher Education | H31: L02717 | I31: 41760 | J31: 0 | K31: 0 | L31: 0 | M31: 0 | N31: 1 | O31: 1 | P31: Wales | Q31: All | R31: Higher Education | S31: =IF(I31<>reporting_month,"",COUNTIFS(CA_Availability[CA ID],B31,CA_Availability[Reporting Month],">="&one_year_ago)) -> 12 | T31: 1 | V31: Aberystwyth University, Llandinam Building
A32: AD00891 | B32: CA00865 | C32: Aberystwyth University | D32: Llandinam Building | E32: Wales | F32: PSBA | G32: Higher Education | H32: L02717 | I32: 41730 | J32: 0 | K32: 0 | L32: 0 | M32: 0 | N32: 1 | O32: 1 | P32: Wales | Q32: All | R32: Higher Education | S32: =IF(I32<>reporting_month,"",COUNTIFS(CA_Availability[CA ID],B32,CA_Availability[Reporting Month],">="&one_year_ago)) ->  | V32: Aberystwyth University, Llandinam Building
A33: AD00891 | B33: CA00865 | C33: Aberystwyth University | D33: Llandinam Building | E33: Wales | F33: PSBA | G33: Higher Education | H33: L02717 | I33: 41609 | J33: 0 | K33: 0 | L33: 0 | M33: 0 | N33: 1 | O33: 1 | P33: Wales | Q33: All | R33: Higher Education | S33: =IF(I33<>reporting_month,"",COUNTIFS(CA_Availability[CA ID],B33,CA_Availability[Reporting Month],">="&one_year_ago)) ->  | V33: Aberystwyth University, Llandinam Building
A34: AD01393 | B34: CA01201 | C34: Aberystwyth University | D34: Visualisation Centre | E34: Wales | F34: PSBA | G34: Higher Education | H34: L06505 | I34: 41730 | J34: 0 | K34: 0 | L34: 0 | M34: 0 | N34: 1 | O34: 1 | P34: Wales | Q34: All | R34: Higher Education | S34: =IF(I34<>reporting_month,"",COUNTIFS(CA_Availability[CA ID],B34,CA_Availability[Reporting Month],">="&one_year_ago)) ->  | V34: Aberystwyth University, Visualisation Centre
A35: AD01393 | B35: CA01201 | C35: Aberystwyth University | D35: Visualisation Centre | E35: Wales | F35: PSBA | G35: Higher Education | H35: L06505 | I35: 41699 | J35: 0 | K35: 0 | L35: 0 | M35: 0 | N35: 1 | O35: 1 | P35: Wales | Q35: All | R35: Higher Education | S35: =IF(I35<>reporting_month,"",COUNTIFS(CA_Availability[CA ID],B35,CA_Availability[Reporting Month],">="&one_year_ago)) ->  | V35: Aberystwyth University, Visualisation Centre
A36: AD01393 | B36: CA01201 | C36: Aberystwyth University | D36: Visualisation Centre | E36: Wales | F36: PSBA | G36: Higher Education | H36: L06505 | I36: 41579 | J36: 0 | K36: 0 | L36: 0 | M36: 0 | N36: 1 | O36: 1 | P36: Wales | Q36: All | R36: Higher Education | S36: =IF(I36<>reporting_month,"",COUNTIFS(CA_Availability[CA ID],B36,CA_Availability[Reporting Month],">="&one_year_ago)) ->  | V36: Aberystwyth University, Visualisation Centre
A37: AD01393 | B37: CA01201 | C37: Aberystwyth University | D37: Visualisation Centre | E37: Wales | F37: PSBA | G37: Higher Education | H37: L06505 | I37: 41671 | J37: 0 | K37: 0 | L37: 0 | M37: 0 | N37: 1 | O37: 1 | P37: Wales | Q37: All | R37: Higher Education | S37: =IF(I37<>reporting_month,"",COUNTIFS(CA_Availability[CA ID],B37,CA_Availability[Reporting Month],">="&one_year_ago)) ->  | V37: Aberystwyth University, Visualisation Centre
A38: AD01393 | B38: CA01201 | C38: Aberystwyth University | D38: Visualisation Centre | E38: Wales | F38: PSBA | G38: Higher Education | H38: L06505 | I38: 41640 | J38: 0 | K38: 0 | L38: 0 | M38: 0 | N38: 1 | O38: 1 | P38: Wales | Q38: All | R38: Higher Education | S38: =IF(I38<>reporting_month,"",COUNTIFS(CA_Availability[CA ID],B38,CA_Availability[Reporting Month],">="&one_year_ago)) ->  | V38: Aberystwyth University, Visualisation Centre
A39: AD01393 | B39: CA01201 | C39: Aberystwyth University | D39: Visualisation Centre | E39: Wales | F39: PSBA | G39: Higher Education | H39: L06505 | I39: 41548 | J39: 0 | K39: 0 | L39: 0 | M39: 0 | N39: 1 | O39: 1 | P39: Wales | Q39: All | R39: Higher Education | S39: =IF(I39<>reporting_month,"",COUNTIFS(CA_Availability[CA ID],B39,CA_Availability[Reporting Month],">="&one_year_ago)) ->  | V39: Aberystwyth University, Visualisation Centre
A40: AD01393 | B40: CA01201 | C40: Aberystwyth University | D40: Visualisation Centre | E40: Wales | F40: PSBA | G40: Higher Education | H40: L06505 | I40: 41609 | J40: 0 | K40: 0 | L40: 0 | M40: 0 | N40: 1 | O40: 1 | P40: Wales | Q40: All | R40: Higher Education | S40: =IF(I40<>reporting_month,"",COUNTIFS(CA_Availability[CA ID],B40,CA_Availability[Reporting Month],">="&one_year_ago)) ->  | V40: Aberystwyth University, Visualisation Centre
A41: AD00891 | B41: CA00865 | C41: Aberystwyth University | D41: Llandinam Building | E41: Wales | F41: PSBA | G41: Higher Education | H41: L02717 | I41: 41640 | J41: 0 | K41: 0 | L41: 0 | M41: 0 | N41: 1 | O41: 1 | P41: Wales | Q41: All | R41: Higher Education | S41: =IF(I41<>reporting_month,"",COUNTIFS(CA_Availability[CA ID],B41,CA_Availability[Reporting Month],">="&one_year_ago)) ->  | V41: Aberystwyth University, Llandinam Building
A42: AD00891 | B42: CA00865 | C42: Aberystwyth University | D42: Llandinam Building | E42: Wales | F42: PSBA | G42: Higher Education | H42: L02717 | I42: 41518 | J42: 0 | K42: 0 | L42: 0 | M42: 0 | N42: 1 | O42: 1 | P42: Wales | Q42: All | R42: Higher Education | S42: =IF(I42<>reporting_month,"",COUNTIFS(CA_Availability[CA ID],B42,CA_Availability[Reporting Month],">="&one_year_ago)) ->  | V42: Aberystwyth University, Llandinam Building
A43: AD00891 | B43: CA00865 | C43: Aberystwyth University | D43: Llandinam Building | E43: Wales | F43: PSBA | G43: Higher Education | H43: L02717 | I43: 41426 | J43: 0 | K43: 0 | L43: 0 | M43: 0 | N43: 1 | O43: 1 | P43: Wales | Q43: All | R43: Higher Education | S43: =IF(I43<>reporting_month,"",COUNTIFS(CA_Availability[CA ID],B43,CA_Availability[Reporting Month],">="&one_year_ago)) ->  | V43: Aberystwyth University, Llandinam Building
A44: AD00891 | B44: CA00865 | C44: Aberystwyth University | D44: Llandinam Building | E44: Wales | F44: PSBA | G44: Higher Education | H44: L02717 | I44: 41395 | J44: 0 | K44: 0 | L44: 0 | M44: 0 | N44: 1 | O44: 1 | P44: Wales | Q44: All | R44: Higher Education | S44: =IF(I44<>reporting_month,"",COUNTIFS(CA_Availability[CA ID],B44,CA_Availability[Reporting Month],">="&one_year_ago)) ->  | V44: Aberystwyth University, Llandinam Building
A45: AD00891 | B45: CA00865 | C45: Aberystwyth University | D45: Llandinam Building | E45: Wales | F45: PSBA | G45: Higher Education | H45: L02717 | I45: 41365 | J45: 0 | K45: 0 | L45: 0 | M45: 0 | N45: 1 | O45: 1 | P45: Wales | Q45: All | R45: Higher Education | S45: =IF(I45<>reporting_month,"",COUNTIFS(CA_Availability[CA ID],B45,CA_Availability[Reporting Month],">="&one_year_ago)) ->  | V45: Aberystwyth University, Llandinam Building
A46: AD01393 | B46: CA01201 | C46: Aberystwyth University | D46: Visualisation Centre | E46: Wales | F46: PSBA | G46: Higher Education | H46: L06505 | I46: 41395 | J46: 0 | K46: 0 | L46: 0 | M46: 0 | N46: 1 | O46: 1 | P46: Wales | Q46: All | R46: Higher Education | S46: =IF(I46<>reporting_month,"",COUNTIFS(CA_Availability[CA ID],B46,CA_Availability[Reporting Month],">="&one_year_ago)) ->  | V46: Aberystwyth University, Visualisation Centre
A47: AD01393 | B47: CA01201 | C47: Aberystwyth University | D47: Visualisation Centre | E47: Wales | F47: PSBA | G47: Higher Education | H47: L06505 | I47: 41365 | J47: 0 | K47: 0 | L47: 0 | M47: 0 | N47: 1 | O47: 1 | P47: Wales | Q47: All | R47: Higher Education | S47: =IF(I47<>reporting_month,"",COUNTIFS(CA_Availability[CA ID],B47,CA_Availability[Reporting Month],">="&one_year_ago)) ->  | V47: Aberystwyth University, Visualisation Centre
A48: AD00891 | B48: CA00865 | C48: Aberystwyth University | D48: Llandinam Building | E48: Wales | F48: PSBA | G48: Higher Education | H48: L02717 | I48: 41487 | J48: 0 | K48: 0 | L48: 0 | M48: 0 | N48: 1 | O48: 1 | P48: Wales | Q48: All | R48: Higher Education | S48: =IF(I48<>reporting_month,"",COUNTIFS(CA_Availability[CA ID],B48,CA_Availability[Reporting Month],">="&one_year_ago)) ->  | V48: Aberystwyth University, Llandinam Building
A49: AD00891 | B49: CA00865 | C49: Aberystwyth University | D49: Llandinam Building | E49: Wales | F49: PSBA | G49: Higher Education | H49: L02717 | I49: 41456 | J49: 0 | K49: 0 | L49: 0 | M49: 0 | N49: 1 | O49: 1 | P49: Wales | Q49: All | R49: Higher Education | S49: =IF(I49<>reporting_month,"",COUNTIFS(CA_Availability[CA ID],B49,CA_Availability[Reporting Month],">="&one_year_ago)) ->  | V49: Aberystwyth University, Llandinam Building
A50: AD00891 | B50: CA00865 | C50: Aberystwyth University | D50: Llandinam Building | E50: Wales | F50: PSBA | G50: Higher Education | H50: L02717 | I50: 41091 | J50: 0 | K50: 0 | L50: 0 | M50: 0 | N50: 1 | O50: 1 | P50: Wales | Q50: All | R50: Higher Education | S50: =IF(I50<>reporting_month,"",COUNTIFS(CA_Availability[CA ID],B50,CA_Availability[Reporting Month],">="&one_year_ago)) ->  | V50: Aberystwyth University, Llandinam Building
A51: AD00891 | B51: CA00865 | C51: Aberystwyth University | D51: Llandinam Building | E51: Wales | F51: PSBA | G51: Higher Education | H51: L02717 | I51: 41153 | J51: 0 | K51: 0 | L51: 0 | M51: 0 | N51: 1 | O51: 1 | P51: Wales | Q51: All | R51: Higher Education | S51: =IF(I51<>reporting_month,"",COUNTIFS(CA_Availability[CA ID],B51,CA_Availability[Reporting Month],">="&one_year_ago)) ->  | V51: Aberystwyth University, Llandinam Building
A52: AD00891 | B52: CA00865 | C52: Aberystwyth University | D52: Llandinam Building | E52: Wales | F52: PSBA | G52: Higher Education | H52: L02717 | I52: 41061 | J52: 0 | K52: 0 | L52: 0 | M52: 0 | N52: 1 | O52: 1 | P52: Wales | Q52: All | R52: Higher Education | S52: =IF(I52<>reporting_month,"",COUNTIFS(CA_Availability[CA ID],B52,CA_Availability[Reporting Month],">="&one_year_ago)) ->  | V52: Aberystwyth University, Llandinam Building
A53: AD00891 | B53: CA00865 | C53: Aberystwyth University | D53: Llandinam Building | E53: Wales | F53: PSBA | G53: Higher Education | H53: L02717 | I53: 41306 | J53: 0 | K53: 0 | L53: 0 | M53: 0 | N53: 1 | O53: 1 | P53: Wales | Q53: All | R53: Higher Education | S53: =IF(I53<>reporting_month,"",COUNTIFS(CA_Availability[CA ID],B53,CA_Availability[Reporting Month],">="&one_year_ago)) ->  | V53: Aberystwyth University, Llandinam Building
A54: AD00891 | B54: CA00865 | C54: Aberystwyth University | D54: Llandinam Building | E54: Wales | F54: PSBA | G54: Higher Education | H54: L02717 | I54: 41334 | J54: 0 | K54: 0 | L54: 0 | M54: 0 | N54: 1 | O54: 1 | P54: Wales | Q54: All | R54: Higher Education | S54: =IF(I54<>reporting_month,"",COUNTIFS(CA_Availability[CA ID],B54,CA_Availability[Reporting Month],">="&one_year_ago)) ->  | V54: Aberystwyth University, Llandinam Building
A55: AD00891 | B55: CA00865 | C55: Aberystwyth University | D55: Llandinam Building | E55: Wales | F55: PSBA | G55: Higher Education | H55: L02717 | I55: 41244 | J55: 1 | K55: 58 | L55: 0 | M55: 0 | N55: 1 | O55: 1 | P55: Wales | Q55: All | R55: Higher Education | S55: =IF(I55<>reporting_month,"",COUNTIFS(CA_Availability[CA ID],B55,CA_Availability[Reporting Month],">="&one_year_ago)) ->  | V55: Aberystwyth University, Llandinam Building
A56: AD00891 | B56: CA00865 | C56: Aberystwyth University | D56: Llandinam Building | E56: Wales | F56: PSBA | G56: Higher Education | H56: L02717 | I56: 41183 | J56: 1 | K56: 57 | L56: 0 | M56: 0 | N56: 1 | O56: 1 | P56: Wales | Q56: All | R56: Higher Education | S56: =IF(I56<>reporting_month,"",COUNTIFS(CA_Availability[CA ID],B56,CA_Availability[Reporting Month],">="&one_year_ago)) ->  | V56: Aberystwyth University, Llandinam Building
A57: AD00891 | B57: CA00865 | C57: Aberystwyth University | D57: Llandinam Building | E57: Wales | F57: PSBA | G57: Higher Education | H57: L02717 | I57: 41214 | J57: 0 | K57: 0 | L57: 0 | M57: 0 | N57: 1 | O57: 1 | P57: Wales | Q57: All | R57: Higher Education | S57: =IF(I57<>reporting_month,"",COUNTIFS(CA_Availability[CA ID],B57,CA_Availability[Reporting Month],">="&one_year_ago)) ->  | V57: Aberystwyth University, Llandinam Building
A58: AD00891 | B58: CA00865 | C58: Aberystwyth University | D58: Llandinam Building | E58: Wales | F58: PSBA | G58: Higher Education | H58: L02717 | I58: 41275 | J58: 0 | K58: 0 | L58: 0 | M58: 0 | N58: 1 | O58: 1 | P58: Wales | Q58: All | R58: Higher Education | S58: =IF(I58<>reporting_month,"",COUNTIFS(CA_Availability[CA ID],B58,CA_Availability[Reporting Month],">="&one_year_ago)) ->  | V58: Aberystwyth University, Llandinam Building
A59: AD00891 | B59: CA00865 | C59: Aberystwyth University | D59: Llandinam Building | E59: Wales | F59: PSBA | G59: Higher Education | H59: L02717 | I59: 41122 | J59: 0 | K59: 0 | L59: 0 | M59: 0 | N59: 1 | O59: 1 | P59: Wales | Q59: All | R59: Higher Education | S59: =IF(I59<>reporting_month,"",COUNTIFS(CA_Availability[CA ID],B59,CA_Availability[Reporting Month],">="&one_year_ago)) ->  | V59: Aberystwyth University, Llandinam Building
A60: AD01393 | B60: CA01201 | C60: Aberystwyth University | D60: Visualisation Centre | E60: Wales | F60: PSBA | G60: Higher Education | H60: L06505 | I60: 41456 | J60: 0 | K60: 0 | L60: 0 | M60: 0 | N60: 1 | O60: 1 | P60: Wales | Q60: All | R60: Higher Education | S60: =IF(I60<>reporting_month,"",COUNTIFS(CA_Availability[CA ID],B60,CA_Availability[Reporting Month],">="&one_year_ago)) ->  | V60: Aberystwyth University, Visualisation Centre
A61: AD01393 | B61: CA01201 | C61: Aberystwyth University | D61: Visualisation Centre | E61: Wales | F61: PSBA | G61: Higher Education | H61: L06505 | I61: 41426 | J61: 0 | K61: 0 | L61: 0 | M61: 0 | N61: 1 | O61: 1 | P61: Wales | Q61: All | R61: Higher Education | S61: =IF(I61<>reporting_month,"",COUNTIFS(CA_Availability[CA ID],B61,CA_Availability[Reporting Month],">="&one_year_ago)) ->  | V61: Aberystwyth University, Visualisation Centre
A62: AD01393 | B62: CA01201 | C62: Aberystwyth University | D62: Visualisation Centre | E62: Wales | F62: PSBA | G62: Higher Education | H62: L06505 | I62: 41487 | J62: 0 | K62: 0 | L62: 0 | M62: 0 | N62: 1 | O62: 1 | P62: Wales | Q62: All | R62: Higher Education | S62: =IF(I62<>reporting_month,"",COUNTIFS(CA_Availability[CA ID],B62,CA_Availability[Reporting Month],">="&one_year_ago)) ->  | V62: Aberystwyth University, Visualisation Centre
A63: AD01393 | B63: CA01201 | C63: Aberystwyth University | D63: Visualisation Centre | E63: Wales | F63: PSBA | G63: Higher Education | H63: L06505 | I63: 41518 | J63: 0 | K63: 0 | L63: 0 | M63: 0 | N63: 1 | O63: 1 | P63: Wales | Q63: All | R63: Higher Education | S63: =IF(I63<>reporting_month,"",COUNTIFS(CA_Availability[CA ID],B63,CA_Availability[Reporting Month],">="&one_year_ago)) ->  | V63: Aberystwyth University, Visualisation Centre
A64: AD00476 | B64: CA00470 | C64: Abingdon and Witney College | E64: TVN | F64: NOC | G64: Further Education College | H64: L04543 | I64: 41671 | J64: 0 | K64: 0 | L64: 0 | M64: 0 | N64: 1 | O64: 1 | P64: TVN | Q64: All | R64: Further Education | S64: =IF(I64<>reporting_month,"",COUNTIFS(CA_Availability[CA ID],B64,CA_Availability[Reporting Month],">="&one_year_ago)) ->  | V64: Abingdon and Witney College
A65: AD00476 | B65: CA00470 | C65: Abingdon and Witney College | E65: TVN | F65: NOC | G65: Further Education College | H65: L04543 | I65: 41760 | J65: 1 | K65: 22 | L65: 0 | M65: 0 | N65: 1 | O65: 1 | P65: TVN | Q65: All | R65: Further Education | S65: =IF(I65<>reporting_month,"",COUNTIFS(CA_Availability[CA ID],B65,CA_Availability[Reporting Month],">="&one_year_ago)) -> 12 | T65: 1 | V65: Abingdon and Witney College
A66: AD00476 | B66: CA00470 | C66: Abingdon and Witney College | E66: TVN | F66: NOC | G66: Further Education College | H66: L04543 | I66: 41640 | J66: 0 | K66: 0 | L66: 0 | M66: 0 | N66: 1 | O66: 1 | P66: =IF(E66="","",VLOOKUP(E66,region_lookup,2,FALSE)) -> TVN | Q66: =IF(G66="","",IF(sector_selection="All","All",VLOOKUP(G66,sector_lookup,2,FALSE))) -> All | R66: =IF(G66="","",VLOOKUP(G66,sector_lookup,2,FALSE)) -> Further Education | S66: =IF(I66<>reporting_month,"",COUNTIFS(CA_Availability[CA ID],B66,CA_Availability[Reporting Month],">="&one_year_ago)) ->  | U66: =IF(T66="","",IF(AND(T66<=0.997,P66=region_selection,Q66=sector_selection),"Yes","")) ->  | V66: =IF(C66="","",IF(D66="",C66,C66&", "&D66)) -> Abingdon and Witney College | W66: =IF(AND(I66=reporting_month,P66=region_selection),"yes","") -> 
A67: AD00476 | B67: CA00470 | C67: Abingdon and Witney College | E67: TVN | F67: NOC | G67: Further Education College | H67: L04543 | I67: 41609 | J67: 0 | K67: 0 | L67: 0 | M67: 0 | N67: 1 | O67: 1 | P67: TVN | Q67: All | R67: Further Education | S67: =IF(I67<>reporting_month,"",COUNTIFS(CA_Availability[CA ID],B67,CA_Availability[Reporting Month],">="&one_year_ago)) ->  | V67: Abingdon and Witney College
A68: AD00476 | B68: CA00470 | C68: Abingdon and Witney College | E68: TVN | F68: NOC | G68: Further Education College | H68: L04543 | I68: 41699 | J68: 0 | K68: 0 | L68: 0 | M68: 0 | N68: 1 | O68: 1 | P68: TVN | Q68: All | R68: Further Education | S68: =IF(I68<>reporting_month,"",COUNTIFS(CA_Availability[CA ID],B68,CA_Availability[Reporting Month],">="&one_year_ago)) ->  | V68: Abingdon and Witney College
A69: AD00476 | B69: CA00470 | C69: Abingdon and Witney College | E69: TVN | F69: NOC | G69: Further Education College | H69: L04543 | I69: 41730 | J69: 3 | K69: 373 | L69: 0 | M69: 0 | N69: 1 | O69: 1 | P69: TVN | Q69: All | R69: Further Education | S69: =IF(I69<>reporting_month,"",COUNTIFS(CA_Availability[CA ID],B69,CA_Availability[Reporting Month],">="&one_year_ago)) ->  | V69: Abingdon and Witney College
A70: AD00476 | B70: CA00470 | C70: Abingdon and Witney College | E70: TVN | F70: NOC | G70: Further Education College | H70: L04543 | I70: 41214 | J70: 0 | K70: 0 | L70: 0 | M70: 0 | N70: 1 | O70: 1 | P70: TVN | Q70: All | R70: Further Education | S70: =IF(I70<>reporting_month,"",COUNTIFS(CA_Availability[CA ID],B70,CA_Availability[Reporting Month],">="&one_year_ago)) ->  | V70: Abingdon and Witney College
A71: AD00476 | B71: CA00470 | C71: Abingdon and Witney College | E71: TVN | F71: NOC | G71: Further Education College | H71: L04543 | I71: 41365 | J71: 0 | K71: 0 | L71: 0 | M71: 0 | N71: 1 | O71: 1 | P71: TVN | Q71: All | R71: Further Education | S71: =IF(I71<>reporting_month,"",COUNTIFS(CA_Availability[CA ID],B71,CA_Availability[Reporting Month],">="&one_year_ago)) ->  | V71: Abingdon and Witney College
A72: AD00476 | B72: CA00470 | C72: Abingdon and Witney College | E72: TVN | F72: NOC | G72: Further Education College | H72: L04543 | I72: 41306 | J72: 0 | K72: 0 | L72: 0 | M72: 0 | N72: 1 | O72: 1 | P72: TVN | Q72: All | R72: Further Education | S72: =IF(I72<>reporting_month,"",COUNTIFS(CA_Availability[CA ID],B72,CA_Availability[Reporting Month],">="&one_year_ago)) ->  | V72: Abingdon and Witney College
A73: AD00476 | B73: CA00470 | C73: Abingdon and Witney College | E73: TVN | F73: NOC | G73: Further Education College | H73: L04543 | I73: 41275 | J73: 0 | K73: 0 | L73: 0 | M73: 0 | N73: 1 | O73: 1 | P73: TVN | Q73: All | R73: Further Education | S73: =IF(I73<>reporting_month,"",COUNTIFS(CA_Availability[CA ID],B73,CA_Availability[Reporting Month],">="&one_year_ago)) ->  | V73: Abingdon and Witney College
A74: AD00476 | B74: CA00470 | C74: Abingdon and Witney College | E74: TVN | F74: NOC | G74: Further Education College | H74: L04543 | I74: 41334 | J74: 0 | K74: 0 | L74: 0 | M74: 0 | N74: 1 | O74: 1 | P74: TVN | Q74: All | R74: Further Education | S74: =IF(I74<>reporting_month,"",COUNTIFS(CA_Availability[CA ID],B74,CA_Availability[Reporting Month],">="&one_year_ago)) ->  | V74: Abingdon and Witney College
A75: AD00476 | B75: CA00470 | C75: Abingdon and Witney College | E75: TVN | F75: NOC | G75: Further Education College | H75: L04543 | I75: 41091 | J75: 0 | K75: 0 | L75: 0 | M75: 0 | N75: 1 | O75: 1 | P75: TVN | Q75: All | R75: Further Education | S75: =IF(I75<>reporting_month,"",COUNTIFS(CA_Availability[CA ID],B75,CA_Availability[Reporting Month],">="&one_year_ago)) ->  | V75: Abingdon and Witney College
A76: AD00476 | B76: CA00470 | C76: Abingdon and Witney College | E76: TVN | F76: NOC | G76: Further Education College | H76: L04543 | I76: 41061 | J76: 0 | K76: 0 | L76: 0 | M76: 0 | N76: 1 | O76: 1 | P76: TVN | Q76: All | R76: Further Education | S76: =IF(I76<>reporting_month,"",COUNTIFS(CA_Availability[CA ID],B76,CA_Availability[Reporting Month],">="&one_year_ago)) ->  | V76: Abingdon and Witney College
A77: AD00476 | B77: CA00470 | C77: Abingdon and Witney College | E77: TVN | F77: NOC | G77: Further Education College | H77: L04543 | I77: 41122 | J77: 0 | K77: 0 | L77: 0 | M77: 0 | N77: 1 | O77: 1 | P77: TVN | Q77: All | R77: Further Education | S77: =IF(I77<>reporting_month,"",COUNTIFS(CA_Availability[CA ID],B77,CA_Availability[Reporting Month],">="&one_year_ago)) ->  | V77: Abingdon and Witney College
A78: AD00476 | B78: CA00470 | C78: Abingdon and Witney College | E78: TVN | F78: NOC | G78: Further Education College | H78: L04543 | I78: 41183 | J78: 0 | K78: 0 | L78: 0 | M78: 0 | N78: 1 | O78: 1 | P78: TVN | Q78: All | R78: Further Education | S78: =IF(I78<>reporting_month,"",COUNTIFS(CA_Availability[CA ID],B78,CA_Availability[Reporting Month],">="&one_year_ago)) ->  | V78: Abingdon and Witney College
A79: AD00476 | B79: CA00470 | C79: Abingdon and Witney College | E79: TVN | F79: NOC | G79: Further Education College | H79: L04543 | I79: 41518 | J79: 1 | K79: 2604 | L79: 0 | M79: 0 | N79: 1 | O79: 1 | P79: TVN | Q79: All | R79: Further Education | S79: =IF(I79<>reporting_month,"",COUNTIFS(CA_Availability[CA ID],B79,CA_Availability[Reporting Month],">="&one_year_ago)) ->  | V79: Abingdon and Witney College
A80: AD00476 | B80: CA00470 | C80: Abingdon and Witney College | E80: TVN | F80: NOC | G80: Further Education College | H80: L04543 | I80: 41548 | J80: 1 | K80: 1458 | L80: 0 | M80: 0 | N80: 1 | O80: 1 | P80: TVN | Q80: All | R80: Further Education | S80: =IF(I80<>reporting_month,"",COUNTIFS(CA_Availability[CA ID],B80,CA_Availability[Reporting Month],">="&one_year_ago)) ->  | V80: Abingdon and Witney College
A81: AD00476 | B81: CA00470 | C81: Abingdon and Witney College | E81: TVN | F81: NOC | G81: Further Education College | H81: L04543 | I81: 41579 | J81: 0 | K81: 0 | L81: 0 | M81: 0 | N81: 1 | O81: 1 | P81: TVN | Q81: All | R81: Further Education | S81: =IF(I81<>reporting_month,"",COUNTIFS(CA_Availability[CA ID],B81,CA_Availability[Reporting Month],">="&one_year_ago)) ->  | V81: Abingdon and Witney College
A82: AD00476 | B82: CA00470 | C82: Abingdon and Witney College | E82: TVN | F82: NOC | G82: Further Education College | H82: L04543 | I82: 41395 | J82: 0 | K82: 0 | L82: 0 | M82: 0 | N82: 1 | O82: 1 | P82: TVN | Q82: All | R82: Further Education | S82: =IF(I82<>reporting_month,"",COUNTIFS(CA_Availability[CA ID],B82,CA_Availability[Reporting Month],">="&one_year_ago)) ->  | V82: Abingdon and Witney College
A83: AD00476 | B83: CA00470 | C83: Abingdon and Witney College | E83: TVN | F83: NOC | G83: Further Education College | H83: L04543 | I83: 41487 | J83: 1 | K83: 148 | L83: 0 | M83: 0 | N83: 1 | O83: 1 | P83: TVN | Q83: All | R83: Further Education | S83: =IF(I83<>reporting_month,"",COUNTIFS(CA_Availability[CA ID],B83,CA_Availability[Reporting Month],">="&one_year_ago)) ->  | V83: Abingdon and Witney College
A84: AD00476 | B84: CA00470 | C84: Abingdon and Witney College | E84: TVN | F84: NOC | G84: Further Education College | H84: L04543 | I84: 41456 | J84: 0 | K84: 0 | L84: 0 | M84: 0 | N84: 1 | O84: 1 | P84: TVN | Q84: All | R84: Further Education | S84: =IF(I84<>reporting_month,"",COUNTIFS(CA_Availability[CA ID],B84,CA_Availability[Reporting Month],">="&one_year_ago)) ->  | V84: Abingdon and Witney College
A85: AD00476 | B85: CA00470 | C85: Abingdon and Witney College | E85: TVN | F85: NOC | G85: Further Education College | H85: L04543 | I85: 41426 | J85: 0 | K85: 0 | L85: 0 | M85: 0 | N85: 1 | O85: 1 | P85: TVN | Q85: All | R85: Further Education | S85: =IF(I85<>reporting_month,"",COUNTIFS(CA_Availability[CA ID],B85,CA_Availability[Reporting Month],">="&one_year_ago)) ->  | V85: Abingdon and Witney College
A86: AD00476 | B86: CA00470 | C86: Abingdon and Witney College | E86: TVN | F86: NOC | G86: Further Education College | H86: L04543 | I86: 41244 | J86: 0 | K86: 0 | L86: 0 | M86: 0 | N86: 1 | O86: 1 | P86: TVN | Q86: All | R86: Further Education | S86: =IF(I86<>reporting_month,"",COUNTIFS(CA_Availability[CA ID],B86,CA_Availability[Reporting Month],">="&one_year_ago)) ->  | V86: Abingdon and Witney College
A87: AD00476 | B87: CA00470 | C87: Abingdon and Witney College | E87: TVN | F87: NOC | G87: Further Education College | H87: L04543 | I87: 41153 | J87: 0 | K87: 0 | L87: 0 | M87: 0 | N87: 1 | O87: 1 | P87: TVN | Q87: All | R87: Further Education | S87: =IF(I87<>reporting_month,"",COUNTIFS(CA_Availability[CA ID],B87,CA_Availability[Reporting Month],">="&one_year_ago)) ->  | V87: Abingdon and Witney College
A88: AD00789 | B88: CA00764 | C88: Accrington and Rossendale College | E88: NNW | F88: NNW | G88: Further Education College | H88: L04488 | I88: 41426 | J88: 0 | K88: 0 | L88: 0 | M88: 0 | N88: 1 | O88: 1 | P88: North West | Q88: All | R88: Further Education | S88: =IF(I88<>reporting_month,"",COUNTIFS(CA_Availability[CA ID],B88,CA_Availability[Reporting Month],">="&one_year_ago)) ->  | V88: Accrington and Rossendale College
A89: AD00789 | B89: CA00764 | C89: Accrington and Rossendale College | E89: NNW | F89: NNW | G89: Further Education College | H89: L04488 | I89: 41214 | J89: 0 | K89: 0 | L89: 0 | M89: 0 | N89: 1 | O89: 1 | P89: North West | Q89: All | R89: Further Education | S89: =IF(I89<>reporting_month,"",COUNTIFS(CA_Availability[CA ID],B89,CA_Availability[Reporting Month],">="&one_year_ago)) ->  | V89: Accrington and Rossendale College
A90: AD00789 | B90: CA00764 | C90: Accrington and Rossendale College | E90: NNW | F90: NNW | G90: Further Education College | H90: L04488 | I90: 41365 | J90: 0 | K90: 0 | L90: 0 | M90: 0 | N90: 1 | O90: 1 | P90: North West | Q90: All | R90: Further Education | S90: =IF(I90<>reporting_month,"",COUNTIFS(CA_Availability[CA ID],B90,CA_Availability[Reporting Month],">="&one_year_ago)) ->  | V90: Accrington and Rossendale College
A91: AD00789 | B91: CA00764 | C91: Accrington and Rossendale College | E91: NNW | F91: NNW | G91: Further Education College | H91: L04488 | I91: 41395 | J91: 0 | K91: 0 | L91: 0 | M91: 0 | N91: 1 | O91: 1 | P91: North West | Q91: All | R91: Further Education | S91: =IF(I91<>reporting_month,"",COUNTIFS(CA_Availability[CA ID],B91,CA_Availability[Reporting Month],">="&one_year_ago)) ->  | V91: Accrington and Rossendale College
A92: AD00789 | B92: CA00764 | C92: Accrington and Rossendale College | E92: NNW | F92: NNW | G92: Further Education College | H92: L04488 | I92: 41183 | J92: 0 | K92: 0 | L92: 0 | M92: 0 | N92: 1 | O92: 1 | P92: North West | Q92: All | R92: Further Education | S92: =IF(I92<>reporting_month,"",COUNTIFS(CA_Availability[CA ID],B92,CA_Availability[Reporting Month],">="&one_year_ago)) ->  | V92: Accrington and Rossendale College
A93: AD00789 | B93: CA00764 | C93: Accrington and Rossendale College | E93: NNW | F93: NNW | G93: Further Education College | H93: L04488 | I93: 41306 | J93: 0 | K93: 0 | L93: 0 | M93: 0 | N93: 1 | O93: 1 | P93: North West | Q93: All | R93: Further Education | S93: =IF(I93<>reporting_month,"",COUNTIFS(CA_Availability[CA ID],B93,CA_Availability[Reporting Month],">="&one_year_ago)) ->  | V93: Accrington and Rossendale College
A94: AD00789 | B94: CA00764 | C94: Accrington and Rossendale College | E94: NNW | F94: NNW | G94: Further Education College | H94: L04488 | I94: 41244 | J94: 0 | K94: 0 | L94: 0 | M94: 0 | N94: 1 | O94: 1 | P94: North West | Q94: All | R94: Further Education | S94: =IF(I94<>reporting_month,"",COUNTIFS(CA_Availability[CA ID],B94,CA_Availability[Reporting Month],">="&one_year_ago)) ->  | V94: Accrington and Rossendale College
A95: AD00789 | B95: CA00764 | C95: Accrington and Rossendale College | E95: NNW | F95: NNW | G95: Further Education College | H95: L04488 | I95: 41275 | J95: 0 | K95: 0 | L95: 0 | M95: 0 | N95: 1 | O95: 1 | P95: North West | Q95: All | R95: Further Education | S95: =IF(I95<>reporting_month,"",COUNTIFS(CA_Availability[CA ID],B95,CA_Availability[Reporting Month],">="&one_year_ago)) ->  | V95: Accrington and Rossendale College
A96: AD00789 | B96: CA00764 | C96: Accrington and Rossendale College | E96: NNW | F96: NNW | G96: Further Education College | H96: L04488 | I96: 41091 | J96: 2 | K96: 33 | L96: 0 | M96: 0 | N96: 1 | O96: 1 | P96: North West | Q96: All | R96: Further Education | S96: =IF(I96<>reporting_month,"",COUNTIFS(CA_Availability[CA ID],B96,CA_Availability[Reporting Month],">="&one_year_ago)) ->  | V96: Accrington and Rossendale College
A97: AD00789 | B97: CA00764 | C97: Accrington and Rossendale College | E97: NNW | F97: NNW | G97: Further Education College | H97: L04488 | I97: 41122 | J97: 0 | K97: 0 | L97: 0 | M97: 0 | N97: 1 | O97: 1 | P97: North West | Q97: All | R97: Further Education | S97: =IF(I97<>reporting_month,"",COUNTIFS(CA_Availability[CA ID],B97,CA_Availability[Reporting Month],">="&one_year_ago)) ->  | V97: Accrington and Rossendale College
A98: AD00789 | B98: CA00764 | C98: Accrington and Rossendale College | E98: NNW | F98: NNW | G98: Further Education College | H98: L04488 | I98: 41061 | J98: 0 | K98: 0 | L98: 0 | M98: 0 | N98: 1 | O98: 1 | P98: North West | Q98: All | R98: Further Education | S98: =IF(I98<>reporting_month,"",COUNTIFS(CA_Availability[CA ID],B98,CA_Availability[Reporting Month],">="&one_year_ago)) ->  | V98: Accrington and Rossendale College
A99: AD00789 | B99: CA00764 | C99: Accrington and Rossendale College | E99: NNW | F99: NNW | G99: Further Education College | H99: L04488 | I99: 41153 | J99: 0 | K99: 0 | L99: 0 | M99: 0 | N99: 1 | O99: 1 | P99: North West | Q99: All | R99: Further Education | S99: =IF(I99<>reporting_month,"",COUNTIFS(CA_Availability[CA ID],B99,CA_Availability[Reporting Month],">="&one_year_ago)) ->  | V99: Accrington and Rossendale College
A100: AD00789 | B100: CA00764 | C100: Accrington and Rossendale College | E100: NNW | F100: NNW | G100: Further Education College | H100: L04488 | I100: 41334 | J100: 0 | K100: 0 | L100: 0 | M100: 0 | N100: 1 | O100: 1 | P100: North West | Q100: All | R100: Further Education | S100: =IF(I100<>reporting_month,"",COUNTIFS(CA_Availability[CA ID],B100,CA_Availability[Reporting Month],">="&one_year_ago)) ->  | V100: Accrington and Rossendale College
A101: AD00789 | B101: CA00764 | C101: Accrington and Rossendale College | E101: North West | F101: NOC | G101: Further Education College | H101: L04488 | I101: 41487 | J101: 0 | K101: 0 | L101: 0 | M101: 0 | N101: 1 | O101: 1 | P101: North West | Q101: All | R101: Further Education | S101: =IF(I101<>reporting_month,"",COUNTIFS(CA_Availability[CA ID],B101,CA_Availability[Reporting Month],">="&one_year_ago)) ->  | V101: Accrington and Rossendale College
A102: AD00789 | B102: CA00764 | C102: Accrington and Rossendale College | E102: North West | F102: NOC | G102: Further Education College | H102: L04488 | I102: 41548 | J102: 0 | K102: 0 | L102: 0 | M102: 0 | N102: 1 | O102: 1 | P102: North West | Q102: All | R102: Further Education | S102: =IF(I102<>reporting_month,"",COUNTIFS(CA_Availability[CA ID],B102,CA_Availability[Reporting Month],">="&one_year_ago)) ->  | V102: Accrington and Rossendale College
A103: AD00789 | B103: CA00764 | C103: Accrington and Rossendale College | E103: North West | F103: NOC | G103: Further Education College | H103: L04488 | I103: 41640 | J103: 0 | K103: 0 | L103: 0 | M103: 0 | N103: 1 | O103: 1 | P103: North West | Q103: All | R103: Further Education | S103: =IF(I103<>reporting_month,"",COUNTIFS(CA_Availability[CA ID],B103,CA_Availability[Reporting Month],">="&one_year_ago)) ->  | V103: Accrington and Rossendale College
A104: AD00789 | B104: CA00764 | C104: Accrington and Rossendale College | E104: North West | F104: NOC | G104: Further Education College | H104: L04488 | I104: 41579 | J104: 0 | K104: 0 | L104: 0 | M104: 0 | N104: 1 | O104: 1 | P104: North West | Q104: All | R104: Further Education | S104: =IF(I104<>reporting_month,"",COUNTIFS(CA_Availability[CA ID],B104,CA_Availability[Reporting Month],">="&one_year_ago)) ->  | V104: Accrington and Rossendale College
A105: AD00789 | B105: CA00764 | C105: Accrington and Rossendale College | E105: North West | F105: NOC | G105: Further Education College | H105: L04488 | I105: 41609 | J105: 0 | K105: 0 | L105: 0 | M105: 0 | N105: 1 | O105: 1 | P105: North West | Q105: All | R105: Further Education | S105: =IF(I105<>reporting_month,"",COUNTIFS(CA_Availability[CA ID],B105,CA_Availability[Reporting Month],">="&one_year_ago)) ->  | V105: Accrington and Rossendale College
A106: AD00789 | B106: CA00764 | C106: Accrington and Rossendale College | E106: North West | F106: NOC | G106: Further Education College | H106: L04488 | I106: 41671 | J106: 0 | K106: 0 | L106: 0 | M106: 0 | N106: 1 | O106: 1 | P106: North West | Q106: All | R106: Further Education | S106: =IF(I106<>reporting_month,"",COUNTIFS(CA_Availability[CA ID],B106,CA_Availability[Reporting Month],">="&one_year_ago)) ->  | V106: Accrington and Rossendale College
A107: AD00789 | B107: CA00764 | C107: Accrington and Rossendale College | E107: North West | F107: NOC | G107: Further Education College | H107: L04488 | I107: 41518 | J107: 1 | K107: 15 | L107: 1 | M107: 15 | N107: 0.99965278 | O107: 1 | P107: North West | Q107: All | R107: Further Education | S107: =IF(I107<>reporting_month,"",COUNTIFS(CA_Availability[CA ID],B107,CA_Availability[Reporting Month],">="&one_year_ago)) ->  | V107: Accrington and Rossendale College
A108: AD00789 | B108: CA00764 | C108: Accrington and Rossendale College | E108: North West | F108: NOC | G108: Further Education College | H108: L04488 | I108: 41699 | J108: 0 | K108: 0 | L108: 0 | M108: 0 | N108: 1 | O108: 1 | P108: North West | Q108: All | R108: Further Education | S108: =IF(I108<>reporting_month,"",COUNTIFS(CA_Availability[CA ID],B108,CA_Availability[Reporting Month],">="&one_year_ago)) ->  | V108: Accrington and Rossendale College
A109: AD00789 | B109: CA00764 | C109: Accrington and Rossendale College | E109: North West | F109: NOC | G109: Further Education College | H109: L04488 | I109: 41760 | J109: 0 | K109: 0 | L109: 0 | M109: 0 | N109: 1 | O109: 1 | P109: North West | Q109: All | R109: Further Education | S109: =IF(I109<>reporting_month,"",COUNTIFS(CA_Availability[CA ID],B109,CA_Availability[Reporting Month],">="&one_year_ago)) -> 12 | T109: 0.999971065 | V109: Accrington and Rossendale College
A110: AD00789 | B110: CA00764 | C110: Accrington and Rossendale College | E110: North West | F110: NOC | G110: Further Education College | H110: L04488 | I110: 41730 | J110: 0 | K110: 0 | L110: 0 | M110: 0 | N110: 1 | O110: 1 | P110: North West | Q110: All | R110: Further Education | S110: =IF(I110<>reporting_month,"",COUNTIFS(CA_Availability[CA ID],B110,CA_Availability[Reporting Month],">="&one_year_ago)) ->  | V110: Accrington and Rossendale College
A111: AD00789 | B111: CA00764 | C111: Accrington and Rossendale College | E111: NNW | F111: NNW | G111: Further Education College | H111: L04488 | I111: 41456 | J111: 0 | K111: 0 | L111: 0 | M111: 0 | N111: 1 | O111: 1 | P111: North West | Q111: All | R111: Further Education | S111: =IF(I111<>reporting_month,"",COUNTIFS(CA_Availability[CA ID],B111,CA_Availability[Reporting Month],">="&one_year_ago)) ->  | V111: Accrington and Rossendale College
A112: AD01254 | B112: CA01138 | C112: Activate Learning | D112: Reading College Campus | E112: TVN | F112: NOC | G112: Further Education College | H112: L05634 | I112: 41548 | J112: 0 | K112: 0 | L112: 0 | M112: 0 | N112: 1 | O112: 1 | P112: TVN | Q112: All | R112: Further Education | S112: =IF(I112<>reporting_month,"",COUNTIFS(CA_Availability[CA ID],B112,CA_Availability[Reporting Month],">="&one_year_ago)) ->  | V112: Activate Learning, Reading College Campus
A113: AD01254 | B113: CA01138 | C113: Activate Learning | D113: Reading College Campus | E113: TVN | F113: NOC | G113: Further Education College | H113: L05634 | I113: 41579 | J113: 0 | K113: 0 | L113: 0 | M113: 0 | N113: 1 | O113: 1 | P113: TVN | Q113: All | R113: Further Education | S113: =IF(I113<>reporting_month,"",COUNTIFS(CA_Availability[CA ID],B113,CA_Availability[Reporting Month],">="&one_year_ago)) ->  | V113: Activate Learning, Reading College Campus
A114: AD01254 | B114: CA01138 | C114: Activate Learning | D114: Reading College Campus | E114: TVN | F114: NOC | G114: Further Education College | H114: L05634 | I114: 41609 | J114: 0 | K114: 0 | L114: 0 | M114: 0 | N114: 1 | O114: 1 | P114: TVN | Q114: All | R114: Further Education | S114: =IF(I114<>reporting_month,"",COUNTIFS(CA_Availability[CA ID],B114,CA_Availability[Reporting Month],">="&one_year_ago)) ->  | V114: Activate Learning, Reading College Campus
A115: AD01254 | B115: CA01138 | C115: Activate Learning | D115: Reading College Campus | E115: TVN | F115: NOC | G115: Further Education College | H115: L05634 | I115: 41640 | J115: 0 | K115: 0 | L115: 0 | M115: 0 | N115: 1 | O115: 1 | P115: TVN | Q115: All | R115: Further Education | S115: =IF(I115<>reporting_month,"",COUNTIFS(CA_Availability[CA ID],B115,CA_Availability[Reporting Month],">="&one_year_ago)) ->  | V115: Activate Learning, Reading College Campus
A116: AD01254 | B116: CA01138 | C116: Activate Learning | D116: Reading College Campus | E116: TVN | F116: NOC | G116: Further Education College | H116: L05634 | I116: 41671 | J116: 1 | K116: 3 | L116: 1 | M116: 3 | N116: 0.9999255952 | O116: 1 | P116: TVN | Q116: All | R116: Further Education | S116: =IF(I116<>reporting_month,"",COUNTIFS(CA_Availability[CA ID],B116,CA_Availability[Reporting Month],">="&one_year_ago)) ->  | V116: Activate Learning, Reading College Campus
A117: AD01254 | B117: CA01138 | C117: Activate Learning | D117: Reading College Campus | E117: TVN | F117: NOC | G117: Further Education College | H117: L05634 | I117: 41699 | J117: 1 | K117: 7 | L117: 0 | M117: 0 | N117: 1 | O117: 1 | P117: TVN | Q117: All | R117: Further Education | S117: =IF(I117<>reporting_month,"",COUNTIFS(CA_Availability[CA ID],B117,CA_Availability[Reporting Month],">="&one_year_ago)) ->  | V117: Activate Learning, Reading College Campus
A118: AD01254 | B118: CA01138 | C118: Activate Learning | D118: Reading College Campus | E118: TVN | F118: NOC | G118: Further Education College | H118: L05634 | I118: 41760 | J118: 0 | K118: 0 | L118: 0 | M118: 0 | N118: 1 | O118: 1 | P118: TVN | Q118: All | R118: Further Education | S118: =IF(I118<>reporting_month,"",COUNTIFS(CA_Availability[CA ID],B118,CA_Availability[Reporting Month],">="&one_year_ago)) -> 12 | T118: 0.9999937996 | V118: Activate Learning, Reading College Campus
A119: AD01254 | B119: CA01138 | C119: Activate Learning | D119: Reading College Campus | E119: TVN | F119: NOC | G119: Further Education College | H119: L05634 | I119: 41730 | J119: 0 | K119: 0 | L119: 0 | M119: 0 | N119: 1 | O119: 1 | P119: TVN | Q119: All | R119: Further Education | S119: =IF(I119<>reporting_month,"",COUNTIFS(CA_Availability[CA ID],B119,CA_Availability[Reporting Month],">="&one_year_ago)) ->  | V119: Activate Learning, Reading College Campus
A120: AD00489 | B120: CA00481 | C120: Activate Learning | D120: Oxford Campus | E120: TVN | F120: NOC | G120: Further Education College | H120: L05919 | I120: 41699 | J120: 0 | K120: 0 | L120: 0 | M120: 0 | N120: 1 | O120: 1 | P120: TVN | Q120: All | R120: Further Education | S120: =IF(I120<>reporting_month,"",COUNTIFS(CA_Availability[CA ID],B120,CA_Availability[Reporting Month],">="&one_year_ago)) ->  | V120: Activate Learning, Oxford Campus
A121: AD00489 | B121: CA00481 | C121: Activate Learning | D121: Oxford Campus | E121: TVN | F121: NOC | G121: Further Education College | H121: L05919 | I121: 41306 | J121: 0 | K121: 0 | L121: 0 | M121: 0 | N121: 1 | O121: 1 | P121: TVN | Q121: All | R121: Further Education | S121: =IF(I121<>reporting_month,"",COUNTIFS(CA_Availability[CA ID],B121,CA_Availability[Reporting Month],">="&one_year_ago)) ->  | V121: Activate Learning, Oxford Campus
A122: AD00489 | B122: CA00481 | C122: Activate Learning | D122: Oxford Campus | E122: TVN | F122: NOC | G122: Further Education College | H122: L05919 | I122: 41334 | J122: 0 | K122: 0 | L122: 0 | M122: 0 | N122: 1 | O122: 1 | P122: TVN | Q122: All | R122: Further Education | S122: =IF(I122<>reporting_month,"",COUNTIFS(CA_Availability[CA ID],B122,CA_Availability[Reporting Month],">="&one_year_ago)) ->  | V122: Activate Learning, Oxford Campus
A123: AD00489 | B123: CA00481 | C123: Activate Learning | D123: Oxford Campus | E123: TVN | F123: NOC | G123: Further Education College | H123: L05919 | I123: 41275 | J123: 0 | K123: 0 | L123: 0 | M123: 0 | N123: 1 | O123: 1 | P123: TVN | Q123: All | R123: Further Education | S123: =IF(I123<>reporting_month,"",COUNTIFS(CA_Availability[CA ID],B123,CA_Availability[Reporting Month],">="&one_year_ago)) ->  | V123: Activate Learning, Oxford Campus
A124: AD00489 | B124: CA00481 | C124: Activate Learning | D124: Oxford Campus | E124: TVN | F124: NOC | G124: Further Education College | H124: L05919 | I124: 41244 | J124: 0 | K124: 0 | L124: 0 | M124: 0 | N124: 1 | O124: 1 | P124: TVN | Q124: All | R124: Further Education | S124: =IF(I124<>reporting_month,"",COUNTIFS(CA_Availability[CA ID],B124,CA_Availability[Reporting Month],">="&one_year_ago)) ->  | V124: Activate Learning, Oxford Campus
A125: AD00489 | B125: CA00481 | C125: Activate Learning | D125: Oxford Campus | E125: TVN | F125: NOC | G125: Further Education College | H125: L05919 | I125: 41061 | J125: 0 | K125: 0 | L125: 0 | M125: 0 | N125: 1 | O125: 1 | P125: TVN | Q125: All | R125: Further Education | S125: =IF(I125<>reporting_month,"",COUNTIFS(CA_Availability[CA ID],B125,CA_Availability[Reporting Month],">="&one_year_ago)) ->  | V125: Activate Learning, Oxford Campus
A126: AD00489 | B126: CA00481 | C126: Activate Learning | D126: Oxford Campus | E126: TVN | F126: NOC | G126: Further Education College | H126: L05919 | I126: 41122 | J126: 0 | K126: 0 | L126: 0 | M126: 0 | N126: 1 | O126: 1 | P126: TVN | Q126: All | R126: Further Education | S126: =IF(I126<>reporting_month,"",COUNTIFS(CA_Availability[CA ID],B126,CA_Availability[Reporting Month],">="&one_year_ago)) ->  | V126: Activate Learning, Oxford Campus
A127: AD00489 | B127: CA00481 | C127: Activate Learning | D127: Oxford Campus | E127: TVN | F127: NOC | G127: Further Education College | H127: L05919 | I127: 41091 | J127: 0 | K127: 0 | L127: 0 | M127: 0 | N127: 1 | O127: 1 | P127: TVN | Q127: All | R127: Further Education | S127: =IF(I127<>reporting_month,"",COUNTIFS(CA_Availability[CA ID],B127,CA_Availability[Reporting Month],">="&one_year_ago)) ->  | V127: Activate Learning, Oxford Campus
A128: AD00489 | B128: CA00481 | C128: Activate Learning | D128: Oxford Campus | E128: TVN | F128: NOC | G128: Further Education College | H128: L05919 | I128: 41183 | J128: 0 | K128: 0 | L128: 0 | M128: 0 | N128: 1 | O128: 1 | P128: TVN | Q128: All | R128: Further Education | S128: =IF(I128<>reporting_month,"",COUNTIFS(CA_Availability[CA ID],B128,CA_Availability[Reporting Month],">="&one_year_ago)) ->  | V128: Activate Learning, Oxford Campus
A129: AD00489 | B129: CA00481 | C129: Activate Learning | D129: Oxford Campus | E129: TVN | F129: NOC | G129: Further Education College | H129: L05919 | I129: 41730 | J129: 0 | K129: 0 | L129: 0 | M129: 0 | N129: 1 | O129: 1 | P129: TVN | Q129: All | R129: Further Education | S129: =IF(I129<>reporting_month,"",COUNTIFS(CA_Availability[CA ID],B129,CA_Availability[Reporting Month],">="&one_year_ago)) ->  | V129: Activate Learning, Oxford Campus
A130: AD00489 | B130: CA00481 | C130: Activate Learning | D130: Oxford Campus | E130: TVN | F130: NOC | G130: Further Education College | H130: L05919 | I130: 41214 | J130: 1 | K130: 11 | L130: 0 | M130: 0 | N130: 1 | O130: 1 | P130: =IF(E130="","",VLOOKUP(E130,region_lookup,2,FALSE)) -> TVN | Q130: =IF(G130="","",IF(sector_selection="All","All",VLOOKUP(G130,sector_lookup,2,FALSE))) -> All | R130: =IF(G130="","",VLOOKUP(G130,sector_lookup,2,FALSE)) -> Further Education | S130: =IF(I130<>reporting_month,"",COUNTIFS(CA_Availability[CA ID],B130,CA_Availability[Reporting Month],">="&one_year_ago)) ->  | U130: =IF(T130="","",IF(AND(T130<=0.997,P130=region_selection,Q130=sector_selection),"Yes","")) ->  | V130: =IF(C130="","",IF(D130="",C130,C130&", "&D130)) -> Activate Learning, Oxford Campus | W130: =IF(AND(I130=reporting_month,P130=region_selection),"yes","") -> 
A131: AD00489 | B131: CA00481 | C131: Activate Learning | D131: Oxford Campus | E131: TVN | F131: NOC | G131: Further Education College | H131: L05919 | I131: 41760 | J131: 0 | K131: 0 | L131: 0 | M131: 0 | N131: 1 | O131: 1 | P131: TVN | Q131: All | R131: Further Education | S131: =IF(I131<>reporting_month,"",COUNTIFS(CA_Availability[CA ID],B131,CA_Availability[Reporting Month],">="&one_year_ago)) -> 12 | T131: 1 | V131: Activate Learning, Oxford Campus
A132: AD00489 | B132: CA00481 | C132: Activate Learning | D132: Oxford Campus | E132: TVN | F132: NOC | G132: Further Education College | H132: L05919 | I132: 41548 | J132: 0 | K132: 0 | L132: 0 | M132: 0 | N132: 1 | O132: 1 | P132: TVN | Q132: All | R132: Further Education | S132: =IF(I132<>reporting_month,"",COUNTIFS(CA_Availability[CA ID],B132,CA_Availability[Reporting Month],">="&one_year_ago)) ->  | V132: Activate Learning, Oxford Campus
A133: AD00489 | B133: CA00481 | C133: Activate Learning | D133: Oxford Campus | E133: TVN | F133: NOC | G133: Further Education College | H133: L05919 | I133: 41671 | J133: 0 | K133: 0 | L133: 0 | M133: 0 | N133: 1 | O133: 1 | P133: TVN | Q133: All | R133: Further Education | S133: =IF(I133<>reporting_month,"",COUNTIFS(CA_Availability[CA ID],B133,CA_Availability[Reporting Month],">="&one_year_ago)) ->  | V133: Activate Learning, Oxford Campus
A134: AD00489 | B134: CA00481 | C134: Activate Learning | D134: Oxford Campus | E134: TVN | F134: NOC | G134: Further Education College | H134: L05919 | I134: 41640 | J134: 0 | K134: 0 | L134: 0 | M134: 0 | N134: 1 | O134: 1 | P134: TVN | Q134: All | R134: Further Education | S134: =IF(I134<>reporting_month,"",COUNTIFS(CA_Availability[CA ID],B134,CA_Availability[Reporting Month],">="&one_year_ago)) ->  | V134: Activate Learning, Oxford Campus
A135: AD00489 | B135: CA00481 | C135: Activate Learning | D135: Oxford Campus | E135: TVN | F135: NOC | G135: Further Education College | H135: L05919 | I135: 41609 | J135: 0 | K135: 0 | L135: 0 | M135: 0 | N135: 1 | O135: 1 | P135: TVN | Q135: All | R135: Further Education | S135: =IF(I135<>reporting_month,"",COUNTIFS(CA_Availability[CA ID],B135,CA_Availability[Reporting Month],">="&one_year_ago)) ->  | V135: Activate Learning, Oxford Campus
A136: AD00489 | B136: CA00481 | C136: Activate Learning | D136: Oxford Campus | E136: TVN | F136: NOC | G136: Further Education College | H136: L05919 | I136: 41579 | J136: 0 | K136: 0 | L136: 0 | M136: 0 | N136: 1 | O136: 1 | P136: TVN | Q136: All | R136: Further Education | S136: =IF(I136<>reporting_month,"",COUNTIFS(CA_Availability[CA ID],B136,CA_Availability[Reporting Month],">="&one_year_ago)) ->  | V136: Activate Learning, Oxford Campus
A137: AD00489 | B137: CA00481 | C137: Activate Learning | D137: Oxford Campus | E137: TVN | F137: NOC | G137: Further Education College | H137: L05919 | I137: 41518 | J137: 0 | K137: 0 | L137: 0 | M137: 0 | N137: 1 | O137: 1 | P137: TVN | Q137: All | R137: Further Education | S137: =IF(I137<>reporting_month,"",COUNTIFS(CA_Availability[CA ID],B137,CA_Availability[Reporting Month],">="&one_year_ago)) ->  | V137: Activate Learning, Oxford Campus
A138: AD00489 | B138: CA00481 | C138: Activate Learning | D138: Oxford Campus | E138: TVN | F138: NOC | G138: Further Education College | H138: L05919 | I138: 41365 | J138: 0 | K138: 0 | L138: 0 | M138: 0 | N138: 1 | O138: 1 | P138: TVN | Q138: All | R138: Further Education | S138: =IF(I138<>reporting_month,"",COUNTIFS(CA_Availability[CA ID],B138,CA_Availability[Reporting Month],">="&one_year_ago)) ->  | V138: Activate Learning, Oxford Campus
A139: AD00489 | B139: CA00481 | C139: Activate Learning | D139: Oxford Campus | E139: TVN | F139: NOC | G139: Further Education College | H139: L05919 | I139: 41395 | J139: 0 | K139: 0 | L139: 0 | M139: 0 | N139: 1 | O139: 1 | P139: TVN | Q139: All | R139: Further Education | S139: =IF(I139<>reporting_month,"",COUNTIFS(CA_Availability[CA ID],B139,CA_Availability[Reporting Month],">="&one_year_ago)) ->  | V139: Activate Learning, Oxford Campus
A140: AD00489 | B140: CA00481 | C140: Activate Learning | D140: Oxford Campus | E140: TVN | F140: NOC | G140: Further Education College | H140: L05919 | I140: 41426 | J140: 0 | K140: 0 | L140: 0 | M140: 0 | N140: 1 | O140: 1 | P140: TVN | Q140: All | R140: Further Education | S140: =IF(I140<>reporting_month,"",COUNTIFS(CA_Availability[CA ID],B140,CA_Availability[Reporting Month],">="&one_year_ago)) ->  | V140: Activate Learning, Oxford Campus
A141: AD00489 | B141: CA00481 | C141: Activate Learning | D141: Oxford Campus | E141: TVN | F141: NOC | G141: Further Education College | H141: L05919 | I141: 41487 | J141: 1 | K141: 823 | L141: 0 | M141: 0 | N141: 1 | O141: 1 | P141: TVN | Q141: All | R141: Further Education | S141: =IF(I141<>reporting_month,"",COUNTIFS(CA_Availability[CA ID],B141,CA_Availability[Reporting Month],">="&one_year_ago)) ->  | V141: Activate Learning, Oxford Campus
A142: AD00489 | B142: CA00481 | C142: Activate Learning | D142: Oxford Campus | E142: TVN | F142: NOC | G142: Further Education College | H142: L05919 | I142: 41153 | J142: 0 | K142: 0 | L142: 0 | M142: 0 | N142: 1 | O142: 1 | P142: TVN | Q142: All | R142: Further Education | S142: =IF(I142<>reporting_month,"",COUNTIFS(CA_Availability[CA ID],B142,CA_Availability[Reporting Month],">="&one_year_ago)) ->  | V142: Activate Learning, Oxford Campus
A143: AD00489 | B143: CA00481 | C143: Activate Learning | D143: Oxford Campus | E143: TVN | F143: NOC | G143: Further Education College | H143: L05919 | I143: 41456 | J143: 0 | K143: 0 | L143: 0 | M143: 0 | N143: 1 | O143: 1 | P143: TVN | Q143: All | R143: Further Education | S143: =IF(I143<>reporting_month,"",COUNTIFS(CA_Availability[CA ID],B143,CA_Availability[Reporting Month],">="&one_year_ago)) ->  | V143: Activate Learning, Oxford Campus
A144: AD01254 | B144: CA01138 | C144: Activate Learning | D144: Reading College Campus | E144: TVN | F144: NOC | G144: Further Education College | H144: L05634 | I144: 41214 | J144: 0 | K144: 0 | L144: 0 | M144: 0 | N144: 1 | O144: 1 | P144: TVN | Q144: All | R144: Further Education | S144: =IF(I144<>reporting_month,"",COUNTIFS(CA_Availability[CA ID],B144,CA_Availability[Reporting Month],">="&one_year_ago)) ->  | V144: Activate Learning, Reading College Campus
A145: AD01254 | B145: CA01138 | C145: Activate Learning | D145: Reading College Campus | E145: TVN | F145: NOC | G145: Further Education College | H145: L05634 | I145: 41153 | J145: 0 | K145: 0 | L145: 0 | M145: 0 | N145: 1 | O145: 1 | P145: TVN | Q145: All | R145: Further Education | S145: =IF(I145<>reporting_month,"",COUNTIFS(CA_Availability[CA ID],B145,CA_Availability[Reporting Month],">="&one_year_ago)) ->  | V145: Activate Learning, Reading College Campus
A146: AD01254 | B146: CA01138 | C146: Activate Learning | D146: Reading College Campus | E146: TVN | F146: NOC | G146: Further Education College | H146: L05634 | I146: 41395 | J146: 0 | K146: 0 | L146: 0 | M146: 0 | N146: 1 | O146: 1 | P146: TVN | Q146: All | R146: Further Education | S146: =IF(I146<>reporting_month,"",COUNTIFS(CA_Availability[CA ID],B146,CA_Availability[Reporting Month],">="&one_year_ago)) ->  | V146: Activate Learning, Reading College Campus
A147: AD01254 | B147: CA01138 | C147: Activate Learning | D147: Reading College Campus | E147: TVN | F147: NOC | G147: Further Education College | H147: L05634 | I147: 41426 | J147: 1 | K147: 33 | L147: 0 | M147: 0 | N147: 1 | O147: 1 | P147: TVN | Q147: All | R147: Further Education | S147: =IF(I147<>reporting_month,"",COUNTIFS(CA_Availability[CA ID],B147,CA_Availability[Reporting Month],">="&one_year_ago)) ->  | V147: Activate Learning, Reading College Campus
A148: AD01254 | B148: CA01138 | C148: Activate Learning | D148: Reading College Campus | E148: TVN | F148: NOC | G148: Further Education College | H148: L05634 | I148: 41365 | J148: 0 | K148: 0 | L148: 0 | M148: 0 | N148: 1 | O148: 1 | P148: TVN | Q148: All | R148: Further Education | S148: =IF(I148<>reporting_month,"",COUNTIFS(CA_Availability[CA ID],B148,CA_Availability[Reporting Month],">="&one_year_ago)) ->  | V148: Activate Learning, Reading College Campus
A149: AD01254 | B149: CA01138 | C149: Activate Learning | D149: Reading College Campus | E149: TVN | F149: NOC | G149: Further Education College | H149: L05634 | I149: 41487 | J149: 0 | K149: 0 | L149: 0 | M149: 0 | N149: 1 | O149: 1 | P149: TVN | Q149: All | R149: Further Education | S149: =IF(I149<>reporting_month,"",COUNTIFS(CA_Availability[CA ID],B149,CA_Availability[Reporting Month],">="&one_year_ago)) ->  | V149: Activate Learning, Reading College Campus
A150: AD01254 | B150: CA01138 | C150: Activate Learning | D150: Reading College Campus | E150: TVN | F150: NOC | G150: Further Education College | H150: L05634 | I150: 41518 | J150: 0 | K150: 0 | L150: 0 | M150: 0 | N150: 1 | O150: 1 | P150: TVN | Q150: All | R150: Further Education | S150: =IF(I150<>reporting_month,"",COUNTIFS(CA_Availability[CA ID],B150,CA_Availability[Reporting Month],">="&one_year_ago)) ->  | V150: Activate Learning, Reading College Campus
A151: AD01254 | B151: CA01138 | C151: Activate Learning | D151: Reading College Campus | E151: TVN | F151: NOC | G151: Further Education College | H151: L05634 | I151: 41122 | J151: 0 | K151: 0 | L151: 0 | M151: 0 | N151: 1 | O151: 1 | P151: TVN | Q151: All | R151: Further Education | S151: =IF(I151<>reporting_month,"",COUNTIFS(CA_Availability[CA ID],B151,CA_Availability[Reporting Month],">="&one_year_ago)) ->  | V151: Activate Learning, Reading College Campus
A152: AD01254 | B152: CA01138 | C152: Activate Learning | D152: Reading College Campus | E152: TVN | F152: NOC | G152: Further Education College | H152: L05634 | I152: 41061 | J152: 0 | K152: 0 | L152: 0 | M152: 0 | N152: 1 | O152: 1 | P152: TVN | Q152: All | R152: Further Education | S152: =IF(I152<>reporting_month,"",COUNTIFS(CA_Availability[CA ID],B152,CA_Availability[Reporting Month],">="&one_year_ago)) ->  | V152: Activate Learning, Reading College Campus
A153: AD01254 | B153: CA01138 | C153: Activate Learning | D153: Reading College Campus | E153: TVN | F153: NOC | G153: Further Education College | H153: L05634 | I153: 41091 | J153: 0 | K153: 0 | L153: 0 | M153: 0 | N153: 1 | O153: 1 | P153: TVN | Q153: All | R153: Further Education | S153: =IF(I153<>reporting_month,"",COUNTIFS(CA_Availability[CA ID],B153,CA_Availability[Reporting Month],">="&one_year_ago)) ->  | V153: Activate Learning, Reading College Campus
A154: AD01254 | B154: CA01138 | C154: Activate Learning | D154: Reading College Campus | E154: TVN | F154: NOC | G154: Further Education College | H154: L05634 | I154: 41334 | J154: 0 | K154: 0 | L154: 0 | M154: 0 | N154: 1 | O154: 1 | P154: TVN | Q154: All | R154: Further Education | S154: =IF(I154<>reporting_month,"",COUNTIFS(CA_Availability[CA ID],B154,CA_Availability[Reporting Month],">="&one_year_ago)) ->  | V154: Activate Learning, Reading College Campus
A155: AD01254 | B155: CA01138 | C155: Activate Learning | D155: Reading College Campus | E155: TVN | F155: NOC | G155: Further Education College | H155: L05634 | I155: 41456 | J155: 0 | K155: 0 | L155: 0 | M155: 0 | N155: 1 | O155: 1 | P155: TVN | Q155: All | R155: Further Education | S155: =IF(I155<>reporting_month,"",COUNTIFS(CA_Availability[CA ID],B155,CA_Availability[Reporting Month],">="&one_year_ago)) ->  | V155: Activate Learning, Reading College Campus
A156: AD01254 | B156: CA01138 | C156: Activate Learning | D156: Reading College Campus | E156: TVN | F156: NOC | G156: Further Education College | H156: L05634 | I156: 41183 | J156: 0 | K156: 0 | L156: 0 | M156: 0 | N156: 1 | O156: 1 | P156: TVN | Q156: All | R156: Further Education | S156: =IF(I156<>reporting_month,"",COUNTIFS(CA_Availability[CA ID],B156,CA_Availability[Reporting Month],">="&one_year_ago)) ->  | V156: Activate Learning, Reading College Campus
A157: AD01254 | B157: CA01138 | C157: Activate Learning | D157: Reading College Campus | E157: TVN | F157: NOC | G157: Further Education College | H157: L05634 | I157: 41306 | J157: 0 | K157: 0 | L157: 0 | M157: 0 | N157: 1 | O157: 1 | P157: TVN | Q157: All | R157: Further Education | S157: =IF(I157<>reporting_month,"",COUNTIFS(CA_Availability[CA ID],B157,CA_Availability[Reporting Month],">="&one_year_ago)) ->  | V157: Activate Learning, Reading College Campus
A158: AD01254 | B158: CA01138 | C158: Activate Learning | D158: Reading College Campus | E158: TVN | F158: NOC | G158: Further Education College | H158: L05634 | I158: 41275 | J158: 0 | K158: 0 | L158: 0 | M158: 0 | N158: 1 | O158: 1 | P158: TVN | Q158: All | R158: Further Education | S158: =IF(I158<>reporting_month,"",COUNTIFS(CA_Availability[CA ID],B158,CA_Availability[Reporting Month],">="&one_year_ago)) ->  | V158: Activate Learning, Reading College Campus
A159: AD01254 | B159: CA01138 | C159: Activate Learning | D159: Reading College Campus | E159: TVN | F159: NOC | G159: Further Education College | H159: L05634 | I159: 41244 | J159: 0 | K159: 0 | L159: 0 | M159: 0 | N159: 1 | O159: 1 | P159: TVN | Q159: All | R159: Further Education | S159: =IF(I159<>reporting_month,"",COUNTIFS(CA_Availability[CA ID],B159,CA_Availability[Reporting Month],">="&one_year_ago)) ->  | V159: Activate Learning, Reading College Campus
A160: AD00291 | B160: CA00289 | C160: Alton College | E160: South | F160: NOC | G160: Sixth Form College | H160: L07029 | I160: 41730 | J160: 0 | K160: 0 | L160: 0 | M160: 0 | N160: 1 | O160: 1 | P160: South | Q160: All | R160: Further Education | S160: =IF(I160<>reporting_month,"",COUNTIFS(CA_Availability[CA ID],B160,CA_Availability[Reporting Month],">="&one_year_ago)) ->  | V160: Alton College
A161: AD00291 | B161: CA00289 | C161: Alton College | E161: South | F161: NOC | G161: Sixth Form College | H161: L07029 | I161: 41760 | J161: 0 | K161: 0 | L161: 0 | M161: 0 | N161: 1 | O161: 1 | P161: South | Q161: All | R161: Further Education | S161: =IF(I161<>reporting_month,"",COUNTIFS(CA_Availability[CA ID],B161,CA_Availability[Reporting Month],">="&one_year_ago)) -> 12 | T161: 0.9999626643 | V161: Alton College
A162: AD00291 | B162: CA00289 | C162: Alton College | E162: Janet South | F162: NOC | G162: Sixth Form College | H162: L04449 | I162: 41214 | J162: 0 | K162: 0 | L162: 0 | M162: 0 | N162: 1 | O162: 1 | P162: South | Q162: All | R162: Further Education | S162: =IF(I162<>reporting_month,"",COUNTIFS(CA_Availability[CA ID],B162,CA_Availability[Reporting Month],">="&one_year_ago)) ->  | V162: Alton College
A163: AD00291 | B163: CA00289 | C163: Alton College | E163: Janet South | F163: NOC | G163: Sixth Form College | H163: L04449 | I163: 41275 | J163: 0 | K163: 0 | L163: 0 | M163: 0 | N163: 1 | O163: 1 | P163: South | Q163: All | R163: Further Education | S163: =IF(I163<>reporting_month,"",COUNTIFS(CA_Availability[CA ID],B163,CA_Availability[Reporting Month],">="&one_year_ago)) ->  | V163: Alton College
A164: AD00291 | B164: CA00289 | C164: Alton College | E164: Janet South | F164: NOC | G164: Sixth Form College | H164: L04449 | I164: 41244 | J164: 0 | K164: 0 | L164: 0 | M164: 0 | N164: 1 | O164: 1 | P164: South | Q164: All | R164: Further Education | S164: =IF(I164<>reporting_month,"",COUNTIFS(CA_Availability[CA ID],B164,CA_Availability[Reporting Month],">="&one_year_ago)) ->  | V164: Alton College
A165: AD00291 | B165: CA00289 | C165: Alton College | E165: Janet South | F165: NOC | G165: Sixth Form College | H165: L04449 | I165: 41334 | J165: 1 | K165: 2 | L165: 0 | M165: 0 | N165: 1 | O165: 1 | P165: South | Q165: All | R165: Further Education | S165: =IF(I165<>reporting_month,"",COUNTIFS(CA_Availability[CA ID],B165,CA_Availability[Reporting Month],">="&one_year_ago)) ->  | V165: Alton College
A166: AD00291 | B166: CA00289 | C166: Alton College | E166: Janet South | F166: NOC | G166: Sixth Form College | H166: L04449 | I166: 41306 | J166: 0 | K166: 0 | L166: 0 | M166: 0 | N166: 1 | O166: 1 | P166: South | Q166: All | R166: Further Education | S166: =IF(I166<>reporting_month,"",COUNTIFS(CA_Availability[CA ID],B166,CA_Availability[Reporting Month],">="&one_year_ago)) ->  | V166: Alton College
A167: AD00291 | B167: CA00289 | C167: Alton College | E167: Janet South | F167: NOC | G167: Sixth Form College | H167: L04449 | I167: 41183 | J167: 1 | K167: 25 | L167: 0 | M167: 0 | N167: 1 | O167: 1 | P167: South | Q167: All | R167: Further Education | S167: =IF(I167<>reporting_month,"",COUNTIFS(CA_Availability[CA ID],B167,CA_Availability[Reporting Month],">="&one_year_ago)) ->  | V167: Alton College
A168: AD00291 | B168: CA00289 | C168: Alton College | E168: Janet South | F168: NOC | G168: Sixth Form College | H168: L04449 | I168: 41365 | J168: 0 | K168: 0 | L168: 0 | M168: 0 | N168: 1 | O168: 1 | P168: South | Q168: All | R168: Further Education | S168: =IF(I168<>reporting_month,"",COUNTIFS(CA_Availability[CA ID],B168,CA_Availability[Reporting Month],">="&one_year_ago)) ->  | V168: Alton College
A169: AD00291 | B169: CA00289 | C169: Alton College | E169: Janet South | F169: NOC | G169: Sixth Form College | H169: L04449 | I169: 41395 | J169: 0 | K169: 0 | L169: 0 | M169: 0 | N169: 1 | O169: 1 | P169: South | Q169: All | R169: Further Education | S169: =IF(I169<>reporting_month,"",COUNTIFS(CA_Availability[CA ID],B169,CA_Availability[Reporting Month],">="&one_year_ago)) ->  | V169: Alton College
A170: AD00291 | B170: CA00289 | C170: Alton College | E170: Janet South | F170: NOC | G170: Sixth Form College | H170: L04449 | I170: 41426 | J170: 0 | K170: 0 | L170: 0 | M170: 0 | N170: 1 | O170: 1 | P170: South | Q170: All | R170: Further Education | S170: =IF(I170<>reporting_month,"",COUNTIFS(CA_Availability[CA ID],B170,CA_Availability[Reporting Month],">="&one_year_ago)) ->  | V170: Alton College
A171: AD00291 | B171: CA00289 | C171: Alton College | E171: LeNSE | F171: LeNSE | G171: Sixth Form College | H171: L04449 | I171: 41091 | J171: 0 | K171: 0 | L171: 0 | M171: 0 | N171: 1 | O171: 1 | P171: South | Q171: All | R171: Further Education | S171: =IF(I171<>reporting_month,"",COUNTIFS(CA_Availability[CA ID],B171,CA_Availability[Reporting Month],">="&one_year_ago)) ->  | V171: Alton College
A172: AD00291 | B172: CA00289 | C172: Alton College | E172: LeNSE | F172: LeNSE | G172: Sixth Form College | H172: L04449 | I172: 41061 | J172: 0 | K172: 0 | L172: 0 | M172: 0 | N172: 1 | O172: 1 | P172: South | Q172: All | R172: Further Education | S172: =IF(I172<>reporting_month,"",COUNTIFS(CA_Availability[CA ID],B172,CA_Availability[Reporting Month],">="&one_year_ago)) ->  | V172: Alton College
A173: AD00291 | B173: CA00289 | C173: Alton College | E173: LeNSE | F173: LeNSE | G173: Sixth Form College | H173: L04449 | I173: 41153 | J173: 0 | K173: 0 | L173: 0 | M173: 0 | N173: 1 | O173: 1 | P173: South | Q173: All | R173: Further Education | S173: =IF(I173<>reporting_month,"",COUNTIFS(CA_Availability[CA ID],B173,CA_Availability[Reporting Month],">="&one_year_ago)) ->  | V173: Alton College
A174: AD00291 | B174: CA00289 | C174: Alton College | E174: LeNSE | F174: LeNSE | G174: Sixth Form College | H174: L04449 | I174: 41122 | J174: 0 | K174: 0 | L174: 0 | M174: 0 | N174: 1 | O174: 1 | P174: South | Q174: All | R174: Further Education | S174: =IF(I174<>reporting_month,"",COUNTIFS(CA_Availability[CA ID],B174,CA_Availability[Reporting Month],">="&one_year_ago)) ->  | V174: Alton College
A175: AD00291 | B175: CA00289 | C175: Alton College | E175: South | F175: NOC | G175: Sixth Form College | H175: L04449 | I175: 41548 | J175: 0 | K175: 0 | L175: 0 | M175: 0 | N175: 1 | O175: 1 | P175: South | Q175: All | R175: Further Education | S175: =IF(I175<>reporting_month,"",COUNTIFS(CA_Availability[CA ID],B175,CA_Availability[Reporting Month],">="&one_year_ago)) ->  | V175: Alton College
A176: AD00291 | B176: CA00289 | C176: Alton College | E176: South | F176: NOC | G176: Sixth Form College | H176: L04449 | I176: 41579 | J176: 0 | K176: 0 | L176: 0 | M176: 0 | N176: 1 | O176: 1 | P176: South | Q176: All | R176: Further Education | S176: =IF(I176<>reporting_month,"",COUNTIFS(CA_Availability[CA ID],B176,CA_Availability[Reporting Month],">="&one_year_ago)) ->  | V176: Alton College
A177: AD00291 | B177: CA00289 | C177: Alton College | E177: South | F177: NOC | G177: Sixth Form College | H177: L04449 | I177: 41640 | J177: 1 | K177: 20 | L177: 1 | M177: 20 | N177: 0.9995519713 | O177: 1 | P177: South | Q177: All | R177: Further Education | S177: =IF(I177<>reporting_month,"",COUNTIFS(CA_Availability[CA ID],B177,CA_Availability[Reporting Month],">="&one_year_ago)) ->  | V177: Alton College
A178: AD00291 | B178: CA00289 | C178: Alton College | E178: South | F178: NOC | G178: Sixth Form College | H178: L04449 | I178: 41671 | J178: 0 | K178: 0 | L178: 0 | M178: 0 | N178: 1 | O178: 1 | P178: South | Q178: All | R178: Further Education | S178: =IF(I178<>reporting_month,"",COUNTIFS(CA_Availability[CA ID],B178,CA_Availability[Reporting Month],">="&one_year_ago)) ->  | V178: Alton College
A179: AD00291 | B179: CA00289 | C179: Alton College | E179: South | F179: NOC | G179: Sixth Form College | H179: L04449 | I179: 41487 | J179: 0 | K179: 0 | L179: 0 | M179: 0 | N179: 1 | O179: 1 | P179: South | Q179: All | R179: Further Education | S179: =IF(I179<>reporting_month,"",COUNTIFS(CA_Availability[CA ID],B179,CA_Availability[Reporting Month],">="&one_year_ago)) ->  | V179: Alton College
A180: AD00291 | B180: CA00289 | C180: Alton College | E180: South | F180: NOC | G180: Sixth Form College | H180: L04449 | I180: 41456 | J180: 0 | K180: 0 | L180: 0 | M180: 0 | N180: 1 | O180: 1 | P180: South | Q180: All | R180: Further Education | S180: =IF(I180<>reporting_month,"",COUNTIFS(CA_Availability[CA ID],B180,CA_Availability[Reporting Month],">="&one_year_ago)) ->  | V180: Alton College
A181: AD00291 | B181: CA00289 | C181: Alton College | E181: South | F181: NOC | G181: Sixth Form College | H181: L04449 | I181: 41518 | J181: 0 | K181: 0 | L181: 0 | M181: 0 | N181: 1 | O181: 1 | P181: South | Q181: All | R181: Further Education | S181: =IF(I181<>reporting_month,"",COUNTIFS(CA_Availability[CA ID],B181,CA_Availability[Reporting Month],">="&one_year_ago)) ->  | V181: Alton College
A182: AD00291 | B182: CA00289 | C182: Alton College | E182: South | F182: NOC | G182: Sixth Form College | H182: L04449 | I182: 41609 | J182: 0 | K182: 0 | L182: 0 | M182: 0 | N182: 1 | O182: 1 | P182: South | Q182: All | R182: Further Education | S182: =IF(I182<>reporting_month,"",COUNTIFS(CA_Availability[CA ID],B182,CA_Availability[Reporting Month],">="&one_year_ago)) ->  | V182: Alton College
A183: AD00291 | B183: CA00289 | C183: Alton College | E183: South | F183: NOC | G183: Sixth Form College | H183: L04449 | I183: 41699 | J183: 0 | K183: 0 | L183: 0 | M183: 0 | N183: 1 | O183: 1 | P183: South | Q183: All | R183: Further Education | S183: =IF(I183<>reporting_month,"",COUNTIFS(CA_Availability[CA ID],B183,CA_Availability[Reporting Month],">="&one_year_ago)) ->  | V183: Alton College
A184: AD00933 | B184: CA00906 | C184: Amersham and Wycombe College | E184: Docklands | F184: NOC | G184: Further Education College | H184: L05429 | I184: 41548 | J184: 1 | K184: 1545 | L184: 0 | M184: 0 | N184: 1 | O184: 1 | P184: Docklands | Q184: All | R184: Further Education | S184: =IF(I184<>reporting_month,"",COUNTIFS(CA_Availability[CA ID],B184,CA_Availability[Reporting Month],">="&one_year_ago)) ->  | V184: Amersham and Wycombe College
A185: AD00933 | B185: CA00906 | C185: Amersham and Wycombe College | E185: Docklands | F185: NOC | G185: Further Education College | H185: L05429 | I185: 41579 | J185: 0 | K185: 0 | L185: 0 | M185: 0 | N185: 1 | O185: 1 | P185: Docklands | Q185: All | R185: Further Education | S185: =IF(I185<>reporting_month,"",COUNTIFS(CA_Availability[CA ID],B185,CA_Availability[Reporting Month],">="&one_year_ago)) ->  | V185: Amersham and Wycombe College
A186: AD00933 | B186: CA00906 | C186: Amersham and Wycombe College | E186: London | F186: NOC | G186: Further Education College | H186: L06639 | I186: 41640 | J186: 0 | K186: 0 | L186: 0 | M186: 0 | N186: 1 | O186: 1 | P186: London | Q186: All | R186: Further Education | S186: =IF(I186<>reporting_month,"",COUNTIFS(CA_Availability[CA ID],B186,CA_Availability[Reporting Month],">="&one_year_ago)) ->  | V186: Amersham and Wycombe College
A187: AD00933 | B187: CA00906 | C187: Amersham and Wycombe College | E187: London | F187: NOC | G187: Further Education College | H187: L06639 | I187: 41730 | J187: 0 | K187: 0 | L187: 0 | M187: 0 | N187: 1 | O187: 1 | P187: London | Q187: All | R187: Further Education | S187: =IF(I187<>reporting_month,"",COUNTIFS(CA_Availability[CA ID],B187,CA_Availability[Reporting Month],">="&one_year_ago)) ->  | V187: Amersham and Wycombe College
A188: AD00933 | B188: CA00906 | C188: Amersham and Wycombe College | E188: London | F188: NOC | G188: Further Education College | H188: L06639 | I188: 41699 | J188: 0 | K188: 0 | L188: 0 | M188: 0 | N188: 1 | O188: 1 | P188: London | Q188: All | R188: Further Education | S188: =IF(I188<>reporting_month,"",COUNTIFS(CA_Availability[CA ID],B188,CA_Availability[Reporting Month],">="&one_year_ago)) ->  | V188: Amersham and Wycombe College
A189: AD00933 | B189: CA00906 | C189: Amersham and Wycombe College | E189: London | F189: NOC | G189: Further Education College | H189: L06639 | I189: 41671 | J189: 0 | K189: 0 | L189: 0 | M189: 0 | N189: 1 | O189: 1 | P189: London | Q189: All | R189: Further Education | S189: =IF(I189<>reporting_month,"",COUNTIFS(CA_Availability[CA ID],B189,CA_Availability[Reporting Month],">="&one_year_ago)) ->  | V189: Amersham and Wycombe College
A190: AD00933 | B190: CA00906 | C190: Amersham and Wycombe College | E190: London | F190: NOC | G190: Further Education College | H190: L06639 | I190: 41609 | J190: 0 | K190: 0 | L190: 0 | M190: 0 | N190: 1 | O190: 1 | P190: London | Q190: All | R190: Further Education | S190: =IF(I190<>reporting_month,"",COUNTIFS(CA_Availability[CA ID],B190,CA_Availability[Reporting Month],">="&one_year_ago)) ->  | V190: Amersham and Wycombe College
A191: AD00933 | B191: CA00906 | C191: Amersham and Wycombe College | E191: London | F191: NOC | G191: Further Education College | H191: L06639 | I191: 41760 | J191: 0 | K191: 0 | L191: 0 | M191: 0 | N191: 1 | O191: 1 | P191: London | Q191: All | R191: Further Education | S191: =IF(I191<>reporting_month,"",COUNTIFS(CA_Availability[CA ID],B191,CA_Availability[Reporting Month],">="&one_year_ago)) -> 12 | T191: 1 | V191: Amersham and Wycombe College
A192: AD00933 | B192: CA00906 | C192: Amersham and Wycombe College | E192: Docklands | F192: NOC | G192: Further Education College | H192: L05429 | I192: 41091 | J192: 0 | K192: 0 | L192: 0 | M192: 0 | N192: 1 | O192: 1 | P192: Docklands | Q192: All | R192: Further Education | S192: =IF(I192<>reporting_month,"",COUNTIFS(CA_Availability[CA ID],B192,CA_Availability[Reporting Month],">="&one_year_ago)) ->  | V192: Amersham and Wycombe College
A193: AD00933 | B193: CA00906 | C193: Amersham and Wycombe College | E193: Docklands | F193: NOC | G193: Further Education College | H193: L05429 | I193: 41306 | J193: 2 | K193: 129 | L193: 0 | M193: 0 | N193: 1 | O193: 1 | P193: Docklands | Q193: All | R193: Further Education | S193: =IF(I193<>reporting_month,"",COUNTIFS(CA_Availability[CA ID],B193,CA_Availability[Reporting Month],">="&one_year_ago)) ->  | V193: Amersham and Wycombe College
A194: AD00933 | B194: CA00906 | C194: Amersham and Wycombe College | E194: Docklands | F194: NOC | G194: Further Education College | H194: L05429 | I194: 41275 | J194: 0 | K194: 0 | L194: 0 | M194: 0 | N194: 1 | O194: 1 | P194: =IF(E194="","",VLOOKUP(E194,region_lookup,2,FALSE)) -> Docklands | Q194: =IF(G194="","",IF(sector_selection="All","All",VLOOKUP(G194,sector_lookup,2,FALSE))) -> All | R194: =IF(G194="","",VLOOKUP(G194,sector_lookup,2,FALSE)) -> Further Education | S194: =IF(I194<>reporting_month,"",COUNTIFS(CA_Availability[CA ID],B194,CA_Availability[Reporting Month],">="&one_year_ago)) ->  | U194: =IF(T194="","",IF(AND(T194<=0.997,P194=region_selection,Q194=sector_selection),"Yes","")) ->  | V194: =IF(C194="","",IF(D194="",C194,C194&", "&D194)) -> Amersham and Wycombe College | W194: =IF(AND(I194=reporting_month,P194=region_selection),"yes","") -> 
A195: AD00933 | B195: CA00906 | C195: Amersham and Wycombe College | E195: Docklands | F195: NOC | G195: Further Education College | H195: L05429 | I195: 41153 | J195: 3 | K195: 47 | L195: 0 | M195: 0 | N195: 1 | O195: 1 | P195: Docklands | Q195: All | R195: Further Education | S195: =IF(I195<>reporting_month,"",COUNTIFS(CA_Availability[CA ID],B195,CA_Availability[Reporting Month],">="&one_year_ago)) ->  | V195: Amersham and Wycombe College
A196: AD00933 | B196: CA00906 | C196: Amersham and Wycombe College | E196: Docklands | F196: NOC | G196: Further Education College | H196: L05429 | I196: 41334 | J196: 1 | K196: 17 | L196: 0 | M196: 0 | N196: 1 | O196: 1 | P196: Docklands | Q196: All | R196: Further Education | S196: =IF(I196<>reporting_month,"",COUNTIFS(CA_Availability[CA ID],B196,CA_Availability[Reporting Month],">="&one_year_ago)) ->  | V196: Amersham and Wycombe College
A197: AD00933 | B197: CA00906 | C197: Amersham and Wycombe College | E197: Docklands | F197: NOC | G197: Further Education College | H197: L05429 | I197: 41214 | J197: 1 | K197: 5 | L197: 0 | M197: 0 | N197: 1 | O197: 1 | P197: Docklands | Q197: All | R197: Further Education | S197: =IF(I197<>reporting_month,"",COUNTIFS(CA_Availability[CA ID],B197,CA_Availability[Reporting Month],">="&one_year_ago)) ->  | V197: Amersham and Wycombe College
